Workbook

Sheet Instructions
C2: Irrigation Cost Benefit Analysis Tool
B5: Purpose and Overview
B6: The purpose of this tool is to help Virginia’s agronomic producers determine whether it is economically advantageous to install an irrigation system on their farm. Users will input basic information about their farm, including location, size of farm, and soil type. The tool will then output financial information including additional income from irrigating and operating cost information. More detailed instructions on using the tool and interpreting the results can be found in Virginia Cooperative Extension publication BSE-237A, "Estimating Financial Costs and Benefits of Supplemental Irrigation with the Irrigation Financial Estimator Tool."
B7: Instructions
B9: General:
B10: This tool utilizes a built-in Excel feature called macros. These macros must be enabled or the tool will not operate properly. To enable macros, users should click “Enable Content” on the yellow security warning at the top of the workbook. If that warning does not appear, macros can also be enabled by doing the following: File Options --> Trust Center --> Trust Center Settings --> Enable all macros
B12: How to Use:
B14: Users should see five tabs at the bottom of this workbook. This tab includes instructions on how to use the tool along with details on each individual tab and how to use them. If any information is unclear, users should move their cursor over the cell in question and a pop-up box will appear with additional information.
B16: Tool Tab:
B17: Users should open this tab first. On this tab, users will be prompted to input information about their farm and basic financial information. This information will be used in subsequent tabs to calculate cost and benefit information. If any information is unclear, users can click on the field and a pop-up box will appear with further details. Once users are satisfied with the information on this tab, click the “Calculate” button. If users change any information on this page, the “Calculate” button will need to be pressed again to generate new financial information.
B19: Results Summary Tab:
B20: Once users have filled in every field in the Tool tab, they should navigate to the Results Summary tab. This tab contains a basic overview of cost and benefit information. If a user puts their mouse over a cell with a red corner, a pop-up box will appear with more information on what that value represent.
B22: Detailed Cost Results Tab:
B23: This tab contains more detailed information pertaining to the cost of purchasing and maintaining an irrigation system. It includes a range of cost estimates for operating costs and loan repayment based on the average costs over the life of the system. This tab also contains four graphs. The two pie graphs represent the breakdown of the annual cost of owning an irrigation system. The two box and whisker plots show the average range of annual costs that an agricultural producer could expect from owning an irrigation system.
B25: Detailed Benefit Results Tab:
B26: This tab contains more detailed information about the benefits of purchasing an irrigation system. It includes a range of expected additional income based on the 5th percentile and 95th percentile values over the life of the system.
B28: Disclaimer and Notice
B30: This tool has been designed to provide a preliminary estimate of the financial costs and benefits of irrigation on row crops, and is largely based on historic prices for fuel, crops, and irrigation systems. However, there are many factors that could result in actual costs and benefits that differ from those presented here. The use of this tool is not a guarentee of any particular yield or financial outcome, and should not be used as the sole basis for making investment decisions in irrigation. Consultation with irrigation professionals and agronomic experts is recommended before making significant investments or farm management decisions.
B32: Virginia Cooperative Extension programs and employment are open to all, regardless of age, color, disability, gender, gender identity, gender expression, national origin, political affiliation, race, religion, sexual orientation, genetic information, veteran status, or any other basis protected by law. An equal opportunity/affirmative action employer. Issued in furtherance of Cooperative Extension work, Virginia Polytechnic Institute and State University, Virginia State University, and the U.S. Department of Agriculture cooperating. Edwin J. Jones, Director, Virginia Cooperative Extension, Virginia Tech, Blacksburg; M. Ray McKinnie, Administrator, 1890 Extension Program, Virginia State University, Petersburg.

Sheet Tool
B2: Investment Information
B5: Farm Information | C5: User Inputs | D5: Units
B7: County | C7: Accomack County
B8: Primary Crop | C8: Corn
B9: Secondary Crop | C9: None
B10: Acres of Primary Crop | C10: 100 | D10: Acres
B11: Acres of Secondary Crop | D11: Acres
B12: Soil Type | C12: Loamy Sand
B14: Irrigation System Information | C14: User Inputs | D14: Units
B16: System | C16: Center Pivot
B17: Power | C17: Diesel
B18: Water Source | C18: Surface Water
B19: Irrigation Scheduling Method | C19: Rainfall Deficit
B20: Irrigation Water Applied per Week | D20: Inches
B22: Financial Information | C22: User Inputs | D22: Units
B24: Labor Cost | C24: 10 | D24: $/hour
B25: Repayment Period | C25: 10 | D25: Years
B26: Useful Life of System | C26: 20 | D26: Years
B27: Interest | C27: 4 | D27: %
B28: Down Payment | C28: 20000 | D28: $
B32: Irrigation System | C32: Suggested Useful Life | D32: Units
B34: Center Pivot | C34: 20-25 | D34: Years
B35: Drip | C35: ="10-15" -> 10-15 | D35: Years
B36: Hose Pull | C36: 15-20 | D36: Years
B37: Linear Move | C37: 15-20 | D37: Years

Sheet Results Summary
B2: Results - System Costs
B4: Investment Costs
B6: Total Investment Cost | C6: =ROUND(AVERAGE(Data!AI3:AI5003),-2) -> 76100
B7: Annual Loan Repayment | C7: =ROUND(AVERAGE(Data!AJ3:AJ5003),-2) -> 9400
B9: Operating Costs
B11: Average Annual Fuel Cost | C11: ='Detailed Cost Results'!D7 -> 10200
B12: Average Annual Labor Cost | C12: ='Detailed Cost Results'!D8 -> 900
B13: Average Annual Maintenance Cost | C13: ='Detailed Cost Results'!D9 -> 1500
B14: Total Annual Operating Costs | C14: =ROUND(SUM(C11:C13),-2) -> 12600
B15: Total Annual Costs | C15: =SUM(C7,C11:C13) -> 22000
B17: Results - Increased Revenues
B19: Average Annual Additional Income with Irrigation | C19: =ROUND(AVERAGE(Data!BC3:BC5003),-2) -> 29100
B20: Average Annual Net Revenue (including loan repayment) | C20: =ROUND($C$19-$C$15,-2) -> 7100
B21: Average Annual Net Revenue (not including loan repayment) | C21: =IF(Tool!$C$25>=Tool!$C$26,"NA",ROUND(AVERAGE(Data!BD3:BD5003),-2)) -> 16600

Sheet Detailed Cost Results
B2: Results- System Costs
B4: Operating Costs
C6: Low Estimate | D6: Average Estimate | E6: High Estimate
B7: Fuel | C7: =ROUND(PERCENTILE(Data!BJ3:BJ5003,0.05),-2) -> 7300 | D7: =ROUND(AVERAGE(Data!BJ3:BJ5003),-2) -> 10200 | E7: =ROUND(PERCENTILE(Data!BJ3:BJ5003,0.95),-2) -> 13400
B8: Labor | C8: =ROUND(PERCENTILE(Data!BH3:BH5003,0.05),-2) -> 700 | D8: =ROUND(AVERAGE(Data!BH3:BH5003),-2) -> 900 | E8: =ROUND(PERCENTILE(Data!BH3:BH5003,0.95),-2) -> 1100
B9: Maintenance | C9: =ROUND(PERCENTILE(Data!BI3:BI5003,0.05),-2) -> 1200 | D9: =ROUND(AVERAGE(Data!BI3:BI5003),-2) -> 1500 | E9: =ROUND(PERCENTILE(Data!BI3:BI5003,0.95),-2) -> 1800
B10: Total | C10: =SUM(C7:C9) -> 9200 | D10: =SUM(D7:D9) -> 12600 | E10: =SUM(E7:E9) -> 16300
B12: System Cost
C14: Low Estimate | D14: Average Estimate | E14: High Estimate
B15: Total Investment | C15: =ROUND(PERCENTILE(Data!AI3:AI5003,0.05),-2) -> 68200 | D15: =ROUND(AVERAGE(Data!AI3:AI5003),-2) -> 76100 | E15: =ROUND(PERCENTILE(Data!AI3:AI5003,0.95),-2) -> 84000
B16: Annual Loan Payment | C16: =ROUND(PERCENTILE(Data!$AJ$3:$AJ$5003,0.05),-2) -> 8400 | D16: =ROUND(AVERAGE(Data!AJ3:AJ5003),-2) -> 9400 | E16: =ROUND(PERCENTILE(Data!AJ3:AJ5003,0.95),-2) -> 10400
B18: Total Cost
C20: Low Estimate | D20: Average Estimate | E20: High Estimate
B21: Total Annual Cost | C21: =SUM(C10,C16) -> 17600 | D21: =SUM(D10,D16) -> 22000 | E21: =SUM(E10,E16) -> 26700

Sheet Detailed Benefit Results
B2: Results- Return on Investment Information
B4: Value of Investment | C4: Low Estimate | D4: Average Estimate | E4: High Estimate
B5: ='Results Summary'!B19 -> Average Annual Additional Income with Irrigation | C5: =ROUND(PERCENTILE(Data!BL3:BL35003,0.05),-2) -> 21700 | D5: =ROUND(AVERAGE(Data!$BL$3:$BL$5003),-2) -> 29100 | E5: =ROUND(PERCENTILE(Data!BL3:BL35003,0.95),-2) -> 37200
B6: ='Results Summary'!B21 -> Average Annual Net Revenue (not including loan repayment) | C6: =ROUND(PERCENTILE(Data!BM3:BM35003,0.05),-2) -> 11100 | D6: =ROUND(AVERAGE(Data!$BM$3:$BM$5003),-2) -> 16600 | E6: =ROUND(PERCENTILE(Data!BM3:BM35003,0.95),-2) -> 23100
B7: ='Results Summary'!B20 -> Average Annual Net Revenue (including loan repayment) | C7: =ROUND(PERCENTILE(Data!BN3:BN35003,0.05),-2) -> 1700 | D7: =ROUND(AVERAGE(Data!$BN$3:$BN$5003),-2) -> 7200 | E7: =ROUND(MAX(Data!$BN$3:$BN$5003),-2) -> 19600
B30: This graph compares net revenue with and without irrigation. Irrigation net revenue takes into account all operating costs and loan repayment. At the end of the loan repayment period, only operating costs are accounted for. Non-Irrigation net revenue accounts for only the projected income from rainfed crops. | H30: This graph represents how much additional income an agricultural producer would gain with an irrigation system due to insufficient rainfall. Each year represents possible additional revenue based on additional income minus operating expenses and loan repayment. At the end of the loan repayment period, only additional income and operating expenses are considered.
B54: This graph shows the total amount of rainfall over the course of the growing season on the X-axis and lost income minus operating expenses on the Y-axis. | H54: This graph shows the price of the selected crops on the X-axis and additional income minus operating costs on the Y-axis.

Sheet Data (hidden)
A1: Max Yield used (ton/ha): | B1: =IF($B$8="Corn",'Regression Data'!$K$3,IF($B$8="Cotton",'Regression Data'!$K$4,IF($B$8="Soybeans",'Regression Data'!$K$5,IF($B$8="Wheat",'Regression Data'!$K$6,IF($B$8="None",1))))) -> 11.595 | C1: =IF($B$9="Corn",'Regression Data'!$K$3,IF($B$9="Cotton",'Regression Data'!$K$4,IF($B$9="Soybeans",'Regression Data'!$K$5,IF($B$9="Wheat",'Regression Data'!$K$6,IF($B$9="None",$B$1))))) -> 11.595 | G1: Weather and Other General Information | H1: Year (Weather) | I1: Year (Finance) | J1: RowID | K1: Rain (mm) | L1: Drought (days) | M1: Rain (mm) 2 | N1: Drought (Days)2 | O1: =IF($B$8="Cotton","Cost ($/lb)","Cost ($/bu)") -> Cost ($/bu) | P1: =IF($B$9="Cotton","Cost 2 ($/lb)","Cost 2 ($/bu)") -> Cost 2 ($/bu) | Q1: =IF($B$8="Cotton","Max Yield (lb/ac)","Max Yield (bu/ac)") -> Max Yield (bu/ac) | R1: =IF($B$8="Cotton","Actual Yield (lb/ac)","Actual Yield (bu/ac)") -> Actual Yield (bu/ac) | S1: Max Yield 2 | T1: Actual Yield 2 | V1: Additional Income and Finance | X1: Potential Income | Y1: Actual Income | Z1: Additional Income | AA1: Potential Income 2 | AB1: Actual Income 2 | AC1: Additional Income 2 | AE1: Operating Cost and Water Deficit | AH1: Water Deficit (in) | AI1: Cost of System | AJ1: Annual System Cost | AK1: Labor | AL1: Maintenance | AM1: Power | AO1: Water Deficit 2 | AP1: Labor 2 | AQ1: Maintenance 2 | AR1: Power2 | AT1: TOTAL Labor | AU1: TOTAL Maintenance | AV1: TOTAL Power | AX1: Finance Information After Operating Costs | BA1: Additional Income - OC | BB1: Additional Income - OC 2 | BC1: TOTAL Additional Income | BD1: TOTAL Additional Income - OC | BE1: TOTAL Addional Income-Investment | BG1: Running Averages | BH1: Labor Running Average | BI1: Maintenance Running Average | BJ1: Power Running Average | BL1: Lost Income Running Average | BM1: Lost Income-OC Running Average | BN1: Lost Income-OC-Inv. RA | BP1: Total Water Deficits | BR1: TOTAL Water Deficit (in) | BS1: Water per Week (in)
A2: Max Yield (bu/ac) | B2: =IF($B$8="Corn",$B$1/2.47105*39.368,IF($B$8="Wheat",$B$1/2.47105*36.744,IF($B$8="Soybeans",$B$1/2.47105*36.744,IF($B$8="Cotton",$B$1/2.47105*2204.62,IF($B$8="None",2))))) -> 184.7279335 | C2: =IF($B$9="Corn",$C$1/2.47105*39.368,IF($B$9="Wheat",$C$1/2.47105*36.744,IF($B$9="Soybeans",$C$1/2.47105*36.744,IF($B$9="Cotton",$C$1/2.47105*2204.62,IF($B$9="None",$B$2))))) -> 184.7279335
A3: Conversion: | B3: =IF($B$8="Corn",39.368,IF($B$8="Cotton",2204.62,IF($B$8="Soybeans",36.774,IF($B$8="Wheat",36.744,IF($B$8="None",3))))) -> 39.368 | C3: =IF($B$9="Corn",39.368,IF($B$9="Cotton",2204.62,IF($B$9="Soybeans",36.774,IF($B$9="Wheat",36.744,IF($B$9="None",$B$3))))) -> 39.368 | H3: =RANDBETWEEN(1981,2016) -> 2004 | I3: =RANDBETWEEN(1995,2016) -> 2015 | J3: =VLOOKUP(I3,'Corn Rain'!B$3:C$38,2,FALSE) -> 37 | K3: =IF($B$8="None",0,IF($B$8="Corn",VLOOKUP(H3,'Corn Rain'!B$3:EE$38,$C$7,FALSE),IF($B$8="Cotton",VLOOKUP(H3,CottonRain!$B$3:$EE$38,Data!$C$7,FALSE),IF(Data!$B$8="Soybeans",VLOOKUP(Data!H3,'Soybeans Rain'!$B$3:$EE$38,Data!$C$7,FALSE),IF(Data!$B$8="Wheat",VLOOKUP(Data!H3,'Wheat Rain'!$B$3:$EE$38,Data!$C$7,FALSE)))))) -> 535.6883 | L3: =IF($B$8="None",0,IF($B$8="Corn",VLOOKUP(H3,'Corn Drought'!B$3:EE$38,Data!$C$7,FALSE),IF($B$8="Cotton",VLOOKUP(H3,'Cotton Drought'!$B$3:$EE$38,Data!$C$7,FALSE),IF($B$8="Soybeans",VLOOKUP(H3,'Soybeans Drought'!$B$3:$EE$38,Data!$C$7,FALSE),IF(Data!$B$8="Wheat",VLOOKUP(Data!H3,'Wheat Drought'!$B$3:$EE$38,Data!$C$7,FALSE)))))) -> 17 | M3: =IF($B$9="None",0,IF($B$9="Corn",VLOOKUP(H3,'Corn Rain'!B$3:EE$38,$C$7,FALSE),IF($B$9="Cotton",VLOOKUP(H3,CottonRain!$B$3:$EE$38,Data!$C$7,FALSE),IF(Data!$B$9="Soybeans",VLOOKUP(Data!H3,'Soybeans Rain'!$B$3:$EE$38,Data!$C$7,FALSE),IF(Data!$B$9="Wheat",VLOOKUP(Data!H3,'Wheat Rain'!$B$3:$EE$38,Data!$C$7,FALSE)))))) -> 0 | N3: =IF($B$9="None",0,IF($B$9="Corn",VLOOKUP(H3,'Corn Drought'!B$3:EE$38,Data!$C$7,FALSE),IF($B$9="Cotton",VLOOKUP(H3,'Cotton Drought'!$B$3:$EE$38,Data!$C$7,FALSE),IF($B$9="Soybeans",VLOOKUP(H3,'Soybeans Drought'!$B$3:$EE$38,Data!$C$7,FALSE),IF(Data!$B$9="Wheat",VLOOKUP(Data!H3,'Wheat Drought'!$B$3:$EE$38,Data!$C$7,FALSE)))))) -> 0 | O3: =IF($B$8="None",0,VLOOKUP(I3,'Historic Prices'!$A$3:$K$38,$C$8,FALSE)) -> 3.61 | P3: =IF($B$9="None",0,VLOOKUP(I3,'Historic Prices'!$A$3:$K$38,$C$9,FALSE)) -> 0 | Q3: =IF($B$8="None",0,IF(IF(Tool!$C$19="Ideal",$B$2,IF(Tool!$C$19="Scheduled",((VLOOKUP($B$8&$B$10,'Regression Data'!$A$3:$F$30,4,FALSE))+(VLOOKUP($B$8&$B$10,'Regression Data'!$A$3:$F$30,5,FALSE)*(K3+(Tool!$C$20*Data!$B$4/0.0393701)))+(VLOOKUP($B$8&$B$10,'Regression Data'!$A$3:$F$30,6,FALSE)*L3))/2.47105*$B$3))>$B$2,$B$2,(IF(Tool!$C$19="Ideal",$B$2,IF(Tool!$C$19="Scheduled",((VLOOKUP($B$8&$B$10,'Regression Data'!$A$3:$F$30,4,FALSE))+(VLOOKUP($B$8&$B$10,'Regression Data'!$A$3:$F$30,5,FALSE)*(K3+(Tool!$C$20*Data!$B$4/0.0393701)))+(VLOOKUP($B$8&$B$10,'Regression Data'!$A$3:$F$30,6,FALSE)*L3))/2.47105*$B$3))))) -> 184.7279335 | R3: =IF($B$8="None",0,IF(IF((((VLOOKUP($B$8&$B$10,'Regression Data'!$A$3:$F$30,4,FALSE))+(VLOOKUP($B$8&$B$10,'Regression Data'!$A$3:$F$30,5,FALSE)*K3)+(VLOOKUP($B$8&$B$10,'Regression Data'!$A$3:$F$30,6,FALSE)*L3))/2.47105*$B$3)>$B$2,$B$2,((VLOOKUP($B$8&$B$10,'Regression Data'!$A$3:$F$30,4,FALSE))+(VLOOKUP($B$8&$B$10,'Regression Data'!$A$3:$F$30,5,FALSE)*K3)+(VLOOKUP($B$8&$B$10,'Regression Data'!$A$3:$F$30,6,FALSE)*L3))/2.47105*$B$3)<0,0,IF((((VLOOKUP($B$8&$B$10,'Regression Data'!$A$3:$F$30,4,FALSE))+(VLOOKUP($B$8&$B$10,'Regression Data'!$A$3:$F$30,5,FALSE)*K3)+(VLOOKUP($B$8&$B$10,'Regression Data'!$A$3:$F$30,6,FALSE)*L3))/2.47105*$B$3)>$B$2,$B$2,((VLOOKUP($B$8&$B$10,'Regression Data'!$A$3:$F$30,4,FALSE))+(VLOOKUP($B$8&$B$10,'Regression Data'!$A$3:$F$30,5,FALSE)*K3)+(VLOOKUP($B$8&$B$10,'Regression Data'!$A$3:$F$30,6,FALSE)*L3))/2.47105*$B$3))) -> 170.9432945 | S3: =IF($B$9="None",0,IF(IF(Tool!$C$19="Ideal",$C$2,IF(Tool!$C$19="Scheduled",((VLOOKUP($B$9&$B$10,'Regression Data'!$A$3:$F$30,4,FALSE))+(VLOOKUP($B$9&$B$10,'Regression Data'!$A$3:$F$30,5,FALSE)*(N3+(Tool!$C$20*Data!$C$4/0.0393701)))+(VLOOKUP($B$9&$B$10,'Regression Data'!$A$3:$F$30,6,FALSE)*N3))/2.47105*$C$3))>$C$2,$C$2,(IF(Tool!$C$19="Ideal",$C$2,IF(Tool!$C$19="Scheduled",((VLOOKUP($B$9&$B$10,'Regression Data'!$A$3:$F$30,4,FALSE))+(VLOOKUP($B$9&$B$10,'Regression Data'!$A$3:$F$30,5,FALSE)*(M3+(Tool!$C$20*Data!$C$4/0.0393701)))+(VLOOKUP($B$9&$B$10,'Regression Data'!$A$3:$F$30,6,FALSE)*N3))/2.47105*$C$3))))) -> 0 | T3: =IF($B$9="None",0,IF(IF((((VLOOKUP($B$9&$B$10,'Regression Data'!$A$3:$F$30,4,FALSE))+(VLOOKUP($B$9&$B$10,'Regression Data'!$A$3:$F$30,5,FALSE)*M3)+(VLOOKUP($B$9&$B$10,'Regression Data'!$A$3:$F$30,6,FALSE)*N3))/2.47105*$C$3)>$C$2,$C$2,((VLOOKUP($B$9&$B$10,'Regression Data'!$A$3:$F$30,4,FALSE))+(VLOOKUP($B$9&$B$10,'Regression Data'!$A$3:$F$30,5,FALSE)*M3)+(VLOOKUP($B$9&$B$10,'Regression Data'!$A$3:$F$30,6,FALSE)*N3))/2.47105*$C$3)<0,0,(IF((((VLOOKUP($B$9&$B$10,'Regression Data'!$A$3:$F$30,4,FALSE))+(VLOOKUP($B$9&$B$10,'Regression Data'!$A$3:$F$30,5,FALSE)*M3)+(VLOOKUP($B$9&$B$10,'Regression Data'!$A$3:$F$30,6,FALSE)*N3))/2.47105*$C$3)>$C$2,$C$2,((VLOOKUP($B$9&$B$10,'Regression Data'!$A$3:$F$30,4,FALSE))+(VLOOKUP($B$9&$B$10,'Regression Data'!$A$3:$F$30,5,FALSE)*M3)+(VLOOKUP($B$9&$B$10,'Regression Data'!$A$3:$F$30,6,FALSE)*N3))/2.47105*$C$3)))) -> 0 | X3: =Q3*O3*$B$5 -> 66686.78398 | Y3: =R3*$B$5*O3 -> 61710.52932 | Z3: =IF(X3>0,X3-Y3,0) -> 4976.254666 | AA3: =S3*P3*$C$5 -> 0 | AB3: =T3*$C$5*P3 -> 0 | AC3: =IF(AA3>0,AA3-AB3,0) -> 0 | AH3: =IF($B$8="None",0,IF(Tool!$C$19="Rainfall Deficit",((VLOOKUP($B$8,'Regression Data'!$H$3:$K$6,3,FALSE))-K3)*0.0393701,IF(Tool!$C$19="Scheduled",$B$4*Tool!$C$20,))) -> 4.50046306 | AI3: =((IF($B$12="Center Pivot",'System Cost'!B41,IF($B$12="Linear Move",'System Cost'!G41,IF($B$12="Drip",'System Cost'!L41,IF($B$12="Hose Pull",'System Cost'!Q41)))))*(SUM($B$5:$C$5)))-(Tool!$C$28) -> 84093.19391 | AJ3: =-PMT($B$6/100,$B$14,AI3) -> 10367.92929 | AK3: =IF(AH3<0,0,IF($B$12="Center Pivot",'System Cost'!C41*Data!$B$13*Data!$B$5*Data!AH3,IF($B$12="Hose Pull",$B$5*$B$13*'System Cost'!R41*AH3,IF($B$12="Linear Move",AH3*$B$13*$B$5*'System Cost'!H41,IF($B$12="Drip",$B$5*$B$13*AH3*'System Cost'!M41))))) -> 557.0182263 | AL3: =IF(AH3<0,0,IF($B$12="Center Pivot",'System Cost'!E41*Data!$B$5*Data!AH3,IF($B$12="Drip",AH3*$B$5*'System Cost'!O41,IF($B$12="Linear Move",AH3*$B$5*'System Cost'!J41,IF($B$12="Hose Pull",AH3*$B$5*'System Cost'!T41))))) -> 1076.927409 | AM3: =IF(AH3<0,0,((IF($B$11="Electric",VLOOKUP((IF(I3<1995,1995,I3)),Electric!$A$3:$C$38,3,FALSE)*0.5,IF($B$11="Diesel",VLOOKUP((IF(I3<1995,1995,I3)),Diesel!$A$3:$C$24,3,FALSE),IF(Data!$B$11="Natural Gas",VLOOKUP((IF(I3<1995,1995,I3)),'Natural Gas'!$A$3:$C$38,3,FALSE))))))*(IF($B$12="Center Pivot",'System Cost'!D41,IF($B$12="Linear Move",'System Cost'!I41,IF($B$12="Drip",'System Cost'!N41,IF($B$12="Hose Pull",'System Cost'!S41)))))*AH3*$B$5) -> 2504.750641 | AO3: =IF($B$9="None",0,IF(Tool!$C$19="Rainfall Deficit",((VLOOKUP($B$9,'Regression Data'!$H$3:$K$6,3,FALSE))-M3)*0.0393701,IF(Tool!$C$19="Scheduled",$C$4*Tool!$C$20,))) -> 0 | AP3: =IF(AO3<0,0,IF($B$12="Center Pivot",'System Cost'!C41*Data!$B$13*Data!$C$5*Data!AO3,IF($B$12="Hose Pull",$C$5*$B$13*'System Cost'!R41*AO3,IF($B$12="Linear Move",AO3*$B$13*$C$5*'System Cost'!H41,IF($B$12="Drip",$C$5*$B$13*AO3*'System Cost'!M41))))) -> 0 | AQ3: =IF(AO3<0,0,IF($B$12="Center Pivot",'System Cost'!E41*Data!$C$5*Data!AO3,IF($B$12="Drip",AO3*$C$5*'System Cost'!O41,IF($B$12="Linear Move",AO3*$C$5*'System Cost'!J41,IF($B$12="Hose Pull",AO3*$C$5*'System Cost'!T41))))) -> 0 | AR3: =IF(AO3<0,0,((IF($B$11="Electric",VLOOKUP((IF(I3<1995,1995,I3)),Electric!$A$3:$C$38,3,FALSE),IF($B$11="Diesel",VLOOKUP((IF(I3<1995,1995,I3)),Diesel!$A$3:$C$24,3,FALSE),IF(Data!$B$11="Natural Gas",VLOOKUP((IF(I3<1995,1995,I3)),'Natural Gas'!$A$3:$C$38,3,FALSE))))))*(IF($B$12="Center Pivot",'System Cost'!D41,IF($B$12="Linear Move",'System Cost'!I41,IF($B$12="Drip",'System Cost'!N41,IF($B$12="Hose Pull",'System Cost'!S41)))))*AO3*$C$5) -> 0 | AT3: =AK3+AP3 -> 557.0182263 | AU3: =AL3+AQ3 -> 1076.927409 | AV3: =AM3+AR3 -> 2504.750641 | BA3: =IF(OR(AK3>0,AL3>0,AM3>0),IF(AH3>0,Z3-AK3-AM3-AL3,0),0) -> 837.5583889 | BB3: =IF(OR(AP3>0,AQ3>0,AR3>0),IF(AO3>0,AC3-AP3-AR3-AQ3,0),0) -> 0 | BC3: =Z3+AC3 -> 4976.254666 | BD3: =BB3+BA3 -> 837.5583889 | BE3: =IF(AND(AH3<0,AO3<0),PMT($B$6/100,$B$14,AI3),BD3+PMT($B$6/100,$B$14,AI3)) -> -9530.3709 | BH3: =IF(COUNTBLANK((OFFSET($AT$3,$B$15*(ROW()-ROW($AT$3)),0,$B$15,1)))>0,"",AVERAGE(OFFSET($AT$3,$B$15*(ROW()-ROW($AT$3)),0,$B$15,1))) -> 835.54375 | BI3: =IF(COUNTBLANK((OFFSET($AU$3,$B$15*(ROW()-ROW($AU$3)),0,$B$15,1)))>0,"",AVERAGE(OFFSET($AU$3,$B$15*(ROW()-ROW($AU$3)),0,$B$15,1))) -> 1639.58776 | BJ3: =IF(COUNTBLANK((OFFSET($AV$3,$B$15*(ROW()-ROW($AV$3)),0,$B$15,1)))>0,"",AVERAGE(OFFSET($AV$3,$B$15*(ROW()-ROW($AV$3)),0,$B$15,1))) -> 10010.37203 | BL3: =IF(COUNTBLANK((OFFSET($BC$3,$B$15*(ROW()-ROW($BC$3)),0,$B$15,1)))>0,"",AVERAGE(OFFSET($BC$3,$B$15*(ROW()-ROW($BC$3)),0,$B$15,1))) -> 29447.30951 | BM3: =IF(COUNTBLANK((OFFSET($BD$3,$B$15*(ROW()-ROW($BD$3)),0,$B$15,1)))>0,"",AVERAGE(OFFSET($BD$3,$B$15*(ROW()-ROW($BD$3)),0,$B$15,1))) -> 16961.80598 | BN3: =IF(COUNTBLANK((OFFSET($BE$3,$B$15*(ROW()-ROW($BE$3)),0,$B$15,1)))>0,"",AVERAGE(OFFSET($BE$3,$B$15*(ROW()-ROW($BE$3)),0,$B$15,1))) -> 7552.061644 | BR3: =((AH3*$B$5)+($C$5*AO3))/(SUM($B$5:$C$5)) -> 4.50046306 | BS3: =((AH3*$B$5/$B$4)+(AO3*$C$5/$C$4))/(SUM($B$5:$C$5)) -> 0.166683817
A4: Weeks Grown | B4: =IF($B$8="Corn",27,IF($B$8="Wheat",18,IF($B$8="Cotton",27,IF($B$8="Soybeans",18,IF($B$8="None",4))))) -> 27 | C4: =IF($B$9="Corn",27,IF($B$9="Wheat",18,IF($B$9="Cotton",27,IF($B$9="Soybeans",18,IF($B$9="None",$B$4))))) -> 27 | H4: =RANDBETWEEN(1981,2016) -> 1988 | I4: =RANDBETWEEN(1995,2016) -> 2004 | J4: =VLOOKUP(I4,'Corn Rain'!B$3:C$38,2,FALSE) -> 26 | K4: =IF($B$8="None",0,IF($B$8="Corn",VLOOKUP(H4,'Corn Rain'!B$3:EE$38,$C$7,FALSE),IF($B$8="Cotton",VLOOKUP(H4,CottonRain!$B$3:$EE$38,Data!$C$7,FALSE),IF(Data!$B$8="Soybeans",VLOOKUP(Data!H4,'Soybeans Rain'!$B$3:$EE$38,Data!$C$7,FALSE),IF(Data!$B$8="Wheat",VLOOKUP(Data!H4,'Wheat Rain'!$B$3:$EE$38,Data!$C$7,FALSE)))))) -> 308.573 | L4: =IF($B$8="None",0,IF($B$8="Corn",VLOOKUP(H4,'Corn Drought'!B$3:EE$38,Data!$C$7,FALSE),IF($B$8="Cotton",VLOOKUP(H4,'Cotton Drought'!$B$3:$EE$38,Data!$C$7,FALSE),IF($B$8="Soybeans",VLOOKUP(H4,'Soybeans Drought'!$B$3:$EE$38,Data!$C$7,FALSE),IF(Data!$B$8="Wheat",VLOOKUP(Data!H4,'Wheat Drought'!$B$3:$EE$38,Data!$C$7,FALSE)))))) -> 40 | M4: =IF($B$9="None",0,IF($B$9="Corn",VLOOKUP(H4,'Corn Rain'!B$3:EE$38,$C$7,FALSE),IF($B$9="Cotton",VLOOKUP(H4,CottonRain!$B$3:$EE$38,Data!$C$7,FALSE),IF(Data!$B$9="Soybeans",VLOOKUP(Data!H4,'Soybeans Rain'!$B$3:$EE$38,Data!$C$7,FALSE),IF(Data!$B$9="Wheat",VLOOKUP(Data!H4,'Wheat Rain'!$B$3:$EE$38,Data!$C$7,FALSE)))))) -> 0 | N4: =IF($B$9="None",0,IF($B$9="Corn",VLOOKUP(H4,'Corn Drought'!B$3:EE$38,Data!$C$7,FALSE),IF($B$9="Cotton",VLOOKUP(H4,'Cotton Drought'!$B$3:$EE$38,Data!$C$7,FALSE),IF($B$9="Soybeans",VLOOKUP(H4,'Soybeans Drought'!$B$3:$EE$38,Data!$C$7,FALSE),IF(Data!$B$9="Wheat",VLOOKUP(Data!H4,'Wheat Drought'!$B$3:$EE$38,Data!$C$7,FALSE)))))) -> 0 | O4: =IF($B$8="None",0,VLOOKUP(I4,'Historic Prices'!$A$3:$K$38,$C$8,FALSE)) -> 2.06 | P4: =IF($B$9="None",0,VLOOKUP(I4,'Historic Prices'!$A$3:$K$38,$C$9,FALSE)) -> 0 | Q4: =IF($B$8="None",0,IF(IF(Tool!$C$19="Ideal",$B$2,IF(Tool!$C$19="Scheduled",((VLOOKUP($B$8&$B$10,'Regression Data'!$A$3:$F$30,4,FALSE))+(VLOOKUP($B$8&$B$10,'Regression Data'!$A$3:$F$30,5,FALSE)*(K4+(Tool!$C$20*Data!$B$4/0.0393701)))+(VLOOKUP($B$8&$B$10,'Regression Data'!$A$3:$F$30,6,FALSE)*L4))/2.47105*$B$3))>$B$2,$B$2,(IF(Tool!$C$19="Ideal",$B$2,IF(Tool!$C$19="Scheduled",((VLOOKUP($B$8&$B$10,'Regression Data'!$A$3:$F$30,4,FALSE))+(VLOOKUP($B$8&$B$10,'Regression Data'!$A$3:$F$30,5,FALSE)*(K4+(Tool!$C$20*Data!$B$4/0.0393701)))+(VLOOKUP($B$8&$B$10,'Regression Data'!$A$3:$F$30,6,FALSE)*L4))/2.47105*$B$3))))) -> 184.7279335 | R4: =IF($B$8="None",0,IF(IF((((VLOOKUP($B$8&$B$10,'Regression Data'!$A$3:$F$30,4,FALSE))+(VLOOKUP($B$8&$B$10,'Regression Data'!$A$3:$F$30,5,FALSE)*K4)+(VLOOKUP($B$8&$B$10,'Regression Data'!$A$3:$F$30,6,FALSE)*L4))/2.47105*$B$3)>$B$2,$B$2,((VLOOKUP($B$8&$B$10,'Regression Data'!$A$3:$F$30,4,FALSE))+(VLOOKUP($B$8&$B$10,'Regression Data'!$A$3:$F$30,5,FALSE)*K4)+(VLOOKUP($B$8&$B$10,'Regression Data'!$A$3:$F$30,6,FALSE)*L4))/2.47105*$B$3)<0,0,IF((((VLOOKUP($B$8&$B$10,'Regression Data'!$A$3:$F$30,4,FALSE))+(VLOOKUP($B$8&$B$10,'Regression Data'!$A$3:$F$30,5,FALSE)*K4)+(VLOOKUP($B$8&$B$10,'Regression Data'!$A$3:$F$30,6,FALSE)*L4))/2.47105*$B$3)>$B$2,$B$2,((VLOOKUP($B$8&$B$10,'Regression Data'!$A$3:$F$30,4,FALSE))+(VLOOKUP($B$8&$B$10,'Regression Data'!$A$3:$F$30,5,FALSE)*K4)+(VLOOKUP($B$8&$B$10,'Regression Data'!$A$3:$F$30,6,FALSE)*L4))/2.47105*$B$3))) -> 64.09573375 | S4: =IF($B$9="None",0,IF(IF(Tool!$C$19="Ideal",$C$2,IF(Tool!$C$19="Scheduled",((VLOOKUP($B$9&$B$10,'Regression Data'!$A$3:$F$30,4,FALSE))+(VLOOKUP($B$9&$B$10,'Regression Data'!$A$3:$F$30,5,FALSE)*(N4+(Tool!$C$20*Data!$C$4/0.0393701)))+(VLOOKUP($B$9&$B$10,'Regression Data'!$A$3:$F$30,6,FALSE)*N4))/2.47105*$C$3))>$C$2,$C$2,(IF(Tool!$C$19="Ideal",$C$2,IF(Tool!$C$19="Scheduled",((VLOOKUP($B$9&$B$10,'Regression Data'!$A$3:$F$30,4,FALSE))+(VLOOKUP($B$9&$B$10,'Regression Data'!$A$3:$F$30,5,FALSE)*(M4+(Tool!$C$20*Data!$C$4/0.0393701)))+(VLOOKUP($B$9&$B$10,'Regression Data'!$A$3:$F$30,6,FALSE)*N4))/2.47105*$C$3))))) -> 0 | T4: =IF($B$9="None",0,IF(IF((((VLOOKUP($B$9&$B$10,'Regression Data'!$A$3:$F$30,4,FALSE))+(VLOOKUP($B$9&$B$10,'Regression Data'!$A$3:$F$30,5,FALSE)*M4)+(VLOOKUP($B$9&$B$10,'Regression Data'!$A$3:$F$30,6,FALSE)*N4))/2.47105*$C$3)>$C$2,$C$2,((VLOOKUP($B$9&$B$10,'Regression Data'!$A$3:$F$30,4,FALSE))+(VLOOKUP($B$9&$B$10,'Regression Data'!$A$3:$F$30,5,FALSE)*M4)+(VLOOKUP($B$9&$B$10,'Regression Data'!$A$3:$F$30,6,FALSE)*N4))/2.47105*$C$3)<0,0,(IF((((VLOOKUP($B$9&$B$10,'Regression Data'!$A$3:$F$30,4,FALSE))+(VLOOKUP($B$9&$B$10,'Regression Data'!$A$3:$F$30,5,FALSE)*M4)+(VLOOKUP($B$9&$B$10,'Regression Data'!$A$3:$F$30,6,FALSE)*N4))/2.47105*$C$3)>$C$2,$C$2,((VLOOKUP($B$9&$B$10,'Regression Data'!$A$3:$F$30,4,FALSE))+(VLOOKUP($B$9&$B$10,'Regression Data'!$A$3:$F$30,5,FALSE)*M4)+(VLOOKUP($B$9&$B$10,'Regression Data'!$A$3:$F$30,6,FALSE)*N4))/2.47105*$C$3)))) -> 0 | X4: 38053.95429 | Y4: 13203.72115 | Z4: =IF(X4>0,X4-Y4,0) -> 24850.23314 | AA4: 0 | AB4: 0 | AC4: =IF(AA4>0,AA4-AB4,0) -> 0 | AH4: =IF($B$8="None",0,IF(Tool!$C$19="Rainfall Deficit",((VLOOKUP($B$8,'Regression Data'!$H$3:$K$6,3,FALSE))-K4)*0.0393701,IF(Tool!$C$19="Scheduled",$B$4*Tool!$C$20,))) -> 13.44201513 | AI4: =((IF($B$12="Center Pivot",'System Cost'!B42,IF($B$12="Linear Move",'System Cost'!G42,IF($B$12="Drip",'System Cost'!L42,IF($B$12="Hose Pull",'System Cost'!Q42)))))*(SUM($B$5:$C$5)))-(Tool!$C$28) -> 68765.25665 | AJ4: =-PMT($B$6/100,$B$14,AI4) -> 8478.133429 | AK4: =IF(AH4<0,0,IF($B$12="Center Pivot",'System Cost'!C42*Data!$B$13*Data!$B$5*Data!AH4,IF($B$12="Hose Pull",$B$5*$B$13*'System Cost'!R42*AH4,IF($B$12="Linear Move",AH4*$B$13*$B$5*'System Cost'!H42,IF($B$12="Drip",$B$5*$B$13*AH4*'System Cost'!M42))))) -> 818.3220154 | AL4: =IF(AH4<0,0,IF($B$12="Center Pivot",'System Cost'!E42*Data!$B$5*Data!AH4,IF($B$12="Drip",AH4*$B$5*'System Cost'!O42,IF($B$12="Linear Move",AH4*$B$5*'System Cost'!J42,IF($B$12="Hose Pull",AH4*$B$5*'System Cost'!T42))))) -> 982.7580794 | AM4: =IF(AH4<0,0,((IF($B$11="Electric",VLOOKUP((IF(I4<1995,1995,I4)),Electric!$A$3:$C$38,3,FALSE)*0.5,IF($B$11="Diesel",VLOOKUP((IF(I4<1995,1995,I4)),Diesel!$A$3:$C$24,3,FALSE),IF(Data!$B$11="Natural Gas",VLOOKUP((IF(I4<1995,1995,I4)),'Natural Gas'!$A$3:$C$38,3,FALSE))))))*(IF($B$12="Center Pivot",'System Cost'!D42,IF($B$12="Linear Move",'System Cost'!I42,IF($B$12="Drip",'System Cost'!N42,IF($B$12="Hose Pull",'System Cost'!S42)))))*AH4*$B$5) -> 14542.36278 | AO4: =IF($B$9="None",0,IF(Tool!$C$19="Rainfall Deficit",((VLOOKUP($B$9,'Regression Data'!$H$3:$K$6,3,FALSE))-M4)*0.0393701,IF(Tool!$C$19="Scheduled",$C$4*Tool!$C$20,))) -> 0 | AP4: =IF(AO4<0,0,IF($B$12="Center Pivot",'System Cost'!C42*Data!$B$13*Data!$C$5*Data!AO4,IF($B$12="Hose Pull",$C$5*$B$13*'System Cost'!R42*AO4,IF($B$12="Linear Move",AO4*$B$13*$C$5*'System Cost'!H42,IF($B$12="Drip",$C$5*$B$13*AO4*'System Cost'!M42))))) -> 0 | AQ4: =IF(AO4<0,0,IF($B$12="Center Pivot",'System Cost'!E42*Data!$C$5*Data!AO4,IF($B$12="Drip",AO4*$C$5*'System Cost'!O42,IF($B$12="Linear Move",AO4*$C$5*'System Cost'!J42,IF($B$12="Hose Pull",AO4*$C$5*'System Cost'!T42))))) -> 0 | AR4: =IF(AO4<0,0,((IF($B$11="Electric",VLOOKUP((IF(I4<1995,1995,I4)),Electric!$A$3:$C$38,3,FALSE),IF($B$11="Diesel",VLOOKUP((IF(I4<1995,1995,I4)),Diesel!$A$3:$C$24,3,FALSE),IF(Data!$B$11="Natural Gas",VLOOKUP((IF(I4<1995,1995,I4)),'Natural Gas'!$A$3:$C$38,3,FALSE))))))*(IF($B$12="Center Pivot",'System Cost'!D42,IF($B$12="Linear Move",'System Cost'!I42,IF($B$12="Drip",'System Cost'!N42,IF($B$12="Hose Pull",'System Cost'!S42)))))*AO4*$C$5) -> 0 | AT4: =AK4+AP4 -> 818.3220154 | AU4: 982.7580794 | AV4: 14542.36278 | BA4: =IF(OR(AK4>0,AL4>0,AM4>0),IF(AH4>0,Z4-AK4-AM4-AL4,0),0) -> 8506.79027 | BB4: 0 | BC4: =Z4+AC4 -> 24850.23314 | BD4: =BB4+BA4 -> 8506.79027 | BE4: =IF(AND(AH4<0,AO4<0),PMT($B$6/100,$B$14,AI4),BD4+PMT($B$6/100,$B$14,AI4)) -> 28.65684095 | BH4: 765.4926868 | BI4: 1263.783928 | BJ4: 6500.544831 | BL4: 19629.73263 | BM4: 11099.91118 | BN4: 1783.525692 | BR4: 13.44201513 | BS4: 0.4978524123
A5: Acres: | B5: =IF($B$8="None",0,Tool!$C$10) -> 100 | C5: =IF($B$9="None",0,Tool!$C$11) -> 0 | H5: 1993 | I5: 2006 | J5: =VLOOKUP(I5,'Corn Rain'!B$3:C$38,2,FALSE) -> 28 | K5: =IF($B$8="None",0,IF($B$8="Corn",VLOOKUP(H5,'Corn Rain'!B$3:EE$38,$C$7,FALSE),IF($B$8="Cotton",VLOOKUP(H5,CottonRain!$B$3:$EE$38,Data!$C$7,FALSE),IF(Data!$B$8="Soybeans",VLOOKUP(Data!H5,'Soybeans Rain'!$B$3:$EE$38,Data!$C$7,FALSE),IF(Data!$B$8="Wheat",VLOOKUP(Data!H5,'Wheat Rain'!$B$3:$EE$38,Data!$C$7,FALSE)))))) -> 273.193 | L5: =IF($B$8="None",0,IF($B$8="Corn",VLOOKUP(H5,'Corn Drought'!B$3:EE$38,Data!$C$7,FALSE),IF($B$8="Cotton",VLOOKUP(H5,'Cotton Drought'!$B$3:$EE$38,Data!$C$7,FALSE),IF($B$8="Soybeans",VLOOKUP(H5,'Soybeans Drought'!$B$3:$EE$38,Data!$C$7,FALSE),IF(Data!$B$8="Wheat",VLOOKUP(Data!H5,'Wheat Drought'!$B$3:$EE$38,Data!$C$7,FALSE)))))) -> 54 | M5: =IF($B$9="None",0,IF($B$9="Corn",VLOOKUP(H5,'Corn Rain'!B$3:EE$38,$C$7,FALSE),IF($B$9="Cotton",VLOOKUP(H5,CottonRain!$B$3:$EE$38,Data!$C$7,FALSE),IF(Data!$B$9="Soybeans",VLOOKUP(Data!H5,'Soybeans Rain'!$B$3:$EE$38,Data!$C$7,FALSE),IF(Data!$B$9="Wheat",VLOOKUP(Data!H5,'Wheat Rain'!$B$3:$EE$38,Data!$C$7,FALSE)))))) -> 0 | N5: =IF($B$9="None",0,IF($B$9="Corn",VLOOKUP(H5,'Corn Drought'!B$3:EE$38,Data!$C$7,FALSE),IF($B$9="Cotton",VLOOKUP(H5,'Cotton Drought'!$B$3:$EE$38,Data!$C$7,FALSE),IF($B$9="Soybeans",VLOOKUP(H5,'Soybeans Drought'!$B$3:$EE$38,Data!$C$7,FALSE),IF(Data!$B$9="Wheat",VLOOKUP(Data!H5,'Wheat Drought'!$B$3:$EE$38,Data!$C$7,FALSE)))))) -> 0 | O5: =IF($B$8="None",0,VLOOKUP(I5,'Historic Prices'!$A$3:$K$38,$C$8,FALSE)) -> 3.04 | P5: =IF($B$9="None",0,VLOOKUP(I5,'Historic Prices'!$A$3:$K$38,$C$9,FALSE)) -> 0 | Q5: =IF($B$8="None",0,IF(IF(Tool!$C$19="Ideal",$B$2,IF(Tool!$C$19="Scheduled",((VLOOKUP($B$8&$B$10,'Regression Data'!$A$3:$F$30,4,FALSE))+(VLOOKUP($B$8&$B$10,'Regression Data'!$A$3:$F$30,5,FALSE)*(K5+(Tool!$C$20*Data!$B$4/0.0393701)))+(VLOOKUP($B$8&$B$10,'Regression Data'!$A$3:$F$30,6,FALSE)*L5))/2.47105*$B$3))>$B$2,$B$2,(IF(Tool!$C$19="Ideal",$B$2,IF(Tool!$C$19="Scheduled",((VLOOKUP($B$8&$B$10,'Regression Data'!$A$3:$F$30,4,FALSE))+(VLOOKUP($B$8&$B$10,'Regression Data'!$A$3:$F$30,5,FALSE)*(K5+(Tool!$C$20*Data!$B$4/0.0393701)))+(VLOOKUP($B$8&$B$10,'Regression Data'!$A$3:$F$30,6,FALSE)*L5))/2.47105*$B$3))))) -> 184.7279335 | R5: =IF($B$8="None",0,IF(IF((((VLOOKUP($B$8&$B$10,'Regression Data'!$A$3:$F$30,4,FALSE))+(VLOOKUP($B$8&$B$10,'Regression Data'!$A$3:$F$30,5,FALSE)*K5)+(VLOOKUP($B$8&$B$10,'Regression Data'!$A$3:$F$30,6,FALSE)*L5))/2.47105*$B$3)>$B$2,$B$2,((VLOOKUP($B$8&$B$10,'Regression Data'!$A$3:$F$30,4,FALSE))+(VLOOKUP($B$8&$B$10,'Regression Data'!$A$3:$F$30,5,FALSE)*K5)+(VLOOKUP($B$8&$B$10,'Regression Data'!$A$3:$F$30,6,FALSE)*L5))/2.47105*$B$3)<0,0,IF((((VLOOKUP($B$8&$B$10,'Regression Data'!$A$3:$F$30,4,FALSE))+(VLOOKUP($B$8&$B$10,'Regression Data'!$A$3:$F$30,5,FALSE)*K5)+(VLOOKUP($B$8&$B$10,'Regression Data'!$A$3:$F$30,6,FALSE)*L5))/2.47105*$B$3)>$B$2,$B$2,((VLOOKUP($B$8&$B$10,'Regression Data'!$A$3:$F$30,4,FALSE))+(VLOOKUP($B$8&$B$10,'Regression Data'!$A$3:$F$30,5,FALSE)*K5)+(VLOOKUP($B$8&$B$10,'Regression Data'!$A$3:$F$30,6,FALSE)*L5))/2.47105*$B$3))) -> 31.83406361 | S5: =IF($B$9="None",0,IF(IF(Tool!$C$19="Ideal",$C$2,IF(Tool!$C$19="Scheduled",((VLOOKUP($B$9&$B$10,'Regression Data'!$A$3:$F$30,4,FALSE))+(VLOOKUP($B$9&$B$10,'Regression Data'!$A$3:$F$30,5,FALSE)*(N5+(Tool!$C$20*Data!$C$4/0.0393701)))+(VLOOKUP($B$9&$B$10,'Regression Data'!$A$3:$F$30,6,FALSE)*N5))/2.47105*$C$3))>$C$2,$C$2,(IF(Tool!$C$19="Ideal",$C$2,IF(Tool!$C$19="Scheduled",((VLOOKUP($B$9&$B$10,'Regression Data'!$A$3:$F$30,4,FALSE))+(VLOOKUP($B$9&$B$10,'Regression Data'!$A$3:$F$30,5,FALSE)*(M5+(Tool!$C$20*Data!$C$4/0.0393701)))+(VLOOKUP($B$9&$B$10,'Regression Data'!$A$3:$F$30,6,FALSE)*N5))/2.47105*$C$3))))) -> 0 | T5: =IF($B$9="None",0,IF(IF((((VLOOKUP($B$9&$B$10,'Regression Data'!$A$3:$F$30,4,FALSE))+(VLOOKUP($B$9&$B$10,'Regression Data'!$A$3:$F$30,5,FALSE)*M5)+(VLOOKUP($B$9&$B$10,'Regression Data'!$A$3:$F$30,6,FALSE)*N5))/2.47105*$C$3)>$C$2,$C$2,((VLOOKUP($B$9&$B$10,'Regression Data'!$A$3:$F$30,4,FALSE))+(VLOOKUP($B$9&$B$10,'Regression Data'!$A$3:$F$30,5,FALSE)*M5)+(VLOOKUP($B$9&$B$10,'Regression Data'!$A$3:$F$30,6,FALSE)*N5))/2.47105*$C$3)<0,0,(IF((((VLOOKUP($B$9&$B$10,'Regression Data'!$A$3:$F$30,4,FALSE))+(VLOOKUP($B$9&$B$10,'Regression Data'!$A$3:$F$30,5,FALSE)*M5)+(VLOOKUP($B$9&$B$10,'Regression Data'!$A$3:$F$30,6,FALSE)*N5))/2.47105*$C$3)>$C$2,$C$2,((VLOOKUP($B$9&$B$10,'Regression Data'!$A$3:$F$30,4,FALSE))+(VLOOKUP($B$9&$B$10,'Regression Data'!$A$3:$F$30,5,FALSE)*M5)+(VLOOKUP($B$9&$B$10,'Regression Data'!$A$3:$F$30,6,FALSE)*N5))/2.47105*$C$3)))) -> 0 | X5: 56157.29177 | Y5: 9677.555337 | Z5: =IF(X5>0,X5-Y5,0) -> 46479.73644 | AA5: 0 | AB5: 0 | AC5: 0 | AH5: =IF($B$8="None",0,IF(Tool!$C$19="Rainfall Deficit",((VLOOKUP($B$8,'Regression Data'!$H$3:$K$6,3,FALSE))-K5)*0.0393701,IF(Tool!$C$19="Scheduled",$B$4*Tool!$C$20,))) -> 14.83492927 | AI5: =((IF($B$12="Center Pivot",'System Cost'!B43,IF($B$12="Linear Move",'System Cost'!G43,IF($B$12="Drip",'System Cost'!L43,IF($B$12="Hose Pull",'System Cost'!Q43)))))*(SUM($B$5:$C$5)))-(Tool!$C$28) -> 79496.04182 | AJ5: 9801.142067 | AK5: =IF(AH5<0,0,IF($B$12="Center Pivot",'System Cost'!C43*Data!$B$13*Data!$B$5*Data!AH5,IF($B$12="Hose Pull",$B$5*$B$13*'System Cost'!R43*AH5,IF($B$12="Linear Move",AH5*$B$13*$B$5*'System Cost'!H43,IF($B$12="Drip",$B$5*$B$13*AH5*'System Cost'!M43))))) -> 1866.753608 | AL5: =IF(AH5<0,0,IF($B$12="Center Pivot",'System Cost'!E43*Data!$B$5*Data!AH5,IF($B$12="Drip",AH5*$B$5*'System Cost'!O43,IF($B$12="Linear Move",AH5*$B$5*'System Cost'!J43,IF($B$12="Hose Pull",AH5*$B$5*'System Cost'!T43))))) -> 632.6767767 | AM5: =IF(AH5<0,0,((IF($B$11="Electric",VLOOKUP((IF(I5<1995,1995,I5)),Electric!$A$3:$C$38,3,FALSE)*0.5,IF($B$11="Diesel",VLOOKUP((IF(I5<1995,1995,I5)),Diesel!$A$3:$C$24,3,FALSE),IF(Data!$B$11="Natural Gas",VLOOKUP((IF(I5<1995,1995,I5)),'Natural Gas'!$A$3:$C$38,3,FALSE))))))*(IF($B$12="Center Pivot",'System Cost'!D43,IF($B$12="Linear Move",'System Cost'!I43,IF($B$12="Drip",'System Cost'!N43,IF($B$12="Hose Pull",'System Cost'!S43)))))*AH5*$B$5) -> 30292.51873 | AO5: =IF($B$9="None",0,IF(Tool!$C$19="Rainfall Deficit",((VLOOKUP($B$9,'Regression Data'!$H$3:$K$6,3,FALSE))-M5)*0.0393701,IF(Tool!$C$19="Scheduled",$C$4*Tool!$C$20,))) -> 0 | AP5: =IF(AO5<0,0,IF($B$12="Center Pivot",'System Cost'!C43*Data!$B$13*Data!$C$5*Data!AO5,IF($B$12="Hose Pull",$C$5*$B$13*'System Cost'!R43*AO5,IF($B$12="Linear Move",AO5*$B$13*$C$5*'System Cost'!H43,IF($B$12="Drip",$C$5*$B$13*AO5*'System Cost'!M43))))) -> 0 | AQ5: =IF(AO5<0,0,IF($B$12="Center Pivot",'System Cost'!E43*Data!$C$5*Data!AO5,IF($B$12="Drip",AO5*$C$5*'System Cost'!O43,IF($B$12="Linear Move",AO5*$C$5*'System Cost'!J43,IF($B$12="Hose Pull",AO5*$C$5*'System Cost'!T43))))) -> 0 | AR5: =IF(AO5<0,0,((IF($B$11="Electric",VLOOKUP((IF(I5<1995,1995,I5)),Electric!$A$3:$C$38,3,FALSE),IF($B$11="Diesel",VLOOKUP((IF(I5<1995,1995,I5)),Diesel!$A$3:$C$24,3,FALSE),IF(Data!$B$11="Natural Gas",VLOOKUP((IF(I5<1995,1995,I5)),'Natural Gas'!$A$3:$C$38,3,FALSE))))))*(IF($B$12="Center Pivot",'System Cost'!D43,IF($B$12="Linear Move",'System Cost'!I43,IF($B$12="Drip",'System Cost'!N43,IF($B$12="Hose Pull",'System Cost'!S43)))))*AO5*$C$5) -> 0 | AT5: 1866.753608 | AU5: 632.6767767 | AV5: 30292.51873 | BA5: 13687.78733 | BB5: 0 | BC5: =Z5+AC5 -> 46479.73644 | BD5: =BB5+BA5 -> 13687.78733 | BE5: 3886.645261 | BH5: 1096.631832 | BI5: 1738.082209 | BJ5: 9657.791561 | BL5: 27349.39463 | BM5: 14856.88903 | BN5: 5700.230972 | BR5: 14.83492927 | BS5: 0.5494418248
A6: Inflation (%) | B6: =Tool!$C$27 -> 4 | H6: 2012 | I6: 1996 | J6: =VLOOKUP(I6,'Corn Rain'!B$3:C$38,2,FALSE) -> 18 | K6: =IF($B$8="None",0,IF($B$8="Corn",VLOOKUP(H6,'Corn Rain'!B$3:EE$38,$C$7,FALSE),IF($B$8="Cotton",VLOOKUP(H6,CottonRain!$B$3:$EE$38,Data!$C$7,FALSE),IF(Data!$B$8="Soybeans",VLOOKUP(Data!H6,'Soybeans Rain'!$B$3:$EE$38,Data!$C$7,FALSE),IF(Data!$B$8="Wheat",VLOOKUP(Data!H6,'Wheat Rain'!$B$3:$EE$38,Data!$C$7,FALSE)))))) -> 397.3361 | L6: =IF($B$8="None",0,IF($B$8="Corn",VLOOKUP(H6,'Corn Drought'!B$3:EE$38,Data!$C$7,FALSE),IF($B$8="Cotton",VLOOKUP(H6,'Cotton Drought'!$B$3:$EE$38,Data!$C$7,FALSE),IF($B$8="Soybeans",VLOOKUP(H6,'Soybeans Drought'!$B$3:$EE$38,Data!$C$7,FALSE),IF(Data!$B$8="Wheat",VLOOKUP(Data!H6,'Wheat Drought'!$B$3:$EE$38,Data!$C$7,FALSE)))))) -> 34 | M6: =IF($B$9="None",0,IF($B$9="Corn",VLOOKUP(H6,'Corn Rain'!B$3:EE$38,$C$7,FALSE),IF($B$9="Cotton",VLOOKUP(H6,CottonRain!$B$3:$EE$38,Data!$C$7,FALSE),IF(Data!$B$9="Soybeans",VLOOKUP(Data!H6,'Soybeans Rain'!$B$3:$EE$38,Data!$C$7,FALSE),IF(Data!$B$9="Wheat",VLOOKUP(Data!H6,'Wheat Rain'!$B$3:$EE$38,Data!$C$7,FALSE)))))) -> 0 | N6: =IF($B$9="None",0,IF($B$9="Corn",VLOOKUP(H6,'Corn Drought'!B$3:EE$38,Data!$C$7,FALSE),IF($B$9="Cotton",VLOOKUP(H6,'Cotton Drought'!$B$3:$EE$38,Data!$C$7,FALSE),IF($B$9="Soybeans",VLOOKUP(H6,'Soybeans Drought'!$B$3:$EE$38,Data!$C$7,FALSE),IF(Data!$B$9="Wheat",VLOOKUP(Data!H6,'Wheat Drought'!$B$3:$EE$38,Data!$C$7,FALSE)))))) -> 0 | O6: =IF($B$8="None",0,VLOOKUP(I6,'Historic Prices'!$A$3:$K$38,$C$8,FALSE)) -> 2.71 | P6: =IF($B$9="None",0,VLOOKUP(I6,'Historic Prices'!$A$3:$K$38,$C$9,FALSE)) -> 0 | Q6: =IF($B$8="None",0,IF(IF(Tool!$C$19="Ideal",$B$2,IF(Tool!$C$19="Scheduled",((VLOOKUP($B$8&$B$10,'Regression Data'!$A$3:$F$30,4,FALSE))+(VLOOKUP($B$8&$B$10,'Regression Data'!$A$3:$F$30,5,FALSE)*(K6+(Tool!$C$20*Data!$B$4/0.0393701)))+(VLOOKUP($B$8&$B$10,'Regression Data'!$A$3:$F$30,6,FALSE)*L6))/2.47105*$B$3))>$B$2,$B$2,(IF(Tool!$C$19="Ideal",$B$2,IF(Tool!$C$19="Scheduled",((VLOOKUP($B$8&$B$10,'Regression Data'!$A$3:$F$30,4,FALSE))+(VLOOKUP($B$8&$B$10,'Regression Data'!$A$3:$F$30,5,FALSE)*(K6+(Tool!$C$20*Data!$B$4/0.0393701)))+(VLOOKUP($B$8&$B$10,'Regression Data'!$A$3:$F$30,6,FALSE)*L6))/2.47105*$B$3))))) -> 184.7279335 | R6: =IF($B$8="None",0,IF(IF((((VLOOKUP($B$8&$B$10,'Regression Data'!$A$3:$F$30,4,FALSE))+(VLOOKUP($B$8&$B$10,'Regression Data'!$A$3:$F$30,5,FALSE)*K6)+(VLOOKUP($B$8&$B$10,'Regression Data'!$A$3:$F$30,6,FALSE)*L6))/2.47105*$B$3)>$B$2,$B$2,((VLOOKUP($B$8&$B$10,'Regression Data'!$A$3:$F$30,4,FALSE))+(VLOOKUP($B$8&$B$10,'Regression Data'!$A$3:$F$30,5,FALSE)*K6)+(VLOOKUP($B$8&$B$10,'Regression Data'!$A$3:$F$30,6,FALSE)*L6))/2.47105*$B$3)<0,0,IF((((VLOOKUP($B$8&$B$10,'Regression Data'!$A$3:$F$30,4,FALSE))+(VLOOKUP($B$8&$B$10,'Regression Data'!$A$3:$F$30,5,FALSE)*K6)+(VLOOKUP($B$8&$B$10,'Regression Data'!$A$3:$F$30,6,FALSE)*L6))/2.47105*$B$3)>$B$2,$B$2,((VLOOKUP($B$8&$B$10,'Regression Data'!$A$3:$F$30,4,FALSE))+(VLOOKUP($B$8&$B$10,'Regression Data'!$A$3:$F$30,5,FALSE)*K6)+(VLOOKUP($B$8&$B$10,'Regression Data'!$A$3:$F$30,6,FALSE)*L6))/2.47105*$B$3))) -> 101.3736873 | S6: =IF($B$9="None",0,IF(IF(Tool!$C$19="Ideal",$C$2,IF(Tool!$C$19="Scheduled",((VLOOKUP($B$9&$B$10,'Regression Data'!$A$3:$F$30,4,FALSE))+(VLOOKUP($B$9&$B$10,'Regression Data'!$A$3:$F$30,5,FALSE)*(N6+(Tool!$C$20*Data!$C$4/0.0393701)))+(VLOOKUP($B$9&$B$10,'Regression Data'!$A$3:$F$30,6,FALSE)*N6))/2.47105*$C$3))>$C$2,$C$2,(IF(Tool!$C$19="Ideal",$C$2,IF(Tool!$C$19="Scheduled",((VLOOKUP($B$9&$B$10,'Regression Data'!$A$3:$F$30,4,FALSE))+(VLOOKUP($B$9&$B$10,'Regression Data'!$A$3:$F$30,5,FALSE)*(M6+(Tool!$C$20*Data!$C$4/0.0393701)))+(VLOOKUP($B$9&$B$10,'Regression Data'!$A$3:$F$30,6,FALSE)*N6))/2.47105*$C$3))))) -> 0 | T6: =IF($B$9="None",0,IF(IF((((VLOOKUP($B$9&$B$10,'Regression Data'!$A$3:$F$30,4,FALSE))+(VLOOKUP($B$9&$B$10,'Regression Data'!$A$3:$F$30,5,FALSE)*M6)+(VLOOKUP($B$9&$B$10,'Regression Data'!$A$3:$F$30,6,FALSE)*N6))/2.47105*$C$3)>$C$2,$C$2,((VLOOKUP($B$9&$B$10,'Regression Data'!$A$3:$F$30,4,FALSE))+(VLOOKUP($B$9&$B$10,'Regression Data'!$A$3:$F$30,5,FALSE)*M6)+(VLOOKUP($B$9&$B$10,'Regression Data'!$A$3:$F$30,6,FALSE)*N6))/2.47105*$C$3)<0,0,(IF((((VLOOKUP($B$9&$B$10,'Regression Data'!$A$3:$F$30,4,FALSE))+(VLOOKUP($B$9&$B$10,'Regression Data'!$A$3:$F$30,5,FALSE)*M6)+(VLOOKUP($B$9&$B$10,'Regression Data'!$A$3:$F$30,6,FALSE)*N6))/2.47105*$C$3)>$C$2,$C$2,((VLOOKUP($B$9&$B$10,'Regression Data'!$A$3:$F$30,4,FALSE))+(VLOOKUP($B$9&$B$10,'Regression Data'!$A$3:$F$30,5,FALSE)*M6)+(VLOOKUP($B$9&$B$10,'Regression Data'!$A$3:$F$30,6,FALSE)*N6))/2.47105*$C$3)))) -> 0 | X6: 50061.26997 | Y6: 27472.26927 | Z6: 22589.0007 | AA6: 0 | AB6: 0 | AC6: 0 | AH6: =IF($B$8="None",0,IF(Tool!$C$19="Rainfall Deficit",((VLOOKUP($B$8,'Regression Data'!$H$3:$K$6,3,FALSE))-K6)*0.0393701,IF(Tool!$C$19="Scheduled",$B$4*Tool!$C$20,))) -> 9.947403009 | AI6: =((IF($B$12="Center Pivot",'System Cost'!B44,IF($B$12="Linear Move",'System Cost'!G44,IF($B$12="Drip",'System Cost'!L44,IF($B$12="Hose Pull",'System Cost'!Q44)))))*(SUM($B$5:$C$5)))-(Tool!$C$28) -> 74828.27694 | AJ6: 9225.648927 | AK6: =IF(AH6<0,0,IF($B$12="Center Pivot",'System Cost'!C44*Data!$B$13*Data!$B$5*Data!AH6,IF($B$12="Hose Pull",$B$5*$B$13*'System Cost'!R44*AH6,IF($B$12="Linear Move",AH6*$B$13*$B$5*'System Cost'!H44,IF($B$12="Drip",$B$5*$B$13*AH6*'System Cost'!M44))))) -> 1019.606662 | AL6: =IF(AH6<0,0,IF($B$12="Center Pivot",'System Cost'!E44*Data!$B$5*Data!AH6,IF($B$12="Drip",AH6*$B$5*'System Cost'!O44,IF($B$12="Linear Move",AH6*$B$5*'System Cost'!J44,IF($B$12="Hose Pull",AH6*$B$5*'System Cost'!T44))))) -> 2237.53237 | AM6: =IF(AH6<0,0,((IF($B$11="Electric",VLOOKUP((IF(I6<1995,1995,I6)),Electric!$A$3:$C$38,3,FALSE)*0.5,IF($B$11="Diesel",VLOOKUP((IF(I6<1995,1995,I6)),Diesel!$A$3:$C$24,3,FALSE),IF(Data!$B$11="Natural Gas",VLOOKUP((IF(I6<1995,1995,I6)),'Natural Gas'!$A$3:$C$38,3,FALSE))))))*(IF($B$12="Center Pivot",'System Cost'!D44,IF($B$12="Linear Move",'System Cost'!I44,IF($B$12="Drip",'System Cost'!N44,IF($B$12="Hose Pull",'System Cost'!S44)))))*AH6*$B$5) -> 3797.172519 | AO6: =IF($B$9="None",0,IF(Tool!$C$19="Rainfall Deficit",((VLOOKUP($B$9,'Regression Data'!$H$3:$K$6,3,FALSE))-M6)*0.0393701,IF(Tool!$C$19="Scheduled",$C$4*Tool!$C$20,))) -> 0 | AP6: =IF(AO6<0,0,IF($B$12="Center Pivot",'System Cost'!C44*Data!$B$13*Data!$C$5*Data!AO6,IF($B$12="Hose Pull",$C$5*$B$13*'System Cost'!R44*AO6,IF($B$12="Linear Move",AO6*$B$13*$C$5*'System Cost'!H44,IF($B$12="Drip",$C$5*$B$13*AO6*'System Cost'!M44))))) -> 0 | AQ6: =IF(AO6<0,0,IF($B$12="Center Pivot",'System Cost'!E44*Data!$C$5*Data!AO6,IF($B$12="Drip",AO6*$C$5*'System Cost'!O44,IF($B$12="Linear Move",AO6*$C$5*'System Cost'!J44,IF($B$12="Hose Pull",AO6*$C$5*'System Cost'!T44))))) -> 0 | AR6: =IF(AO6<0,0,((IF($B$11="Electric",VLOOKUP((IF(I6<1995,1995,I6)),Electric!$A$3:$C$38,3,FALSE),IF($B$11="Diesel",VLOOKUP((IF(I6<1995,1995,I6)),Diesel!$A$3:$C$24,3,FALSE),IF(Data!$B$11="Natural Gas",VLOOKUP((IF(I6<1995,1995,I6)),'Natural Gas'!$A$3:$C$38,3,FALSE))))))*(IF($B$12="Center Pivot",'System Cost'!D44,IF($B$12="Linear Move",'System Cost'!I44,IF($B$12="Drip",'System Cost'!N44,IF($B$12="Hose Pull",'System Cost'!S44)))))*AO6*$C$5) -> 0 | AT6: 1019.606662 | AU6: 2237.53237 | AV6: 3797.172519 | BA6: 15534.68915 | BB6: 0 | BC6: 22589.0007 | BD6: 15534.68915 | BE6: 6309.040223 | BH6: 984.5765773 | BI6: 1273.117517 | BJ6: 10856.02281 | BL6: 28804.99379 | BM6: 15691.27688 | BN6: 6450.002181 | BR6: 9.947403009 | BS6: 0.3684223337
A7: County: | B7: =Tool!$C$7 -> Accomack County | C7: =HLOOKUP(B7,'Corn Rain'!D1:EE2,2,FALSE) -> 73 | H7: 1995 | I7: 2000 | J7: =VLOOKUP(I7,'Corn Rain'!B$3:C$38,2,FALSE) -> 22 | K7: =IF($B$8="None",0,IF($B$8="Corn",VLOOKUP(H7,'Corn Rain'!B$3:EE$38,$C$7,FALSE),IF($B$8="Cotton",VLOOKUP(H7,CottonRain!$B$3:$EE$38,Data!$C$7,FALSE),IF(Data!$B$8="Soybeans",VLOOKUP(Data!H7,'Soybeans Rain'!$B$3:$EE$38,Data!$C$7,FALSE),IF(Data!$B$8="Wheat",VLOOKUP(Data!H7,'Wheat Rain'!$B$3:$EE$38,Data!$C$7,FALSE)))))) -> 345.1015 | L7: =IF($B$8="None",0,IF($B$8="Corn",VLOOKUP(H7,'Corn Drought'!B$3:EE$38,Data!$C$7,FALSE),IF($B$8="Cotton",VLOOKUP(H7,'Cotton Drought'!$B$3:$EE$38,Data!$C$7,FALSE),IF($B$8="Soybeans",VLOOKUP(H7,'Soybeans Drought'!$B$3:$EE$38,Data!$C$7,FALSE),IF(Data!$B$8="Wheat",VLOOKUP(Data!H7,'Wheat Drought'!$B$3:$EE$38,Data!$C$7,FALSE)))))) -> 21 | M7: =IF($B$9="None",0,IF($B$9="Corn",VLOOKUP(H7,'Corn Rain'!B$3:EE$38,$C$7,FALSE),IF($B$9="Cotton",VLOOKUP(H7,CottonRain!$B$3:$EE$38,Data!$C$7,FALSE),IF(Data!$B$9="Soybeans",VLOOKUP(Data!H7,'Soybeans Rain'!$B$3:$EE$38,Data!$C$7,FALSE),IF(Data!$B$9="Wheat",VLOOKUP(Data!H7,'Wheat Rain'!$B$3:$EE$38,Data!$C$7,FALSE)))))) -> 0 | N7: =IF($B$9="None",0,IF($B$9="Corn",VLOOKUP(H7,'Corn Drought'!B$3:EE$38,Data!$C$7,FALSE),IF($B$9="Cotton",VLOOKUP(H7,'Cotton Drought'!$B$3:$EE$38,Data!$C$7,FALSE),IF($B$9="Soybeans",VLOOKUP(H7,'Soybeans Drought'!$B$3:$EE$38,Data!$C$7,FALSE),IF(Data!$B$9="Wheat",VLOOKUP(Data!H7,'Wheat Drought'!$B$3:$EE$38,Data!$C$7,FALSE)))))) -> 0 | O7: =IF($B$8="None",0,VLOOKUP(I7,'Historic Prices'!$A$3:$K$38,$C$8,FALSE)) -> 1.85 | P7: =IF($B$9="None",0,VLOOKUP(I7,'Historic Prices'!$A$3:$K$38,$C$9,FALSE)) -> 0 | Q7: =IF($B$8="None",0,IF(IF(Tool!$C$19="Ideal",$B$2,IF(Tool!$C$19="Scheduled",((VLOOKUP($B$8&$B$10,'Regression Data'!$A$3:$F$30,4,FALSE))+(VLOOKUP($B$8&$B$10,'Regression Data'!$A$3:$F$30,5,FALSE)*(K7+(Tool!$C$20*Data!$B$4/0.0393701)))+(VLOOKUP($B$8&$B$10,'Regression Data'!$A$3:$F$30,6,FALSE)*L7))/2.47105*$B$3))>$B$2,$B$2,(IF(Tool!$C$19="Ideal",$B$2,IF(Tool!$C$19="Scheduled",((VLOOKUP($B$8&$B$10,'Regression Data'!$A$3:$F$30,4,FALSE))+(VLOOKUP($B$8&$B$10,'Regression Data'!$A$3:$F$30,5,FALSE)*(K7+(Tool!$C$20*Data!$B$4/0.0393701)))+(VLOOKUP($B$8&$B$10,'Regression Data'!$A$3:$F$30,6,FALSE)*L7))/2.47105*$B$3))))) -> 184.7279335 | R7: =IF($B$8="None",0,IF(IF((((VLOOKUP($B$8&$B$10,'Regression Data'!$A$3:$F$30,4,FALSE))+(VLOOKUP($B$8&$B$10,'Regression Data'!$A$3:$F$30,5,FALSE)*K7)+(VLOOKUP($B$8&$B$10,'Regression Data'!$A$3:$F$30,6,FALSE)*L7))/2.47105*$B$3)>$B$2,$B$2,((VLOOKUP($B$8&$B$10,'Regression Data'!$A$3:$F$30,4,FALSE))+(VLOOKUP($B$8&$B$10,'Regression Data'!$A$3:$F$30,5,FALSE)*K7)+(VLOOKUP($B$8&$B$10,'Regression Data'!$A$3:$F$30,6,FALSE)*L7))/2.47105*$B$3)<0,0,IF((((VLOOKUP($B$8&$B$10,'Regression Data'!$A$3:$F$30,4,FALSE))+(VLOOKUP($B$8&$B$10,'Regression Data'!$A$3:$F$30,5,FALSE)*K7)+(VLOOKUP($B$8&$B$10,'Regression Data'!$A$3:$F$30,6,FALSE)*L7))/2.47105*$B$3)>$B$2,$B$2,((VLOOKUP($B$8&$B$10,'Regression Data'!$A$3:$F$30,4,FALSE))+(VLOOKUP($B$8&$B$10,'Regression Data'!$A$3:$F$30,5,FALSE)*K7)+(VLOOKUP($B$8&$B$10,'Regression Data'!$A$3:$F$30,6,FALSE)*L7))/2.47105*$B$3))) -> 104.2192144 | S7: =IF($B$9="None",0,IF(IF(Tool!$C$19="Ideal",$C$2,IF(Tool!$C$19="Scheduled",((VLOOKUP($B$9&$B$10,'Regression Data'!$A$3:$F$30,4,FALSE))+(VLOOKUP($B$9&$B$10,'Regression Data'!$A$3:$F$30,5,FALSE)*(N7+(Tool!$C$20*Data!$C$4/0.0393701)))+(VLOOKUP($B$9&$B$10,'Regression Data'!$A$3:$F$30,6,FALSE)*N7))/2.47105*$C$3))>$C$2,$C$2,(IF(Tool!$C$19="Ideal",$C$2,IF(Tool!$C$19="Scheduled",((VLOOKUP($B$9&$B$10,'Regression Data'!$A$3:$F$30,4,FALSE))+(VLOOKUP($B$9&$B$10,'Regression Data'!$A$3:$F$30,5,FALSE)*(M7+(Tool!$C$20*Data!$C$4/0.0393701)))+(VLOOKUP($B$9&$B$10,'Regression Data'!$A$3:$F$30,6,FALSE)*N7))/2.47105*$C$3))))) -> 0 | T7: =IF($B$9="None",0,IF(IF((((VLOOKUP($B$9&$B$10,'Regression Data'!$A$3:$F$30,4,FALSE))+(VLOOKUP($B$9&$B$10,'Regression Data'!$A$3:$F$30,5,FALSE)*M7)+(VLOOKUP($B$9&$B$10,'Regression Data'!$A$3:$F$30,6,FALSE)*N7))/2.47105*$C$3)>$C$2,$C$2,((VLOOKUP($B$9&$B$10,'Regression Data'!$A$3:$F$30,4,FALSE))+(VLOOKUP($B$9&$B$10,'Regression Data'!$A$3:$F$30,5,FALSE)*M7)+(VLOOKUP($B$9&$B$10,'Regression Data'!$A$3:$F$30,6,FALSE)*N7))/2.47105*$C$3)<0,0,(IF((((VLOOKUP($B$9&$B$10,'Regression Data'!$A$3:$F$30,4,FALSE))+(VLOOKUP($B$9&$B$10,'Regression Data'!$A$3:$F$30,5,FALSE)*M7)+(VLOOKUP($B$9&$B$10,'Regression Data'!$A$3:$F$30,6,FALSE)*N7))/2.47105*$C$3)>$C$2,$C$2,((VLOOKUP($B$9&$B$10,'Regression Data'!$A$3:$F$30,4,FALSE))+(VLOOKUP($B$9&$B$10,'Regression Data'!$A$3:$F$30,5,FALSE)*M7)+(VLOOKUP($B$9&$B$10,'Regression Data'!$A$3:$F$30,6,FALSE)*N7))/2.47105*$C$3)))) -> 0 | X7: 34174.66769 | Y7: 19280.55467 | Z7: 14894.11302 | AA7: 0 | AB7: 0 | AC7: 0 | AH7: =IF($B$8="None",0,IF(Tool!$C$19="Rainfall Deficit",((VLOOKUP($B$8,'Regression Data'!$H$3:$K$6,3,FALSE))-K7)*0.0393701,IF(Tool!$C$19="Scheduled",$B$4*Tool!$C$20,))) -> 12.00388443 | AI7: =((IF($B$12="Center Pivot",'System Cost'!B45,IF($B$12="Linear Move",'System Cost'!G45,IF($B$12="Drip",'System Cost'!L45,IF($B$12="Hose Pull",'System Cost'!Q45)))))*(SUM($B$5:$C$5)))-(Tool!$C$28) -> 84382.02122 | AJ7: 10403.53908 | AK7: =IF(AH7<0,0,IF($B$12="Center Pivot",'System Cost'!C45*Data!$B$13*Data!$B$5*Data!AH7,IF($B$12="Hose Pull",$B$5*$B$13*'System Cost'!R45*AH7,IF($B$12="Linear Move",AH7*$B$13*$B$5*'System Cost'!H45,IF($B$12="Drip",$B$5*$B$13*AH7*'System Cost'!M45))))) -> 1496.031134 | AL7: =IF(AH7<0,0,IF($B$12="Center Pivot",'System Cost'!E45*Data!$B$5*Data!AH7,IF($B$12="Drip",AH7*$B$5*'System Cost'!O45,IF($B$12="Linear Move",AH7*$B$5*'System Cost'!J45,IF($B$12="Hose Pull",AH7*$B$5*'System Cost'!T45))))) -> 2856.712787 | AM7: =IF(AH7<0,0,((IF($B$11="Electric",VLOOKUP((IF(I7<1995,1995,I7)),Electric!$A$3:$C$38,3,FALSE)*0.5,IF($B$11="Diesel",VLOOKUP((IF(I7<1995,1995,I7)),Diesel!$A$3:$C$24,3,FALSE),IF(Data!$B$11="Natural Gas",VLOOKUP((IF(I7<1995,1995,I7)),'Natural Gas'!$A$3:$C$38,3,FALSE))))))*(IF($B$12="Center Pivot",'System Cost'!D45,IF($B$12="Linear Move",'System Cost'!I45,IF($B$12="Drip",'System Cost'!N45,IF($B$12="Hose Pull",'System Cost'!S45)))))*AH7*$B$5) -> 3413.204668 | AO7: =IF($B$9="None",0,IF(Tool!$C$19="Rainfall Deficit",((VLOOKUP($B$9,'Regression Data'!$H$3:$K$6,3,FALSE))-M7)*0.0393701,IF(Tool!$C$19="Scheduled",$C$4*Tool!$C$20,))) -> 0 | AP7: =IF(AO7<0,0,IF($B$12="Center Pivot",'System Cost'!C45*Data!$B$13*Data!$C$5*Data!AO7,IF($B$12="Hose Pull",$C$5*$B$13*'System Cost'!R45*AO7,IF($B$12="Linear Move",AO7*$B$13*$C$5*'System Cost'!H45,IF($B$12="Drip",$C$5*$B$13*AO7*'System Cost'!M45))))) -> 0 | AQ7: =IF(AO7<0,0,IF($B$12="Center Pivot",'System Cost'!E45*Data!$C$5*Data!AO7,IF($B$12="Drip",AO7*$C$5*'System Cost'!O45,IF($B$12="Linear Move",AO7*$C$5*'System Cost'!J45,IF($B$12="Hose Pull",AO7*$C$5*'System Cost'!T45))))) -> 0 | AR7: =IF(AO7<0,0,((IF($B$11="Electric",VLOOKUP((IF(I7<1995,1995,I7)),Electric!$A$3:$C$38,3,FALSE),IF($B$11="Diesel",VLOOKUP((IF(I7<1995,1995,I7)),Diesel!$A$3:$C$24,3,FALSE),IF(Data!$B$11="Natural Gas",VLOOKUP((IF(I7<1995,1995,I7)),'Natural Gas'!$A$3:$C$38,3,FALSE))))))*(IF($B$12="Center Pivot",'System Cost'!D45,IF($B$12="Linear Move",'System Cost'!I45,IF($B$12="Drip",'System Cost'!N45,IF($B$12="Hose Pull",'System Cost'!S45)))))*AO7*$C$5) -> 0 | AT7: 1496.031134 | AU7: 2856.712787 | AV7: 3413.204668 | BA7: 7128.164432 | BB7: 0 | BC7: 14894.11302 | BD7: 7128.164432 | BE7: -3275.374649 | BH7: 852.0924023 | BI7: 1477.489656 | BJ7: 9403.532024 | BL7: 29328.45961 | BM7: 17595.34552 | BN7: 8370.01827 | BR7: 12.00388443 | BS7: 0.4445883124
A8: Crop: | B8: =Tool!$C$8 -> Corn | C8: =IF(B8="Corn",2,IF(B8="Cotton",5,IF(B8="Wheat",8,IF(B8="Soybeans",11,)))) -> 2 | H8: 2006 | I8: 2007 | J8: =VLOOKUP(I8,'Corn Rain'!B$3:C$38,2,FALSE) -> 29 | K8: =IF($B$8="None",0,IF($B$8="Corn",VLOOKUP(H8,'Corn Rain'!B$3:EE$38,$C$7,FALSE),IF($B$8="Cotton",VLOOKUP(H8,CottonRain!$B$3:$EE$38,Data!$C$7,FALSE),IF(Data!$B$8="Soybeans",VLOOKUP(Data!H8,'Soybeans Rain'!$B$3:$EE$38,Data!$C$7,FALSE),IF(Data!$B$8="Wheat",VLOOKUP(Data!H8,'Wheat Rain'!$B$3:$EE$38,Data!$C$7,FALSE)))))) -> 442.0758 | L8: =IF($B$8="None",0,IF($B$8="Corn",VLOOKUP(H8,'Corn Drought'!B$3:EE$38,Data!$C$7,FALSE),IF($B$8="Cotton",VLOOKUP(H8,'Cotton Drought'!$B$3:$EE$38,Data!$C$7,FALSE),IF($B$8="Soybeans",VLOOKUP(H8,'Soybeans Drought'!$B$3:$EE$38,Data!$C$7,FALSE),IF(Data!$B$8="Wheat",VLOOKUP(Data!H8,'Wheat Drought'!$B$3:$EE$38,Data!$C$7,FALSE)))))) -> 16 | M8: =IF($B$9="None",0,IF($B$9="Corn",VLOOKUP(H8,'Corn Rain'!B$3:EE$38,$C$7,FALSE),IF($B$9="Cotton",VLOOKUP(H8,CottonRain!$B$3:$EE$38,Data!$C$7,FALSE),IF(Data!$B$9="Soybeans",VLOOKUP(Data!H8,'Soybeans Rain'!$B$3:$EE$38,Data!$C$7,FALSE),IF(Data!$B$9="Wheat",VLOOKUP(Data!H8,'Wheat Rain'!$B$3:$EE$38,Data!$C$7,FALSE)))))) -> 0 | N8: =IF($B$9="None",0,IF($B$9="Corn",VLOOKUP(H8,'Corn Drought'!B$3:EE$38,Data!$C$7,FALSE),IF($B$9="Cotton",VLOOKUP(H8,'Cotton Drought'!$B$3:$EE$38,Data!$C$7,FALSE),IF($B$9="Soybeans",VLOOKUP(H8,'Soybeans Drought'!$B$3:$EE$38,Data!$C$7,FALSE),IF(Data!$B$9="Wheat",VLOOKUP(Data!H8,'Wheat Drought'!$B$3:$EE$38,Data!$C$7,FALSE)))))) -> 0 | O8: =IF($B$8="None",0,VLOOKUP(I8,'Historic Prices'!$A$3:$K$38,$C$8,FALSE)) -> 4.2 | P8: =IF($B$9="None",0,VLOOKUP(I8,'Historic Prices'!$A$3:$K$38,$C$9,FALSE)) -> 0 | Q8: =IF($B$8="None",0,IF(IF(Tool!$C$19="Ideal",$B$2,IF(Tool!$C$19="Scheduled",((VLOOKUP($B$8&$B$10,'Regression Data'!$A$3:$F$30,4,FALSE))+(VLOOKUP($B$8&$B$10,'Regression Data'!$A$3:$F$30,5,FALSE)*(K8+(Tool!$C$20*Data!$B$4/0.0393701)))+(VLOOKUP($B$8&$B$10,'Regression Data'!$A$3:$F$30,6,FALSE)*L8))/2.47105*$B$3))>$B$2,$B$2,(IF(Tool!$C$19="Ideal",$B$2,IF(Tool!$C$19="Scheduled",((VLOOKUP($B$8&$B$10,'Regression Data'!$A$3:$F$30,4,FALSE))+(VLOOKUP($B$8&$B$10,'Regression Data'!$A$3:$F$30,5,FALSE)*(K8+(Tool!$C$20*Data!$B$4/0.0393701)))+(VLOOKUP($B$8&$B$10,'Regression Data'!$A$3:$F$30,6,FALSE)*L8))/2.47105*$B$3))))) -> 184.7279335 | R8: =IF($B$8="None",0,IF(IF((((VLOOKUP($B$8&$B$10,'Regression Data'!$A$3:$F$30,4,FALSE))+(VLOOKUP($B$8&$B$10,'Regression Data'!$A$3:$F$30,5,FALSE)*K8)+(VLOOKUP($B$8&$B$10,'Regression Data'!$A$3:$F$30,6,FALSE)*L8))/2.47105*$B$3)>$B$2,$B$2,((VLOOKUP($B$8&$B$10,'Regression Data'!$A$3:$F$30,4,FALSE))+(VLOOKUP($B$8&$B$10,'Regression Data'!$A$3:$F$30,5,FALSE)*K8)+(VLOOKUP($B$8&$B$10,'Regression Data'!$A$3:$F$30,6,FALSE)*L8))/2.47105*$B$3)<0,0,IF((((VLOOKUP($B$8&$B$10,'Regression Data'!$A$3:$F$30,4,FALSE))+(VLOOKUP($B$8&$B$10,'Regression Data'!$A$3:$F$30,5,FALSE)*K8)+(VLOOKUP($B$8&$B$10,'Regression Data'!$A$3:$F$30,6,FALSE)*L8))/2.47105*$B$3)>$B$2,$B$2,((VLOOKUP($B$8&$B$10,'Regression Data'!$A$3:$F$30,4,FALSE))+(VLOOKUP($B$8&$B$10,'Regression Data'!$A$3:$F$30,5,FALSE)*K8)+(VLOOKUP($B$8&$B$10,'Regression Data'!$A$3:$F$30,6,FALSE)*L8))/2.47105*$B$3))) -> 142.6143618 | S8: =IF($B$9="None",0,IF(IF(Tool!$C$19="Ideal",$C$2,IF(Tool!$C$19="Scheduled",((VLOOKUP($B$9&$B$10,'Regression Data'!$A$3:$F$30,4,FALSE))+(VLOOKUP($B$9&$B$10,'Regression Data'!$A$3:$F$30,5,FALSE)*(N8+(Tool!$C$20*Data!$C$4/0.0393701)))+(VLOOKUP($B$9&$B$10,'Regression Data'!$A$3:$F$30,6,FALSE)*N8))/2.47105*$C$3))>$C$2,$C$2,(IF(Tool!$C$19="Ideal",$C$2,IF(Tool!$C$19="Scheduled",((VLOOKUP($B$9&$B$10,'Regression Data'!$A$3:$F$30,4,FALSE))+(VLOOKUP($B$9&$B$10,'Regression Data'!$A$3:$F$30,5,FALSE)*(M8+(Tool!$C$20*Data!$C$4/0.0393701)))+(VLOOKUP($B$9&$B$10,'Regression Data'!$A$3:$F$30,6,FALSE)*N8))/2.47105*$C$3))))) -> 0 | T8: =IF($B$9="None",0,IF(IF((((VLOOKUP($B$9&$B$10,'Regression Data'!$A$3:$F$30,4,FALSE))+(VLOOKUP($B$9&$B$10,'Regression Data'!$A$3:$F$30,5,FALSE)*M8)+(VLOOKUP($B$9&$B$10,'Regression Data'!$A$3:$F$30,6,FALSE)*N8))/2.47105*$C$3)>$C$2,$C$2,((VLOOKUP($B$9&$B$10,'Regression Data'!$A$3:$F$30,4,FALSE))+(VLOOKUP($B$9&$B$10,'Regression Data'!$A$3:$F$30,5,FALSE)*M8)+(VLOOKUP($B$9&$B$10,'Regression Data'!$A$3:$F$30,6,FALSE)*N8))/2.47105*$C$3)<0,0,(IF((((VLOOKUP($B$9&$B$10,'Regression Data'!$A$3:$F$30,4,FALSE))+(VLOOKUP($B$9&$B$10,'Regression Data'!$A$3:$F$30,5,FALSE)*M8)+(VLOOKUP($B$9&$B$10,'Regression Data'!$A$3:$F$30,6,FALSE)*N8))/2.47105*$C$3)>$C$2,$C$2,((VLOOKUP($B$9&$B$10,'Regression Data'!$A$3:$F$30,4,FALSE))+(VLOOKUP($B$9&$B$10,'Regression Data'!$A$3:$F$30,5,FALSE)*M8)+(VLOOKUP($B$9&$B$10,'Regression Data'!$A$3:$F$30,6,FALSE)*N8))/2.47105*$C$3)))) -> 0 | X8: 77585.73206 | Y8: 59898.03195 | Z8: 17687.70011 | AA8: 0 | AB8: 0 | AC8: 0 | AH8: =IF($B$8="None",0,IF(Tool!$C$19="Rainfall Deficit",((VLOOKUP($B$8,'Regression Data'!$H$3:$K$6,3,FALSE))-K8)*0.0393701,IF(Tool!$C$19="Scheduled",$B$4*Tool!$C$20,))) -> 8.185996546 | AI8: =((IF($B$12="Center Pivot",'System Cost'!B46,IF($B$12="Linear Move",'System Cost'!G46,IF($B$12="Drip",'System Cost'!L46,IF($B$12="Hose Pull",'System Cost'!Q46)))))*(SUM($B$5:$C$5)))-(Tool!$C$28) -> 82782.18816 | AJ8: 10206.29415 | AK8: =IF(AH8<0,0,IF($B$12="Center Pivot",'System Cost'!C46*Data!$B$13*Data!$B$5*Data!AH8,IF($B$12="Hose Pull",$B$5*$B$13*'System Cost'!R46*AH8,IF($B$12="Linear Move",AH8*$B$13*$B$5*'System Cost'!H46,IF($B$12="Drip",$B$5*$B$13*AH8*'System Cost'!M46))))) -> 465.2617633 | AL8: =IF(AH8<0,0,IF($B$12="Center Pivot",'System Cost'!E46*Data!$B$5*Data!AH8,IF($B$12="Drip",AH8*$B$5*'System Cost'!O46,IF($B$12="Linear Move",AH8*$B$5*'System Cost'!J46,IF($B$12="Hose Pull",AH8*$B$5*'System Cost'!T46))))) -> 1184.822624 | AM8: =IF(AH8<0,0,((IF($B$11="Electric",VLOOKUP((IF(I8<1995,1995,I8)),Electric!$A$3:$C$38,3,FALSE)*0.5,IF($B$11="Diesel",VLOOKUP((IF(I8<1995,1995,I8)),Diesel!$A$3:$C$24,3,FALSE),IF(Data!$B$11="Natural Gas",VLOOKUP((IF(I8<1995,1995,I8)),'Natural Gas'!$A$3:$C$38,3,FALSE))))))*(IF($B$12="Center Pivot",'System Cost'!D46,IF($B$12="Linear Move",'System Cost'!I46,IF($B$12="Drip",'System Cost'!N46,IF($B$12="Hose Pull",'System Cost'!S46)))))*AH8*$B$5) -> 3408.341175 | AO8: =IF($B$9="None",0,IF(Tool!$C$19="Rainfall Deficit",((VLOOKUP($B$9,'Regression Data'!$H$3:$K$6,3,FALSE))-M8)*0.0393701,IF(Tool!$C$19="Scheduled",$C$4*Tool!$C$20,))) -> 0 | AP8: =IF(AO8<0,0,IF($B$12="Center Pivot",'System Cost'!C46*Data!$B$13*Data!$C$5*Data!AO8,IF($B$12="Hose Pull",$C$5*$B$13*'System Cost'!R46*AO8,IF($B$12="Linear Move",AO8*$B$13*$C$5*'System Cost'!H46,IF($B$12="Drip",$C$5*$B$13*AO8*'System Cost'!M46))))) -> 0 | AQ8: =IF(AO8<0,0,IF($B$12="Center Pivot",'System Cost'!E46*Data!$C$5*Data!AO8,IF($B$12="Drip",AO8*$C$5*'System Cost'!O46,IF($B$12="Linear Move",AO8*$C$5*'System Cost'!J46,IF($B$12="Hose Pull",AO8*$C$5*'System Cost'!T46))))) -> 0 | AR8: =IF(AO8<0,0,((IF($B$11="Electric",VLOOKUP((IF(I8<1995,1995,I8)),Electric!$A$3:$C$38,3,FALSE),IF($B$11="Diesel",VLOOKUP((IF(I8<1995,1995,I8)),Diesel!$A$3:$C$24,3,FALSE),IF(Data!$B$11="Natural Gas",VLOOKUP((IF(I8<1995,1995,I8)),'Natural Gas'!$A$3:$C$38,3,FALSE))))))*(IF($B$12="Center Pivot",'System Cost'!D46,IF($B$12="Linear Move",'System Cost'!I46,IF($B$12="Drip",'System Cost'!N46,IF($B$12="Hose Pull",'System Cost'!S46)))))*AO8*$C$5) -> 0 | AT8: 465.2617633 | AU8: 1184.822624 | AV8: 3408.341175 | BA8: 12629.27454 | BB8: 0 | BC8: 17687.70011 | BD8: 12629.27454 | BE8: 2422.980393 | BH8: 782.155827 | BI8: 1267.34131 | BJ8: 8242.609122 | BL8: 23045.67394 | BM8: 12753.56768 | BN8: 3307.234645 | BR8: 8.185996546 | BS8: 0.3031850573
A9: Crop2: | B9: =Tool!$C$9 -> None | C9: =IF(B9="Corn",2,IF(B9="Cotton",5,IF(B9="Wheat",8,IF(B9="Soybeans",11,)))) -> 0 | H9: 1994 | I9: 2011 | J9: =VLOOKUP(I9,'Corn Rain'!B$3:C$38,2,FALSE) -> 33 | K9: =IF($B$8="None",0,IF($B$8="Corn",VLOOKUP(H9,'Corn Rain'!B$3:EE$38,$C$7,FALSE),IF($B$8="Cotton",VLOOKUP(H9,CottonRain!$B$3:$EE$38,Data!$C$7,FALSE),IF(Data!$B$8="Soybeans",VLOOKUP(Data!H9,'Soybeans Rain'!$B$3:$EE$38,Data!$C$7,FALSE),IF(Data!$B$8="Wheat",VLOOKUP(Data!H9,'Wheat Rain'!$B$3:$EE$38,Data!$C$7,FALSE)))))) -> 292.1744 | L9: =IF($B$8="None",0,IF($B$8="Corn",VLOOKUP(H9,'Corn Drought'!B$3:EE$38,Data!$C$7,FALSE),IF($B$8="Cotton",VLOOKUP(H9,'Cotton Drought'!$B$3:$EE$38,Data!$C$7,FALSE),IF($B$8="Soybeans",VLOOKUP(H9,'Soybeans Drought'!$B$3:$EE$38,Data!$C$7,FALSE),IF(Data!$B$8="Wheat",VLOOKUP(Data!H9,'Wheat Drought'!$B$3:$EE$38,Data!$C$7,FALSE)))))) -> 36 | M9: =IF($B$9="None",0,IF($B$9="Corn",VLOOKUP(H9,'Corn Rain'!B$3:EE$38,$C$7,FALSE),IF($B$9="Cotton",VLOOKUP(H9,CottonRain!$B$3:$EE$38,Data!$C$7,FALSE),IF(Data!$B$9="Soybeans",VLOOKUP(Data!H9,'Soybeans Rain'!$B$3:$EE$38,Data!$C$7,FALSE),IF(Data!$B$9="Wheat",VLOOKUP(Data!H9,'Wheat Rain'!$B$3:$EE$38,Data!$C$7,FALSE)))))) -> 0 | N9: =IF($B$9="None",0,IF($B$9="Corn",VLOOKUP(H9,'Corn Drought'!B$3:EE$38,Data!$C$7,FALSE),IF($B$9="Cotton",VLOOKUP(H9,'Cotton Drought'!$B$3:$EE$38,Data!$C$7,FALSE),IF($B$9="Soybeans",VLOOKUP(H9,'Soybeans Drought'!$B$3:$EE$38,Data!$C$7,FALSE),IF(Data!$B$9="Wheat",VLOOKUP(Data!H9,'Wheat Drought'!$B$3:$EE$38,Data!$C$7,FALSE)))))) -> 0 | O9: =IF($B$8="None",0,VLOOKUP(I9,'Historic Prices'!$A$3:$K$38,$C$8,FALSE)) -> 6.22 | P9: =IF($B$9="None",0,VLOOKUP(I9,'Historic Prices'!$A$3:$K$38,$C$9,FALSE)) -> 0 | Q9: =IF($B$8="None",0,IF(IF(Tool!$C$19="Ideal",$B$2,IF(Tool!$C$19="Scheduled",((VLOOKUP($B$8&$B$10,'Regression Data'!$A$3:$F$30,4,FALSE))+(VLOOKUP($B$8&$B$10,'Regression Data'!$A$3:$F$30,5,FALSE)*(K9+(Tool!$C$20*Data!$B$4/0.0393701)))+(VLOOKUP($B$8&$B$10,'Regression Data'!$A$3:$F$30,6,FALSE)*L9))/2.47105*$B$3))>$B$2,$B$2,(IF(Tool!$C$19="Ideal",$B$2,IF(Tool!$C$19="Scheduled",((VLOOKUP($B$8&$B$10,'Regression Data'!$A$3:$F$30,4,FALSE))+(VLOOKUP($B$8&$B$10,'Regression Data'!$A$3:$F$30,5,FALSE)*(K9+(Tool!$C$20*Data!$B$4/0.0393701)))+(VLOOKUP($B$8&$B$10,'Regression Data'!$A$3:$F$30,6,FALSE)*L9))/2.47105*$B$3))))) -> 184.7279335 | R9: =IF($B$8="None",0,IF(IF((((VLOOKUP($B$8&$B$10,'Regression Data'!$A$3:$F$30,4,FALSE))+(VLOOKUP($B$8&$B$10,'Regression Data'!$A$3:$F$30,5,FALSE)*K9)+(VLOOKUP($B$8&$B$10,'Regression Data'!$A$3:$F$30,6,FALSE)*L9))/2.47105*$B$3)>$B$2,$B$2,((VLOOKUP($B$8&$B$10,'Regression Data'!$A$3:$F$30,4,FALSE))+(VLOOKUP($B$8&$B$10,'Regression Data'!$A$3:$F$30,5,FALSE)*K9)+(VLOOKUP($B$8&$B$10,'Regression Data'!$A$3:$F$30,6,FALSE)*L9))/2.47105*$B$3)<0,0,IF((((VLOOKUP($B$8&$B$10,'Regression Data'!$A$3:$F$30,4,FALSE))+(VLOOKUP($B$8&$B$10,'Regression Data'!$A$3:$F$30,5,FALSE)*K9)+(VLOOKUP($B$8&$B$10,'Regression Data'!$A$3:$F$30,6,FALSE)*L9))/2.47105*$B$3)>$B$2,$B$2,((VLOOKUP($B$8&$B$10,'Regression Data'!$A$3:$F$30,4,FALSE))+(VLOOKUP($B$8&$B$10,'Regression Data'!$A$3:$F$30,5,FALSE)*K9)+(VLOOKUP($B$8&$B$10,'Regression Data'!$A$3:$F$30,6,FALSE)*L9))/2.47105*$B$3))) -> 64.86727358 | S9: =IF($B$9="None",0,IF(IF(Tool!$C$19="Ideal",$C$2,IF(Tool!$C$19="Scheduled",((VLOOKUP($B$9&$B$10,'Regression Data'!$A$3:$F$30,4,FALSE))+(VLOOKUP($B$9&$B$10,'Regression Data'!$A$3:$F$30,5,FALSE)*(N9+(Tool!$C$20*Data!$C$4/0.0393701)))+(VLOOKUP($B$9&$B$10,'Regression Data'!$A$3:$F$30,6,FALSE)*N9))/2.47105*$C$3))>$C$2,$C$2,(IF(Tool!$C$19="Ideal",$C$2,IF(Tool!$C$19="Scheduled",((VLOOKUP($B$9&$B$10,'Regression Data'!$A$3:$F$30,4,FALSE))+(VLOOKUP($B$9&$B$10,'Regression Data'!$A$3:$F$30,5,FALSE)*(M9+(Tool!$C$20*Data!$C$4/0.0393701)))+(VLOOKUP($B$9&$B$10,'Regression Data'!$A$3:$F$30,6,FALSE)*N9))/2.47105*$C$3))))) -> 0 | T9: =IF($B$9="None",0,IF(IF((((VLOOKUP($B$9&$B$10,'Regression Data'!$A$3:$F$30,4,FALSE))+(VLOOKUP($B$9&$B$10,'Regression Data'!$A$3:$F$30,5,FALSE)*M9)+(VLOOKUP($B$9&$B$10,'Regression Data'!$A$3:$F$30,6,FALSE)*N9))/2.47105*$C$3)>$C$2,$C$2,((VLOOKUP($B$9&$B$10,'Regression Data'!$A$3:$F$30,4,FALSE))+(VLOOKUP($B$9&$B$10,'Regression Data'!$A$3:$F$30,5,FALSE)*M9)+(VLOOKUP($B$9&$B$10,'Regression Data'!$A$3:$F$30,6,FALSE)*N9))/2.47105*$C$3)<0,0,(IF((((VLOOKUP($B$9&$B$10,'Regression Data'!$A$3:$F$30,4,FALSE))+(VLOOKUP($B$9&$B$10,'Regression Data'!$A$3:$F$30,5,FALSE)*M9)+(VLOOKUP($B$9&$B$10,'Regression Data'!$A$3:$F$30,6,FALSE)*N9))/2.47105*$C$3)>$C$2,$C$2,((VLOOKUP($B$9&$B$10,'Regression Data'!$A$3:$F$30,4,FALSE))+(VLOOKUP($B$9&$B$10,'Regression Data'!$A$3:$F$30,5,FALSE)*M9)+(VLOOKUP($B$9&$B$10,'Regression Data'!$A$3:$F$30,6,FALSE)*N9))/2.47105*$C$3)))) -> 0 | X9: 114900.7746 | Y9: 40347.44417 | Z9: 74553.33045 | AA9: 0 | AB9: 0 | AC9: 0 | AH9: =IF($B$8="None",0,IF(Tool!$C$19="Rainfall Deficit",((VLOOKUP($B$8,'Regression Data'!$H$3:$K$6,3,FALSE))-K9)*0.0393701,IF(Tool!$C$19="Scheduled",$B$4*Tool!$C$20,))) -> 14.08762965 | AI9: =((IF($B$12="Center Pivot",'System Cost'!B47,IF($B$12="Linear Move",'System Cost'!G47,IF($B$12="Drip",'System Cost'!L47,IF($B$12="Hose Pull",'System Cost'!Q47)))))*(SUM($B$5:$C$5)))-(Tool!$C$28) -> 70554.47573 | AJ9: 8698.727939 | AK9: =IF(AH9<0,0,IF($B$12="Center Pivot",'System Cost'!C47*Data!$B$13*Data!$B$5*Data!AH9,IF($B$12="Hose Pull",$B$5*$B$13*'System Cost'!R47*AH9,IF($B$12="Linear Move",AH9*$B$13*$B$5*'System Cost'!H47,IF($B$12="Drip",$B$5*$B$13*AH9*'System Cost'!M47))))) -> 643.4790079 | AL9: =IF(AH9<0,0,IF($B$12="Center Pivot",'System Cost'!E47*Data!$B$5*Data!AH9,IF($B$12="Drip",AH9*$B$5*'System Cost'!O47,IF($B$12="Linear Move",AH9*$B$5*'System Cost'!J47,IF($B$12="Hose Pull",AH9*$B$5*'System Cost'!T47))))) -> 2888.996404 | AM9: =IF(AH9<0,0,((IF($B$11="Electric",VLOOKUP((IF(I9<1995,1995,I9)),Electric!$A$3:$C$38,3,FALSE)*0.5,IF($B$11="Diesel",VLOOKUP((IF(I9<1995,1995,I9)),Diesel!$A$3:$C$24,3,FALSE),IF(Data!$B$11="Natural Gas",VLOOKUP((IF(I9<1995,1995,I9)),'Natural Gas'!$A$3:$C$38,3,FALSE))))))*(IF($B$12="Center Pivot",'System Cost'!D47,IF($B$12="Linear Move",'System Cost'!I47,IF($B$12="Drip",'System Cost'!N47,IF($B$12="Hose Pull",'System Cost'!S47)))))*AH9*$B$5) -> 14503.33926 | AO9: =IF($B$9="None",0,IF(Tool!$C$19="Rainfall Deficit",((VLOOKUP($B$9,'Regression Data'!$H$3:$K$6,3,FALSE))-M9)*0.0393701,IF(Tool!$C$19="Scheduled",$C$4*Tool!$C$20,))) -> 0 | AP9: =IF(AO9<0,0,IF($B$12="Center Pivot",'System Cost'!C47*Data!$B$13*Data!$C$5*Data!AO9,IF($B$12="Hose Pull",$C$5*$B$13*'System Cost'!R47*AO9,IF($B$12="Linear Move",AO9*$B$13*$C$5*'System Cost'!H47,IF($B$12="Drip",$C$5*$B$13*AO9*'System Cost'!M47))))) -> 0 | AQ9: =IF(AO9<0,0,IF($B$12="Center Pivot",'System Cost'!E47*Data!$C$5*Data!AO9,IF($B$12="Drip",AO9*$C$5*'System Cost'!O47,IF($B$12="Linear Move",AO9*$C$5*'System Cost'!J47,IF($B$12="Hose Pull",AO9*$C$5*'System Cost'!T47))))) -> 0 | AR9: =IF(AO9<0,0,((IF($B$11="Electric",VLOOKUP((IF(I9<1995,1995,I9)),Electric!$A$3:$C$38,3,FALSE),IF($B$11="Diesel",VLOOKUP((IF(I9<1995,1995,I9)),Diesel!$A$3:$C$24,3,FALSE),IF(Data!$B$11="Natural Gas",VLOOKUP((IF(I9<1995,1995,I9)),'Natural Gas'!$A$3:$C$38,3,FALSE))))))*(IF($B$12="Center Pivot",'System Cost'!D47,IF($B$12="Linear Move",'System Cost'!I47,IF($B$12="Drip",'System Cost'!N47,IF($B$12="Hose Pull",'System Cost'!S47)))))*AO9*$C$5) -> 0 | AT9: 643.4790079 | AU9: 2888.996404 | AV9: 14503.33926 | BA9: 56517.51577 | BB9: 0 | BC9: 74553.33045 | BD9: 56517.51577 | BE9: 47818.78783 | BH9: 762.3567141 | BI9: 1586.945089 | BJ9: 9583.129512 | BL9: 23598.68973 | BM9: 11666.25841 | BN9: 2307.79508 | BR9: 14.08762965 | BS9: 0.5217640613
A10: Soil | B10: =Tool!$C$12 -> Loamy Sand | H10: 2008 | I10: 2015 | J10: =VLOOKUP(I10,'Corn Rain'!B$3:C$38,2,FALSE) -> 37 | K10: =IF($B$8="None",0,IF($B$8="Corn",VLOOKUP(H10,'Corn Rain'!B$3:EE$38,$C$7,FALSE),IF($B$8="Cotton",VLOOKUP(H10,CottonRain!$B$3:$EE$38,Data!$C$7,FALSE),IF(Data!$B$8="Soybeans",VLOOKUP(Data!H10,'Soybeans Rain'!$B$3:$EE$38,Data!$C$7,FALSE),IF(Data!$B$8="Wheat",VLOOKUP(Data!H10,'Wheat Rain'!$B$3:$EE$38,Data!$C$7,FALSE)))))) -> 496.1228 | L10: =IF($B$8="None",0,IF($B$8="Corn",VLOOKUP(H10,'Corn Drought'!B$3:EE$38,Data!$C$7,FALSE),IF($B$8="Cotton",VLOOKUP(H10,'Cotton Drought'!$B$3:$EE$38,Data!$C$7,FALSE),IF($B$8="Soybeans",VLOOKUP(H10,'Soybeans Drought'!$B$3:$EE$38,Data!$C$7,FALSE),IF(Data!$B$8="Wheat",VLOOKUP(Data!H10,'Wheat Drought'!$B$3:$EE$38,Data!$C$7,FALSE)))))) -> 37 | M10: =IF($B$9="None",0,IF($B$9="Corn",VLOOKUP(H10,'Corn Rain'!B$3:EE$38,$C$7,FALSE),IF($B$9="Cotton",VLOOKUP(H10,CottonRain!$B$3:$EE$38,Data!$C$7,FALSE),IF(Data!$B$9="Soybeans",VLOOKUP(Data!H10,'Soybeans Rain'!$B$3:$EE$38,Data!$C$7,FALSE),IF(Data!$B$9="Wheat",VLOOKUP(Data!H10,'Wheat Rain'!$B$3:$EE$38,Data!$C$7,FALSE)))))) -> 0 | N10: =IF($B$9="None",0,IF($B$9="Corn",VLOOKUP(H10,'Corn Drought'!B$3:EE$38,Data!$C$7,FALSE),IF($B$9="Cotton",VLOOKUP(H10,'Cotton Drought'!$B$3:$EE$38,Data!$C$7,FALSE),IF($B$9="Soybeans",VLOOKUP(H10,'Soybeans Drought'!$B$3:$EE$38,Data!$C$7,FALSE),IF(Data!$B$9="Wheat",VLOOKUP(Data!H10,'Wheat Drought'!$B$3:$EE$38,Data!$C$7,FALSE)))))) -> 0 | O10: =IF($B$8="None",0,VLOOKUP(I10,'Historic Prices'!$A$3:$K$38,$C$8,FALSE)) -> 3.61 | P10: =IF($B$9="None",0,VLOOKUP(I10,'Historic Prices'!$A$3:$K$38,$C$9,FALSE)) -> 0 | Q10: =IF($B$8="None",0,IF(IF(Tool!$C$19="Ideal",$B$2,IF(Tool!$C$19="Scheduled",((VLOOKUP($B$8&$B$10,'Regression Data'!$A$3:$F$30,4,FALSE))+(VLOOKUP($B$8&$B$10,'Regression Data'!$A$3:$F$30,5,FALSE)*(K10+(Tool!$C$20*Data!$B$4/0.0393701)))+(VLOOKUP($B$8&$B$10,'Regression Data'!$A$3:$F$30,6,FALSE)*L10))/2.47105*$B$3))>$B$2,$B$2,(IF(Tool!$C$19="Ideal",$B$2,IF(Tool!$C$19="Scheduled",((VLOOKUP($B$8&$B$10,'Regression Data'!$A$3:$F$30,4,FALSE))+(VLOOKUP($B$8&$B$10,'Regression Data'!$A$3:$F$30,5,FALSE)*(K10+(Tool!$C$20*Data!$B$4/0.0393701)))+(VLOOKUP($B$8&$B$10,'Regression Data'!$A$3:$F$30,6,FALSE)*L10))/2.47105*$B$3))))) -> 184.7279335 | R10: =IF($B$8="None",0,IF(IF((((VLOOKUP($B$8&$B$10,'Regression Data'!$A$3:$F$30,4,FALSE))+(VLOOKUP($B$8&$B$10,'Regression Data'!$A$3:$F$30,5,FALSE)*K10)+(VLOOKUP($B$8&$B$10,'Regression Data'!$A$3:$F$30,6,FALSE)*L10))/2.47105*$B$3)>$B$2,$B$2,((VLOOKUP($B$8&$B$10,'Regression Data'!$A$3:$F$30,4,FALSE))+(VLOOKUP($B$8&$B$10,'Regression Data'!$A$3:$F$30,5,FALSE)*K10)+(VLOOKUP($B$8&$B$10,'Regression Data'!$A$3:$F$30,6,FALSE)*L10))/2.47105*$B$3)<0,0,IF((((VLOOKUP($B$8&$B$10,'Regression Data'!$A$3:$F$30,4,FALSE))+(VLOOKUP($B$8&$B$10,'Regression Data'!$A$3:$F$30,5,FALSE)*K10)+(VLOOKUP($B$8&$B$10,'Regression Data'!$A$3:$F$30,6,FALSE)*L10))/2.47105*$B$3)>$B$2,$B$2,((VLOOKUP($B$8&$B$10,'Regression Data'!$A$3:$F$30,4,FALSE))+(VLOOKUP($B$8&$B$10,'Regression Data'!$A$3:$F$30,5,FALSE)*K10)+(VLOOKUP($B$8&$B$10,'Regression Data'!$A$3:$F$30,6,FALSE)*L10))/2.47105*$B$3))) -> 128.3529511 | S10: =IF($B$9="None",0,IF(IF(Tool!$C$19="Ideal",$C$2,IF(Tool!$C$19="Scheduled",((VLOOKUP($B$9&$B$10,'Regression Data'!$A$3:$F$30,4,FALSE))+(VLOOKUP($B$9&$B$10,'Regression Data'!$A$3:$F$30,5,FALSE)*(N10+(Tool!$C$20*Data!$C$4/0.0393701)))+(VLOOKUP($B$9&$B$10,'Regression Data'!$A$3:$F$30,6,FALSE)*N10))/2.47105*$C$3))>$C$2,$C$2,(IF(Tool!$C$19="Ideal",$C$2,IF(Tool!$C$19="Scheduled",((VLOOKUP($B$9&$B$10,'Regression Data'!$A$3:$F$30,4,FALSE))+(VLOOKUP($B$9&$B$10,'Regression Data'!$A$3:$F$30,5,FALSE)*(M10+(Tool!$C$20*Data!$C$4/0.0393701)))+(VLOOKUP($B$9&$B$10,'Regression Data'!$A$3:$F$30,6,FALSE)*N10))/2.47105*$C$3))))) -> 0 | T10: =IF($B$9="None",0,IF(IF((((VLOOKUP($B$9&$B$10,'Regression Data'!$A$3:$F$30,4,FALSE))+(VLOOKUP($B$9&$B$10,'Regression Data'!$A$3:$F$30,5,FALSE)*M10)+(VLOOKUP($B$9&$B$10,'Regression Data'!$A$3:$F$30,6,FALSE)*N10))/2.47105*$C$3)>$C$2,$C$2,((VLOOKUP($B$9&$B$10,'Regression Data'!$A$3:$F$30,4,FALSE))+(VLOOKUP($B$9&$B$10,'Regression Data'!$A$3:$F$30,5,FALSE)*M10)+(VLOOKUP($B$9&$B$10,'Regression Data'!$A$3:$F$30,6,FALSE)*N10))/2.47105*$C$3)<0,0,(IF((((VLOOKUP($B$9&$B$10,'Regression Data'!$A$3:$F$30,4,FALSE))+(VLOOKUP($B$9&$B$10,'Regression Data'!$A$3:$F$30,5,FALSE)*M10)+(VLOOKUP($B$9&$B$10,'Regression Data'!$A$3:$F$30,6,FALSE)*N10))/2.47105*$C$3)>$C$2,$C$2,((VLOOKUP($B$9&$B$10,'Regression Data'!$A$3:$F$30,4,FALSE))+(VLOOKUP($B$9&$B$10,'Regression Data'!$A$3:$F$30,5,FALSE)*M10)+(VLOOKUP($B$9&$B$10,'Regression Data'!$A$3:$F$30,6,FALSE)*N10))/2.47105*$C$3)))) -> 0 | X10: 66686.78398 | Y10: 46335.41535 | Z10: 20351.36864 | AA10: 0 | AB10: 0 | AC10: 0 | AH10: =IF($B$8="None",0,IF(Tool!$C$19="Rainfall Deficit",((VLOOKUP($B$8,'Regression Data'!$H$3:$K$6,3,FALSE))-K10)*0.0393701,IF(Tool!$C$19="Scheduled",$B$4*Tool!$C$20,))) -> 6.058160752 | AI10: =((IF($B$12="Center Pivot",'System Cost'!B48,IF($B$12="Linear Move",'System Cost'!G48,IF($B$12="Drip",'System Cost'!L48,IF($B$12="Hose Pull",'System Cost'!Q48)))))*(SUM($B$5:$C$5)))-(Tool!$C$28) -> 83860.26358 | AJ10: 10339.21109 | AK10: =IF(AH10<0,0,IF($B$12="Center Pivot",'System Cost'!C48*Data!$B$13*Data!$B$5*Data!AH10,IF($B$12="Hose Pull",$B$5*$B$13*'System Cost'!R48*AH10,IF($B$12="Linear Move",AH10*$B$13*$B$5*'System Cost'!H48,IF($B$12="Drip",$B$5*$B$13*AH10*'System Cost'!M48))))) -> 218.7553352 | AL10: =IF(AH10<0,0,IF($B$12="Center Pivot",'System Cost'!E48*Data!$B$5*Data!AH10,IF($B$12="Drip",AH10*$B$5*'System Cost'!O48,IF($B$12="Linear Move",AH10*$B$5*'System Cost'!J48,IF($B$12="Hose Pull",AH10*$B$5*'System Cost'!T48))))) -> 895.254139 | AM10: =IF(AH10<0,0,((IF($B$11="Electric",VLOOKUP((IF(I10<1995,1995,I10)),Electric!$A$3:$C$38,3,FALSE)*0.5,IF($B$11="Diesel",VLOOKUP((IF(I10<1995,1995,I10)),Diesel!$A$3:$C$24,3,FALSE),IF(Data!$B$11="Natural Gas",VLOOKUP((IF(I10<1995,1995,I10)),'Natural Gas'!$A$3:$C$38,3,FALSE))))))*(IF($B$12="Center Pivot",'System Cost'!D48,IF($B$12="Linear Move",'System Cost'!I48,IF($B$12="Drip",'System Cost'!N48,IF($B$12="Hose Pull",'System Cost'!S48)))))*AH10*$B$5) -> 2900.734994 | AO10: =IF($B$9="None",0,IF(Tool!$C$19="Rainfall Deficit",((VLOOKUP($B$9,'Regression Data'!$H$3:$K$6,3,FALSE))-M10)*0.0393701,IF(Tool!$C$19="Scheduled",$C$4*Tool!$C$20,))) -> 0 | AP10: =IF(AO10<0,0,IF($B$12="Center Pivot",'System Cost'!C48*Data!$B$13*Data!$C$5*Data!AO10,IF($B$12="Hose Pull",$C$5*$B$13*'System Cost'!R48*AO10,IF($B$12="Linear Move",AO10*$B$13*$C$5*'System Cost'!H48,IF($B$12="Drip",$C$5*$B$13*AO10*'System Cost'!M48))))) -> 0 | AQ10: =IF(AO10<0,0,IF($B$12="Center Pivot",'System Cost'!E48*Data!$C$5*Data!AO10,IF($B$12="Drip",AO10*$C$5*'System Cost'!O48,IF($B$12="Linear Move",AO10*$C$5*'System Cost'!J48,IF($B$12="Hose Pull",AO10*$C$5*'System Cost'!T48))))) -> 0 | AR10: =IF(AO10<0,0,((IF($B$11="Electric",VLOOKUP((IF(I10<1995,1995,I10)),Electric!$A$3:$C$38,3,FALSE),IF($B$11="Diesel",VLOOKUP((IF(I10<1995,1995,I10)),Diesel!$A$3:$C$24,3,FALSE),IF(Data!$B$11="Natural Gas",VLOOKUP((IF(I10<1995,1995,I10)),'Natural Gas'!$A$3:$C$38,3,FALSE))))))*(IF($B$12="Center Pivot",'System Cost'!D48,IF($B$12="Linear Move",'System Cost'!I48,IF($B$12="Drip",'System Cost'!N48,IF($B$12="Hose Pull",'System Cost'!S48)))))*AO10*$C$5) -> 0 | AT10: 218.7553352 | AU10: 895.254139 | AV10: 2900.734994 | BA10: 16336.62417 | BB10: 0 | BC10: 20351.36864 | BD10: 16336.62417 | BE10: 5997.41308 | BH10: 951.36572 | BI10: 1350.437193 | BJ10: 10240.95726 | BL10: 29883.246 | BM10: 17340.48583 | BN10: 7824.963344 | BR10: 6.058160752 | BS10: 0.2243763241
A11: Power | B11: =Tool!$C$17 -> Diesel | H11: 1993 | I11: 2016 | J11: =VLOOKUP(I11,'Corn Rain'!B$3:C$38,2,FALSE) -> 38 | K11: =IF($B$8="None",0,IF($B$8="Corn",VLOOKUP(H11,'Corn Rain'!B$3:EE$38,$C$7,FALSE),IF($B$8="Cotton",VLOOKUP(H11,CottonRain!$B$3:$EE$38,Data!$C$7,FALSE),IF(Data!$B$8="Soybeans",VLOOKUP(Data!H11,'Soybeans Rain'!$B$3:$EE$38,Data!$C$7,FALSE),IF(Data!$B$8="Wheat",VLOOKUP(Data!H11,'Wheat Rain'!$B$3:$EE$38,Data!$C$7,FALSE)))))) -> 273.193 | L11: =IF($B$8="None",0,IF($B$8="Corn",VLOOKUP(H11,'Corn Drought'!B$3:EE$38,Data!$C$7,FALSE),IF($B$8="Cotton",VLOOKUP(H11,'Cotton Drought'!$B$3:$EE$38,Data!$C$7,FALSE),IF($B$8="Soybeans",VLOOKUP(H11,'Soybeans Drought'!$B$3:$EE$38,Data!$C$7,FALSE),IF(Data!$B$8="Wheat",VLOOKUP(Data!H11,'Wheat Drought'!$B$3:$EE$38,Data!$C$7,FALSE)))))) -> 54 | M11: =IF($B$9="None",0,IF($B$9="Corn",VLOOKUP(H11,'Corn Rain'!B$3:EE$38,$C$7,FALSE),IF($B$9="Cotton",VLOOKUP(H11,CottonRain!$B$3:$EE$38,Data!$C$7,FALSE),IF(Data!$B$9="Soybeans",VLOOKUP(Data!H11,'Soybeans Rain'!$B$3:$EE$38,Data!$C$7,FALSE),IF(Data!$B$9="Wheat",VLOOKUP(Data!H11,'Wheat Rain'!$B$3:$EE$38,Data!$C$7,FALSE)))))) -> 0 | N11: =IF($B$9="None",0,IF($B$9="Corn",VLOOKUP(H11,'Corn Drought'!B$3:EE$38,Data!$C$7,FALSE),IF($B$9="Cotton",VLOOKUP(H11,'Cotton Drought'!$B$3:$EE$38,Data!$C$7,FALSE),IF($B$9="Soybeans",VLOOKUP(H11,'Soybeans Drought'!$B$3:$EE$38,Data!$C$7,FALSE),IF(Data!$B$9="Wheat",VLOOKUP(Data!H11,'Wheat Drought'!$B$3:$EE$38,Data!$C$7,FALSE)))))) -> 0 | O11: =IF($B$8="None",0,VLOOKUP(I11,'Historic Prices'!$A$3:$K$38,$C$8,FALSE)) -> 3.4 | P11: =IF($B$9="None",0,VLOOKUP(I11,'Historic Prices'!$A$3:$K$38,$C$9,FALSE)) -> 0 | Q11: =IF($B$8="None",0,IF(IF(Tool!$C$19="Ideal",$B$2,IF(Tool!$C$19="Scheduled",((VLOOKUP($B$8&$B$10,'Regression Data'!$A$3:$F$30,4,FALSE))+(VLOOKUP($B$8&$B$10,'Regression Data'!$A$3:$F$30,5,FALSE)*(K11+(Tool!$C$20*Data!$B$4/0.0393701)))+(VLOOKUP($B$8&$B$10,'Regression Data'!$A$3:$F$30,6,FALSE)*L11))/2.47105*$B$3))>$B$2,$B$2,(IF(Tool!$C$19="Ideal",$B$2,IF(Tool!$C$19="Scheduled",((VLOOKUP($B$8&$B$10,'Regression Data'!$A$3:$F$30,4,FALSE))+(VLOOKUP($B$8&$B$10,'Regression Data'!$A$3:$F$30,5,FALSE)*(K11+(Tool!$C$20*Data!$B$4/0.0393701)))+(VLOOKUP($B$8&$B$10,'Regression Data'!$A$3:$F$30,6,FALSE)*L11))/2.47105*$B$3))))) -> 184.7279335 | R11: =IF($B$8="None",0,IF(IF((((VLOOKUP($B$8&$B$10,'Regression Data'!$A$3:$F$30,4,FALSE))+(VLOOKUP($B$8&$B$10,'Regression Data'!$A$3:$F$30,5,FALSE)*K11)+(VLOOKUP($B$8&$B$10,'Regression Data'!$A$3:$F$30,6,FALSE)*L11))/2.47105*$B$3)>$B$2,$B$2,((VLOOKUP($B$8&$B$10,'Regression Data'!$A$3:$F$30,4,FALSE))+(VLOOKUP($B$8&$B$10,'Regression Data'!$A$3:$F$30,5,FALSE)*K11)+(VLOOKUP($B$8&$B$10,'Regression Data'!$A$3:$F$30,6,FALSE)*L11))/2.47105*$B$3)<0,0,IF((((VLOOKUP($B$8&$B$10,'Regression Data'!$A$3:$F$30,4,FALSE))+(VLOOKUP($B$8&$B$10,'Regression Data'!$A$3:$F$30,5,FALSE)*K11)+(VLOOKUP($B$8&$B$10,'Regression Data'!$A$3:$F$30,6,FALSE)*L11))/2.47105*$B$3)>$B$2,$B$2,((VLOOKUP($B$8&$B$10,'Regression Data'!$A$3:$F$30,4,FALSE))+(VLOOKUP($B$8&$B$10,'Regression Data'!$A$3:$F$30,5,FALSE)*K11)+(VLOOKUP($B$8&$B$10,'Regression Data'!$A$3:$F$30,6,FALSE)*L11))/2.47105*$B$3))) -> 31.83406361 | S11: =IF($B$9="None",0,IF(IF(Tool!$C$19="Ideal",$C$2,IF(Tool!$C$19="Scheduled",((VLOOKUP($B$9&$B$10,'Regression Data'!$A$3:$F$30,4,FALSE))+(VLOOKUP($B$9&$B$10,'Regression Data'!$A$3:$F$30,5,FALSE)*(N11+(Tool!$C$20*Data!$C$4/0.0393701)))+(VLOOKUP($B$9&$B$10,'Regression Data'!$A$3:$F$30,6,FALSE)*N11))/2.47105*$C$3))>$C$2,$C$2,(IF(Tool!$C$19="Ideal",$C$2,IF(Tool!$C$19="Scheduled",((VLOOKUP($B$9&$B$10,'Regression Data'!$A$3:$F$30,4,FALSE))+(VLOOKUP($B$9&$B$10,'Regression Data'!$A$3:$F$30,5,FALSE)*(M11+(Tool!$C$20*Data!$C$4/0.0393701)))+(VLOOKUP($B$9&$B$10,'Regression Data'!$A$3:$F$30,6,FALSE)*N11))/2.47105*$C$3))))) -> 0 | T11: =IF($B$9="None",0,IF(IF((((VLOOKUP($B$9&$B$10,'Regression Data'!$A$3:$F$30,4,FALSE))+(VLOOKUP($B$9&$B$10,'Regression Data'!$A$3:$F$30,5,FALSE)*M11)+(VLOOKUP($B$9&$B$10,'Regression Data'!$A$3:$F$30,6,FALSE)*N11))/2.47105*$C$3)>$C$2,$C$2,((VLOOKUP($B$9&$B$10,'Regression Data'!$A$3:$F$30,4,FALSE))+(VLOOKUP($B$9&$B$10,'Regression Data'!$A$3:$F$30,5,FALSE)*M11)+(VLOOKUP($B$9&$B$10,'Regression Data'!$A$3:$F$30,6,FALSE)*N11))/2.47105*$C$3)<0,0,(IF((((VLOOKUP($B$9&$B$10,'Regression Data'!$A$3:$F$30,4,FALSE))+(VLOOKUP($B$9&$B$10,'Regression Data'!$A$3:$F$30,5,FALSE)*M11)+(VLOOKUP($B$9&$B$10,'Regression Data'!$A$3:$F$30,6,FALSE)*N11))/2.47105*$C$3)>$C$2,$C$2,((VLOOKUP($B$9&$B$10,'Regression Data'!$A$3:$F$30,4,FALSE))+(VLOOKUP($B$9&$B$10,'Regression Data'!$A$3:$F$30,5,FALSE)*M11)+(VLOOKUP($B$9&$B$10,'Regression Data'!$A$3:$F$30,6,FALSE)*N11))/2.47105*$C$3)))) -> 0 | X11: 62807.49738 | Y11: 10823.58163 | Z11: 51983.91575 | AA11: 0 | AB11: 0 | AC11: 0 | AH11: =IF($B$8="None",0,IF(Tool!$C$19="Rainfall Deficit",((VLOOKUP($B$8,'Regression Data'!$H$3:$K$6,3,FALSE))-K11)*0.0393701,IF(Tool!$C$19="Scheduled",$B$4*Tool!$C$20,))) -> 14.83492927 | AI11: =((IF($B$12="Center Pivot",'System Cost'!B49,IF($B$12="Linear Move",'System Cost'!G49,IF($B$12="Drip",'System Cost'!L49,IF($B$12="Hose Pull",'System Cost'!Q49)))))*(SUM($B$5:$C$5)))-(Tool!$C$28) -> 76167.46348 | AJ11: 9390.758499 | AK11: =IF(AH11<0,0,IF($B$12="Center Pivot",'System Cost'!C49*Data!$B$13*Data!$B$5*Data!AH11,IF($B$12="Hose Pull",$B$5*$B$13*'System Cost'!R49*AH11,IF($B$12="Linear Move",AH11*$B$13*$B$5*'System Cost'!H49,IF($B$12="Drip",$B$5*$B$13*AH11*'System Cost'!M49))))) -> 1130.719443 | AL11: =IF(AH11<0,0,IF($B$12="Center Pivot",'System Cost'!E49*Data!$B$5*Data!AH11,IF($B$12="Drip",AH11*$B$5*'System Cost'!O49,IF($B$12="Linear Move",AH11*$B$5*'System Cost'!J49,IF($B$12="Hose Pull",AH11*$B$5*'System Cost'!T49))))) -> 3093.36993 | AM11: =IF(AH11<0,0,((IF($B$11="Electric",VLOOKUP((IF(I11<1995,1995,I11)),Electric!$A$3:$C$38,3,FALSE)*0.5,IF($B$11="Diesel",VLOOKUP((IF(I11<1995,1995,I11)),Diesel!$A$3:$C$24,3,FALSE),IF(Data!$B$11="Natural Gas",VLOOKUP((IF(I11<1995,1995,I11)),'Natural Gas'!$A$3:$C$38,3,FALSE))))))*(IF($B$12="Center Pivot",'System Cost'!D49,IF($B$12="Linear Move",'System Cost'!I49,IF($B$12="Drip",'System Cost'!N49,IF($B$12="Hose Pull",'System Cost'!S49)))))*AH11*$B$5) -> 12778.43757 | AO11: =IF($B$9="None",0,IF(Tool!$C$19="Rainfall Deficit",((VLOOKUP($B$9,'Regression Data'!$H$3:$K$6,3,FALSE))-M11)*0.0393701,IF(Tool!$C$19="Scheduled",$C$4*Tool!$C$20,))) -> 0 | AP11: =IF(AO11<0,0,IF($B$12="Center Pivot",'System Cost'!C49*Data!$B$13*Data!$C$5*Data!AO11,IF($B$12="Hose Pull",$C$5*$B$13*'System Cost'!R49*AO11,IF($B$12="Linear Move",AO11*$B$13*$C$5*'System Cost'!H49,IF($B$12="Drip",$C$5*$B$13*AO11*'System Cost'!M49))))) -> 0 | AQ11: =IF(AO11<0,0,IF($B$12="Center Pivot",'System Cost'!E49*Data!$C$5*Data!AO11,IF($B$12="Drip",AO11*$C$5*'System Cost'!O49,IF($B$12="Linear Move",AO11*$C$5*'System Cost'!J49,IF($B$12="Hose Pull",AO11*$C$5*'System Cost'!T49))))) -> 0 | AR11: =IF(AO11<0,0,((IF($B$11="Electric",VLOOKUP((IF(I11<1995,1995,I11)),Electric!$A$3:$C$38,3,FALSE),IF($B$11="Diesel",VLOOKUP((IF(I11<1995,1995,I11)),Diesel!$A$3:$C$24,3,FALSE),IF(Data!$B$11="Natural Gas",VLOOKUP((IF(I11<1995,1995,I11)),'Natural Gas'!$A$3:$C$38,3,FALSE))))))*(IF($B$12="Center Pivot",'System Cost'!D49,IF($B$12="Linear Move",'System Cost'!I49,IF($B$12="Drip",'System Cost'!N49,IF($B$12="Hose Pull",'System Cost'!S49)))))*AO11*$C$5) -> 0 | AT11: 1130.719443 | AU11: 3093.36993 | AV11: 12778.43757 | BA11: 34981.38881 | BB11: 0 | BC11: 51983.91575 | BD11: 34981.38881 | BE11: 25590.63031 | BH11: 770.4909836 | BI11: 1203.852459 | BJ11: 7947.045722 | BL11: 25946.64984 | BM11: 16025.26068 | BN11: 6555.935542 | BR11: 14.83492927 | BS11: 0.5494418248
A12: System | B12: =Tool!$C$16 -> Center Pivot | H12: 2004 | I12: 1998 | J12: =VLOOKUP(I12,'Corn Rain'!B$3:C$38,2,FALSE) -> 20 | K12: =IF($B$8="None",0,IF($B$8="Corn",VLOOKUP(H12,'Corn Rain'!B$3:EE$38,$C$7,FALSE),IF($B$8="Cotton",VLOOKUP(H12,CottonRain!$B$3:$EE$38,Data!$C$7,FALSE),IF(Data!$B$8="Soybeans",VLOOKUP(Data!H12,'Soybeans Rain'!$B$3:$EE$38,Data!$C$7,FALSE),IF(Data!$B$8="Wheat",VLOOKUP(Data!H12,'Wheat Rain'!$B$3:$EE$38,Data!$C$7,FALSE)))))) -> 535.6883 | L12: =IF($B$8="None",0,IF($B$8="Corn",VLOOKUP(H12,'Corn Drought'!B$3:EE$38,Data!$C$7,FALSE),IF($B$8="Cotton",VLOOKUP(H12,'Cotton Drought'!$B$3:$EE$38,Data!$C$7,FALSE),IF($B$8="Soybeans",VLOOKUP(H12,'Soybeans Drought'!$B$3:$EE$38,Data!$C$7,FALSE),IF(Data!$B$8="Wheat",VLOOKUP(Data!H12,'Wheat Drought'!$B$3:$EE$38,Data!$C$7,FALSE)))))) -> 17 | M12: =IF($B$9="None",0,IF($B$9="Corn",VLOOKUP(H12,'Corn Rain'!B$3:EE$38,$C$7,FALSE),IF($B$9="Cotton",VLOOKUP(H12,CottonRain!$B$3:$EE$38,Data!$C$7,FALSE),IF(Data!$B$9="Soybeans",VLOOKUP(Data!H12,'Soybeans Rain'!$B$3:$EE$38,Data!$C$7,FALSE),IF(Data!$B$9="Wheat",VLOOKUP(Data!H12,'Wheat Rain'!$B$3:$EE$38,Data!$C$7,FALSE)))))) -> 0 | N12: =IF($B$9="None",0,IF($B$9="Corn",VLOOKUP(H12,'Corn Drought'!B$3:EE$38,Data!$C$7,FALSE),IF($B$9="Cotton",VLOOKUP(H12,'Cotton Drought'!$B$3:$EE$38,Data!$C$7,FALSE),IF($B$9="Soybeans",VLOOKUP(H12,'Soybeans Drought'!$B$3:$EE$38,Data!$C$7,FALSE),IF(Data!$B$9="Wheat",VLOOKUP(Data!H12,'Wheat Drought'!$B$3:$EE$38,Data!$C$7,FALSE)))))) -> 0 | O12: =IF($B$8="None",0,VLOOKUP(I12,'Historic Prices'!$A$3:$K$38,$C$8,FALSE)) -> 1.94 | P12: =IF($B$9="None",0,VLOOKUP(I12,'Historic Prices'!$A$3:$K$38,$C$9,FALSE)) -> 0 | Q12: =IF($B$8="None",0,IF(IF(Tool!$C$19="Ideal",$B$2,IF(Tool!$C$19="Scheduled",((VLOOKUP($B$8&$B$10,'Regression Data'!$A$3:$F$30,4,FALSE))+(VLOOKUP($B$8&$B$10,'Regression Data'!$A$3:$F$30,5,FALSE)*(K12+(Tool!$C$20*Data!$B$4/0.0393701)))+(VLOOKUP($B$8&$B$10,'Regression Data'!$A$3:$F$30,6,FALSE)*L12))/2.47105*$B$3))>$B$2,$B$2,(IF(Tool!$C$19="Ideal",$B$2,IF(Tool!$C$19="Scheduled",((VLOOKUP($B$8&$B$10,'Regression Data'!$A$3:$F$30,4,FALSE))+(VLOOKUP($B$8&$B$10,'Regression Data'!$A$3:$F$30,5,FALSE)*(K12+(Tool!$C$20*Data!$B$4/0.0393701)))+(VLOOKUP($B$8&$B$10,'Regression Data'!$A$3:$F$30,6,FALSE)*L12))/2.47105*$B$3))))) -> 184.7279335 | R12: =IF($B$8="None",0,IF(IF((((VLOOKUP($B$8&$B$10,'Regression Data'!$A$3:$F$30,4,FALSE))+(VLOOKUP($B$8&$B$10,'Regression Data'!$A$3:$F$30,5,FALSE)*K12)+(VLOOKUP($B$8&$B$10,'Regression Data'!$A$3:$F$30,6,FALSE)*L12))/2.47105*$B$3)>$B$2,$B$2,((VLOOKUP($B$8&$B$10,'Regression Data'!$A$3:$F$30,4,FALSE))+(VLOOKUP($B$8&$B$10,'Regression Data'!$A$3:$F$30,5,FALSE)*K12)+(VLOOKUP($B$8&$B$10,'Regression Data'!$A$3:$F$30,6,FALSE)*L12))/2.47105*$B$3)<0,0,IF((((VLOOKUP($B$8&$B$10,'Regression Data'!$A$3:$F$30,4,FALSE))+(VLOOKUP($B$8&$B$10,'Regression Data'!$A$3:$F$30,5,FALSE)*K12)+(VLOOKUP($B$8&$B$10,'Regression Data'!$A$3:$F$30,6,FALSE)*L12))/2.47105*$B$3)>$B$2,$B$2,((VLOOKUP($B$8&$B$10,'Regression Data'!$A$3:$F$30,4,FALSE))+(VLOOKUP($B$8&$B$10,'Regression Data'!$A$3:$F$30,5,FALSE)*K12)+(VLOOKUP($B$8&$B$10,'Regression Data'!$A$3:$F$30,6,FALSE)*L12))/2.47105*$B$3))) -> 170.9432945 | S12: =IF($B$9="None",0,IF(IF(Tool!$C$19="Ideal",$C$2,IF(Tool!$C$19="Scheduled",((VLOOKUP($B$9&$B$10,'Regression Data'!$A$3:$F$30,4,FALSE))+(VLOOKUP($B$9&$B$10,'Regression Data'!$A$3:$F$30,5,FALSE)*(N12+(Tool!$C$20*Data!$C$4/0.0393701)))+(VLOOKUP($B$9&$B$10,'Regression Data'!$A$3:$F$30,6,FALSE)*N12))/2.47105*$C$3))>$C$2,$C$2,(IF(Tool!$C$19="Ideal",$C$2,IF(Tool!$C$19="Scheduled",((VLOOKUP($B$9&$B$10,'Regression Data'!$A$3:$F$30,4,FALSE))+(VLOOKUP($B$9&$B$10,'Regression Data'!$A$3:$F$30,5,FALSE)*(M12+(Tool!$C$20*Data!$C$4/0.0393701)))+(VLOOKUP($B$9&$B$10,'Regression Data'!$A$3:$F$30,6,FALSE)*N12))/2.47105*$C$3))))) -> 0 | T12: =IF($B$9="None",0,IF(IF((((VLOOKUP($B$9&$B$10,'Regression Data'!$A$3:$F$30,4,FALSE))+(VLOOKUP($B$9&$B$10,'Regression Data'!$A$3:$F$30,5,FALSE)*M12)+(VLOOKUP($B$9&$B$10,'Regression Data'!$A$3:$F$30,6,FALSE)*N12))/2.47105*$C$3)>$C$2,$C$2,((VLOOKUP($B$9&$B$10,'Regression Data'!$A$3:$F$30,4,FALSE))+(VLOOKUP($B$9&$B$10,'Regression Data'!$A$3:$F$30,5,FALSE)*M12)+(VLOOKUP($B$9&$B$10,'Regression Data'!$A$3:$F$30,6,FALSE)*N12))/2.47105*$C$3)<0,0,(IF((((VLOOKUP($B$9&$B$10,'Regression Data'!$A$3:$F$30,4,FALSE))+(VLOOKUP($B$9&$B$10,'Regression Data'!$A$3:$F$30,5,FALSE)*M12)+(VLOOKUP($B$9&$B$10,'Regression Data'!$A$3:$F$30,6,FALSE)*N12))/2.47105*$C$3)>$C$2,$C$2,((VLOOKUP($B$9&$B$10,'Regression Data'!$A$3:$F$30,4,FALSE))+(VLOOKUP($B$9&$B$10,'Regression Data'!$A$3:$F$30,5,FALSE)*M12)+(VLOOKUP($B$9&$B$10,'Regression Data'!$A$3:$F$30,6,FALSE)*N12))/2.47105*$C$3)))) -> 0 | X12: 35837.21909 | Y12: 33162.99913 | Z12: 2674.219959 | AA12: 0 | AB12: 0 | AC12: 0 | AH12: =IF($B$8="None",0,IF(Tool!$C$19="Rainfall Deficit",((VLOOKUP($B$8,'Regression Data'!$H$3:$K$6,3,FALSE))-K12)*0.0393701,IF(Tool!$C$19="Scheduled",$B$4*Tool!$C$20,))) -> 4.50046306 | AI12: =((IF($B$12="Center Pivot",'System Cost'!B50,IF($B$12="Linear Move",'System Cost'!G50,IF($B$12="Drip",'System Cost'!L50,IF($B$12="Hose Pull",'System Cost'!Q50)))))*(SUM($B$5:$C$5)))-(Tool!$C$28) -> 68979.9269 | AJ12: 8504.600327 | AK12: =IF(AH12<0,0,IF($B$12="Center Pivot",'System Cost'!C50*Data!$B$13*Data!$B$5*Data!AH12,IF($B$12="Hose Pull",$B$5*$B$13*'System Cost'!R50*AH12,IF($B$12="Linear Move",AH12*$B$13*$B$5*'System Cost'!H50,IF($B$12="Drip",$B$5*$B$13*AH12*'System Cost'!M50))))) -> 679.1008248 | AL12: =IF(AH12<0,0,IF($B$12="Center Pivot",'System Cost'!E50*Data!$B$5*Data!AH12,IF($B$12="Drip",AH12*$B$5*'System Cost'!O50,IF($B$12="Linear Move",AH12*$B$5*'System Cost'!J50,IF($B$12="Hose Pull",AH12*$B$5*'System Cost'!T50))))) -> 558.5513688 | AM12: =IF(AH12<0,0,((IF($B$11="Electric",VLOOKUP((IF(I12<1995,1995,I12)),Electric!$A$3:$C$38,3,FALSE)*0.5,IF($B$11="Diesel",VLOOKUP((IF(I12<1995,1995,I12)),Diesel!$A$3:$C$24,3,FALSE),IF(Data!$B$11="Natural Gas",VLOOKUP((IF(I12<1995,1995,I12)),'Natural Gas'!$A$3:$C$38,3,FALSE))))))*(IF($B$12="Center Pivot",'System Cost'!D50,IF($B$12="Linear Move",'System Cost'!I50,IF($B$12="Drip",'System Cost'!N50,IF($B$12="Hose Pull",'System Cost'!S50)))))*AH12*$B$5) -> 1170.775557 | AO12: =IF($B$9="None",0,IF(Tool!$C$19="Rainfall Deficit",((VLOOKUP($B$9,'Regression Data'!$H$3:$K$6,3,FALSE))-M12)*0.0393701,IF(Tool!$C$19="Scheduled",$C$4*Tool!$C$20,))) -> 0 | AP12: =IF(AO12<0,0,IF($B$12="Center Pivot",'System Cost'!C50*Data!$B$13*Data!$C$5*Data!AO12,IF($B$12="Hose Pull",$C$5*$B$13*'System Cost'!R50*AO12,IF($B$12="Linear Move",AO12*$B$13*$C$5*'System Cost'!H50,IF($B$12="Drip",$C$5*$B$13*AO12*'System Cost'!M50))))) -> 0 | AQ12: =IF(AO12<0,0,IF($B$12="Center Pivot",'System Cost'!E50*Data!$C$5*Data!AO12,IF($B$12="Drip",AO12*$C$5*'System Cost'!O50,IF($B$12="Linear Move",AO12*$C$5*'System Cost'!J50,IF($B$12="Hose Pull",AO12*$C$5*'System Cost'!T50))))) -> 0 | AR12: =IF(AO12<0,0,((IF($B$11="Electric",VLOOKUP((IF(I12<1995,1995,I12)),Electric!$A$3:$C$38,3,FALSE),IF($B$11="Diesel",VLOOKUP((IF(I12<1995,1995,I12)),Diesel!$A$3:$C$24,3,FALSE),IF(Data!$B$11="Natural Gas",VLOOKUP((IF(I12<1995,1995,I12)),'Natural Gas'!$A$3:$C$38,3,FALSE))))))*(IF($B$12="Center Pivot",'System Cost'!D50,IF($B$12="Linear Move",'System Cost'!I50,IF($B$12="Drip",'System Cost'!N50,IF($B$12="Hose Pull",'System Cost'!S50)))))*AO12*$C$5) -> 0 | AT12: 679.1008248 | AU12: 558.5513688 | AV12: 1170.775557 | BA12: 265.7922083 | BB12: 0 | BC12: 2674.219959 | BD12: 265.7922083 | BE12: -8238.808119 | BH12: 1151.106583 | BI12: 1120.772478 | BJ12: 10451.81899 | BL12: 28186.66517 | BM12: 15462.96712 | BN12: 6416.329384 | BR12: 4.50046306 | BS12: 0.166683817
A13: Labor Cost ($/hr) | B13: =Tool!$C$24 -> 10 | H13: 1986 | I13: 2006 | J13: =VLOOKUP(I13,'Corn Rain'!B$3:C$38,2,FALSE) -> 28 | K13: =IF($B$8="None",0,IF($B$8="Corn",VLOOKUP(H13,'Corn Rain'!B$3:EE$38,$C$7,FALSE),IF($B$8="Cotton",VLOOKUP(H13,CottonRain!$B$3:$EE$38,Data!$C$7,FALSE),IF(Data!$B$8="Soybeans",VLOOKUP(Data!H13,'Soybeans Rain'!$B$3:$EE$38,Data!$C$7,FALSE),IF(Data!$B$8="Wheat",VLOOKUP(Data!H13,'Wheat Rain'!$B$3:$EE$38,Data!$C$7,FALSE)))))) -> 252.6432 | L13: =IF($B$8="None",0,IF($B$8="Corn",VLOOKUP(H13,'Corn Drought'!B$3:EE$38,Data!$C$7,FALSE),IF($B$8="Cotton",VLOOKUP(H13,'Cotton Drought'!$B$3:$EE$38,Data!$C$7,FALSE),IF($B$8="Soybeans",VLOOKUP(H13,'Soybeans Drought'!$B$3:$EE$38,Data!$C$7,FALSE),IF(Data!$B$8="Wheat",VLOOKUP(Data!H13,'Wheat Drought'!$B$3:$EE$38,Data!$C$7,FALSE)))))) -> 72 | M13: =IF($B$9="None",0,IF($B$9="Corn",VLOOKUP(H13,'Corn Rain'!B$3:EE$38,$C$7,FALSE),IF($B$9="Cotton",VLOOKUP(H13,CottonRain!$B$3:$EE$38,Data!$C$7,FALSE),IF(Data!$B$9="Soybeans",VLOOKUP(Data!H13,'Soybeans Rain'!$B$3:$EE$38,Data!$C$7,FALSE),IF(Data!$B$9="Wheat",VLOOKUP(Data!H13,'Wheat Rain'!$B$3:$EE$38,Data!$C$7,FALSE)))))) -> 0 | N13: =IF($B$9="None",0,IF($B$9="Corn",VLOOKUP(H13,'Corn Drought'!B$3:EE$38,Data!$C$7,FALSE),IF($B$9="Cotton",VLOOKUP(H13,'Cotton Drought'!$B$3:$EE$38,Data!$C$7,FALSE),IF($B$9="Soybeans",VLOOKUP(H13,'Soybeans Drought'!$B$3:$EE$38,Data!$C$7,FALSE),IF(Data!$B$9="Wheat",VLOOKUP(Data!H13,'Wheat Drought'!$B$3:$EE$38,Data!$C$7,FALSE)))))) -> 0 | O13: =IF($B$8="None",0,VLOOKUP(I13,'Historic Prices'!$A$3:$K$38,$C$8,FALSE)) -> 3.04 | P13: =IF($B$9="None",0,VLOOKUP(I13,'Historic Prices'!$A$3:$K$38,$C$9,FALSE)) -> 0 | Q13: =IF($B$8="None",0,IF(IF(Tool!$C$19="Ideal",$B$2,IF(Tool!$C$19="Scheduled",((VLOOKUP($B$8&$B$10,'Regression Data'!$A$3:$F$30,4,FALSE))+(VLOOKUP($B$8&$B$10,'Regression Data'!$A$3:$F$30,5,FALSE)*(K13+(Tool!$C$20*Data!$B$4/0.0393701)))+(VLOOKUP($B$8&$B$10,'Regression Data'!$A$3:$F$30,6,FALSE)*L13))/2.47105*$B$3))>$B$2,$B$2,(IF(Tool!$C$19="Ideal",$B$2,IF(Tool!$C$19="Scheduled",((VLOOKUP($B$8&$B$10,'Regression Data'!$A$3:$F$30,4,FALSE))+(VLOOKUP($B$8&$B$10,'Regression Data'!$A$3:$F$30,5,FALSE)*(K13+(Tool!$C$20*Data!$B$4/0.0393701)))+(VLOOKUP($B$8&$B$10,'Regression Data'!$A$3:$F$30,6,FALSE)*L13))/2.47105*$B$3))))) -> 184.7279335 | R13: =IF($B$8="None",0,IF(IF((((VLOOKUP($B$8&$B$10,'Regression Data'!$A$3:$F$30,4,FALSE))+(VLOOKUP($B$8&$B$10,'Regression Data'!$A$3:$F$30,5,FALSE)*K13)+(VLOOKUP($B$8&$B$10,'Regression Data'!$A$3:$F$30,6,FALSE)*L13))/2.47105*$B$3)>$B$2,$B$2,((VLOOKUP($B$8&$B$10,'Regression Data'!$A$3:$F$30,4,FALSE))+(VLOOKUP($B$8&$B$10,'Regression Data'!$A$3:$F$30,5,FALSE)*K13)+(VLOOKUP($B$8&$B$10,'Regression Data'!$A$3:$F$30,6,FALSE)*L13))/2.47105*$B$3)<0,0,IF((((VLOOKUP($B$8&$B$10,'Regression Data'!$A$3:$F$30,4,FALSE))+(VLOOKUP($B$8&$B$10,'Regression Data'!$A$3:$F$30,5,FALSE)*K13)+(VLOOKUP($B$8&$B$10,'Regression Data'!$A$3:$F$30,6,FALSE)*L13))/2.47105*$B$3)>$B$2,$B$2,((VLOOKUP($B$8&$B$10,'Regression Data'!$A$3:$F$30,4,FALSE))+(VLOOKUP($B$8&$B$10,'Regression Data'!$A$3:$F$30,5,FALSE)*K13)+(VLOOKUP($B$8&$B$10,'Regression Data'!$A$3:$F$30,6,FALSE)*L13))/2.47105*$B$3))) -> 0 | S13: =IF($B$9="None",0,IF(IF(Tool!$C$19="Ideal",$C$2,IF(Tool!$C$19="Scheduled",((VLOOKUP($B$9&$B$10,'Regression Data'!$A$3:$F$30,4,FALSE))+(VLOOKUP($B$9&$B$10,'Regression Data'!$A$3:$F$30,5,FALSE)*(N13+(Tool!$C$20*Data!$C$4/0.0393701)))+(VLOOKUP($B$9&$B$10,'Regression Data'!$A$3:$F$30,6,FALSE)*N13))/2.47105*$C$3))>$C$2,$C$2,(IF(Tool!$C$19="Ideal",$C$2,IF(Tool!$C$19="Scheduled",((VLOOKUP($B$9&$B$10,'Regression Data'!$A$3:$F$30,4,FALSE))+(VLOOKUP($B$9&$B$10,'Regression Data'!$A$3:$F$30,5,FALSE)*(M13+(Tool!$C$20*Data!$C$4/0.0393701)))+(VLOOKUP($B$9&$B$10,'Regression Data'!$A$3:$F$30,6,FALSE)*N13))/2.47105*$C$3))))) -> 0 | T13: =IF($B$9="None",0,IF(IF((((VLOOKUP($B$9&$B$10,'Regression Data'!$A$3:$F$30,4,FALSE))+(VLOOKUP($B$9&$B$10,'Regression Data'!$A$3:$F$30,5,FALSE)*M13)+(VLOOKUP($B$9&$B$10,'Regression Data'!$A$3:$F$30,6,FALSE)*N13))/2.47105*$C$3)>$C$2,$C$2,((VLOOKUP($B$9&$B$10,'Regression Data'!$A$3:$F$30,4,FALSE))+(VLOOKUP($B$9&$B$10,'Regression Data'!$A$3:$F$30,5,FALSE)*M13)+(VLOOKUP($B$9&$B$10,'Regression Data'!$A$3:$F$30,6,FALSE)*N13))/2.47105*$C$3)<0,0,(IF((((VLOOKUP($B$9&$B$10,'Regression Data'!$A$3:$F$30,4,FALSE))+(VLOOKUP($B$9&$B$10,'Regression Data'!$A$3:$F$30,5,FALSE)*M13)+(VLOOKUP($B$9&$B$10,'Regression Data'!$A$3:$F$30,6,FALSE)*N13))/2.47105*$C$3)>$C$2,$C$2,((VLOOKUP($B$9&$B$10,'Regression Data'!$A$3:$F$30,4,FALSE))+(VLOOKUP($B$9&$B$10,'Regression Data'!$A$3:$F$30,5,FALSE)*M13)+(VLOOKUP($B$9&$B$10,'Regression Data'!$A$3:$F$30,6,FALSE)*N13))/2.47105*$C$3)))) -> 0 | X13: 56157.29177 | Y13: 0 | Z13: 56157.29177 | AA13: 0 | AB13: 0 | AC13: 0 | AH13: =IF($B$8="None",0,IF(Tool!$C$19="Rainfall Deficit",((VLOOKUP($B$8,'Regression Data'!$H$3:$K$6,3,FALSE))-K13)*0.0393701,IF(Tool!$C$19="Scheduled",$B$4*Tool!$C$20,))) -> 15.64397695 | AI13: =((IF($B$12="Center Pivot",'System Cost'!B51,IF($B$12="Linear Move",'System Cost'!G51,IF($B$12="Drip",'System Cost'!L51,IF($B$12="Hose Pull",'System Cost'!Q51)))))*(SUM($B$5:$C$5)))-(Tool!$C$28) -> 71374.73329 | AJ13: 8799.858268 | AK13: =IF(AH13<0,0,IF($B$12="Center Pivot",'System Cost'!C51*Data!$B$13*Data!$B$5*Data!AH13,IF($B$12="Hose Pull",$B$5*$B$13*'System Cost'!R51*AH13,IF($B$12="Linear Move",AH13*$B$13*$B$5*'System Cost'!H51,IF($B$12="Drip",$B$5*$B$13*AH13*'System Cost'!M51))))) -> 972.7041487 | AL13: =IF(AH13<0,0,IF($B$12="Center Pivot",'System Cost'!E51*Data!$B$5*Data!AH13,IF($B$12="Drip",AH13*$B$5*'System Cost'!O51,IF($B$12="Linear Move",AH13*$B$5*'System Cost'!J51,IF($B$12="Hose Pull",AH13*$B$5*'System Cost'!T51))))) -> 574.8639185 | AM13: =IF(AH13<0,0,((IF($B$11="Electric",VLOOKUP((IF(I13<1995,1995,I13)),Electric!$A$3:$C$38,3,FALSE)*0.5,IF($B$11="Diesel",VLOOKUP((IF(I13<1995,1995,I13)),Diesel!$A$3:$C$24,3,FALSE),IF(Data!$B$11="Natural Gas",VLOOKUP((IF(I13<1995,1995,I13)),'Natural Gas'!$A$3:$C$38,3,FALSE))))))*(IF($B$12="Center Pivot",'System Cost'!D51,IF($B$12="Linear Move",'System Cost'!I51,IF($B$12="Drip",'System Cost'!N51,IF($B$12="Hose Pull",'System Cost'!S51)))))*AH13*$B$5) -> 5830.922018 | AO13: =IF($B$9="None",0,IF(Tool!$C$19="Rainfall Deficit",((VLOOKUP($B$9,'Regression Data'!$H$3:$K$6,3,FALSE))-M13)*0.0393701,IF(Tool!$C$19="Scheduled",$C$4*Tool!$C$20,))) -> 0 | AP13: =IF(AO13<0,0,IF($B$12="Center Pivot",'System Cost'!C51*Data!$B$13*Data!$C$5*Data!AO13,IF($B$12="Hose Pull",$C$5*$B$13*'System Cost'!R51*AO13,IF($B$12="Linear Move",AO13*$B$13*$C$5*'System Cost'!H51,IF($B$12="Drip",$C$5*$B$13*AO13*'System Cost'!M51))))) -> 0 | AQ13: =IF(AO13<0,0,IF($B$12="Center Pivot",'System Cost'!E51*Data!$C$5*Data!AO13,IF($B$12="Drip",AO13*$C$5*'System Cost'!O51,IF($B$12="Linear Move",AO13*$C$5*'System Cost'!J51,IF($B$12="Hose Pull",AO13*$C$5*'System Cost'!T51))))) -> 0 | AR13: =IF(AO13<0,0,((IF($B$11="Electric",VLOOKUP((IF(I13<1995,1995,I13)),Electric!$A$3:$C$38,3,FALSE),IF($B$11="Diesel",VLOOKUP((IF(I13<1995,1995,I13)),Diesel!$A$3:$C$24,3,FALSE),IF(Data!$B$11="Natural Gas",VLOOKUP((IF(I13<1995,1995,I13)),'Natural Gas'!$A$3:$C$38,3,FALSE))))))*(IF($B$12="Center Pivot",'System Cost'!D51,IF($B$12="Linear Move",'System Cost'!I51,IF($B$12="Drip",'System Cost'!N51,IF($B$12="Hose Pull",'System Cost'!S51)))))*AO13*$C$5) -> 0 | AT13: 972.7041487 | AU13: 574.8639185 | AV13: 5830.922018 | BA13: 48778.80169 | BB13: 0 | BC13: 56157.29177 | BD13: 48778.80169 | BE13: 39978.94342 | BH13: 933.6801215 | BI13: 1454.905155 | BJ13: 8413.105889 | BL13: 27145.82183 | BM13: 16344.13066 | BN13: 7206.458927 | BR13: 15.64397695 | BS13: 0.5794065538
A14: Repayment Period (Years) | B14: =Tool!$C$25 -> 10 | H14: 1991 | I14: 2008 | J14: =VLOOKUP(I14,'Corn Rain'!B$3:C$38,2,FALSE) -> 30 | K14: =IF($B$8="None",0,IF($B$8="Corn",VLOOKUP(H14,'Corn Rain'!B$3:EE$38,$C$7,FALSE),IF($B$8="Cotton",VLOOKUP(H14,CottonRain!$B$3:$EE$38,Data!$C$7,FALSE),IF(Data!$B$8="Soybeans",VLOOKUP(Data!H14,'Soybeans Rain'!$B$3:$EE$38,Data!$C$7,FALSE),IF(Data!$B$8="Wheat",VLOOKUP(Data!H14,'Wheat Rain'!$B$3:$EE$38,Data!$C$7,FALSE)))))) -> 305.8334 | L14: =IF($B$8="None",0,IF($B$8="Corn",VLOOKUP(H14,'Corn Drought'!B$3:EE$38,Data!$C$7,FALSE),IF($B$8="Cotton",VLOOKUP(H14,'Cotton Drought'!$B$3:$EE$38,Data!$C$7,FALSE),IF($B$8="Soybeans",VLOOKUP(H14,'Soybeans Drought'!$B$3:$EE$38,Data!$C$7,FALSE),IF(Data!$B$8="Wheat",VLOOKUP(Data!H14,'Wheat Drought'!$B$3:$EE$38,Data!$C$7,FALSE)))))) -> 50 | M14: =IF($B$9="None",0,IF($B$9="Corn",VLOOKUP(H14,'Corn Rain'!B$3:EE$38,$C$7,FALSE),IF($B$9="Cotton",VLOOKUP(H14,CottonRain!$B$3:$EE$38,Data!$C$7,FALSE),IF(Data!$B$9="Soybeans",VLOOKUP(Data!H14,'Soybeans Rain'!$B$3:$EE$38,Data!$C$7,FALSE),IF(Data!$B$9="Wheat",VLOOKUP(Data!H14,'Wheat Rain'!$B$3:$EE$38,Data!$C$7,FALSE)))))) -> 0 | N14: =IF($B$9="None",0,IF($B$9="Corn",VLOOKUP(H14,'Corn Drought'!B$3:EE$38,Data!$C$7,FALSE),IF($B$9="Cotton",VLOOKUP(H14,'Cotton Drought'!$B$3:$EE$38,Data!$C$7,FALSE),IF($B$9="Soybeans",VLOOKUP(H14,'Soybeans Drought'!$B$3:$EE$38,Data!$C$7,FALSE),IF(Data!$B$9="Wheat",VLOOKUP(Data!H14,'Wheat Drought'!$B$3:$EE$38,Data!$C$7,FALSE)))))) -> 0 | O14: =IF($B$8="None",0,VLOOKUP(I14,'Historic Prices'!$A$3:$K$38,$C$8,FALSE)) -> 4.06 | P14: =IF($B$9="None",0,VLOOKUP(I14,'Historic Prices'!$A$3:$K$38,$C$9,FALSE)) -> 0 | Q14: =IF($B$8="None",0,IF(IF(Tool!$C$19="Ideal",$B$2,IF(Tool!$C$19="Scheduled",((VLOOKUP($B$8&$B$10,'Regression Data'!$A$3:$F$30,4,FALSE))+(VLOOKUP($B$8&$B$10,'Regression Data'!$A$3:$F$30,5,FALSE)*(K14+(Tool!$C$20*Data!$B$4/0.0393701)))+(VLOOKUP($B$8&$B$10,'Regression Data'!$A$3:$F$30,6,FALSE)*L14))/2.47105*$B$3))>$B$2,$B$2,(IF(Tool!$C$19="Ideal",$B$2,IF(Tool!$C$19="Scheduled",((VLOOKUP($B$8&$B$10,'Regression Data'!$A$3:$F$30,4,FALSE))+(VLOOKUP($B$8&$B$10,'Regression Data'!$A$3:$F$30,5,FALSE)*(K14+(Tool!$C$20*Data!$B$4/0.0393701)))+(VLOOKUP($B$8&$B$10,'Regression Data'!$A$3:$F$30,6,FALSE)*L14))/2.47105*$B$3))))) -> 184.7279335 | R14: =IF($B$8="None",0,IF(IF((((VLOOKUP($B$8&$B$10,'Regression Data'!$A$3:$F$30,4,FALSE))+(VLOOKUP($B$8&$B$10,'Regression Data'!$A$3:$F$30,5,FALSE)*K14)+(VLOOKUP($B$8&$B$10,'Regression Data'!$A$3:$F$30,6,FALSE)*L14))/2.47105*$B$3)>$B$2,$B$2,((VLOOKUP($B$8&$B$10,'Regression Data'!$A$3:$F$30,4,FALSE))+(VLOOKUP($B$8&$B$10,'Regression Data'!$A$3:$F$30,5,FALSE)*K14)+(VLOOKUP($B$8&$B$10,'Regression Data'!$A$3:$F$30,6,FALSE)*L14))/2.47105*$B$3)<0,0,IF((((VLOOKUP($B$8&$B$10,'Regression Data'!$A$3:$F$30,4,FALSE))+(VLOOKUP($B$8&$B$10,'Regression Data'!$A$3:$F$30,5,FALSE)*K14)+(VLOOKUP($B$8&$B$10,'Regression Data'!$A$3:$F$30,6,FALSE)*L14))/2.47105*$B$3)>$B$2,$B$2,((VLOOKUP($B$8&$B$10,'Regression Data'!$A$3:$F$30,4,FALSE))+(VLOOKUP($B$8&$B$10,'Regression Data'!$A$3:$F$30,5,FALSE)*K14)+(VLOOKUP($B$8&$B$10,'Regression Data'!$A$3:$F$30,6,FALSE)*L14))/2.47105*$B$3))) -> 48.23108534 | S14: =IF($B$9="None",0,IF(IF(Tool!$C$19="Ideal",$C$2,IF(Tool!$C$19="Scheduled",((VLOOKUP($B$9&$B$10,'Regression Data'!$A$3:$F$30,4,FALSE))+(VLOOKUP($B$9&$B$10,'Regression Data'!$A$3:$F$30,5,FALSE)*(N14+(Tool!$C$20*Data!$C$4/0.0393701)))+(VLOOKUP($B$9&$B$10,'Regression Data'!$A$3:$F$30,6,FALSE)*N14))/2.47105*$C$3))>$C$2,$C$2,(IF(Tool!$C$19="Ideal",$C$2,IF(Tool!$C$19="Scheduled",((VLOOKUP($B$9&$B$10,'Regression Data'!$A$3:$F$30,4,FALSE))+(VLOOKUP($B$9&$B$10,'Regression Data'!$A$3:$F$30,5,FALSE)*(M14+(Tool!$C$20*Data!$C$4/0.0393701)))+(VLOOKUP($B$9&$B$10,'Regression Data'!$A$3:$F$30,6,FALSE)*N14))/2.47105*$C$3))))) -> 0 | T14: =IF($B$9="None",0,IF(IF((((VLOOKUP($B$9&$B$10,'Regression Data'!$A$3:$F$30,4,FALSE))+(VLOOKUP($B$9&$B$10,'Regression Data'!$A$3:$F$30,5,FALSE)*M14)+(VLOOKUP($B$9&$B$10,'Regression Data'!$A$3:$F$30,6,FALSE)*N14))/2.47105*$C$3)>$C$2,$C$2,((VLOOKUP($B$9&$B$10,'Regression Data'!$A$3:$F$30,4,FALSE))+(VLOOKUP($B$9&$B$10,'Regression Data'!$A$3:$F$30,5,FALSE)*M14)+(VLOOKUP($B$9&$B$10,'Regression Data'!$A$3:$F$30,6,FALSE)*N14))/2.47105*$C$3)<0,0,(IF((((VLOOKUP($B$9&$B$10,'Regression Data'!$A$3:$F$30,4,FALSE))+(VLOOKUP($B$9&$B$10,'Regression Data'!$A$3:$F$30,5,FALSE)*M14)+(VLOOKUP($B$9&$B$10,'Regression Data'!$A$3:$F$30,6,FALSE)*N14))/2.47105*$C$3)>$C$2,$C$2,((VLOOKUP($B$9&$B$10,'Regression Data'!$A$3:$F$30,4,FALSE))+(VLOOKUP($B$9&$B$10,'Regression Data'!$A$3:$F$30,5,FALSE)*M14)+(VLOOKUP($B$9&$B$10,'Regression Data'!$A$3:$F$30,6,FALSE)*N14))/2.47105*$C$3)))) -> 0 | X14: 74999.54099 | Y14: 19581.82065 | Z14: 55417.72034 | AA14: 0 | AB14: 0 | AC14: 0 | AH14: =IF($B$8="None",0,IF(Tool!$C$19="Rainfall Deficit",((VLOOKUP($B$8,'Regression Data'!$H$3:$K$6,3,FALSE))-K14)*0.0393701,IF(Tool!$C$19="Scheduled",$B$4*Tool!$C$20,))) -> 13.54987346 | AI14: =((IF($B$12="Center Pivot",'System Cost'!B52,IF($B$12="Linear Move",'System Cost'!G52,IF($B$12="Drip",'System Cost'!L52,IF($B$12="Hose Pull",'System Cost'!Q52)))))*(SUM($B$5:$C$5)))-(Tool!$C$28) -> 73308.04959 | AJ14: 9038.218661 | AK14: =IF(AH14<0,0,IF($B$12="Center Pivot",'System Cost'!C52*Data!$B$13*Data!$B$5*Data!AH14,IF($B$12="Hose Pull",$B$5*$B$13*'System Cost'!R52*AH14,IF($B$12="Linear Move",AH14*$B$13*$B$5*'System Cost'!H52,IF($B$12="Drip",$B$5*$B$13*AH14*'System Cost'!M52))))) -> 2021.891703 | AL14: =IF(AH14<0,0,IF($B$12="Center Pivot",'System Cost'!E52*Data!$B$5*Data!AH14,IF($B$12="Drip",AH14*$B$5*'System Cost'!O52,IF($B$12="Linear Move",AH14*$B$5*'System Cost'!J52,IF($B$12="Hose Pull",AH14*$B$5*'System Cost'!T52))))) -> 2826.121115 | AM14: =IF(AH14<0,0,((IF($B$11="Electric",VLOOKUP((IF(I14<1995,1995,I14)),Electric!$A$3:$C$38,3,FALSE)*0.5,IF($B$11="Diesel",VLOOKUP((IF(I14<1995,1995,I14)),Diesel!$A$3:$C$24,3,FALSE),IF(Data!$B$11="Natural Gas",VLOOKUP((IF(I14<1995,1995,I14)),'Natural Gas'!$A$3:$C$38,3,FALSE))))))*(IF($B$12="Center Pivot",'System Cost'!D52,IF($B$12="Linear Move",'System Cost'!I52,IF($B$12="Drip",'System Cost'!N52,IF($B$12="Hose Pull",'System Cost'!S52)))))*AH14*$B$5) -> 34725.08765 | AO14: =IF($B$9="None",0,IF(Tool!$C$19="Rainfall Deficit",((VLOOKUP($B$9,'Regression Data'!$H$3:$K$6,3,FALSE))-M14)*0.0393701,IF(Tool!$C$19="Scheduled",$C$4*Tool!$C$20,))) -> 0 | AP14: =IF(AO14<0,0,IF($B$12="Center Pivot",'System Cost'!C52*Data!$B$13*Data!$C$5*Data!AO14,IF($B$12="Hose Pull",$C$5*$B$13*'System Cost'!R52*AO14,IF($B$12="Linear Move",AO14*$B$13*$C$5*'System Cost'!H52,IF($B$12="Drip",$C$5*$B$13*AO14*'System Cost'!M52))))) -> 0 | AQ14: =IF(AO14<0,0,IF($B$12="Center Pivot",'System Cost'!E52*Data!$C$5*Data!AO14,IF($B$12="Drip",AO14*$C$5*'System Cost'!O52,IF($B$12="Linear Move",AO14*$C$5*'System Cost'!J52,IF($B$12="Hose Pull",AO14*$C$5*'System Cost'!T52))))) -> 0 | AR14: =IF(AO14<0,0,((IF($B$11="Electric",VLOOKUP((IF(I14<1995,1995,I14)),Electric!$A$3:$C$38,3,FALSE),IF($B$11="Diesel",VLOOKUP((IF(I14<1995,1995,I14)),Diesel!$A$3:$C$24,3,FALSE),IF(Data!$B$11="Natural Gas",VLOOKUP((IF(I14<1995,1995,I14)),'Natural Gas'!$A$3:$C$38,3,FALSE))))))*(IF($B$12="Center Pivot",'System Cost'!D52,IF($B$12="Linear Move",'System Cost'!I52,IF($B$12="Drip",'System Cost'!N52,IF($B$12="Hose Pull",'System Cost'!S52)))))*AO14*$C$5) -> 0 | AT14: 2021.891703 | AU14: 2826.121115 | AV14: 34725.08765 | BA14: 15844.61987 | BB14: 0 | BC14: 55417.72034 | BD14: 15844.61987 | BE14: 6806.401211 | BH14: 961.9227731 | BI14: 1441.641917 | BJ14: 8498.68439 | BL14: 26854.52194 | BM14: 15952.27286 | BN14: 6391.376702 | BR14: 13.54987346 | BS14: 0.5018471651
A15: Useful Life | B15: =Tool!$C$26 -> 20 | H15: 2000 | I15: 2012 | J15: =VLOOKUP(I15,'Corn Rain'!B$3:C$38,2,FALSE) -> 34 | K15: =IF($B$8="None",0,IF($B$8="Corn",VLOOKUP(H15,'Corn Rain'!B$3:EE$38,$C$7,FALSE),IF($B$8="Cotton",VLOOKUP(H15,CottonRain!$B$3:$EE$38,Data!$C$7,FALSE),IF(Data!$B$8="Soybeans",VLOOKUP(Data!H15,'Soybeans Rain'!$B$3:$EE$38,Data!$C$7,FALSE),IF(Data!$B$8="Wheat",VLOOKUP(Data!H15,'Wheat Rain'!$B$3:$EE$38,Data!$C$7,FALSE)))))) -> 500.2739 | L15: =IF($B$8="None",0,IF($B$8="Corn",VLOOKUP(H15,'Corn Drought'!B$3:EE$38,Data!$C$7,FALSE),IF($B$8="Cotton",VLOOKUP(H15,'Cotton Drought'!$B$3:$EE$38,Data!$C$7,FALSE),IF($B$8="Soybeans",VLOOKUP(H15,'Soybeans Drought'!$B$3:$EE$38,Data!$C$7,FALSE),IF(Data!$B$8="Wheat",VLOOKUP(Data!H15,'Wheat Drought'!$B$3:$EE$38,Data!$C$7,FALSE)))))) -> 21 | M15: =IF($B$9="None",0,IF($B$9="Corn",VLOOKUP(H15,'Corn Rain'!B$3:EE$38,$C$7,FALSE),IF($B$9="Cotton",VLOOKUP(H15,CottonRain!$B$3:$EE$38,Data!$C$7,FALSE),IF(Data!$B$9="Soybeans",VLOOKUP(Data!H15,'Soybeans Rain'!$B$3:$EE$38,Data!$C$7,FALSE),IF(Data!$B$9="Wheat",VLOOKUP(Data!H15,'Wheat Rain'!$B$3:$EE$38,Data!$C$7,FALSE)))))) -> 0 | N15: =IF($B$9="None",0,IF($B$9="Corn",VLOOKUP(H15,'Corn Drought'!B$3:EE$38,Data!$C$7,FALSE),IF($B$9="Cotton",VLOOKUP(H15,'Cotton Drought'!$B$3:$EE$38,Data!$C$7,FALSE),IF($B$9="Soybeans",VLOOKUP(H15,'Soybeans Drought'!$B$3:$EE$38,Data!$C$7,FALSE),IF(Data!$B$9="Wheat",VLOOKUP(Data!H15,'Wheat Drought'!$B$3:$EE$38,Data!$C$7,FALSE)))))) -> 0 | O15: =IF($B$8="None",0,VLOOKUP(I15,'Historic Prices'!$A$3:$K$38,$C$8,FALSE)) -> 6.89 | P15: =IF($B$9="None",0,VLOOKUP(I15,'Historic Prices'!$A$3:$K$38,$C$9,FALSE)) -> 0 | Q15: =IF($B$8="None",0,IF(IF(Tool!$C$19="Ideal",$B$2,IF(Tool!$C$19="Scheduled",((VLOOKUP($B$8&$B$10,'Regression Data'!$A$3:$F$30,4,FALSE))+(VLOOKUP($B$8&$B$10,'Regression Data'!$A$3:$F$30,5,FALSE)*(K15+(Tool!$C$20*Data!$B$4/0.0393701)))+(VLOOKUP($B$8&$B$10,'Regression Data'!$A$3:$F$30,6,FALSE)*L15))/2.47105*$B$3))>$B$2,$B$2,(IF(Tool!$C$19="Ideal",$B$2,IF(Tool!$C$19="Scheduled",((VLOOKUP($B$8&$B$10,'Regression Data'!$A$3:$F$30,4,FALSE))+(VLOOKUP($B$8&$B$10,'Regression Data'!$A$3:$F$30,5,FALSE)*(K15+(Tool!$C$20*Data!$B$4/0.0393701)))+(VLOOKUP($B$8&$B$10,'Regression Data'!$A$3:$F$30,6,FALSE)*L15))/2.47105*$B$3))))) -> 184.7279335 | R15: =IF($B$8="None",0,IF(IF((((VLOOKUP($B$8&$B$10,'Regression Data'!$A$3:$F$30,4,FALSE))+(VLOOKUP($B$8&$B$10,'Regression Data'!$A$3:$F$30,5,FALSE)*K15)+(VLOOKUP($B$8&$B$10,'Regression Data'!$A$3:$F$30,6,FALSE)*L15))/2.47105*$B$3)>$B$2,$B$2,((VLOOKUP($B$8&$B$10,'Regression Data'!$A$3:$F$30,4,FALSE))+(VLOOKUP($B$8&$B$10,'Regression Data'!$A$3:$F$30,5,FALSE)*K15)+(VLOOKUP($B$8&$B$10,'Regression Data'!$A$3:$F$30,6,FALSE)*L15))/2.47105*$B$3)<0,0,IF((((VLOOKUP($B$8&$B$10,'Regression Data'!$A$3:$F$30,4,FALSE))+(VLOOKUP($B$8&$B$10,'Regression Data'!$A$3:$F$30,5,FALSE)*K15)+(VLOOKUP($B$8&$B$10,'Regression Data'!$A$3:$F$30,6,FALSE)*L15))/2.47105*$B$3)>$B$2,$B$2,((VLOOKUP($B$8&$B$10,'Regression Data'!$A$3:$F$30,4,FALSE))+(VLOOKUP($B$8&$B$10,'Regression Data'!$A$3:$F$30,5,FALSE)*K15)+(VLOOKUP($B$8&$B$10,'Regression Data'!$A$3:$F$30,6,FALSE)*L15))/2.47105*$B$3))) -> 153.6623827 | S15: =IF($B$9="None",0,IF(IF(Tool!$C$19="Ideal",$C$2,IF(Tool!$C$19="Scheduled",((VLOOKUP($B$9&$B$10,'Regression Data'!$A$3:$F$30,4,FALSE))+(VLOOKUP($B$9&$B$10,'Regression Data'!$A$3:$F$30,5,FALSE)*(N15+(Tool!$C$20*Data!$C$4/0.0393701)))+(VLOOKUP($B$9&$B$10,'Regression Data'!$A$3:$F$30,6,FALSE)*N15))/2.47105*$C$3))>$C$2,$C$2,(IF(Tool!$C$19="Ideal",$C$2,IF(Tool!$C$19="Scheduled",((VLOOKUP($B$9&$B$10,'Regression Data'!$A$3:$F$30,4,FALSE))+(VLOOKUP($B$9&$B$10,'Regression Data'!$A$3:$F$30,5,FALSE)*(M15+(Tool!$C$20*Data!$C$4/0.0393701)))+(VLOOKUP($B$9&$B$10,'Regression Data'!$A$3:$F$30,6,FALSE)*N15))/2.47105*$C$3))))) -> 0 | T15: =IF($B$9="None",0,IF(IF((((VLOOKUP($B$9&$B$10,'Regression Data'!$A$3:$F$30,4,FALSE))+(VLOOKUP($B$9&$B$10,'Regression Data'!$A$3:$F$30,5,FALSE)*M15)+(VLOOKUP($B$9&$B$10,'Regression Data'!$A$3:$F$30,6,FALSE)*N15))/2.47105*$C$3)>$C$2,$C$2,((VLOOKUP($B$9&$B$10,'Regression Data'!$A$3:$F$30,4,FALSE))+(VLOOKUP($B$9&$B$10,'Regression Data'!$A$3:$F$30,5,FALSE)*M15)+(VLOOKUP($B$9&$B$10,'Regression Data'!$A$3:$F$30,6,FALSE)*N15))/2.47105*$C$3)<0,0,(IF((((VLOOKUP($B$9&$B$10,'Regression Data'!$A$3:$F$30,4,FALSE))+(VLOOKUP($B$9&$B$10,'Regression Data'!$A$3:$F$30,5,FALSE)*M15)+(VLOOKUP($B$9&$B$10,'Regression Data'!$A$3:$F$30,6,FALSE)*N15))/2.47105*$C$3)>$C$2,$C$2,((VLOOKUP($B$9&$B$10,'Regression Data'!$A$3:$F$30,4,FALSE))+(VLOOKUP($B$9&$B$10,'Regression Data'!$A$3:$F$30,5,FALSE)*M15)+(VLOOKUP($B$9&$B$10,'Regression Data'!$A$3:$F$30,6,FALSE)*N15))/2.47105*$C$3)))) -> 0 | X15: 127277.5462 | Y15: 105873.3817 | Z15: 21404.1645 | AA15: 0 | AB15: 0 | AC15: 0 | AH15: =IF($B$8="None",0,IF(Tool!$C$19="Rainfall Deficit",((VLOOKUP($B$8,'Regression Data'!$H$3:$K$6,3,FALSE))-K15)*0.0393701,IF(Tool!$C$19="Scheduled",$B$4*Tool!$C$20,))) -> 5.89473153 | AI15: =((IF($B$12="Center Pivot",'System Cost'!B53,IF($B$12="Linear Move",'System Cost'!G53,IF($B$12="Drip",'System Cost'!L53,IF($B$12="Hose Pull",'System Cost'!Q53)))))*(SUM($B$5:$C$5)))-(Tool!$C$28) -> 82990.43971 | AJ15: 10231.96968 | AK15: =IF(AH15<0,0,IF($B$12="Center Pivot",'System Cost'!C53*Data!$B$13*Data!$B$5*Data!AH15,IF($B$12="Hose Pull",$B$5*$B$13*'System Cost'!R53*AH15,IF($B$12="Linear Move",AH15*$B$13*$B$5*'System Cost'!H53,IF($B$12="Drip",$B$5*$B$13*AH15*'System Cost'!M53))))) -> 397.2663892 | AL15: =IF(AH15<0,0,IF($B$12="Center Pivot",'System Cost'!E53*Data!$B$5*Data!AH15,IF($B$12="Drip",AH15*$B$5*'System Cost'!O53,IF($B$12="Linear Move",AH15*$B$5*'System Cost'!J53,IF($B$12="Hose Pull",AH15*$B$5*'System Cost'!T53))))) -> 321.7869597 | AM15: =IF(AH15<0,0,((IF($B$11="Electric",VLOOKUP((IF(I15<1995,1995,I15)),Electric!$A$3:$C$38,3,FALSE)*0.5,IF($B$11="Diesel",VLOOKUP((IF(I15<1995,1995,I15)),Diesel!$A$3:$C$24,3,FALSE),IF(Data!$B$11="Natural Gas",VLOOKUP((IF(I15<1995,1995,I15)),'Natural Gas'!$A$3:$C$38,3,FALSE))))))*(IF($B$12="Center Pivot",'System Cost'!D53,IF($B$12="Linear Move",'System Cost'!I53,IF($B$12="Drip",'System Cost'!N53,IF($B$12="Hose Pull",'System Cost'!S53)))))*AH15*$B$5) -> 5657.97405 | AO15: =IF($B$9="None",0,IF(Tool!$C$19="Rainfall Deficit",((VLOOKUP($B$9,'Regression Data'!$H$3:$K$6,3,FALSE))-M15)*0.0393701,IF(Tool!$C$19="Scheduled",$C$4*Tool!$C$20,))) -> 0 | AP15: =IF(AO15<0,0,IF($B$12="Center Pivot",'System Cost'!C53*Data!$B$13*Data!$C$5*Data!AO15,IF($B$12="Hose Pull",$C$5*$B$13*'System Cost'!R53*AO15,IF($B$12="Linear Move",AO15*$B$13*$C$5*'System Cost'!H53,IF($B$12="Drip",$C$5*$B$13*AO15*'System Cost'!M53))))) -> 0 | AQ15: =IF(AO15<0,0,IF($B$12="Center Pivot",'System Cost'!E53*Data!$C$5*Data!AO15,IF($B$12="Drip",AO15*$C$5*'System Cost'!O53,IF($B$12="Linear Move",AO15*$C$5*'System Cost'!J53,IF($B$12="Hose Pull",AO15*$C$5*'System Cost'!T53))))) -> 0 | AR15: =IF(AO15<0,0,((IF($B$11="Electric",VLOOKUP((IF(I15<1995,1995,I15)),Electric!$A$3:$C$38,3,FALSE),IF($B$11="Diesel",VLOOKUP((IF(I15<1995,1995,I15)),Diesel!$A$3:$C$24,3,FALSE),IF(Data!$B$11="Natural Gas",VLOOKUP((IF(I15<1995,1995,I15)),'Natural Gas'!$A$3:$C$38,3,FALSE))))))*(IF($B$12="Center Pivot",'System Cost'!D53,IF($B$12="Linear Move",'System Cost'!I53,IF($B$12="Drip",'System Cost'!N53,IF($B$12="Hose Pull",'System Cost'!S53)))))*AO15*$C$5) -> 0 | AT15: 397.2663892 | AU15: 321.7869597 | AV15: 5657.97405 | BA15: 15027.1371 | BB15: 0 | BC15: 21404.1645 | BD15: 15027.1371 | BE15: 4795.167418 | BH15: 698.9115822 | BI15: 1254.578086 | BJ15: 8541.970985 | BL15: 24726.30991 | BM15: 14230.84925 | BN15: 4780.323866 | BR15: 5.89473153 | BS15: 0.21832339
H16: 2003 | I16: 2013 | J16: =VLOOKUP(I16,'Corn Rain'!B$3:C$38,2,FALSE) -> 35 | K16: =IF($B$8="None",0,IF($B$8="Corn",VLOOKUP(H16,'Corn Rain'!B$3:EE$38,$C$7,FALSE),IF($B$8="Cotton",VLOOKUP(H16,CottonRain!$B$3:$EE$38,Data!$C$7,FALSE),IF(Data!$B$8="Soybeans",VLOOKUP(Data!H16,'Soybeans Rain'!$B$3:$EE$38,Data!$C$7,FALSE),IF(Data!$B$8="Wheat",VLOOKUP(Data!H16,'Wheat Rain'!$B$3:$EE$38,Data!$C$7,FALSE)))))) -> 447.1517 | L16: =IF($B$8="None",0,IF($B$8="Corn",VLOOKUP(H16,'Corn Drought'!B$3:EE$38,Data!$C$7,FALSE),IF($B$8="Cotton",VLOOKUP(H16,'Cotton Drought'!$B$3:$EE$38,Data!$C$7,FALSE),IF($B$8="Soybeans",VLOOKUP(H16,'Soybeans Drought'!$B$3:$EE$38,Data!$C$7,FALSE),IF(Data!$B$8="Wheat",VLOOKUP(Data!H16,'Wheat Drought'!$B$3:$EE$38,Data!$C$7,FALSE)))))) -> 31 | M16: =IF($B$9="None",0,IF($B$9="Corn",VLOOKUP(H16,'Corn Rain'!B$3:EE$38,$C$7,FALSE),IF($B$9="Cotton",VLOOKUP(H16,CottonRain!$B$3:$EE$38,Data!$C$7,FALSE),IF(Data!$B$9="Soybeans",VLOOKUP(Data!H16,'Soybeans Rain'!$B$3:$EE$38,Data!$C$7,FALSE),IF(Data!$B$9="Wheat",VLOOKUP(Data!H16,'Wheat Rain'!$B$3:$EE$38,Data!$C$7,FALSE)))))) -> 0 | N16: =IF($B$9="None",0,IF($B$9="Corn",VLOOKUP(H16,'Corn Drought'!B$3:EE$38,Data!$C$7,FALSE),IF($B$9="Cotton",VLOOKUP(H16,'Cotton Drought'!$B$3:$EE$38,Data!$C$7,FALSE),IF($B$9="Soybeans",VLOOKUP(H16,'Soybeans Drought'!$B$3:$EE$38,Data!$C$7,FALSE),IF(Data!$B$9="Wheat",VLOOKUP(Data!H16,'Wheat Drought'!$B$3:$EE$38,Data!$C$7,FALSE)))))) -> 0 | O16: =IF($B$8="None",0,VLOOKUP(I16,'Historic Prices'!$A$3:$K$38,$C$8,FALSE)) -> 4.46 | P16: =IF($B$9="None",0,VLOOKUP(I16,'Historic Prices'!$A$3:$K$38,$C$9,FALSE)) -> 0 | Q16: =IF($B$8="None",0,IF(IF(Tool!$C$19="Ideal",$B$2,IF(Tool!$C$19="Scheduled",((VLOOKUP($B$8&$B$10,'Regression Data'!$A$3:$F$30,4,FALSE))+(VLOOKUP($B$8&$B$10,'Regression Data'!$A$3:$F$30,5,FALSE)*(K16+(Tool!$C$20*Data!$B$4/0.0393701)))+(VLOOKUP($B$8&$B$10,'Regression Data'!$A$3:$F$30,6,FALSE)*L16))/2.47105*$B$3))>$B$2,$B$2,(IF(Tool!$C$19="Ideal",$B$2,IF(Tool!$C$19="Scheduled",((VLOOKUP($B$8&$B$10,'Regression Data'!$A$3:$F$30,4,FALSE))+(VLOOKUP($B$8&$B$10,'Regression Data'!$A$3:$F$30,5,FALSE)*(K16+(Tool!$C$20*Data!$B$4/0.0393701)))+(VLOOKUP($B$8&$B$10,'Regression Data'!$A$3:$F$30,6,FALSE)*L16))/2.47105*$B$3))))) -> 184.7279335 | R16: =IF($B$8="None",0,IF(IF((((VLOOKUP($B$8&$B$10,'Regression Data'!$A$3:$F$30,4,FALSE))+(VLOOKUP($B$8&$B$10,'Regression Data'!$A$3:$F$30,5,FALSE)*K16)+(VLOOKUP($B$8&$B$10,'Regression Data'!$A$3:$F$30,6,FALSE)*L16))/2.47105*$B$3)>$B$2,$B$2,((VLOOKUP($B$8&$B$10,'Regression Data'!$A$3:$F$30,4,FALSE))+(VLOOKUP($B$8&$B$10,'Regression Data'!$A$3:$F$30,5,FALSE)*K16)+(VLOOKUP($B$8&$B$10,'Regression Data'!$A$3:$F$30,6,FALSE)*L16))/2.47105*$B$3)<0,0,IF((((VLOOKUP($B$8&$B$10,'Regression Data'!$A$3:$F$30,4,FALSE))+(VLOOKUP($B$8&$B$10,'Regression Data'!$A$3:$F$30,5,FALSE)*K16)+(VLOOKUP($B$8&$B$10,'Regression Data'!$A$3:$F$30,6,FALSE)*L16))/2.47105*$B$3)>$B$2,$B$2,((VLOOKUP($B$8&$B$10,'Regression Data'!$A$3:$F$30,4,FALSE))+(VLOOKUP($B$8&$B$10,'Regression Data'!$A$3:$F$30,5,FALSE)*K16)+(VLOOKUP($B$8&$B$10,'Regression Data'!$A$3:$F$30,6,FALSE)*L16))/2.47105*$B$3))) -> 121.744136 | S16: =IF($B$9="None",0,IF(IF(Tool!$C$19="Ideal",$C$2,IF(Tool!$C$19="Scheduled",((VLOOKUP($B$9&$B$10,'Regression Data'!$A$3:$F$30,4,FALSE))+(VLOOKUP($B$9&$B$10,'Regression Data'!$A$3:$F$30,5,FALSE)*(N16+(Tool!$C$20*Data!$C$4/0.0393701)))+(VLOOKUP($B$9&$B$10,'Regression Data'!$A$3:$F$30,6,FALSE)*N16))/2.47105*$C$3))>$C$2,$C$2,(IF(Tool!$C$19="Ideal",$C$2,IF(Tool!$C$19="Scheduled",((VLOOKUP($B$9&$B$10,'Regression Data'!$A$3:$F$30,4,FALSE))+(VLOOKUP($B$9&$B$10,'Regression Data'!$A$3:$F$30,5,FALSE)*(M16+(Tool!$C$20*Data!$C$4/0.0393701)))+(VLOOKUP($B$9&$B$10,'Regression Data'!$A$3:$F$30,6,FALSE)*N16))/2.47105*$C$3))))) -> 0 | T16: =IF($B$9="None",0,IF(IF((((VLOOKUP($B$9&$B$10,'Regression Data'!$A$3:$F$30,4,FALSE))+(VLOOKUP($B$9&$B$10,'Regression Data'!$A$3:$F$30,5,FALSE)*M16)+(VLOOKUP($B$9&$B$10,'Regression Data'!$A$3:$F$30,6,FALSE)*N16))/2.47105*$C$3)>$C$2,$C$2,((VLOOKUP($B$9&$B$10,'Regression Data'!$A$3:$F$30,4,FALSE))+(VLOOKUP($B$9&$B$10,'Regression Data'!$A$3:$F$30,5,FALSE)*M16)+(VLOOKUP($B$9&$B$10,'Regression Data'!$A$3:$F$30,6,FALSE)*N16))/2.47105*$C$3)<0,0,(IF((((VLOOKUP($B$9&$B$10,'Regression Data'!$A$3:$F$30,4,FALSE))+(VLOOKUP($B$9&$B$10,'Regression Data'!$A$3:$F$30,5,FALSE)*M16)+(VLOOKUP($B$9&$B$10,'Regression Data'!$A$3:$F$30,6,FALSE)*N16))/2.47105*$C$3)>$C$2,$C$2,((VLOOKUP($B$9&$B$10,'Regression Data'!$A$3:$F$30,4,FALSE))+(VLOOKUP($B$9&$B$10,'Regression Data'!$A$3:$F$30,5,FALSE)*M16)+(VLOOKUP($B$9&$B$10,'Regression Data'!$A$3:$F$30,6,FALSE)*N16))/2.47105*$C$3)))) -> 0 | X16: 82388.65833 | Y16: 54297.88466 | Z16: 28090.77366 | AA16: 0 | AB16: 0 | AC16: 0 | AH16: =IF($B$8="None",0,IF(Tool!$C$19="Rainfall Deficit",((VLOOKUP($B$8,'Regression Data'!$H$3:$K$6,3,FALSE))-K16)*0.0393701,IF(Tool!$C$19="Scheduled",$B$4*Tool!$C$20,))) -> 7.986157856 | AI16: =((IF($B$12="Center Pivot",'System Cost'!B54,IF($B$12="Linear Move",'System Cost'!G54,IF($B$12="Drip",'System Cost'!L54,IF($B$12="Hose Pull",'System Cost'!Q54)))))*(SUM($B$5:$C$5)))-(Tool!$C$28) -> 75445.80012 | AJ16: 9301.783943 | AK16: =IF(AH16<0,0,IF($B$12="Center Pivot",'System Cost'!C54*Data!$B$13*Data!$B$5*Data!AH16,IF($B$12="Hose Pull",$B$5*$B$13*'System Cost'!R54*AH16,IF($B$12="Linear Move",AH16*$B$13*$B$5*'System Cost'!H54,IF($B$12="Drip",$B$5*$B$13*AH16*'System Cost'!M54))))) -> 782.1570134 | AL16: =IF(AH16<0,0,IF($B$12="Center Pivot",'System Cost'!E54*Data!$B$5*Data!AH16,IF($B$12="Drip",AH16*$B$5*'System Cost'!O54,IF($B$12="Linear Move",AH16*$B$5*'System Cost'!J54,IF($B$12="Hose Pull",AH16*$B$5*'System Cost'!T54))))) -> 1878.8269 | AM16: =IF(AH16<0,0,((IF($B$11="Electric",VLOOKUP((IF(I16<1995,1995,I16)),Electric!$A$3:$C$38,3,FALSE)*0.5,IF($B$11="Diesel",VLOOKUP((IF(I16<1995,1995,I16)),Diesel!$A$3:$C$24,3,FALSE),IF(Data!$B$11="Natural Gas",VLOOKUP((IF(I16<1995,1995,I16)),'Natural Gas'!$A$3:$C$38,3,FALSE))))))*(IF($B$12="Center Pivot",'System Cost'!D54,IF($B$12="Linear Move",'System Cost'!I54,IF($B$12="Drip",'System Cost'!N54,IF($B$12="Hose Pull",'System Cost'!S54)))))*AH16*$B$5) -> 6474.472088 | AO16: =IF($B$9="None",0,IF(Tool!$C$19="Rainfall Deficit",((VLOOKUP($B$9,'Regression Data'!$H$3:$K$6,3,FALSE))-M16)*0.0393701,IF(Tool!$C$19="Scheduled",$C$4*Tool!$C$20,))) -> 0 | AP16: =IF(AO16<0,0,IF($B$12="Center Pivot",'System Cost'!C54*Data!$B$13*Data!$C$5*Data!AO16,IF($B$12="Hose Pull",$C$5*$B$13*'System Cost'!R54*AO16,IF($B$12="Linear Move",AO16*$B$13*$C$5*'System Cost'!H54,IF($B$12="Drip",$C$5*$B$13*AO16*'System Cost'!M54))))) -> 0 | AQ16: =IF(AO16<0,0,IF($B$12="Center Pivot",'System Cost'!E54*Data!$C$5*Data!AO16,IF($B$12="Drip",AO16*$C$5*'System Cost'!O54,IF($B$12="Linear Move",AO16*$C$5*'System Cost'!J54,IF($B$12="Hose Pull",AO16*$C$5*'System Cost'!T54))))) -> 0 | AR16: =IF(AO16<0,0,((IF($B$11="Electric",VLOOKUP((IF(I16<1995,1995,I16)),Electric!$A$3:$C$38,3,FALSE),IF($B$11="Diesel",VLOOKUP((IF(I16<1995,1995,I16)),Diesel!$A$3:$C$24,3,FALSE),IF(Data!$B$11="Natural Gas",VLOOKUP((IF(I16<1995,1995,I16)),'Natural Gas'!$A$3:$C$38,3,FALSE))))))*(IF($B$12="Center Pivot",'System Cost'!D54,IF($B$12="Linear Move",'System Cost'!I54,IF($B$12="Drip",'System Cost'!N54,IF($B$12="Hose Pull",'System Cost'!S54)))))*AO16*$C$5) -> 0 | AT16: 782.1570134 | AU16: 1878.8269 | AV16: 6474.472088 | BA16: 18955.31766 | BB16: 0 | BC16: 28090.77366 | BD16: 18955.31766 | BE16: 9653.533717 | BH16: 874.9622482 | BI16: 1681.908338 | BJ16: 11083.42859 | BL16: 28321.43864 | BM16: 14681.13947 | BN16: 5186.351603 | BR16: 7.986157856 | BS16: 0.2957836243
A17: Rainfall Deficit | H17: 1985 | I17: 2011 | J17: =VLOOKUP(I17,'Corn Rain'!B$3:C$38,2,FALSE) -> 33 | K17: =IF($B$8="None",0,IF($B$8="Corn",VLOOKUP(H17,'Corn Rain'!B$3:EE$38,$C$7,FALSE),IF($B$8="Cotton",VLOOKUP(H17,CottonRain!$B$3:$EE$38,Data!$C$7,FALSE),IF(Data!$B$8="Soybeans",VLOOKUP(Data!H17,'Soybeans Rain'!$B$3:$EE$38,Data!$C$7,FALSE),IF(Data!$B$8="Wheat",VLOOKUP(Data!H17,'Wheat Rain'!$B$3:$EE$38,Data!$C$7,FALSE)))))) -> 292.9053 | L17: =IF($B$8="None",0,IF($B$8="Corn",VLOOKUP(H17,'Corn Drought'!B$3:EE$38,Data!$C$7,FALSE),IF($B$8="Cotton",VLOOKUP(H17,'Cotton Drought'!$B$3:$EE$38,Data!$C$7,FALSE),IF($B$8="Soybeans",VLOOKUP(H17,'Soybeans Drought'!$B$3:$EE$38,Data!$C$7,FALSE),IF(Data!$B$8="Wheat",VLOOKUP(Data!H17,'Wheat Drought'!$B$3:$EE$38,Data!$C$7,FALSE)))))) -> 31 | M17: =IF($B$9="None",0,IF($B$9="Corn",VLOOKUP(H17,'Corn Rain'!B$3:EE$38,$C$7,FALSE),IF($B$9="Cotton",VLOOKUP(H17,CottonRain!$B$3:$EE$38,Data!$C$7,FALSE),IF(Data!$B$9="Soybeans",VLOOKUP(Data!H17,'Soybeans Rain'!$B$3:$EE$38,Data!$C$7,FALSE),IF(Data!$B$9="Wheat",VLOOKUP(Data!H17,'Wheat Rain'!$B$3:$EE$38,Data!$C$7,FALSE)))))) -> 0 | N17: =IF($B$9="None",0,IF($B$9="Corn",VLOOKUP(H17,'Corn Drought'!B$3:EE$38,Data!$C$7,FALSE),IF($B$9="Cotton",VLOOKUP(H17,'Cotton Drought'!$B$3:$EE$38,Data!$C$7,FALSE),IF($B$9="Soybeans",VLOOKUP(H17,'Soybeans Drought'!$B$3:$EE$38,Data!$C$7,FALSE),IF(Data!$B$9="Wheat",VLOOKUP(Data!H17,'Wheat Drought'!$B$3:$EE$38,Data!$C$7,FALSE)))))) -> 0 | O17: =IF($B$8="None",0,VLOOKUP(I17,'Historic Prices'!$A$3:$K$38,$C$8,FALSE)) -> 6.22 | P17: =IF($B$9="None",0,VLOOKUP(I17,'Historic Prices'!$A$3:$K$38,$C$9,FALSE)) -> 0 | Q17: =IF($B$8="None",0,IF(IF(Tool!$C$19="Ideal",$B$2,IF(Tool!$C$19="Scheduled",((VLOOKUP($B$8&$B$10,'Regression Data'!$A$3:$F$30,4,FALSE))+(VLOOKUP($B$8&$B$10,'Regression Data'!$A$3:$F$30,5,FALSE)*(K17+(Tool!$C$20*Data!$B$4/0.0393701)))+(VLOOKUP($B$8&$B$10,'Regression Data'!$A$3:$F$30,6,FALSE)*L17))/2.47105*$B$3))>$B$2,$B$2,(IF(Tool!$C$19="Ideal",$B$2,IF(Tool!$C$19="Scheduled",((VLOOKUP($B$8&$B$10,'Regression Data'!$A$3:$F$30,4,FALSE))+(VLOOKUP($B$8&$B$10,'Regression Data'!$A$3:$F$30,5,FALSE)*(K17+(Tool!$C$20*Data!$B$4/0.0393701)))+(VLOOKUP($B$8&$B$10,'Regression Data'!$A$3:$F$30,6,FALSE)*L17))/2.47105*$B$3))))) -> 184.7279335 | R17: =IF($B$8="None",0,IF(IF((((VLOOKUP($B$8&$B$10,'Regression Data'!$A$3:$F$30,4,FALSE))+(VLOOKUP($B$8&$B$10,'Regression Data'!$A$3:$F$30,5,FALSE)*K17)+(VLOOKUP($B$8&$B$10,'Regression Data'!$A$3:$F$30,6,FALSE)*L17))/2.47105*$B$3)>$B$2,$B$2,((VLOOKUP($B$8&$B$10,'Regression Data'!$A$3:$F$30,4,FALSE))+(VLOOKUP($B$8&$B$10,'Regression Data'!$A$3:$F$30,5,FALSE)*K17)+(VLOOKUP($B$8&$B$10,'Regression Data'!$A$3:$F$30,6,FALSE)*L17))/2.47105*$B$3)<0,0,IF((((VLOOKUP($B$8&$B$10,'Regression Data'!$A$3:$F$30,4,FALSE))+(VLOOKUP($B$8&$B$10,'Regression Data'!$A$3:$F$30,5,FALSE)*K17)+(VLOOKUP($B$8&$B$10,'Regression Data'!$A$3:$F$30,6,FALSE)*L17))/2.47105*$B$3)>$B$2,$B$2,((VLOOKUP($B$8&$B$10,'Regression Data'!$A$3:$F$30,4,FALSE))+(VLOOKUP($B$8&$B$10,'Regression Data'!$A$3:$F$30,5,FALSE)*K17)+(VLOOKUP($B$8&$B$10,'Regression Data'!$A$3:$F$30,6,FALSE)*L17))/2.47105*$B$3))) -> 72.59602267 | S17: =IF($B$9="None",0,IF(IF(Tool!$C$19="Ideal",$C$2,IF(Tool!$C$19="Scheduled",((VLOOKUP($B$9&$B$10,'Regression Data'!$A$3:$F$30,4,FALSE))+(VLOOKUP($B$9&$B$10,'Regression Data'!$A$3:$F$30,5,FALSE)*(N17+(Tool!$C$20*Data!$C$4/0.0393701)))+(VLOOKUP($B$9&$B$10,'Regression Data'!$A$3:$F$30,6,FALSE)*N17))/2.47105*$C$3))>$C$2,$C$2,(IF(Tool!$C$19="Ideal",$C$2,IF(Tool!$C$19="Scheduled",((VLOOKUP($B$9&$B$10,'Regression Data'!$A$3:$F$30,4,FALSE))+(VLOOKUP($B$9&$B$10,'Regression Data'!$A$3:$F$30,5,FALSE)*(M17+(Tool!$C$20*Data!$C$4/0.0393701)))+(VLOOKUP($B$9&$B$10,'Regression Data'!$A$3:$F$30,6,FALSE)*N17))/2.47105*$C$3))))) -> 0 | T17: =IF($B$9="None",0,IF(IF((((VLOOKUP($B$9&$B$10,'Regression Data'!$A$3:$F$30,4,FALSE))+(VLOOKUP($B$9&$B$10,'Regression Data'!$A$3:$F$30,5,FALSE)*M17)+(VLOOKUP($B$9&$B$10,'Regression Data'!$A$3:$F$30,6,FALSE)*N17))/2.47105*$C$3)>$C$2,$C$2,((VLOOKUP($B$9&$B$10,'Regression Data'!$A$3:$F$30,4,FALSE))+(VLOOKUP($B$9&$B$10,'Regression Data'!$A$3:$F$30,5,FALSE)*M17)+(VLOOKUP($B$9&$B$10,'Regression Data'!$A$3:$F$30,6,FALSE)*N17))/2.47105*$C$3)<0,0,(IF((((VLOOKUP($B$9&$B$10,'Regression Data'!$A$3:$F$30,4,FALSE))+(VLOOKUP($B$9&$B$10,'Regression Data'!$A$3:$F$30,5,FALSE)*M17)+(VLOOKUP($B$9&$B$10,'Regression Data'!$A$3:$F$30,6,FALSE)*N17))/2.47105*$C$3)>$C$2,$C$2,((VLOOKUP($B$9&$B$10,'Regression Data'!$A$3:$F$30,4,FALSE))+(VLOOKUP($B$9&$B$10,'Regression Data'!$A$3:$F$30,5,FALSE)*M17)+(VLOOKUP($B$9&$B$10,'Regression Data'!$A$3:$F$30,6,FALSE)*N17))/2.47105*$C$3)))) -> 0 | X17: 114900.7746 | Y17: 45154.7261 | Z17: 69746.04852 | AA17: 0 | AB17: 0 | AC17: 0 | AH17: =IF($B$8="None",0,IF(Tool!$C$19="Rainfall Deficit",((VLOOKUP($B$8,'Regression Data'!$H$3:$K$6,3,FALSE))-K17)*0.0393701,IF(Tool!$C$19="Scheduled",$B$4*Tool!$C$20,))) -> 14.05885405 | AI17: =((IF($B$12="Center Pivot",'System Cost'!B55,IF($B$12="Linear Move",'System Cost'!G55,IF($B$12="Drip",'System Cost'!L55,IF($B$12="Hose Pull",'System Cost'!Q55)))))*(SUM($B$5:$C$5)))-(Tool!$C$28) -> 76458.81117 | AJ17: 9426.679031 | AK17: =IF(AH17<0,0,IF($B$12="Center Pivot",'System Cost'!C55*Data!$B$13*Data!$B$5*Data!AH17,IF($B$12="Hose Pull",$B$5*$B$13*'System Cost'!R55*AH17,IF($B$12="Linear Move",AH17*$B$13*$B$5*'System Cost'!H55,IF($B$12="Drip",$B$5*$B$13*AH17*'System Cost'!M55))))) -> 1244.370177 | AL17: =IF(AH17<0,0,IF($B$12="Center Pivot",'System Cost'!E55*Data!$B$5*Data!AH17,IF($B$12="Drip",AH17*$B$5*'System Cost'!O55,IF($B$12="Linear Move",AH17*$B$5*'System Cost'!J55,IF($B$12="Hose Pull",AH17*$B$5*'System Cost'!T55))))) -> 1822.315071 | AM17: =IF(AH17<0,0,((IF($B$11="Electric",VLOOKUP((IF(I17<1995,1995,I17)),Electric!$A$3:$C$38,3,FALSE)*0.5,IF($B$11="Diesel",VLOOKUP((IF(I17<1995,1995,I17)),Diesel!$A$3:$C$24,3,FALSE),IF(Data!$B$11="Natural Gas",VLOOKUP((IF(I17<1995,1995,I17)),'Natural Gas'!$A$3:$C$38,3,FALSE))))))*(IF($B$12="Center Pivot",'System Cost'!D55,IF($B$12="Linear Move",'System Cost'!I55,IF($B$12="Drip",'System Cost'!N55,IF($B$12="Hose Pull",'System Cost'!S55)))))*AH17*$B$5) -> 29602.14231 | AO17: =IF($B$9="None",0,IF(Tool!$C$19="Rainfall Deficit",((VLOOKUP($B$9,'Regression Data'!$H$3:$K$6,3,FALSE))-M17)*0.0393701,IF(Tool!$C$19="Scheduled",$C$4*Tool!$C$20,))) -> 0 | AP17: =IF(AO17<0,0,IF($B$12="Center Pivot",'System Cost'!C55*Data!$B$13*Data!$C$5*Data!AO17,IF($B$12="Hose Pull",$C$5*$B$13*'System Cost'!R55*AO17,IF($B$12="Linear Move",AO17*$B$13*$C$5*'System Cost'!H55,IF($B$12="Drip",$C$5*$B$13*AO17*'System Cost'!M55))))) -> 0 | AQ17: =IF(AO17<0,0,IF($B$12="Center Pivot",'System Cost'!E55*Data!$C$5*Data!AO17,IF($B$12="Drip",AO17*$C$5*'System Cost'!O55,IF($B$12="Linear Move",AO17*$C$5*'System Cost'!J55,IF($B$12="Hose Pull",AO17*$C$5*'System Cost'!T55))))) -> 0 | AR17: =IF(AO17<0,0,((IF($B$11="Electric",VLOOKUP((IF(I17<1995,1995,I17)),Electric!$A$3:$C$38,3,FALSE),IF($B$11="Diesel",VLOOKUP((IF(I17<1995,1995,I17)),Diesel!$A$3:$C$24,3,FALSE),IF(Data!$B$11="Natural Gas",VLOOKUP((IF(I17<1995,1995,I17)),'Natural Gas'!$A$3:$C$38,3,FALSE))))))*(IF($B$12="Center Pivot",'System Cost'!D55,IF($B$12="Linear Move",'System Cost'!I55,IF($B$12="Drip",'System Cost'!N55,IF($B$12="Hose Pull",'System Cost'!S55)))))*AO17*$C$5) -> 0 | AT17: 1244.370177 | AU17: 1822.315071 | AV17: 29602.14231 | BA17: 37077.22096 | BB17: 0 | BC17: 69746.04852 | BD17: 37077.22096 | BE17: 27650.54193 | BH17: 890.1619628 | BI17: 1609.496484 | BJ17: 9400.257376 | BL17: 32418.03791 | BM17: 20518.12208 | BN17: 11238.28522 | BR17: 14.05885405 | BS17: 0.5206982981
A18: Scheduled | H18: 2009 | I18: 2010 | J18: =VLOOKUP(I18,'Corn Rain'!B$3:C$38,2,FALSE) -> 32 | K18: =IF($B$8="None",0,IF($B$8="Corn",VLOOKUP(H18,'Corn Rain'!B$3:EE$38,$C$7,FALSE),IF($B$8="Cotton",VLOOKUP(H18,CottonRain!$B$3:$EE$38,Data!$C$7,FALSE),IF(Data!$B$8="Soybeans",VLOOKUP(Data!H18,'Soybeans Rain'!$B$3:$EE$38,Data!$C$7,FALSE),IF(Data!$B$8="Wheat",VLOOKUP(Data!H18,'Wheat Rain'!$B$3:$EE$38,Data!$C$7,FALSE)))))) -> 483.7955 | L18: =IF($B$8="None",0,IF($B$8="Corn",VLOOKUP(H18,'Corn Drought'!B$3:EE$38,Data!$C$7,FALSE),IF($B$8="Cotton",VLOOKUP(H18,'Cotton Drought'!$B$3:$EE$38,Data!$C$7,FALSE),IF($B$8="Soybeans",VLOOKUP(H18,'Soybeans Drought'!$B$3:$EE$38,Data!$C$7,FALSE),IF(Data!$B$8="Wheat",VLOOKUP(Data!H18,'Wheat Drought'!$B$3:$EE$38,Data!$C$7,FALSE)))))) -> 23 | M18: =IF($B$9="None",0,IF($B$9="Corn",VLOOKUP(H18,'Corn Rain'!B$3:EE$38,$C$7,FALSE),IF($B$9="Cotton",VLOOKUP(H18,CottonRain!$B$3:$EE$38,Data!$C$7,FALSE),IF(Data!$B$9="Soybeans",VLOOKUP(Data!H18,'Soybeans Rain'!$B$3:$EE$38,Data!$C$7,FALSE),IF(Data!$B$9="Wheat",VLOOKUP(Data!H18,'Wheat Rain'!$B$3:$EE$38,Data!$C$7,FALSE)))))) -> 0 | N18: =IF($B$9="None",0,IF($B$9="Corn",VLOOKUP(H18,'Corn Drought'!B$3:EE$38,Data!$C$7,FALSE),IF($B$9="Cotton",VLOOKUP(H18,'Cotton Drought'!$B$3:$EE$38,Data!$C$7,FALSE),IF($B$9="Soybeans",VLOOKUP(H18,'Soybeans Drought'!$B$3:$EE$38,Data!$C$7,FALSE),IF(Data!$B$9="Wheat",VLOOKUP(Data!H18,'Wheat Drought'!$B$3:$EE$38,Data!$C$7,FALSE)))))) -> 0 | O18: =IF($B$8="None",0,VLOOKUP(I18,'Historic Prices'!$A$3:$K$38,$C$8,FALSE)) -> 5.18 | P18: =IF($B$9="None",0,VLOOKUP(I18,'Historic Prices'!$A$3:$K$38,$C$9,FALSE)) -> 0 | Q18: =IF($B$8="None",0,IF(IF(Tool!$C$19="Ideal",$B$2,IF(Tool!$C$19="Scheduled",((VLOOKUP($B$8&$B$10,'Regression Data'!$A$3:$F$30,4,FALSE))+(VLOOKUP($B$8&$B$10,'Regression Data'!$A$3:$F$30,5,FALSE)*(K18+(Tool!$C$20*Data!$B$4/0.0393701)))+(VLOOKUP($B$8&$B$10,'Regression Data'!$A$3:$F$30,6,FALSE)*L18))/2.47105*$B$3))>$B$2,$B$2,(IF(Tool!$C$19="Ideal",$B$2,IF(Tool!$C$19="Scheduled",((VLOOKUP($B$8&$B$10,'Regression Data'!$A$3:$F$30,4,FALSE))+(VLOOKUP($B$8&$B$10,'Regression Data'!$A$3:$F$30,5,FALSE)*(K18+(Tool!$C$20*Data!$B$4/0.0393701)))+(VLOOKUP($B$8&$B$10,'Regression Data'!$A$3:$F$30,6,FALSE)*L18))/2.47105*$B$3))))) -> 184.7279335 | R18: =IF($B$8="None",0,IF(IF((((VLOOKUP($B$8&$B$10,'Regression Data'!$A$3:$F$30,4,FALSE))+(VLOOKUP($B$8&$B$10,'Regression Data'!$A$3:$F$30,5,FALSE)*K18)+(VLOOKUP($B$8&$B$10,'Regression Data'!$A$3:$F$30,6,FALSE)*L18))/2.47105*$B$3)>$B$2,$B$2,((VLOOKUP($B$8&$B$10,'Regression Data'!$A$3:$F$30,4,FALSE))+(VLOOKUP($B$8&$B$10,'Regression Data'!$A$3:$F$30,5,FALSE)*K18)+(VLOOKUP($B$8&$B$10,'Regression Data'!$A$3:$F$30,6,FALSE)*L18))/2.47105*$B$3)<0,0,IF((((VLOOKUP($B$8&$B$10,'Regression Data'!$A$3:$F$30,4,FALSE))+(VLOOKUP($B$8&$B$10,'Regression Data'!$A$3:$F$30,5,FALSE)*K18)+(VLOOKUP($B$8&$B$10,'Regression Data'!$A$3:$F$30,6,FALSE)*L18))/2.47105*$B$3)>$B$2,$B$2,((VLOOKUP($B$8&$B$10,'Regression Data'!$A$3:$F$30,4,FALSE))+(VLOOKUP($B$8&$B$10,'Regression Data'!$A$3:$F$30,5,FALSE)*K18)+(VLOOKUP($B$8&$B$10,'Regression Data'!$A$3:$F$30,6,FALSE)*L18))/2.47105*$B$3))) -> 145.4134639 | S18: =IF($B$9="None",0,IF(IF(Tool!$C$19="Ideal",$C$2,IF(Tool!$C$19="Scheduled",((VLOOKUP($B$9&$B$10,'Regression Data'!$A$3:$F$30,4,FALSE))+(VLOOKUP($B$9&$B$10,'Regression Data'!$A$3:$F$30,5,FALSE)*(N18+(Tool!$C$20*Data!$C$4/0.0393701)))+(VLOOKUP($B$9&$B$10,'Regression Data'!$A$3:$F$30,6,FALSE)*N18))/2.47105*$C$3))>$C$2,$C$2,(IF(Tool!$C$19="Ideal",$C$2,IF(Tool!$C$19="Scheduled",((VLOOKUP($B$9&$B$10,'Regression Data'!$A$3:$F$30,4,FALSE))+(VLOOKUP($B$9&$B$10,'Regression Data'!$A$3:$F$30,5,FALSE)*(M18+(Tool!$C$20*Data!$C$4/0.0393701)))+(VLOOKUP($B$9&$B$10,'Regression Data'!$A$3:$F$30,6,FALSE)*N18))/2.47105*$C$3))))) -> 0 | T18: =IF($B$9="None",0,IF(IF((((VLOOKUP($B$9&$B$10,'Regression Data'!$A$3:$F$30,4,FALSE))+(VLOOKUP($B$9&$B$10,'Regression Data'!$A$3:$F$30,5,FALSE)*M18)+(VLOOKUP($B$9&$B$10,'Regression Data'!$A$3:$F$30,6,FALSE)*N18))/2.47105*$C$3)>$C$2,$C$2,((VLOOKUP($B$9&$B$10,'Regression Data'!$A$3:$F$30,4,FALSE))+(VLOOKUP($B$9&$B$10,'Regression Data'!$A$3:$F$30,5,FALSE)*M18)+(VLOOKUP($B$9&$B$10,'Regression Data'!$A$3:$F$30,6,FALSE)*N18))/2.47105*$C$3)<0,0,(IF((((VLOOKUP($B$9&$B$10,'Regression Data'!$A$3:$F$30,4,FALSE))+(VLOOKUP($B$9&$B$10,'Regression Data'!$A$3:$F$30,5,FALSE)*M18)+(VLOOKUP($B$9&$B$10,'Regression Data'!$A$3:$F$30,6,FALSE)*N18))/2.47105*$C$3)>$C$2,$C$2,((VLOOKUP($B$9&$B$10,'Regression Data'!$A$3:$F$30,4,FALSE))+(VLOOKUP($B$9&$B$10,'Regression Data'!$A$3:$F$30,5,FALSE)*M18)+(VLOOKUP($B$9&$B$10,'Regression Data'!$A$3:$F$30,6,FALSE)*N18))/2.47105*$C$3)))) -> 0 | X18: 95689.06954 | Y18: 75324.17432 | Z18: 20364.89521 | AA18: 0 | AB18: 0 | AC18: 0 | AH18: =IF($B$8="None",0,IF(Tool!$C$19="Rainfall Deficit",((VLOOKUP($B$8,'Regression Data'!$H$3:$K$6,3,FALSE))-K18)*0.0393701,IF(Tool!$C$19="Scheduled",$B$4*Tool!$C$20,))) -> 6.543487785 | AI18: =((IF($B$12="Center Pivot",'System Cost'!B56,IF($B$12="Linear Move",'System Cost'!G56,IF($B$12="Drip",'System Cost'!L56,IF($B$12="Hose Pull",'System Cost'!Q56)))))*(SUM($B$5:$C$5)))-(Tool!$C$28) -> 75683.19172 | AJ18: 9331.052177 | AK18: =IF(AH18<0,0,IF($B$12="Center Pivot",'System Cost'!C56*Data!$B$13*Data!$B$5*Data!AH18,IF($B$12="Hose Pull",$B$5*$B$13*'System Cost'!R56*AH18,IF($B$12="Linear Move",AH18*$B$13*$B$5*'System Cost'!H56,IF($B$12="Drip",$B$5*$B$13*AH18*'System Cost'!M56))))) -> 274.0286709 | AL18: =IF(AH18<0,0,IF($B$12="Center Pivot",'System Cost'!E56*Data!$B$5*Data!AH18,IF($B$12="Drip",AH18*$B$5*'System Cost'!O56,IF($B$12="Linear Move",AH18*$B$5*'System Cost'!J56,IF($B$12="Hose Pull",AH18*$B$5*'System Cost'!T56))))) -> 1515.501631 | AM18: =IF(AH18<0,0,((IF($B$11="Electric",VLOOKUP((IF(I18<1995,1995,I18)),Electric!$A$3:$C$38,3,FALSE)*0.5,IF($B$11="Diesel",VLOOKUP((IF(I18<1995,1995,I18)),Diesel!$A$3:$C$24,3,FALSE),IF(Data!$B$11="Natural Gas",VLOOKUP((IF(I18<1995,1995,I18)),'Natural Gas'!$A$3:$C$38,3,FALSE))))))*(IF($B$12="Center Pivot",'System Cost'!D56,IF($B$12="Linear Move",'System Cost'!I56,IF($B$12="Drip",'System Cost'!N56,IF($B$12="Hose Pull",'System Cost'!S56)))))*AH18*$B$5) -> 9057.80143 | AO18: =IF($B$9="None",0,IF(Tool!$C$19="Rainfall Deficit",((VLOOKUP($B$9,'Regression Data'!$H$3:$K$6,3,FALSE))-M18)*0.0393701,IF(Tool!$C$19="Scheduled",$C$4*Tool!$C$20,))) -> 0 | AP18: =IF(AO18<0,0,IF($B$12="Center Pivot",'System Cost'!C56*Data!$B$13*Data!$C$5*Data!AO18,IF($B$12="Hose Pull",$C$5*$B$13*'System Cost'!R56*AO18,IF($B$12="Linear Move",AO18*$B$13*$C$5*'System Cost'!H56,IF($B$12="Drip",$C$5*$B$13*AO18*'System Cost'!M56))))) -> 0 | AQ18: =IF(AO18<0,0,IF($B$12="Center Pivot",'System Cost'!E56*Data!$C$5*Data!AO18,IF($B$12="Drip",AO18*$C$5*'System Cost'!O56,IF($B$12="Linear Move",AO18*$C$5*'System Cost'!J56,IF($B$12="Hose Pull",AO18*$C$5*'System Cost'!T56))))) -> 0 | AR18: =IF(AO18<0,0,((IF($B$11="Electric",VLOOKUP((IF(I18<1995,1995,I18)),Electric!$A$3:$C$38,3,FALSE),IF($B$11="Diesel",VLOOKUP((IF(I18<1995,1995,I18)),Diesel!$A$3:$C$24,3,FALSE),IF(Data!$B$11="Natural Gas",VLOOKUP((IF(I18<1995,1995,I18)),'Natural Gas'!$A$3:$C$38,3,FALSE))))))*(IF($B$12="Center Pivot",'System Cost'!D56,IF($B$12="Linear Move",'System Cost'!I56,IF($B$12="Drip",'System Cost'!N56,IF($B$12="Hose Pull",'System Cost'!S56)))))*AO18*$C$5) -> 0 | AT18: 274.0286709 | AU18: 1515.501631 | AV18: 9057.80143 | BA18: 9517.563482 | BB18: 0 | BC18: 20364.89521 | BD18: 9517.563482 | BE18: 186.5113041 | BH18: 1165.147283 | BI18: 1804.230079 | BJ18: 9713.442387 | BL18: 33961.90656 | BM18: 21279.08681 | BN18: 11693.92777 | BR18: 6.543487785 | BS18: 0.2423513995
H19: 2000 | I19: 2002 | J19: =VLOOKUP(I19,'Corn Rain'!B$3:C$38,2,FALSE) -> 24 | K19: =IF($B$8="None",0,IF($B$8="Corn",VLOOKUP(H19,'Corn Rain'!B$3:EE$38,$C$7,FALSE),IF($B$8="Cotton",VLOOKUP(H19,CottonRain!$B$3:$EE$38,Data!$C$7,FALSE),IF(Data!$B$8="Soybeans",VLOOKUP(Data!H19,'Soybeans Rain'!$B$3:$EE$38,Data!$C$7,FALSE),IF(Data!$B$8="Wheat",VLOOKUP(Data!H19,'Wheat Rain'!$B$3:$EE$38,Data!$C$7,FALSE)))))) -> 500.2739 | L19: =IF($B$8="None",0,IF($B$8="Corn",VLOOKUP(H19,'Corn Drought'!B$3:EE$38,Data!$C$7,FALSE),IF($B$8="Cotton",VLOOKUP(H19,'Cotton Drought'!$B$3:$EE$38,Data!$C$7,FALSE),IF($B$8="Soybeans",VLOOKUP(H19,'Soybeans Drought'!$B$3:$EE$38,Data!$C$7,FALSE),IF(Data!$B$8="Wheat",VLOOKUP(Data!H19,'Wheat Drought'!$B$3:$EE$38,Data!$C$7,FALSE)))))) -> 21 | M19: =IF($B$9="None",0,IF($B$9="Corn",VLOOKUP(H19,'Corn Rain'!B$3:EE$38,$C$7,FALSE),IF($B$9="Cotton",VLOOKUP(H19,CottonRain!$B$3:$EE$38,Data!$C$7,FALSE),IF(Data!$B$9="Soybeans",VLOOKUP(Data!H19,'Soybeans Rain'!$B$3:$EE$38,Data!$C$7,FALSE),IF(Data!$B$9="Wheat",VLOOKUP(Data!H19,'Wheat Rain'!$B$3:$EE$38,Data!$C$7,FALSE)))))) -> 0 | N19: =IF($B$9="None",0,IF($B$9="Corn",VLOOKUP(H19,'Corn Drought'!B$3:EE$38,Data!$C$7,FALSE),IF($B$9="Cotton",VLOOKUP(H19,'Cotton Drought'!$B$3:$EE$38,Data!$C$7,FALSE),IF($B$9="Soybeans",VLOOKUP(H19,'Soybeans Drought'!$B$3:$EE$38,Data!$C$7,FALSE),IF(Data!$B$9="Wheat",VLOOKUP(Data!H19,'Wheat Drought'!$B$3:$EE$38,Data!$C$7,FALSE)))))) -> 0 | O19: =IF($B$8="None",0,VLOOKUP(I19,'Historic Prices'!$A$3:$K$38,$C$8,FALSE)) -> 2.32 | P19: =IF($B$9="None",0,VLOOKUP(I19,'Historic Prices'!$A$3:$K$38,$C$9,FALSE)) -> 0 | Q19: =IF($B$8="None",0,IF(IF(Tool!$C$19="Ideal",$B$2,IF(Tool!$C$19="Scheduled",((VLOOKUP($B$8&$B$10,'Regression Data'!$A$3:$F$30,4,FALSE))+(VLOOKUP($B$8&$B$10,'Regression Data'!$A$3:$F$30,5,FALSE)*(K19+(Tool!$C$20*Data!$B$4/0.0393701)))+(VLOOKUP($B$8&$B$10,'Regression Data'!$A$3:$F$30,6,FALSE)*L19))/2.47105*$B$3))>$B$2,$B$2,(IF(Tool!$C$19="Ideal",$B$2,IF(Tool!$C$19="Scheduled",((VLOOKUP($B$8&$B$10,'Regression Data'!$A$3:$F$30,4,FALSE))+(VLOOKUP($B$8&$B$10,'Regression Data'!$A$3:$F$30,5,FALSE)*(K19+(Tool!$C$20*Data!$B$4/0.0393701)))+(VLOOKUP($B$8&$B$10,'Regression Data'!$A$3:$F$30,6,FALSE)*L19))/2.47105*$B$3))))) -> 184.7279335 | R19: =IF($B$8="None",0,IF(IF((((VLOOKUP($B$8&$B$10,'Regression Data'!$A$3:$F$30,4,FALSE))+(VLOOKUP($B$8&$B$10,'Regression Data'!$A$3:$F$30,5,FALSE)*K19)+(VLOOKUP($B$8&$B$10,'Regression Data'!$A$3:$F$30,6,FALSE)*L19))/2.47105*$B$3)>$B$2,$B$2,((VLOOKUP($B$8&$B$10,'Regression Data'!$A$3:$F$30,4,FALSE))+(VLOOKUP($B$8&$B$10,'Regression Data'!$A$3:$F$30,5,FALSE)*K19)+(VLOOKUP($B$8&$B$10,'Regression Data'!$A$3:$F$30,6,FALSE)*L19))/2.47105*$B$3)<0,0,IF((((VLOOKUP($B$8&$B$10,'Regression Data'!$A$3:$F$30,4,FALSE))+(VLOOKUP($B$8&$B$10,'Regression Data'!$A$3:$F$30,5,FALSE)*K19)+(VLOOKUP($B$8&$B$10,'Regression Data'!$A$3:$F$30,6,FALSE)*L19))/2.47105*$B$3)>$B$2,$B$2,((VLOOKUP($B$8&$B$10,'Regression Data'!$A$3:$F$30,4,FALSE))+(VLOOKUP($B$8&$B$10,'Regression Data'!$A$3:$F$30,5,FALSE)*K19)+(VLOOKUP($B$8&$B$10,'Regression Data'!$A$3:$F$30,6,FALSE)*L19))/2.47105*$B$3))) -> 153.6623827 | S19: =IF($B$9="None",0,IF(IF(Tool!$C$19="Ideal",$C$2,IF(Tool!$C$19="Scheduled",((VLOOKUP($B$9&$B$10,'Regression Data'!$A$3:$F$30,4,FALSE))+(VLOOKUP($B$9&$B$10,'Regression Data'!$A$3:$F$30,5,FALSE)*(N19+(Tool!$C$20*Data!$C$4/0.0393701)))+(VLOOKUP($B$9&$B$10,'Regression Data'!$A$3:$F$30,6,FALSE)*N19))/2.47105*$C$3))>$C$2,$C$2,(IF(Tool!$C$19="Ideal",$C$2,IF(Tool!$C$19="Scheduled",((VLOOKUP($B$9&$B$10,'Regression Data'!$A$3:$F$30,4,FALSE))+(VLOOKUP($B$9&$B$10,'Regression Data'!$A$3:$F$30,5,FALSE)*(M19+(Tool!$C$20*Data!$C$4/0.0393701)))+(VLOOKUP($B$9&$B$10,'Regression Data'!$A$3:$F$30,6,FALSE)*N19))/2.47105*$C$3))))) -> 0 | T19: =IF($B$9="None",0,IF(IF((((VLOOKUP($B$9&$B$10,'Regression Data'!$A$3:$F$30,4,FALSE))+(VLOOKUP($B$9&$B$10,'Regression Data'!$A$3:$F$30,5,FALSE)*M19)+(VLOOKUP($B$9&$B$10,'Regression Data'!$A$3:$F$30,6,FALSE)*N19))/2.47105*$C$3)>$C$2,$C$2,((VLOOKUP($B$9&$B$10,'Regression Data'!$A$3:$F$30,4,FALSE))+(VLOOKUP($B$9&$B$10,'Regression Data'!$A$3:$F$30,5,FALSE)*M19)+(VLOOKUP($B$9&$B$10,'Regression Data'!$A$3:$F$30,6,FALSE)*N19))/2.47105*$C$3)<0,0,(IF((((VLOOKUP($B$9&$B$10,'Regression Data'!$A$3:$F$30,4,FALSE))+(VLOOKUP($B$9&$B$10,'Regression Data'!$A$3:$F$30,5,FALSE)*M19)+(VLOOKUP($B$9&$B$10,'Regression Data'!$A$3:$F$30,6,FALSE)*N19))/2.47105*$C$3)>$C$2,$C$2,((VLOOKUP($B$9&$B$10,'Regression Data'!$A$3:$F$30,4,FALSE))+(VLOOKUP($B$9&$B$10,'Regression Data'!$A$3:$F$30,5,FALSE)*M19)+(VLOOKUP($B$9&$B$10,'Regression Data'!$A$3:$F$30,6,FALSE)*N19))/2.47105*$C$3)))) -> 0 | X19: 42856.88056 | Y19: 35649.67278 | Z19: 7207.207785 | AA19: 0 | AB19: 0 | AC19: 0 | AH19: =IF($B$8="None",0,IF(Tool!$C$19="Rainfall Deficit",((VLOOKUP($B$8,'Regression Data'!$H$3:$K$6,3,FALSE))-K19)*0.0393701,IF(Tool!$C$19="Scheduled",$B$4*Tool!$C$20,))) -> 5.89473153 | AI19: =((IF($B$12="Center Pivot",'System Cost'!B57,IF($B$12="Linear Move",'System Cost'!G57,IF($B$12="Drip",'System Cost'!L57,IF($B$12="Hose Pull",'System Cost'!Q57)))))*(SUM($B$5:$C$5)))-(Tool!$C$28) -> 82070.05479 | AJ19: 10118.49456 | AK19: =IF(AH19<0,0,IF($B$12="Center Pivot",'System Cost'!C57*Data!$B$13*Data!$B$5*Data!AH19,IF($B$12="Hose Pull",$B$5*$B$13*'System Cost'!R57*AH19,IF($B$12="Linear Move",AH19*$B$13*$B$5*'System Cost'!H57,IF($B$12="Drip",$B$5*$B$13*AH19*'System Cost'!M57))))) -> 180.0647368 | AL19: =IF(AH19<0,0,IF($B$12="Center Pivot",'System Cost'!E57*Data!$B$5*Data!AH19,IF($B$12="Drip",AH19*$B$5*'System Cost'!O57,IF($B$12="Linear Move",AH19*$B$5*'System Cost'!J57,IF($B$12="Hose Pull",AH19*$B$5*'System Cost'!T57))))) -> 1266.918599 | AM19: =IF(AH19<0,0,((IF($B$11="Electric",VLOOKUP((IF(I19<1995,1995,I19)),Electric!$A$3:$C$38,3,FALSE)*0.5,IF($B$11="Diesel",VLOOKUP((IF(I19<1995,1995,I19)),Diesel!$A$3:$C$24,3,FALSE),IF(Data!$B$11="Natural Gas",VLOOKUP((IF(I19<1995,1995,I19)),'Natural Gas'!$A$3:$C$38,3,FALSE))))))*(IF($B$12="Center Pivot",'System Cost'!D57,IF($B$12="Linear Move",'System Cost'!I57,IF($B$12="Drip",'System Cost'!N57,IF($B$12="Hose Pull",'System Cost'!S57)))))*AH19*$B$5) -> 405.7274336 | AO19: =IF($B$9="None",0,IF(Tool!$C$19="Rainfall Deficit",((VLOOKUP($B$9,'Regression Data'!$H$3:$K$6,3,FALSE))-M19)*0.0393701,IF(Tool!$C$19="Scheduled",$C$4*Tool!$C$20,))) -> 0 | AP19: =IF(AO19<0,0,IF($B$12="Center Pivot",'System Cost'!C57*Data!$B$13*Data!$C$5*Data!AO19,IF($B$12="Hose Pull",$C$5*$B$13*'System Cost'!R57*AO19,IF($B$12="Linear Move",AO19*$B$13*$C$5*'System Cost'!H57,IF($B$12="Drip",$C$5*$B$13*AO19*'System Cost'!M57))))) -> 0 | AQ19: =IF(AO19<0,0,IF($B$12="Center Pivot",'System Cost'!E57*Data!$C$5*Data!AO19,IF($B$12="Drip",AO19*$C$5*'System Cost'!O57,IF($B$12="Linear Move",AO19*$C$5*'System Cost'!J57,IF($B$12="Hose Pull",AO19*$C$5*'System Cost'!T57))))) -> 0 | AR19: =IF(AO19<0,0,((IF($B$11="Electric",VLOOKUP((IF(I19<1995,1995,I19)),Electric!$A$3:$C$38,3,FALSE),IF($B$11="Diesel",VLOOKUP((IF(I19<1995,1995,I19)),Diesel!$A$3:$C$24,3,FALSE),IF(Data!$B$11="Natural Gas",VLOOKUP((IF(I19<1995,1995,I19)),'Natural Gas'!$A$3:$C$38,3,FALSE))))))*(IF($B$12="Center Pivot",'System Cost'!D57,IF($B$12="Linear Move",'System Cost'!I57,IF($B$12="Drip",'System Cost'!N57,IF($B$12="Hose Pull",'System Cost'!S57)))))*AO19*$C$5) -> 0 | AT19: 180.0647368 | AU19: 1266.918599 | AV19: 405.7274336 | BA19: 5354.497016 | BB19: 0 | BC19: 7207.207785 | BD19: 5354.497016 | BE19: -4763.997541 | BH19: 858.9565453 | BI19: 1171.404671 | BJ19: 10233.04306 | BL19: 27723.17374 | BM19: 15459.76947 | BN19: 6182.388639 | BR19: 5.89473153 | BS19: 0.21832339
H20: 1991 | I20: 1999 | J20: =VLOOKUP(I20,'Corn Rain'!B$3:C$38,2,FALSE) -> 21 | K20: =IF($B$8="None",0,IF($B$8="Corn",VLOOKUP(H20,'Corn Rain'!B$3:EE$38,$C$7,FALSE),IF($B$8="Cotton",VLOOKUP(H20,CottonRain!$B$3:$EE$38,Data!$C$7,FALSE),IF(Data!$B$8="Soybeans",VLOOKUP(Data!H20,'Soybeans Rain'!$B$3:$EE$38,Data!$C$7,FALSE),IF(Data!$B$8="Wheat",VLOOKUP(Data!H20,'Wheat Rain'!$B$3:$EE$38,Data!$C$7,FALSE)))))) -> 305.8334 | L20: =IF($B$8="None",0,IF($B$8="Corn",VLOOKUP(H20,'Corn Drought'!B$3:EE$38,Data!$C$7,FALSE),IF($B$8="Cotton",VLOOKUP(H20,'Cotton Drought'!$B$3:$EE$38,Data!$C$7,FALSE),IF($B$8="Soybeans",VLOOKUP(H20,'Soybeans Drought'!$B$3:$EE$38,Data!$C$7,FALSE),IF(Data!$B$8="Wheat",VLOOKUP(Data!H20,'Wheat Drought'!$B$3:$EE$38,Data!$C$7,FALSE)))))) -> 50 | M20: =IF($B$9="None",0,IF($B$9="Corn",VLOOKUP(H20,'Corn Rain'!B$3:EE$38,$C$7,FALSE),IF($B$9="Cotton",VLOOKUP(H20,CottonRain!$B$3:$EE$38,Data!$C$7,FALSE),IF(Data!$B$9="Soybeans",VLOOKUP(Data!H20,'Soybeans Rain'!$B$3:$EE$38,Data!$C$7,FALSE),IF(Data!$B$9="Wheat",VLOOKUP(Data!H20,'Wheat Rain'!$B$3:$EE$38,Data!$C$7,FALSE)))))) -> 0 | N20: =IF($B$9="None",0,IF($B$9="Corn",VLOOKUP(H20,'Corn Drought'!B$3:EE$38,Data!$C$7,FALSE),IF($B$9="Cotton",VLOOKUP(H20,'Cotton Drought'!$B$3:$EE$38,Data!$C$7,FALSE),IF($B$9="Soybeans",VLOOKUP(H20,'Soybeans Drought'!$B$3:$EE$38,Data!$C$7,FALSE),IF(Data!$B$9="Wheat",VLOOKUP(Data!H20,'Wheat Drought'!$B$3:$EE$38,Data!$C$7,FALSE)))))) -> 0 | O20: =IF($B$8="None",0,VLOOKUP(I20,'Historic Prices'!$A$3:$K$38,$C$8,FALSE)) -> 1.82 | P20: =IF($B$9="None",0,VLOOKUP(I20,'Historic Prices'!$A$3:$K$38,$C$9,FALSE)) -> 0 | Q20: =IF($B$8="None",0,IF(IF(Tool!$C$19="Ideal",$B$2,IF(Tool!$C$19="Scheduled",((VLOOKUP($B$8&$B$10,'Regression Data'!$A$3:$F$30,4,FALSE))+(VLOOKUP($B$8&$B$10,'Regression Data'!$A$3:$F$30,5,FALSE)*(K20+(Tool!$C$20*Data!$B$4/0.0393701)))+(VLOOKUP($B$8&$B$10,'Regression Data'!$A$3:$F$30,6,FALSE)*L20))/2.47105*$B$3))>$B$2,$B$2,(IF(Tool!$C$19="Ideal",$B$2,IF(Tool!$C$19="Scheduled",((VLOOKUP($B$8&$B$10,'Regression Data'!$A$3:$F$30,4,FALSE))+(VLOOKUP($B$8&$B$10,'Regression Data'!$A$3:$F$30,5,FALSE)*(K20+(Tool!$C$20*Data!$B$4/0.0393701)))+(VLOOKUP($B$8&$B$10,'Regression Data'!$A$3:$F$30,6,FALSE)*L20))/2.47105*$B$3))))) -> 184.7279335 | R20: =IF($B$8="None",0,IF(IF((((VLOOKUP($B$8&$B$10,'Regression Data'!$A$3:$F$30,4,FALSE))+(VLOOKUP($B$8&$B$10,'Regression Data'!$A$3:$F$30,5,FALSE)*K20)+(VLOOKUP($B$8&$B$10,'Regression Data'!$A$3:$F$30,6,FALSE)*L20))/2.47105*$B$3)>$B$2,$B$2,((VLOOKUP($B$8&$B$10,'Regression Data'!$A$3:$F$30,4,FALSE))+(VLOOKUP($B$8&$B$10,'Regression Data'!$A$3:$F$30,5,FALSE)*K20)+(VLOOKUP($B$8&$B$10,'Regression Data'!$A$3:$F$30,6,FALSE)*L20))/2.47105*$B$3)<0,0,IF((((VLOOKUP($B$8&$B$10,'Regression Data'!$A$3:$F$30,4,FALSE))+(VLOOKUP($B$8&$B$10,'Regression Data'!$A$3:$F$30,5,FALSE)*K20)+(VLOOKUP($B$8&$B$10,'Regression Data'!$A$3:$F$30,6,FALSE)*L20))/2.47105*$B$3)>$B$2,$B$2,((VLOOKUP($B$8&$B$10,'Regression Data'!$A$3:$F$30,4,FALSE))+(VLOOKUP($B$8&$B$10,'Regression Data'!$A$3:$F$30,5,FALSE)*K20)+(VLOOKUP($B$8&$B$10,'Regression Data'!$A$3:$F$30,6,FALSE)*L20))/2.47105*$B$3))) -> 48.23108534 | S20: =IF($B$9="None",0,IF(IF(Tool!$C$19="Ideal",$C$2,IF(Tool!$C$19="Scheduled",((VLOOKUP($B$9&$B$10,'Regression Data'!$A$3:$F$30,4,FALSE))+(VLOOKUP($B$9&$B$10,'Regression Data'!$A$3:$F$30,5,FALSE)*(N20+(Tool!$C$20*Data!$C$4/0.0393701)))+(VLOOKUP($B$9&$B$10,'Regression Data'!$A$3:$F$30,6,FALSE)*N20))/2.47105*$C$3))>$C$2,$C$2,(IF(Tool!$C$19="Ideal",$C$2,IF(Tool!$C$19="Scheduled",((VLOOKUP($B$9&$B$10,'Regression Data'!$A$3:$F$30,4,FALSE))+(VLOOKUP($B$9&$B$10,'Regression Data'!$A$3:$F$30,5,FALSE)*(M20+(Tool!$C$20*Data!$C$4/0.0393701)))+(VLOOKUP($B$9&$B$10,'Regression Data'!$A$3:$F$30,6,FALSE)*N20))/2.47105*$C$3))))) -> 0 | T20: =IF($B$9="None",0,IF(IF((((VLOOKUP($B$9&$B$10,'Regression Data'!$A$3:$F$30,4,FALSE))+(VLOOKUP($B$9&$B$10,'Regression Data'!$A$3:$F$30,5,FALSE)*M20)+(VLOOKUP($B$9&$B$10,'Regression Data'!$A$3:$F$30,6,FALSE)*N20))/2.47105*$C$3)>$C$2,$C$2,((VLOOKUP($B$9&$B$10,'Regression Data'!$A$3:$F$30,4,FALSE))+(VLOOKUP($B$9&$B$10,'Regression Data'!$A$3:$F$30,5,FALSE)*M20)+(VLOOKUP($B$9&$B$10,'Regression Data'!$A$3:$F$30,6,FALSE)*N20))/2.47105*$C$3)<0,0,(IF((((VLOOKUP($B$9&$B$10,'Regression Data'!$A$3:$F$30,4,FALSE))+(VLOOKUP($B$9&$B$10,'Regression Data'!$A$3:$F$30,5,FALSE)*M20)+(VLOOKUP($B$9&$B$10,'Regression Data'!$A$3:$F$30,6,FALSE)*N20))/2.47105*$C$3)>$C$2,$C$2,((VLOOKUP($B$9&$B$10,'Regression Data'!$A$3:$F$30,4,FALSE))+(VLOOKUP($B$9&$B$10,'Regression Data'!$A$3:$F$30,5,FALSE)*M20)+(VLOOKUP($B$9&$B$10,'Regression Data'!$A$3:$F$30,6,FALSE)*N20))/2.47105*$C$3)))) -> 0 | X20: 33620.48389 | Y20: 8778.057531 | Z20: 24842.42636 | AA20: 0 | AB20: 0 | AC20: 0 | AH20: =IF($B$8="None",0,IF(Tool!$C$19="Rainfall Deficit",((VLOOKUP($B$8,'Regression Data'!$H$3:$K$6,3,FALSE))-K20)*0.0393701,IF(Tool!$C$19="Scheduled",$B$4*Tool!$C$20,))) -> 13.54987346 | AI20: =((IF($B$12="Center Pivot",'System Cost'!B58,IF($B$12="Linear Move",'System Cost'!G58,IF($B$12="Drip",'System Cost'!L58,IF($B$12="Hose Pull",'System Cost'!Q58)))))*(SUM($B$5:$C$5)))-(Tool!$C$28) -> 71756.04863 | AJ20: 8846.870996 | AK20: =IF(AH20<0,0,IF($B$12="Center Pivot",'System Cost'!C58*Data!$B$13*Data!$B$5*Data!AH20,IF($B$12="Hose Pull",$B$5*$B$13*'System Cost'!R58*AH20,IF($B$12="Linear Move",AH20*$B$13*$B$5*'System Cost'!H58,IF($B$12="Drip",$B$5*$B$13*AH20*'System Cost'!M58))))) -> 1388.229232 | AL20: =IF(AH20<0,0,IF($B$12="Center Pivot",'System Cost'!E58*Data!$B$5*Data!AH20,IF($B$12="Drip",AH20*$B$5*'System Cost'!O58,IF($B$12="Linear Move",AH20*$B$5*'System Cost'!J58,IF($B$12="Hose Pull",AH20*$B$5*'System Cost'!T58))))) -> 2740.191031 | AM20: =IF(AH20<0,0,((IF($B$11="Electric",VLOOKUP((IF(I20<1995,1995,I20)),Electric!$A$3:$C$38,3,FALSE)*0.5,IF($B$11="Diesel",VLOOKUP((IF(I20<1995,1995,I20)),Diesel!$A$3:$C$24,3,FALSE),IF(Data!$B$11="Natural Gas",VLOOKUP((IF(I20<1995,1995,I20)),'Natural Gas'!$A$3:$C$38,3,FALSE))))))*(IF($B$12="Center Pivot",'System Cost'!D58,IF($B$12="Linear Move",'System Cost'!I58,IF($B$12="Drip",'System Cost'!N58,IF($B$12="Hose Pull",'System Cost'!S58)))))*AH20*$B$5) -> 831.9266065 | AO20: =IF($B$9="None",0,IF(Tool!$C$19="Rainfall Deficit",((VLOOKUP($B$9,'Regression Data'!$H$3:$K$6,3,FALSE))-M20)*0.0393701,IF(Tool!$C$19="Scheduled",$C$4*Tool!$C$20,))) -> 0 | AP20: =IF(AO20<0,0,IF($B$12="Center Pivot",'System Cost'!C58*Data!$B$13*Data!$C$5*Data!AO20,IF($B$12="Hose Pull",$C$5*$B$13*'System Cost'!R58*AO20,IF($B$12="Linear Move",AO20*$B$13*$C$5*'System Cost'!H58,IF($B$12="Drip",$C$5*$B$13*AO20*'System Cost'!M58))))) -> 0 | AQ20: =IF(AO20<0,0,IF($B$12="Center Pivot",'System Cost'!E58*Data!$C$5*Data!AO20,IF($B$12="Drip",AO20*$C$5*'System Cost'!O58,IF($B$12="Linear Move",AO20*$C$5*'System Cost'!J58,IF($B$12="Hose Pull",AO20*$C$5*'System Cost'!T58))))) -> 0 | AR20: =IF(AO20<0,0,((IF($B$11="Electric",VLOOKUP((IF(I20<1995,1995,I20)),Electric!$A$3:$C$38,3,FALSE),IF($B$11="Diesel",VLOOKUP((IF(I20<1995,1995,I20)),Diesel!$A$3:$C$24,3,FALSE),IF(Data!$B$11="Natural Gas",VLOOKUP((IF(I20<1995,1995,I20)),'Natural Gas'!$A$3:$C$38,3,FALSE))))))*(IF($B$12="Center Pivot",'System Cost'!D58,IF($B$12="Linear Move",'System Cost'!I58,IF($B$12="Drip",'System Cost'!N58,IF($B$12="Hose Pull",'System Cost'!S58)))))*AO20*$C$5) -> 0 | AT20: 1388.229232 | AU20: 2740.191031 | AV20: 831.9266065 | BA20: 19882.07949 | BB20: 0 | BC20: 24842.42636 | BD20: 19882.07949 | BE20: 11035.20849 | BH20: 745.6530283 | BI20: 1447.206591 | BJ20: 8047.570385 | BL20: 26062.6587 | BM20: 15822.22869 | BN20: 6519.487262 | BR20: 13.54987346 | BS20: 0.5018471651
A21: =IF(B8="None","NA",IF(B8="Corn","Corn ($/bushel)",IF(B8="Cotton","Cotton ($/ 10 lbs)",IF(B8="Soybeans","Soybeans ($/bushel)",IF(B8="Wheat","Wheat ($/bushel)"))))) -> Corn ($/bushel) | H21: 1995 | I21: 2005 | J21: =VLOOKUP(I21,'Corn Rain'!B$3:C$38,2,FALSE) -> 27 | K21: =IF($B$8="None",0,IF($B$8="Corn",VLOOKUP(H21,'Corn Rain'!B$3:EE$38,$C$7,FALSE),IF($B$8="Cotton",VLOOKUP(H21,CottonRain!$B$3:$EE$38,Data!$C$7,FALSE),IF(Data!$B$8="Soybeans",VLOOKUP(Data!H21,'Soybeans Rain'!$B$3:$EE$38,Data!$C$7,FALSE),IF(Data!$B$8="Wheat",VLOOKUP(Data!H21,'Wheat Rain'!$B$3:$EE$38,Data!$C$7,FALSE)))))) -> 345.1015 | L21: =IF($B$8="None",0,IF($B$8="Corn",VLOOKUP(H21,'Corn Drought'!B$3:EE$38,Data!$C$7,FALSE),IF($B$8="Cotton",VLOOKUP(H21,'Cotton Drought'!$B$3:$EE$38,Data!$C$7,FALSE),IF($B$8="Soybeans",VLOOKUP(H21,'Soybeans Drought'!$B$3:$EE$38,Data!$C$7,FALSE),IF(Data!$B$8="Wheat",VLOOKUP(Data!H21,'Wheat Drought'!$B$3:$EE$38,Data!$C$7,FALSE)))))) -> 21 | M21: =IF($B$9="None",0,IF($B$9="Corn",VLOOKUP(H21,'Corn Rain'!B$3:EE$38,$C$7,FALSE),IF($B$9="Cotton",VLOOKUP(H21,CottonRain!$B$3:$EE$38,Data!$C$7,FALSE),IF(Data!$B$9="Soybeans",VLOOKUP(Data!H21,'Soybeans Rain'!$B$3:$EE$38,Data!$C$7,FALSE),IF(Data!$B$9="Wheat",VLOOKUP(Data!H21,'Wheat Rain'!$B$3:$EE$38,Data!$C$7,FALSE)))))) -> 0 | N21: =IF($B$9="None",0,IF($B$9="Corn",VLOOKUP(H21,'Corn Drought'!B$3:EE$38,Data!$C$7,FALSE),IF($B$9="Cotton",VLOOKUP(H21,'Cotton Drought'!$B$3:$EE$38,Data!$C$7,FALSE),IF($B$9="Soybeans",VLOOKUP(H21,'Soybeans Drought'!$B$3:$EE$38,Data!$C$7,FALSE),IF(Data!$B$9="Wheat",VLOOKUP(Data!H21,'Wheat Drought'!$B$3:$EE$38,Data!$C$7,FALSE)))))) -> 0 | O21: =IF($B$8="None",0,VLOOKUP(I21,'Historic Prices'!$A$3:$K$38,$C$8,FALSE)) -> 2 | P21: =IF($B$9="None",0,VLOOKUP(I21,'Historic Prices'!$A$3:$K$38,$C$9,FALSE)) -> 0 | Q21: =IF($B$8="None",0,IF(IF(Tool!$C$19="Ideal",$B$2,IF(Tool!$C$19="Scheduled",((VLOOKUP($B$8&$B$10,'Regression Data'!$A$3:$F$30,4,FALSE))+(VLOOKUP($B$8&$B$10,'Regression Data'!$A$3:$F$30,5,FALSE)*(K21+(Tool!$C$20*Data!$B$4/0.0393701)))+(VLOOKUP($B$8&$B$10,'Regression Data'!$A$3:$F$30,6,FALSE)*L21))/2.47105*$B$3))>$B$2,$B$2,(IF(Tool!$C$19="Ideal",$B$2,IF(Tool!$C$19="Scheduled",((VLOOKUP($B$8&$B$10,'Regression Data'!$A$3:$F$30,4,FALSE))+(VLOOKUP($B$8&$B$10,'Regression Data'!$A$3:$F$30,5,FALSE)*(K21+(Tool!$C$20*Data!$B$4/0.0393701)))+(VLOOKUP($B$8&$B$10,'Regression Data'!$A$3:$F$30,6,FALSE)*L21))/2.47105*$B$3))))) -> 184.7279335 | R21: =IF($B$8="None",0,IF(IF((((VLOOKUP($B$8&$B$10,'Regression Data'!$A$3:$F$30,4,FALSE))+(VLOOKUP($B$8&$B$10,'Regression Data'!$A$3:$F$30,5,FALSE)*K21)+(VLOOKUP($B$8&$B$10,'Regression Data'!$A$3:$F$30,6,FALSE)*L21))/2.47105*$B$3)>$B$2,$B$2,((VLOOKUP($B$8&$B$10,'Regression Data'!$A$3:$F$30,4,FALSE))+(VLOOKUP($B$8&$B$10,'Regression Data'!$A$3:$F$30,5,FALSE)*K21)+(VLOOKUP($B$8&$B$10,'Regression Data'!$A$3:$F$30,6,FALSE)*L21))/2.47105*$B$3)<0,0,IF((((VLOOKUP($B$8&$B$10,'Regression Data'!$A$3:$F$30,4,FALSE))+(VLOOKUP($B$8&$B$10,'Regression Data'!$A$3:$F$30,5,FALSE)*K21)+(VLOOKUP($B$8&$B$10,'Regression Data'!$A$3:$F$30,6,FALSE)*L21))/2.47105*$B$3)>$B$2,$B$2,((VLOOKUP($B$8&$B$10,'Regression Data'!$A$3:$F$30,4,FALSE))+(VLOOKUP($B$8&$B$10,'Regression Data'!$A$3:$F$30,5,FALSE)*K21)+(VLOOKUP($B$8&$B$10,'Regression Data'!$A$3:$F$30,6,FALSE)*L21))/2.47105*$B$3))) -> 104.2192144 | S21: =IF($B$9="None",0,IF(IF(Tool!$C$19="Ideal",$C$2,IF(Tool!$C$19="Scheduled",((VLOOKUP($B$9&$B$10,'Regression Data'!$A$3:$F$30,4,FALSE))+(VLOOKUP($B$9&$B$10,'Regression Data'!$A$3:$F$30,5,FALSE)*(N21+(Tool!$C$20*Data!$C$4/0.0393701)))+(VLOOKUP($B$9&$B$10,'Regression Data'!$A$3:$F$30,6,FALSE)*N21))/2.47105*$C$3))>$C$2,$C$2,(IF(Tool!$C$19="Ideal",$C$2,IF(Tool!$C$19="Scheduled",((VLOOKUP($B$9&$B$10,'Regression Data'!$A$3:$F$30,4,FALSE))+(VLOOKUP($B$9&$B$10,'Regression Data'!$A$3:$F$30,5,FALSE)*(M21+(Tool!$C$20*Data!$C$4/0.0393701)))+(VLOOKUP($B$9&$B$10,'Regression Data'!$A$3:$F$30,6,FALSE)*N21))/2.47105*$C$3))))) -> 0 | T21: =IF($B$9="None",0,IF(IF((((VLOOKUP($B$9&$B$10,'Regression Data'!$A$3:$F$30,4,FALSE))+(VLOOKUP($B$9&$B$10,'Regression Data'!$A$3:$F$30,5,FALSE)*M21)+(VLOOKUP($B$9&$B$10,'Regression Data'!$A$3:$F$30,6,FALSE)*N21))/2.47105*$C$3)>$C$2,$C$2,((VLOOKUP($B$9&$B$10,'Regression Data'!$A$3:$F$30,4,FALSE))+(VLOOKUP($B$9&$B$10,'Regression Data'!$A$3:$F$30,5,FALSE)*M21)+(VLOOKUP($B$9&$B$10,'Regression Data'!$A$3:$F$30,6,FALSE)*N21))/2.47105*$C$3)<0,0,(IF((((VLOOKUP($B$9&$B$10,'Regression Data'!$A$3:$F$30,4,FALSE))+(VLOOKUP($B$9&$B$10,'Regression Data'!$A$3:$F$30,5,FALSE)*M21)+(VLOOKUP($B$9&$B$10,'Regression Data'!$A$3:$F$30,6,FALSE)*N21))/2.47105*$C$3)>$C$2,$C$2,((VLOOKUP($B$9&$B$10,'Regression Data'!$A$3:$F$30,4,FALSE))+(VLOOKUP($B$9&$B$10,'Regression Data'!$A$3:$F$30,5,FALSE)*M21)+(VLOOKUP($B$9&$B$10,'Regression Data'!$A$3:$F$30,6,FALSE)*N21))/2.47105*$C$3)))) -> 0 | X21: 36945.58669 | Y21: 20843.84289 | Z21: 16101.74381 | AA21: 0 | AB21: 0 | AC21: 0 | AH21: =IF($B$8="None",0,IF(Tool!$C$19="Rainfall Deficit",((VLOOKUP($B$8,'Regression Data'!$H$3:$K$6,3,FALSE))-K21)*0.0393701,IF(Tool!$C$19="Scheduled",$B$4*Tool!$C$20,))) -> 12.00388443 | AI21: =((IF($B$12="Center Pivot",'System Cost'!B59,IF($B$12="Linear Move",'System Cost'!G59,IF($B$12="Drip",'System Cost'!L59,IF($B$12="Hose Pull",'System Cost'!Q59)))))*(SUM($B$5:$C$5)))-(Tool!$C$28) -> 69072.80313 | AJ21: 8516.051126 | AK21: =IF(AH21<0,0,IF($B$12="Center Pivot",'System Cost'!C59*Data!$B$13*Data!$B$5*Data!AH21,IF($B$12="Hose Pull",$B$5*$B$13*'System Cost'!R59*AH21,IF($B$12="Linear Move",AH21*$B$13*$B$5*'System Cost'!H59,IF($B$12="Drip",$B$5*$B$13*AH21*'System Cost'!M59))))) -> 323.144431 | AL21: =IF(AH21<0,0,IF($B$12="Center Pivot",'System Cost'!E59*Data!$B$5*Data!AH21,IF($B$12="Drip",AH21*$B$5*'System Cost'!O59,IF($B$12="Linear Move",AH21*$B$5*'System Cost'!J59,IF($B$12="Hose Pull",AH21*$B$5*'System Cost'!T59))))) -> 2789.873743 | AM21: =IF(AH21<0,0,((IF($B$11="Electric",VLOOKUP((IF(I21<1995,1995,I21)),Electric!$A$3:$C$38,3,FALSE)*0.5,IF($B$11="Diesel",VLOOKUP((IF(I21<1995,1995,I21)),Diesel!$A$3:$C$24,3,FALSE),IF(Data!$B$11="Natural Gas",VLOOKUP((IF(I21<1995,1995,I21)),'Natural Gas'!$A$3:$C$38,3,FALSE))))))*(IF($B$12="Center Pivot",'System Cost'!D59,IF($B$12="Linear Move",'System Cost'!I59,IF($B$12="Drip",'System Cost'!N59,IF($B$12="Hose Pull",'System Cost'!S59)))))*AH21*$B$5) -> 16068.5463 | AO21: =IF($B$9="None",0,IF(Tool!$C$19="Rainfall Deficit",((VLOOKUP($B$9,'Regression Data'!$H$3:$K$6,3,FALSE))-M21)*0.0393701,IF(Tool!$C$19="Scheduled",$C$4*Tool!$C$20,))) -> 0 | AP21: =IF(AO21<0,0,IF($B$12="Center Pivot",'System Cost'!C59*Data!$B$13*Data!$C$5*Data!AO21,IF($B$12="Hose Pull",$C$5*$B$13*'System Cost'!R59*AO21,IF($B$12="Linear Move",AO21*$B$13*$C$5*'System Cost'!H59,IF($B$12="Drip",$C$5*$B$13*AO21*'System Cost'!M59))))) -> 0 | AQ21: =IF(AO21<0,0,IF($B$12="Center Pivot",'System Cost'!E59*Data!$C$5*Data!AO21,IF($B$12="Drip",AO21*$C$5*'System Cost'!O59,IF($B$12="Linear Move",AO21*$C$5*'System Cost'!J59,IF($B$12="Hose Pull",AO21*$C$5*'System Cost'!T59))))) -> 0 | AR21: =IF(AO21<0,0,((IF($B$11="Electric",VLOOKUP((IF(I21<1995,1995,I21)),Electric!$A$3:$C$38,3,FALSE),IF($B$11="Diesel",VLOOKUP((IF(I21<1995,1995,I21)),Diesel!$A$3:$C$24,3,FALSE),IF(Data!$B$11="Natural Gas",VLOOKUP((IF(I21<1995,1995,I21)),'Natural Gas'!$A$3:$C$38,3,FALSE))))))*(IF($B$12="Center Pivot",'System Cost'!D59,IF($B$12="Linear Move",'System Cost'!I59,IF($B$12="Drip",'System Cost'!N59,IF($B$12="Hose Pull",'System Cost'!S59)))))*AO21*$C$5) -> 0 | AT21: 323.144431 | AU21: 2789.873743 | AV21: 16068.5463 | BA21: -3079.820666 | BB21: 0 | BC21: 16101.74381 | BD21: -3079.820666 | BE21: -11595.87179 | BH21: 918.2624153 | BI21: 1642.802026 | BJ21: 11465.16274 | BL21: 31786.72827 | BM21: 17760.50109 | BN21: 8385.498029 | BR21: 12.00388443 | BS21: 0.4445883124
A22: =IF(B9="None","NA",IF(B9="Corn","Corn ($/bushel)",IF(B9="Cotton","Cotton ($/ 10 lbs)",IF(B9="Soybeans","Soybeans ($/bushel)",IF(B9="Wheat","Wheat ($/bushel)"))))) -> NA | H22: 2004 | I22: 2011 | J22: =VLOOKUP(I22,'Corn Rain'!B$3:C$38,2,FALSE) -> 33 | K22: =IF($B$8="None",0,IF($B$8="Corn",VLOOKUP(H22,'Corn Rain'!B$3:EE$38,$C$7,FALSE),IF($B$8="Cotton",VLOOKUP(H22,CottonRain!$B$3:$EE$38,Data!$C$7,FALSE),IF(Data!$B$8="Soybeans",VLOOKUP(Data!H22,'Soybeans Rain'!$B$3:$EE$38,Data!$C$7,FALSE),IF(Data!$B$8="Wheat",VLOOKUP(Data!H22,'Wheat Rain'!$B$3:$EE$38,Data!$C$7,FALSE)))))) -> 535.6883 | L22: =IF($B$8="None",0,IF($B$8="Corn",VLOOKUP(H22,'Corn Drought'!B$3:EE$38,Data!$C$7,FALSE),IF($B$8="Cotton",VLOOKUP(H22,'Cotton Drought'!$B$3:$EE$38,Data!$C$7,FALSE),IF($B$8="Soybeans",VLOOKUP(H22,'Soybeans Drought'!$B$3:$EE$38,Data!$C$7,FALSE),IF(Data!$B$8="Wheat",VLOOKUP(Data!H22,'Wheat Drought'!$B$3:$EE$38,Data!$C$7,FALSE)))))) -> 17 | M22: =IF($B$9="None",0,IF($B$9="Corn",VLOOKUP(H22,'Corn Rain'!B$3:EE$38,$C$7,FALSE),IF($B$9="Cotton",VLOOKUP(H22,CottonRain!$B$3:$EE$38,Data!$C$7,FALSE),IF(Data!$B$9="Soybeans",VLOOKUP(Data!H22,'Soybeans Rain'!$B$3:$EE$38,Data!$C$7,FALSE),IF(Data!$B$9="Wheat",VLOOKUP(Data!H22,'Wheat Rain'!$B$3:$EE$38,Data!$C$7,FALSE)))))) -> 0 | N22: =IF($B$9="None",0,IF($B$9="Corn",VLOOKUP(H22,'Corn Drought'!B$3:EE$38,Data!$C$7,FALSE),IF($B$9="Cotton",VLOOKUP(H22,'Cotton Drought'!$B$3:$EE$38,Data!$C$7,FALSE),IF($B$9="Soybeans",VLOOKUP(H22,'Soybeans Drought'!$B$3:$EE$38,Data!$C$7,FALSE),IF(Data!$B$9="Wheat",VLOOKUP(Data!H22,'Wheat Drought'!$B$3:$EE$38,Data!$C$7,FALSE)))))) -> 0 | O22: =IF($B$8="None",0,VLOOKUP(I22,'Historic Prices'!$A$3:$K$38,$C$8,FALSE)) -> 6.22 | P22: =IF($B$9="None",0,VLOOKUP(I22,'Historic Prices'!$A$3:$K$38,$C$9,FALSE)) -> 0 | Q22: =IF($B$8="None",0,IF(IF(Tool!$C$19="Ideal",$B$2,IF(Tool!$C$19="Scheduled",((VLOOKUP($B$8&$B$10,'Regression Data'!$A$3:$F$30,4,FALSE))+(VLOOKUP($B$8&$B$10,'Regression Data'!$A$3:$F$30,5,FALSE)*(K22+(Tool!$C$20*Data!$B$4/0.0393701)))+(VLOOKUP($B$8&$B$10,'Regression Data'!$A$3:$F$30,6,FALSE)*L22))/2.47105*$B$3))>$B$2,$B$2,(IF(Tool!$C$19="Ideal",$B$2,IF(Tool!$C$19="Scheduled",((VLOOKUP($B$8&$B$10,'Regression Data'!$A$3:$F$30,4,FALSE))+(VLOOKUP($B$8&$B$10,'Regression Data'!$A$3:$F$30,5,FALSE)*(K22+(Tool!$C$20*Data!$B$4/0.0393701)))+(VLOOKUP($B$8&$B$10,'Regression Data'!$A$3:$F$30,6,FALSE)*L22))/2.47105*$B$3))))) -> 184.7279335 | R22: =IF($B$8="None",0,IF(IF((((VLOOKUP($B$8&$B$10,'Regression Data'!$A$3:$F$30,4,FALSE))+(VLOOKUP($B$8&$B$10,'Regression Data'!$A$3:$F$30,5,FALSE)*K22)+(VLOOKUP($B$8&$B$10,'Regression Data'!$A$3:$F$30,6,FALSE)*L22))/2.47105*$B$3)>$B$2,$B$2,((VLOOKUP($B$8&$B$10,'Regression Data'!$A$3:$F$30,4,FALSE))+(VLOOKUP($B$8&$B$10,'Regression Data'!$A$3:$F$30,5,FALSE)*K22)+(VLOOKUP($B$8&$B$10,'Regression Data'!$A$3:$F$30,6,FALSE)*L22))/2.47105*$B$3)<0,0,IF((((VLOOKUP($B$8&$B$10,'Regression Data'!$A$3:$F$30,4,FALSE))+(VLOOKUP($B$8&$B$10,'Regression Data'!$A$3:$F$30,5,FALSE)*K22)+(VLOOKUP($B$8&$B$10,'Regression Data'!$A$3:$F$30,6,FALSE)*L22))/2.47105*$B$3)>$B$2,$B$2,((VLOOKUP($B$8&$B$10,'Regression Data'!$A$3:$F$30,4,FALSE))+(VLOOKUP($B$8&$B$10,'Regression Data'!$A$3:$F$30,5,FALSE)*K22)+(VLOOKUP($B$8&$B$10,'Regression Data'!$A$3:$F$30,6,FALSE)*L22))/2.47105*$B$3))) -> 170.9432945 | S22: =IF($B$9="None",0,IF(IF(Tool!$C$19="Ideal",$C$2,IF(Tool!$C$19="Scheduled",((VLOOKUP($B$9&$B$10,'Regression Data'!$A$3:$F$30,4,FALSE))+(VLOOKUP($B$9&$B$10,'Regression Data'!$A$3:$F$30,5,FALSE)*(N22+(Tool!$C$20*Data!$C$4/0.0393701)))+(VLOOKUP($B$9&$B$10,'Regression Data'!$A$3:$F$30,6,FALSE)*N22))/2.47105*$C$3))>$C$2,$C$2,(IF(Tool!$C$19="Ideal",$C$2,IF(Tool!$C$19="Scheduled",((VLOOKUP($B$9&$B$10,'Regression Data'!$A$3:$F$30,4,FALSE))+(VLOOKUP($B$9&$B$10,'Regression Data'!$A$3:$F$30,5,FALSE)*(M22+(Tool!$C$20*Data!$C$4/0.0393701)))+(VLOOKUP($B$9&$B$10,'Regression Data'!$A$3:$F$30,6,FALSE)*N22))/2.47105*$C$3))))) -> 0 | T22: =IF($B$9="None",0,IF(IF((((VLOOKUP($B$9&$B$10,'Regression Data'!$A$3:$F$30,4,FALSE))+(VLOOKUP($B$9&$B$10,'Regression Data'!$A$3:$F$30,5,FALSE)*M22)+(VLOOKUP($B$9&$B$10,'Regression Data'!$A$3:$F$30,6,FALSE)*N22))/2.47105*$C$3)>$C$2,$C$2,((VLOOKUP($B$9&$B$10,'Regression Data'!$A$3:$F$30,4,FALSE))+(VLOOKUP($B$9&$B$10,'Regression Data'!$A$3:$F$30,5,FALSE)*M22)+(VLOOKUP($B$9&$B$10,'Regression Data'!$A$3:$F$30,6,FALSE)*N22))/2.47105*$C$3)<0,0,(IF((((VLOOKUP($B$9&$B$10,'Regression Data'!$A$3:$F$30,4,FALSE))+(VLOOKUP($B$9&$B$10,'Regression Data'!$A$3:$F$30,5,FALSE)*M22)+(VLOOKUP($B$9&$B$10,'Regression Data'!$A$3:$F$30,6,FALSE)*N22))/2.47105*$C$3)>$C$2,$C$2,((VLOOKUP($B$9&$B$10,'Regression Data'!$A$3:$F$30,4,FALSE))+(VLOOKUP($B$9&$B$10,'Regression Data'!$A$3:$F$30,5,FALSE)*M22)+(VLOOKUP($B$9&$B$10,'Regression Data'!$A$3:$F$30,6,FALSE)*N22))/2.47105*$C$3)))) -> 0 | X22: 114900.7746 | Y22: 106326.7292 | Z22: 8574.045436 | AA22: 0 | AB22: 0 | AC22: 0 | AH22: =IF($B$8="None",0,IF(Tool!$C$19="Rainfall Deficit",((VLOOKUP($B$8,'Regression Data'!$H$3:$K$6,3,FALSE))-K22)*0.0393701,IF(Tool!$C$19="Scheduled",$B$4*Tool!$C$20,))) -> 4.50046306 | AI22: =((IF($B$12="Center Pivot",'System Cost'!B60,IF($B$12="Linear Move",'System Cost'!G60,IF($B$12="Drip",'System Cost'!L60,IF($B$12="Hose Pull",'System Cost'!Q60)))))*(SUM($B$5:$C$5)))-(Tool!$C$28) -> 74360.07143 | AJ22: 9167.923427 | AK22: =IF(AH22<0,0,IF($B$12="Center Pivot",'System Cost'!C60*Data!$B$13*Data!$B$5*Data!AH22,IF($B$12="Hose Pull",$B$5*$B$13*'System Cost'!R60*AH22,IF($B$12="Linear Move",AH22*$B$13*$B$5*'System Cost'!H60,IF($B$12="Drip",$B$5*$B$13*AH22*'System Cost'!M60))))) -> 231.9704794 | AL22: =IF(AH22<0,0,IF($B$12="Center Pivot",'System Cost'!E60*Data!$B$5*Data!AH22,IF($B$12="Drip",AH22*$B$5*'System Cost'!O60,IF($B$12="Linear Move",AH22*$B$5*'System Cost'!J60,IF($B$12="Hose Pull",AH22*$B$5*'System Cost'!T60))))) -> 647.7543472 | AM22: =IF(AH22<0,0,((IF($B$11="Electric",VLOOKUP((IF(I22<1995,1995,I22)),Electric!$A$3:$C$38,3,FALSE)*0.5,IF($B$11="Diesel",VLOOKUP((IF(I22<1995,1995,I22)),Diesel!$A$3:$C$24,3,FALSE),IF(Data!$B$11="Natural Gas",VLOOKUP((IF(I22<1995,1995,I22)),'Natural Gas'!$A$3:$C$38,3,FALSE))))))*(IF($B$12="Center Pivot",'System Cost'!D60,IF($B$12="Linear Move",'System Cost'!I60,IF($B$12="Drip",'System Cost'!N60,IF($B$12="Hose Pull",'System Cost'!S60)))))*AH22*$B$5) -> 2241.202743 | AO22: =IF($B$9="None",0,IF(Tool!$C$19="Rainfall Deficit",((VLOOKUP($B$9,'Regression Data'!$H$3:$K$6,3,FALSE))-M22)*0.0393701,IF(Tool!$C$19="Scheduled",$C$4*Tool!$C$20,))) -> 0 | AP22: =IF(AO22<0,0,IF($B$12="Center Pivot",'System Cost'!C60*Data!$B$13*Data!$C$5*Data!AO22,IF($B$12="Hose Pull",$C$5*$B$13*'System Cost'!R60*AO22,IF($B$12="Linear Move",AO22*$B$13*$C$5*'System Cost'!H60,IF($B$12="Drip",$C$5*$B$13*AO22*'System Cost'!M60))))) -> 0 | AQ22: =IF(AO22<0,0,IF($B$12="Center Pivot",'System Cost'!E60*Data!$C$5*Data!AO22,IF($B$12="Drip",AO22*$C$5*'System Cost'!O60,IF($B$12="Linear Move",AO22*$C$5*'System Cost'!J60,IF($B$12="Hose Pull",AO22*$C$5*'System Cost'!T60))))) -> 0 | AR22: =IF(AO22<0,0,((IF($B$11="Electric",VLOOKUP((IF(I22<1995,1995,I22)),Electric!$A$3:$C$38,3,FALSE),IF($B$11="Diesel",VLOOKUP((IF(I22<1995,1995,I22)),Diesel!$A$3:$C$24,3,FALSE),IF(Data!$B$11="Natural Gas",VLOOKUP((IF(I22<1995,1995,I22)),'Natural Gas'!$A$3:$C$38,3,FALSE))))))*(IF($B$12="Center Pivot",'System Cost'!D60,IF($B$12="Linear Move",'System Cost'!I60,IF($B$12="Drip",'System Cost'!N60,IF($B$12="Hose Pull",'System Cost'!S60)))))*AO22*$C$5) -> 0 | AT22: 231.9704794 | AU22: 647.7543472 | AV22: 2241.202743 | BA22: 5453.117866 | BB22: 0 | BC22: 8574.045436 | BD22: 5453.117866 | BE22: -3714.805561 | BH22: 633.7226305 | BI22: 1445.569317 | BJ22: 10791.1815 | BL22: 26061.02123 | BM22: 13190.54778 | BN22: 3998.414273 | BR22: 4.50046306 | BS22: 0.166683817
H23: 2003 | I23: 2016 | J23: =VLOOKUP(I23,'Corn Rain'!B$3:C$38,2,FALSE) -> 38 | K23: =IF($B$8="None",0,IF($B$8="Corn",VLOOKUP(H23,'Corn Rain'!B$3:EE$38,$C$7,FALSE),IF($B$8="Cotton",VLOOKUP(H23,CottonRain!$B$3:$EE$38,Data!$C$7,FALSE),IF(Data!$B$8="Soybeans",VLOOKUP(Data!H23,'Soybeans Rain'!$B$3:$EE$38,Data!$C$7,FALSE),IF(Data!$B$8="Wheat",VLOOKUP(Data!H23,'Wheat Rain'!$B$3:$EE$38,Data!$C$7,FALSE)))))) -> 447.1517 | L23: =IF($B$8="None",0,IF($B$8="Corn",VLOOKUP(H23,'Corn Drought'!B$3:EE$38,Data!$C$7,FALSE),IF($B$8="Cotton",VLOOKUP(H23,'Cotton Drought'!$B$3:$EE$38,Data!$C$7,FALSE),IF($B$8="Soybeans",VLOOKUP(H23,'Soybeans Drought'!$B$3:$EE$38,Data!$C$7,FALSE),IF(Data!$B$8="Wheat",VLOOKUP(Data!H23,'Wheat Drought'!$B$3:$EE$38,Data!$C$7,FALSE)))))) -> 31 | M23: =IF($B$9="None",0,IF($B$9="Corn",VLOOKUP(H23,'Corn Rain'!B$3:EE$38,$C$7,FALSE),IF($B$9="Cotton",VLOOKUP(H23,CottonRain!$B$3:$EE$38,Data!$C$7,FALSE),IF(Data!$B$9="Soybeans",VLOOKUP(Data!H23,'Soybeans Rain'!$B$3:$EE$38,Data!$C$7,FALSE),IF(Data!$B$9="Wheat",VLOOKUP(Data!H23,'Wheat Rain'!$B$3:$EE$38,Data!$C$7,FALSE)))))) -> 0 | N23: =IF($B$9="None",0,IF($B$9="Corn",VLOOKUP(H23,'Corn Drought'!B$3:EE$38,Data!$C$7,FALSE),IF($B$9="Cotton",VLOOKUP(H23,'Cotton Drought'!$B$3:$EE$38,Data!$C$7,FALSE),IF($B$9="Soybeans",VLOOKUP(H23,'Soybeans Drought'!$B$3:$EE$38,Data!$C$7,FALSE),IF(Data!$B$9="Wheat",VLOOKUP(Data!H23,'Wheat Drought'!$B$3:$EE$38,Data!$C$7,FALSE)))))) -> 0 | O23: =IF($B$8="None",0,VLOOKUP(I23,'Historic Prices'!$A$3:$K$38,$C$8,FALSE)) -> 3.4 | P23: =IF($B$9="None",0,VLOOKUP(I23,'Historic Prices'!$A$3:$K$38,$C$9,FALSE)) -> 0 | Q23: =IF($B$8="None",0,IF(IF(Tool!$C$19="Ideal",$B$2,IF(Tool!$C$19="Scheduled",((VLOOKUP($B$8&$B$10,'Regression Data'!$A$3:$F$30,4,FALSE))+(VLOOKUP($B$8&$B$10,'Regression Data'!$A$3:$F$30,5,FALSE)*(K23+(Tool!$C$20*Data!$B$4/0.0393701)))+(VLOOKUP($B$8&$B$10,'Regression Data'!$A$3:$F$30,6,FALSE)*L23))/2.47105*$B$3))>$B$2,$B$2,(IF(Tool!$C$19="Ideal",$B$2,IF(Tool!$C$19="Scheduled",((VLOOKUP($B$8&$B$10,'Regression Data'!$A$3:$F$30,4,FALSE))+(VLOOKUP($B$8&$B$10,'Regression Data'!$A$3:$F$30,5,FALSE)*(K23+(Tool!$C$20*Data!$B$4/0.0393701)))+(VLOOKUP($B$8&$B$10,'Regression Data'!$A$3:$F$30,6,FALSE)*L23))/2.47105*$B$3))))) -> 184.7279335 | R23: =IF($B$8="None",0,IF(IF((((VLOOKUP($B$8&$B$10,'Regression Data'!$A$3:$F$30,4,FALSE))+(VLOOKUP($B$8&$B$10,'Regression Data'!$A$3:$F$30,5,FALSE)*K23)+(VLOOKUP($B$8&$B$10,'Regression Data'!$A$3:$F$30,6,FALSE)*L23))/2.47105*$B$3)>$B$2,$B$2,((VLOOKUP($B$8&$B$10,'Regression Data'!$A$3:$F$30,4,FALSE))+(VLOOKUP($B$8&$B$10,'Regression Data'!$A$3:$F$30,5,FALSE)*K23)+(VLOOKUP($B$8&$B$10,'Regression Data'!$A$3:$F$30,6,FALSE)*L23))/2.47105*$B$3)<0,0,IF((((VLOOKUP($B$8&$B$10,'Regression Data'!$A$3:$F$30,4,FALSE))+(VLOOKUP($B$8&$B$10,'Regression Data'!$A$3:$F$30,5,FALSE)*K23)+(VLOOKUP($B$8&$B$10,'Regression Data'!$A$3:$F$30,6,FALSE)*L23))/2.47105*$B$3)>$B$2,$B$2,((VLOOKUP($B$8&$B$10,'Regression Data'!$A$3:$F$30,4,FALSE))+(VLOOKUP($B$8&$B$10,'Regression Data'!$A$3:$F$30,5,FALSE)*K23)+(VLOOKUP($B$8&$B$10,'Regression Data'!$A$3:$F$30,6,FALSE)*L23))/2.47105*$B$3))) -> 121.744136 | S23: =IF($B$9="None",0,IF(IF(Tool!$C$19="Ideal",$C$2,IF(Tool!$C$19="Scheduled",((VLOOKUP($B$9&$B$10,'Regression Data'!$A$3:$F$30,4,FALSE))+(VLOOKUP($B$9&$B$10,'Regression Data'!$A$3:$F$30,5,FALSE)*(N23+(Tool!$C$20*Data!$C$4/0.0393701)))+(VLOOKUP($B$9&$B$10,'Regression Data'!$A$3:$F$30,6,FALSE)*N23))/2.47105*$C$3))>$C$2,$C$2,(IF(Tool!$C$19="Ideal",$C$2,IF(Tool!$C$19="Scheduled",((VLOOKUP($B$9&$B$10,'Regression Data'!$A$3:$F$30,4,FALSE))+(VLOOKUP($B$9&$B$10,'Regression Data'!$A$3:$F$30,5,FALSE)*(M23+(Tool!$C$20*Data!$C$4/0.0393701)))+(VLOOKUP($B$9&$B$10,'Regression Data'!$A$3:$F$30,6,FALSE)*N23))/2.47105*$C$3))))) -> 0 | T23: =IF($B$9="None",0,IF(IF((((VLOOKUP($B$9&$B$10,'Regression Data'!$A$3:$F$30,4,FALSE))+(VLOOKUP($B$9&$B$10,'Regression Data'!$A$3:$F$30,5,FALSE)*M23)+(VLOOKUP($B$9&$B$10,'Regression Data'!$A$3:$F$30,6,FALSE)*N23))/2.47105*$C$3)>$C$2,$C$2,((VLOOKUP($B$9&$B$10,'Regression Data'!$A$3:$F$30,4,FALSE))+(VLOOKUP($B$9&$B$10,'Regression Data'!$A$3:$F$30,5,FALSE)*M23)+(VLOOKUP($B$9&$B$10,'Regression Data'!$A$3:$F$30,6,FALSE)*N23))/2.47105*$C$3)<0,0,(IF((((VLOOKUP($B$9&$B$10,'Regression Data'!$A$3:$F$30,4,FALSE))+(VLOOKUP($B$9&$B$10,'Regression Data'!$A$3:$F$30,5,FALSE)*M23)+(VLOOKUP($B$9&$B$10,'Regression Data'!$A$3:$F$30,6,FALSE)*N23))/2.47105*$C$3)>$C$2,$C$2,((VLOOKUP($B$9&$B$10,'Regression Data'!$A$3:$F$30,4,FALSE))+(VLOOKUP($B$9&$B$10,'Regression Data'!$A$3:$F$30,5,FALSE)*M23)+(VLOOKUP($B$9&$B$10,'Regression Data'!$A$3:$F$30,6,FALSE)*N23))/2.47105*$C$3)))) -> 0 | X23: 62807.49738 | Y23: 41393.00625 | Z23: 21414.49113 | AA23: 0 | AB23: 0 | AC23: 0 | AH23: =IF($B$8="None",0,IF(Tool!$C$19="Rainfall Deficit",((VLOOKUP($B$8,'Regression Data'!$H$3:$K$6,3,FALSE))-K23)*0.0393701,IF(Tool!$C$19="Scheduled",$B$4*Tool!$C$20,))) -> 7.986157856 | AI23: =((IF($B$12="Center Pivot",'System Cost'!B61,IF($B$12="Linear Move",'System Cost'!G61,IF($B$12="Drip",'System Cost'!L61,IF($B$12="Hose Pull",'System Cost'!Q61)))))*(SUM($B$5:$C$5)))-(Tool!$C$28) -> 76148.30808 | AJ23: 9388.396812 | AK23: =IF(AH23<0,0,IF($B$12="Center Pivot",'System Cost'!C61*Data!$B$13*Data!$B$5*Data!AH23,IF($B$12="Hose Pull",$B$5*$B$13*'System Cost'!R61*AH23,IF($B$12="Linear Move",AH23*$B$13*$B$5*'System Cost'!H61,IF($B$12="Drip",$B$5*$B$13*AH23*'System Cost'!M61))))) -> 198.8160695 | AL23: =IF(AH23<0,0,IF($B$12="Center Pivot",'System Cost'!E61*Data!$B$5*Data!AH23,IF($B$12="Drip",AH23*$B$5*'System Cost'!O61,IF($B$12="Linear Move",AH23*$B$5*'System Cost'!J61,IF($B$12="Hose Pull",AH23*$B$5*'System Cost'!T61))))) -> 724.9095681 | AM23: =IF(AH23<0,0,((IF($B$11="Electric",VLOOKUP((IF(I23<1995,1995,I23)),Electric!$A$3:$C$38,3,FALSE)*0.5,IF($B$11="Diesel",VLOOKUP((IF(I23<1995,1995,I23)),Diesel!$A$3:$C$24,3,FALSE),IF(Data!$B$11="Natural Gas",VLOOKUP((IF(I23<1995,1995,I23)),'Natural Gas'!$A$3:$C$38,3,FALSE))))))*(IF($B$12="Center Pivot",'System Cost'!D61,IF($B$12="Linear Move",'System Cost'!I61,IF($B$12="Drip",'System Cost'!N61,IF($B$12="Hose Pull",'System Cost'!S61)))))*AH23*$B$5) -> 5804.522002 | AO23: =IF($B$9="None",0,IF(Tool!$C$19="Rainfall Deficit",((VLOOKUP($B$9,'Regression Data'!$H$3:$K$6,3,FALSE))-M23)*0.0393701,IF(Tool!$C$19="Scheduled",$C$4*Tool!$C$20,))) -> 0 | AP23: =IF(AO23<0,0,IF($B$12="Center Pivot",'System Cost'!C61*Data!$B$13*Data!$C$5*Data!AO23,IF($B$12="Hose Pull",$C$5*$B$13*'System Cost'!R61*AO23,IF($B$12="Linear Move",AO23*$B$13*$C$5*'System Cost'!H61,IF($B$12="Drip",$C$5*$B$13*AO23*'System Cost'!M61))))) -> 0 | AQ23: =IF(AO23<0,0,IF($B$12="Center Pivot",'System Cost'!E61*Data!$C$5*Data!AO23,IF($B$12="Drip",AO23*$C$5*'System Cost'!O61,IF($B$12="Linear Move",AO23*$C$5*'System Cost'!J61,IF($B$12="Hose Pull",AO23*$C$5*'System Cost'!T61))))) -> 0 | AR23: =IF(AO23<0,0,((IF($B$11="Electric",VLOOKUP((IF(I23<1995,1995,I23)),Electric!$A$3:$C$38,3,FALSE),IF($B$11="Diesel",VLOOKUP((IF(I23<1995,1995,I23)),Diesel!$A$3:$C$24,3,FALSE),IF(Data!$B$11="Natural Gas",VLOOKUP((IF(I23<1995,1995,I23)),'Natural Gas'!$A$3:$C$38,3,FALSE))))))*(IF($B$12="Center Pivot",'System Cost'!D61,IF($B$12="Linear Move",'System Cost'!I61,IF($B$12="Drip",'System Cost'!N61,IF($B$12="Hose Pull",'System Cost'!S61)))))*AO23*$C$5) -> 0 | AT23: 198.8160695 | AU23: 724.9095681 | AV23: 5804.522002 | BA23: 14686.24349 | BB23: 0 | BC23: 21414.49113 | BD23: 14686.24349 | BE23: 5297.846682 | BH23: 749.5007221 | BI23: 1198.859979 | BJ23: 12240.48055 | BL23: 26651.73933 | BM23: 12462.89808 | BN23: 2964.435394 | BR23: 7.986157856 | BS23: 0.2957836243
A24: Mean water deficit (inch) | B24: =AVERAGE(AH3:AH5003) -> 10.75306869 | H24: 1989 | I24: 2009 | J24: =VLOOKUP(I24,'Corn Rain'!B$3:C$38,2,FALSE) -> 31 | K24: =IF($B$8="None",0,IF($B$8="Corn",VLOOKUP(H24,'Corn Rain'!B$3:EE$38,$C$7,FALSE),IF($B$8="Cotton",VLOOKUP(H24,CottonRain!$B$3:$EE$38,Data!$C$7,FALSE),IF(Data!$B$8="Soybeans",VLOOKUP(Data!H24,'Soybeans Rain'!$B$3:$EE$38,Data!$C$7,FALSE),IF(Data!$B$8="Wheat",VLOOKUP(Data!H24,'Wheat Rain'!$B$3:$EE$38,Data!$C$7,FALSE)))))) -> 630.1766 | L24: =IF($B$8="None",0,IF($B$8="Corn",VLOOKUP(H24,'Corn Drought'!B$3:EE$38,Data!$C$7,FALSE),IF($B$8="Cotton",VLOOKUP(H24,'Cotton Drought'!$B$3:$EE$38,Data!$C$7,FALSE),IF($B$8="Soybeans",VLOOKUP(H24,'Soybeans Drought'!$B$3:$EE$38,Data!$C$7,FALSE),IF(Data!$B$8="Wheat",VLOOKUP(Data!H24,'Wheat Drought'!$B$3:$EE$38,Data!$C$7,FALSE)))))) -> 26 | M24: =IF($B$9="None",0,IF($B$9="Corn",VLOOKUP(H24,'Corn Rain'!B$3:EE$38,$C$7,FALSE),IF($B$9="Cotton",VLOOKUP(H24,CottonRain!$B$3:$EE$38,Data!$C$7,FALSE),IF(Data!$B$9="Soybeans",VLOOKUP(Data!H24,'Soybeans Rain'!$B$3:$EE$38,Data!$C$7,FALSE),IF(Data!$B$9="Wheat",VLOOKUP(Data!H24,'Wheat Rain'!$B$3:$EE$38,Data!$C$7,FALSE)))))) -> 0 | N24: =IF($B$9="None",0,IF($B$9="Corn",VLOOKUP(H24,'Corn Drought'!B$3:EE$38,Data!$C$7,FALSE),IF($B$9="Cotton",VLOOKUP(H24,'Cotton Drought'!$B$3:$EE$38,Data!$C$7,FALSE),IF($B$9="Soybeans",VLOOKUP(H24,'Soybeans Drought'!$B$3:$EE$38,Data!$C$7,FALSE),IF(Data!$B$9="Wheat",VLOOKUP(Data!H24,'Wheat Drought'!$B$3:$EE$38,Data!$C$7,FALSE)))))) -> 0 | O24: =IF($B$8="None",0,VLOOKUP(I24,'Historic Prices'!$A$3:$K$38,$C$8,FALSE)) -> 3.55 | P24: =IF($B$9="None",0,VLOOKUP(I24,'Historic Prices'!$A$3:$K$38,$C$9,FALSE)) -> 0 | Q24: =IF($B$8="None",0,IF(IF(Tool!$C$19="Ideal",$B$2,IF(Tool!$C$19="Scheduled",((VLOOKUP($B$8&$B$10,'Regression Data'!$A$3:$F$30,4,FALSE))+(VLOOKUP($B$8&$B$10,'Regression Data'!$A$3:$F$30,5,FALSE)*(K24+(Tool!$C$20*Data!$B$4/0.0393701)))+(VLOOKUP($B$8&$B$10,'Regression Data'!$A$3:$F$30,6,FALSE)*L24))/2.47105*$B$3))>$B$2,$B$2,(IF(Tool!$C$19="Ideal",$B$2,IF(Tool!$C$19="Scheduled",((VLOOKUP($B$8&$B$10,'Regression Data'!$A$3:$F$30,4,FALSE))+(VLOOKUP($B$8&$B$10,'Regression Data'!$A$3:$F$30,5,FALSE)*(K24+(Tool!$C$20*Data!$B$4/0.0393701)))+(VLOOKUP($B$8&$B$10,'Regression Data'!$A$3:$F$30,6,FALSE)*L24))/2.47105*$B$3))))) -> 184.7279335 | R24: =IF($B$8="None",0,IF(IF((((VLOOKUP($B$8&$B$10,'Regression Data'!$A$3:$F$30,4,FALSE))+(VLOOKUP($B$8&$B$10,'Regression Data'!$A$3:$F$30,5,FALSE)*K24)+(VLOOKUP($B$8&$B$10,'Regression Data'!$A$3:$F$30,6,FALSE)*L24))/2.47105*$B$3)>$B$2,$B$2,((VLOOKUP($B$8&$B$10,'Regression Data'!$A$3:$F$30,4,FALSE))+(VLOOKUP($B$8&$B$10,'Regression Data'!$A$3:$F$30,5,FALSE)*K24)+(VLOOKUP($B$8&$B$10,'Regression Data'!$A$3:$F$30,6,FALSE)*L24))/2.47105*$B$3)<0,0,IF((((VLOOKUP($B$8&$B$10,'Regression Data'!$A$3:$F$30,4,FALSE))+(VLOOKUP($B$8&$B$10,'Regression Data'!$A$3:$F$30,5,FALSE)*K24)+(VLOOKUP($B$8&$B$10,'Regression Data'!$A$3:$F$30,6,FALSE)*L24))/2.47105*$B$3)>$B$2,$B$2,((VLOOKUP($B$8&$B$10,'Regression Data'!$A$3:$F$30,4,FALSE))+(VLOOKUP($B$8&$B$10,'Regression Data'!$A$3:$F$30,5,FALSE)*K24)+(VLOOKUP($B$8&$B$10,'Regression Data'!$A$3:$F$30,6,FALSE)*L24))/2.47105*$B$3))) -> 184.7279335 | S24: =IF($B$9="None",0,IF(IF(Tool!$C$19="Ideal",$C$2,IF(Tool!$C$19="Scheduled",((VLOOKUP($B$9&$B$10,'Regression Data'!$A$3:$F$30,4,FALSE))+(VLOOKUP($B$9&$B$10,'Regression Data'!$A$3:$F$30,5,FALSE)*(N24+(Tool!$C$20*Data!$C$4/0.0393701)))+(VLOOKUP($B$9&$B$10,'Regression Data'!$A$3:$F$30,6,FALSE)*N24))/2.47105*$C$3))>$C$2,$C$2,(IF(Tool!$C$19="Ideal",$C$2,IF(Tool!$C$19="Scheduled",((VLOOKUP($B$9&$B$10,'Regression Data'!$A$3:$F$30,4,FALSE))+(VLOOKUP($B$9&$B$10,'Regression Data'!$A$3:$F$30,5,FALSE)*(M24+(Tool!$C$20*Data!$C$4/0.0393701)))+(VLOOKUP($B$9&$B$10,'Regression Data'!$A$3:$F$30,6,FALSE)*N24))/2.47105*$C$3))))) -> 0 | T24: =IF($B$9="None",0,IF(IF((((VLOOKUP($B$9&$B$10,'Regression Data'!$A$3:$F$30,4,FALSE))+(VLOOKUP($B$9&$B$10,'Regression Data'!$A$3:$F$30,5,FALSE)*M24)+(VLOOKUP($B$9&$B$10,'Regression Data'!$A$3:$F$30,6,FALSE)*N24))/2.47105*$C$3)>$C$2,$C$2,((VLOOKUP($B$9&$B$10,'Regression Data'!$A$3:$F$30,4,FALSE))+(VLOOKUP($B$9&$B$10,'Regression Data'!$A$3:$F$30,5,FALSE)*M24)+(VLOOKUP($B$9&$B$10,'Regression Data'!$A$3:$F$30,6,FALSE)*N24))/2.47105*$C$3)<0,0,(IF((((VLOOKUP($B$9&$B$10,'Regression Data'!$A$3:$F$30,4,FALSE))+(VLOOKUP($B$9&$B$10,'Regression Data'!$A$3:$F$30,5,FALSE)*M24)+(VLOOKUP($B$9&$B$10,'Regression Data'!$A$3:$F$30,6,FALSE)*N24))/2.47105*$C$3)>$C$2,$C$2,((VLOOKUP($B$9&$B$10,'Regression Data'!$A$3:$F$30,4,FALSE))+(VLOOKUP($B$9&$B$10,'Regression Data'!$A$3:$F$30,5,FALSE)*M24)+(VLOOKUP($B$9&$B$10,'Regression Data'!$A$3:$F$30,6,FALSE)*N24))/2.47105*$C$3)))) -> 0 | X24: 65578.41638 | Y24: 65578.41638 | Z24: -1.455191523e-11 | AA24: 0 | AB24: 0 | AC24: 0 | AH24: =IF($B$8="None",0,IF(Tool!$C$19="Rainfall Deficit",((VLOOKUP($B$8,'Regression Data'!$H$3:$K$6,3,FALSE))-K24)*0.0393701,IF(Tool!$C$19="Scheduled",$B$4*Tool!$C$20,))) -> 0.7804492403 | AI24: =((IF($B$12="Center Pivot",'System Cost'!B62,IF($B$12="Linear Move",'System Cost'!G62,IF($B$12="Drip",'System Cost'!L62,IF($B$12="Hose Pull",'System Cost'!Q62)))))*(SUM($B$5:$C$5)))-(Tool!$C$28) -> 76419.80341 | AJ24: 9421.869728 | AK24: =IF(AH24<0,0,IF($B$12="Center Pivot",'System Cost'!C62*Data!$B$13*Data!$B$5*Data!AH24,IF($B$12="Hose Pull",$B$5*$B$13*'System Cost'!R62*AH24,IF($B$12="Linear Move",AH24*$B$13*$B$5*'System Cost'!H62,IF($B$12="Drip",$B$5*$B$13*AH24*'System Cost'!M62))))) -> 114.2209168 | AL24: =IF(AH24<0,0,IF($B$12="Center Pivot",'System Cost'!E62*Data!$B$5*Data!AH24,IF($B$12="Drip",AH24*$B$5*'System Cost'!O62,IF($B$12="Linear Move",AH24*$B$5*'System Cost'!J62,IF($B$12="Hose Pull",AH24*$B$5*'System Cost'!T62))))) -> 29.96061383 | AM24: =IF(AH24<0,0,((IF($B$11="Electric",VLOOKUP((IF(I24<1995,1995,I24)),Electric!$A$3:$C$38,3,FALSE)*0.5,IF($B$11="Diesel",VLOOKUP((IF(I24<1995,1995,I24)),Diesel!$A$3:$C$24,3,FALSE),IF(Data!$B$11="Natural Gas",VLOOKUP((IF(I24<1995,1995,I24)),'Natural Gas'!$A$3:$C$38,3,FALSE))))))*(IF($B$12="Center Pivot",'System Cost'!D62,IF($B$12="Linear Move",'System Cost'!I62,IF($B$12="Drip",'System Cost'!N62,IF($B$12="Hose Pull",'System Cost'!S62)))))*AH24*$B$5) -> 472.3056574 | AO24: =IF($B$9="None",0,IF(Tool!$C$19="Rainfall Deficit",((VLOOKUP($B$9,'Regression Data'!$H$3:$K$6,3,FALSE))-M24)*0.0393701,IF(Tool!$C$19="Scheduled",$C$4*Tool!$C$20,))) -> 0 | AP24: =IF(AO24<0,0,IF($B$12="Center Pivot",'System Cost'!C62*Data!$B$13*Data!$C$5*Data!AO24,IF($B$12="Hose Pull",$C$5*$B$13*'System Cost'!R62*AO24,IF($B$12="Linear Move",AO24*$B$13*$C$5*'System Cost'!H62,IF($B$12="Drip",$C$5*$B$13*AO24*'System Cost'!M62))))) -> 0 | AQ24: =IF(AO24<0,0,IF($B$12="Center Pivot",'System Cost'!E62*Data!$C$5*Data!AO24,IF($B$12="Drip",AO24*$C$5*'System Cost'!O62,IF($B$12="Linear Move",AO24*$C$5*'System Cost'!J62,IF($B$12="Hose Pull",AO24*$C$5*'System Cost'!T62))))) -> 0 | AR24: =IF(AO24<0,0,((IF($B$11="Electric",VLOOKUP((IF(I24<1995,1995,I24)),Electric!$A$3:$C$38,3,FALSE),IF($B$11="Diesel",VLOOKUP((IF(I24<1995,1995,I24)),Diesel!$A$3:$C$24,3,FALSE),IF(Data!$B$11="Natural Gas",VLOOKUP((IF(I24<1995,1995,I24)),'Natural Gas'!$A$3:$C$38,3,FALSE))))))*(IF($B$12="Center Pivot",'System Cost'!D62,IF($B$12="Linear Move",'System Cost'!I62,IF($B$12="Drip",'System Cost'!N62,IF($B$12="Hose Pull",'System Cost'!S62)))))*AO24*$C$5) -> 0 | AT24: 114.2209168 | AU24: 29.96061383 | AV24: 472.3056574 | BA24: -616.487188 | BB24: 0 | BC24: -1.455191523e-11 | BD24: -616.487188 | BE24: -10038.35692 | BH24: 1058.785308 | BI24: 1750.779615 | BJ24: 10532.64474 | BL24: 27790.7019 | BM24: 14448.49224 | BN24: 5233.42145 | BR24: 0.7804492403 | BS24: 0.02890552742
H25: 1991 | I25: 2004 | J25: =VLOOKUP(I25,'Corn Rain'!B$3:C$38,2,FALSE) -> 26 | K25: =IF($B$8="None",0,IF($B$8="Corn",VLOOKUP(H25,'Corn Rain'!B$3:EE$38,$C$7,FALSE),IF($B$8="Cotton",VLOOKUP(H25,CottonRain!$B$3:$EE$38,Data!$C$7,FALSE),IF(Data!$B$8="Soybeans",VLOOKUP(Data!H25,'Soybeans Rain'!$B$3:$EE$38,Data!$C$7,FALSE),IF(Data!$B$8="Wheat",VLOOKUP(Data!H25,'Wheat Rain'!$B$3:$EE$38,Data!$C$7,FALSE)))))) -> 305.8334 | L25: =IF($B$8="None",0,IF($B$8="Corn",VLOOKUP(H25,'Corn Drought'!B$3:EE$38,Data!$C$7,FALSE),IF($B$8="Cotton",VLOOKUP(H25,'Cotton Drought'!$B$3:$EE$38,Data!$C$7,FALSE),IF($B$8="Soybeans",VLOOKUP(H25,'Soybeans Drought'!$B$3:$EE$38,Data!$C$7,FALSE),IF(Data!$B$8="Wheat",VLOOKUP(Data!H25,'Wheat Drought'!$B$3:$EE$38,Data!$C$7,FALSE)))))) -> 50 | M25: =IF($B$9="None",0,IF($B$9="Corn",VLOOKUP(H25,'Corn Rain'!B$3:EE$38,$C$7,FALSE),IF($B$9="Cotton",VLOOKUP(H25,CottonRain!$B$3:$EE$38,Data!$C$7,FALSE),IF(Data!$B$9="Soybeans",VLOOKUP(Data!H25,'Soybeans Rain'!$B$3:$EE$38,Data!$C$7,FALSE),IF(Data!$B$9="Wheat",VLOOKUP(Data!H25,'Wheat Rain'!$B$3:$EE$38,Data!$C$7,FALSE)))))) -> 0 | N25: =IF($B$9="None",0,IF($B$9="Corn",VLOOKUP(H25,'Corn Drought'!B$3:EE$38,Data!$C$7,FALSE),IF($B$9="Cotton",VLOOKUP(H25,'Cotton Drought'!$B$3:$EE$38,Data!$C$7,FALSE),IF($B$9="Soybeans",VLOOKUP(H25,'Soybeans Drought'!$B$3:$EE$38,Data!$C$7,FALSE),IF(Data!$B$9="Wheat",VLOOKUP(Data!H25,'Wheat Drought'!$B$3:$EE$38,Data!$C$7,FALSE)))))) -> 0 | O25: =IF($B$8="None",0,VLOOKUP(I25,'Historic Prices'!$A$3:$K$38,$C$8,FALSE)) -> 2.06 | P25: =IF($B$9="None",0,VLOOKUP(I25,'Historic Prices'!$A$3:$K$38,$C$9,FALSE)) -> 0 | Q25: =IF($B$8="None",0,IF(IF(Tool!$C$19="Ideal",$B$2,IF(Tool!$C$19="Scheduled",((VLOOKUP($B$8&$B$10,'Regression Data'!$A$3:$F$30,4,FALSE))+(VLOOKUP($B$8&$B$10,'Regression Data'!$A$3:$F$30,5,FALSE)*(K25+(Tool!$C$20*Data!$B$4/0.0393701)))+(VLOOKUP($B$8&$B$10,'Regression Data'!$A$3:$F$30,6,FALSE)*L25))/2.47105*$B$3))>$B$2,$B$2,(IF(Tool!$C$19="Ideal",$B$2,IF(Tool!$C$19="Scheduled",((VLOOKUP($B$8&$B$10,'Regression Data'!$A$3:$F$30,4,FALSE))+(VLOOKUP($B$8&$B$10,'Regression Data'!$A$3:$F$30,5,FALSE)*(K25+(Tool!$C$20*Data!$B$4/0.0393701)))+(VLOOKUP($B$8&$B$10,'Regression Data'!$A$3:$F$30,6,FALSE)*L25))/2.47105*$B$3))))) -> 184.7279335 | R25: =IF($B$8="None",0,IF(IF((((VLOOKUP($B$8&$B$10,'Regression Data'!$A$3:$F$30,4,FALSE))+(VLOOKUP($B$8&$B$10,'Regression Data'!$A$3:$F$30,5,FALSE)*K25)+(VLOOKUP($B$8&$B$10,'Regression Data'!$A$3:$F$30,6,FALSE)*L25))/2.47105*$B$3)>$B$2,$B$2,((VLOOKUP($B$8&$B$10,'Regression Data'!$A$3:$F$30,4,FALSE))+(VLOOKUP($B$8&$B$10,'Regression Data'!$A$3:$F$30,5,FALSE)*K25)+(VLOOKUP($B$8&$B$10,'Regression Data'!$A$3:$F$30,6,FALSE)*L25))/2.47105*$B$3)<0,0,IF((((VLOOKUP($B$8&$B$10,'Regression Data'!$A$3:$F$30,4,FALSE))+(VLOOKUP($B$8&$B$10,'Regression Data'!$A$3:$F$30,5,FALSE)*K25)+(VLOOKUP($B$8&$B$10,'Regression Data'!$A$3:$F$30,6,FALSE)*L25))/2.47105*$B$3)>$B$2,$B$2,((VLOOKUP($B$8&$B$10,'Regression Data'!$A$3:$F$30,4,FALSE))+(VLOOKUP($B$8&$B$10,'Regression Data'!$A$3:$F$30,5,FALSE)*K25)+(VLOOKUP($B$8&$B$10,'Regression Data'!$A$3:$F$30,6,FALSE)*L25))/2.47105*$B$3))) -> 48.23108534 | S25: =IF($B$9="None",0,IF(IF(Tool!$C$19="Ideal",$C$2,IF(Tool!$C$19="Scheduled",((VLOOKUP($B$9&$B$10,'Regression Data'!$A$3:$F$30,4,FALSE))+(VLOOKUP($B$9&$B$10,'Regression Data'!$A$3:$F$30,5,FALSE)*(N25+(Tool!$C$20*Data!$C$4/0.0393701)))+(VLOOKUP($B$9&$B$10,'Regression Data'!$A$3:$F$30,6,FALSE)*N25))/2.47105*$C$3))>$C$2,$C$2,(IF(Tool!$C$19="Ideal",$C$2,IF(Tool!$C$19="Scheduled",((VLOOKUP($B$9&$B$10,'Regression Data'!$A$3:$F$30,4,FALSE))+(VLOOKUP($B$9&$B$10,'Regression Data'!$A$3:$F$30,5,FALSE)*(M25+(Tool!$C$20*Data!$C$4/0.0393701)))+(VLOOKUP($B$9&$B$10,'Regression Data'!$A$3:$F$30,6,FALSE)*N25))/2.47105*$C$3))))) -> 0 | T25: =IF($B$9="None",0,IF(IF((((VLOOKUP($B$9&$B$10,'Regression Data'!$A$3:$F$30,4,FALSE))+(VLOOKUP($B$9&$B$10,'Regression Data'!$A$3:$F$30,5,FALSE)*M25)+(VLOOKUP($B$9&$B$10,'Regression Data'!$A$3:$F$30,6,FALSE)*N25))/2.47105*$C$3)>$C$2,$C$2,((VLOOKUP($B$9&$B$10,'Regression Data'!$A$3:$F$30,4,FALSE))+(VLOOKUP($B$9&$B$10,'Regression Data'!$A$3:$F$30,5,FALSE)*M25)+(VLOOKUP($B$9&$B$10,'Regression Data'!$A$3:$F$30,6,FALSE)*N25))/2.47105*$C$3)<0,0,(IF((((VLOOKUP($B$9&$B$10,'Regression Data'!$A$3:$F$30,4,FALSE))+(VLOOKUP($B$9&$B$10,'Regression Data'!$A$3:$F$30,5,FALSE)*M25)+(VLOOKUP($B$9&$B$10,'Regression Data'!$A$3:$F$30,6,FALSE)*N25))/2.47105*$C$3)>$C$2,$C$2,((VLOOKUP($B$9&$B$10,'Regression Data'!$A$3:$F$30,4,FALSE))+(VLOOKUP($B$9&$B$10,'Regression Data'!$A$3:$F$30,5,FALSE)*M25)+(VLOOKUP($B$9&$B$10,'Regression Data'!$A$3:$F$30,6,FALSE)*N25))/2.47105*$C$3)))) -> 0 | X25: 38053.95429 | Y25: 9935.60358 | Z25: 28118.35072 | AA25: 0 | AB25: 0 | AC25: 0 | AH25: =IF($B$8="None",0,IF(Tool!$C$19="Rainfall Deficit",((VLOOKUP($B$8,'Regression Data'!$H$3:$K$6,3,FALSE))-K25)*0.0393701,IF(Tool!$C$19="Scheduled",$B$4*Tool!$C$20,))) -> 13.54987346 | AI25: =((IF($B$12="Center Pivot",'System Cost'!B63,IF($B$12="Linear Move",'System Cost'!G63,IF($B$12="Drip",'System Cost'!L63,IF($B$12="Hose Pull",'System Cost'!Q63)))))*(SUM($B$5:$C$5)))-(Tool!$C$28) -> 74474.28985 | AJ25: 9182.005525 | AK25: =IF(AH25<0,0,IF($B$12="Center Pivot",'System Cost'!C63*Data!$B$13*Data!$B$5*Data!AH25,IF($B$12="Hose Pull",$B$5*$B$13*'System Cost'!R63*AH25,IF($B$12="Linear Move",AH25*$B$13*$B$5*'System Cost'!H63,IF($B$12="Drip",$B$5*$B$13*AH25*'System Cost'!M63))))) -> 1922.650826 | AL25: =IF(AH25<0,0,IF($B$12="Center Pivot",'System Cost'!E63*Data!$B$5*Data!AH25,IF($B$12="Drip",AH25*$B$5*'System Cost'!O63,IF($B$12="Linear Move",AH25*$B$5*'System Cost'!J63,IF($B$12="Hose Pull",AH25*$B$5*'System Cost'!T63))))) -> 1534.794227 | AM25: =IF(AH25<0,0,((IF($B$11="Electric",VLOOKUP((IF(I25<1995,1995,I25)),Electric!$A$3:$C$38,3,FALSE)*0.5,IF($B$11="Diesel",VLOOKUP((IF(I25<1995,1995,I25)),Diesel!$A$3:$C$24,3,FALSE),IF(Data!$B$11="Natural Gas",VLOOKUP((IF(I25<1995,1995,I25)),'Natural Gas'!$A$3:$C$38,3,FALSE))))))*(IF($B$12="Center Pivot",'System Cost'!D63,IF($B$12="Linear Move",'System Cost'!I63,IF($B$12="Drip",'System Cost'!N63,IF($B$12="Hose Pull",'System Cost'!S63)))))*AH25*$B$5) -> 6902.044053 | AO25: =IF($B$9="None",0,IF(Tool!$C$19="Rainfall Deficit",((VLOOKUP($B$9,'Regression Data'!$H$3:$K$6,3,FALSE))-M25)*0.0393701,IF(Tool!$C$19="Scheduled",$C$4*Tool!$C$20,))) -> 0 | AP25: =IF(AO25<0,0,IF($B$12="Center Pivot",'System Cost'!C63*Data!$B$13*Data!$C$5*Data!AO25,IF($B$12="Hose Pull",$C$5*$B$13*'System Cost'!R63*AO25,IF($B$12="Linear Move",AO25*$B$13*$C$5*'System Cost'!H63,IF($B$12="Drip",$C$5*$B$13*AO25*'System Cost'!M63))))) -> 0 | AQ25: =IF(AO25<0,0,IF($B$12="Center Pivot",'System Cost'!E63*Data!$C$5*Data!AO25,IF($B$12="Drip",AO25*$C$5*'System Cost'!O63,IF($B$12="Linear Move",AO25*$C$5*'System Cost'!J63,IF($B$12="Hose Pull",AO25*$C$5*'System Cost'!T63))))) -> 0 | AR25: =IF(AO25<0,0,((IF($B$11="Electric",VLOOKUP((IF(I25<1995,1995,I25)),Electric!$A$3:$C$38,3,FALSE),IF($B$11="Diesel",VLOOKUP((IF(I25<1995,1995,I25)),Diesel!$A$3:$C$24,3,FALSE),IF(Data!$B$11="Natural Gas",VLOOKUP((IF(I25<1995,1995,I25)),'Natural Gas'!$A$3:$C$38,3,FALSE))))))*(IF($B$12="Center Pivot",'System Cost'!D63,IF($B$12="Linear Move",'System Cost'!I63,IF($B$12="Drip",'System Cost'!N63,IF($B$12="Hose Pull",'System Cost'!S63)))))*AO25*$C$5) -> 0 | AT25: 1922.650826 | AU25: 1534.794227 | AV25: 6902.044053 | BA25: 17758.86161 | BB25: 0 | BC25: 28118.35072 | BD25: 17758.86161 | BE25: 8576.856085 | BH25: 807.4410895 | BI25: 1436.702125 | BJ25: 7702.915864 | BL25: 24942.82071 | BM25: 14995.76163 | BN25: 5492.634588 | BR25: 13.54987346 | BS25: 0.5018471651
H26: 1998 | I26: 2016 | J26: =VLOOKUP(I26,'Corn Rain'!B$3:C$38,2,FALSE) -> 38 | K26: =IF($B$8="None",0,IF($B$8="Corn",VLOOKUP(H26,'Corn Rain'!B$3:EE$38,$C$7,FALSE),IF($B$8="Cotton",VLOOKUP(H26,CottonRain!$B$3:$EE$38,Data!$C$7,FALSE),IF(Data!$B$8="Soybeans",VLOOKUP(Data!H26,'Soybeans Rain'!$B$3:$EE$38,Data!$C$7,FALSE),IF(Data!$B$8="Wheat",VLOOKUP(Data!H26,'Wheat Rain'!$B$3:$EE$38,Data!$C$7,FALSE)))))) -> 313.3566 | L26: =IF($B$8="None",0,IF($B$8="Corn",VLOOKUP(H26,'Corn Drought'!B$3:EE$38,Data!$C$7,FALSE),IF($B$8="Cotton",VLOOKUP(H26,'Cotton Drought'!$B$3:$EE$38,Data!$C$7,FALSE),IF($B$8="Soybeans",VLOOKUP(H26,'Soybeans Drought'!$B$3:$EE$38,Data!$C$7,FALSE),IF(Data!$B$8="Wheat",VLOOKUP(Data!H26,'Wheat Drought'!$B$3:$EE$38,Data!$C$7,FALSE)))))) -> 37 | M26: =IF($B$9="None",0,IF($B$9="Corn",VLOOKUP(H26,'Corn Rain'!B$3:EE$38,$C$7,FALSE),IF($B$9="Cotton",VLOOKUP(H26,CottonRain!$B$3:$EE$38,Data!$C$7,FALSE),IF(Data!$B$9="Soybeans",VLOOKUP(Data!H26,'Soybeans Rain'!$B$3:$EE$38,Data!$C$7,FALSE),IF(Data!$B$9="Wheat",VLOOKUP(Data!H26,'Wheat Rain'!$B$3:$EE$38,Data!$C$7,FALSE)))))) -> 0 | N26: =IF($B$9="None",0,IF($B$9="Corn",VLOOKUP(H26,'Corn Drought'!B$3:EE$38,Data!$C$7,FALSE),IF($B$9="Cotton",VLOOKUP(H26,'Cotton Drought'!$B$3:$EE$38,Data!$C$7,FALSE),IF($B$9="Soybeans",VLOOKUP(H26,'Soybeans Drought'!$B$3:$EE$38,Data!$C$7,FALSE),IF(Data!$B$9="Wheat",VLOOKUP(Data!H26,'Wheat Drought'!$B$3:$EE$38,Data!$C$7,FALSE)))))) -> 0 | O26: =IF($B$8="None",0,VLOOKUP(I26,'Historic Prices'!$A$3:$K$38,$C$8,FALSE)) -> 3.4 | P26: =IF($B$9="None",0,VLOOKUP(I26,'Historic Prices'!$A$3:$K$38,$C$9,FALSE)) -> 0 | Q26: =IF($B$8="None",0,IF(IF(Tool!$C$19="Ideal",$B$2,IF(Tool!$C$19="Scheduled",((VLOOKUP($B$8&$B$10,'Regression Data'!$A$3:$F$30,4,FALSE))+(VLOOKUP($B$8&$B$10,'Regression Data'!$A$3:$F$30,5,FALSE)*(K26+(Tool!$C$20*Data!$B$4/0.0393701)))+(VLOOKUP($B$8&$B$10,'Regression Data'!$A$3:$F$30,6,FALSE)*L26))/2.47105*$B$3))>$B$2,$B$2,(IF(Tool!$C$19="Ideal",$B$2,IF(Tool!$C$19="Scheduled",((VLOOKUP($B$8&$B$10,'Regression Data'!$A$3:$F$30,4,FALSE))+(VLOOKUP($B$8&$B$10,'Regression Data'!$A$3:$F$30,5,FALSE)*(K26+(Tool!$C$20*Data!$B$4/0.0393701)))+(VLOOKUP($B$8&$B$10,'Regression Data'!$A$3:$F$30,6,FALSE)*L26))/2.47105*$B$3))))) -> 184.7279335 | R26: =IF($B$8="None",0,IF(IF((((VLOOKUP($B$8&$B$10,'Regression Data'!$A$3:$F$30,4,FALSE))+(VLOOKUP($B$8&$B$10,'Regression Data'!$A$3:$F$30,5,FALSE)*K26)+(VLOOKUP($B$8&$B$10,'Regression Data'!$A$3:$F$30,6,FALSE)*L26))/2.47105*$B$3)>$B$2,$B$2,((VLOOKUP($B$8&$B$10,'Regression Data'!$A$3:$F$30,4,FALSE))+(VLOOKUP($B$8&$B$10,'Regression Data'!$A$3:$F$30,5,FALSE)*K26)+(VLOOKUP($B$8&$B$10,'Regression Data'!$A$3:$F$30,6,FALSE)*L26))/2.47105*$B$3)<0,0,IF((((VLOOKUP($B$8&$B$10,'Regression Data'!$A$3:$F$30,4,FALSE))+(VLOOKUP($B$8&$B$10,'Regression Data'!$A$3:$F$30,5,FALSE)*K26)+(VLOOKUP($B$8&$B$10,'Regression Data'!$A$3:$F$30,6,FALSE)*L26))/2.47105*$B$3)>$B$2,$B$2,((VLOOKUP($B$8&$B$10,'Regression Data'!$A$3:$F$30,4,FALSE))+(VLOOKUP($B$8&$B$10,'Regression Data'!$A$3:$F$30,5,FALSE)*K26)+(VLOOKUP($B$8&$B$10,'Regression Data'!$A$3:$F$30,6,FALSE)*L26))/2.47105*$B$3))) -> 70.11746609 | S26: =IF($B$9="None",0,IF(IF(Tool!$C$19="Ideal",$C$2,IF(Tool!$C$19="Scheduled",((VLOOKUP($B$9&$B$10,'Regression Data'!$A$3:$F$30,4,FALSE))+(VLOOKUP($B$9&$B$10,'Regression Data'!$A$3:$F$30,5,FALSE)*(N26+(Tool!$C$20*Data!$C$4/0.0393701)))+(VLOOKUP($B$9&$B$10,'Regression Data'!$A$3:$F$30,6,FALSE)*N26))/2.47105*$C$3))>$C$2,$C$2,(IF(Tool!$C$19="Ideal",$C$2,IF(Tool!$C$19="Scheduled",((VLOOKUP($B$9&$B$10,'Regression Data'!$A$3:$F$30,4,FALSE))+(VLOOKUP($B$9&$B$10,'Regression Data'!$A$3:$F$30,5,FALSE)*(M26+(Tool!$C$20*Data!$C$4/0.0393701)))+(VLOOKUP($B$9&$B$10,'Regression Data'!$A$3:$F$30,6,FALSE)*N26))/2.47105*$C$3))))) -> 0 | T26: =IF($B$9="None",0,IF(IF((((VLOOKUP($B$9&$B$10,'Regression Data'!$A$3:$F$30,4,FALSE))+(VLOOKUP($B$9&$B$10,'Regression Data'!$A$3:$F$30,5,FALSE)*M26)+(VLOOKUP($B$9&$B$10,'Regression Data'!$A$3:$F$30,6,FALSE)*N26))/2.47105*$C$3)>$C$2,$C$2,((VLOOKUP($B$9&$B$10,'Regression Data'!$A$3:$F$30,4,FALSE))+(VLOOKUP($B$9&$B$10,'Regression Data'!$A$3:$F$30,5,FALSE)*M26)+(VLOOKUP($B$9&$B$10,'Regression Data'!$A$3:$F$30,6,FALSE)*N26))/2.47105*$C$3)<0,0,(IF((((VLOOKUP($B$9&$B$10,'Regression Data'!$A$3:$F$30,4,FALSE))+(VLOOKUP($B$9&$B$10,'Regression Data'!$A$3:$F$30,5,FALSE)*M26)+(VLOOKUP($B$9&$B$10,'Regression Data'!$A$3:$F$30,6,FALSE)*N26))/2.47105*$C$3)>$C$2,$C$2,((VLOOKUP($B$9&$B$10,'Regression Data'!$A$3:$F$30,4,FALSE))+(VLOOKUP($B$9&$B$10,'Regression Data'!$A$3:$F$30,5,FALSE)*M26)+(VLOOKUP($B$9&$B$10,'Regression Data'!$A$3:$F$30,6,FALSE)*N26))/2.47105*$C$3)))) -> 0 | X26: 62807.49738 | Y26: 23839.93847 | Z26: 38967.55891 | AA26: 0 | AB26: 0 | AC26: 0 | AH26: =IF($B$8="None",0,IF(Tool!$C$19="Rainfall Deficit",((VLOOKUP($B$8,'Regression Data'!$H$3:$K$6,3,FALSE))-K26)*0.0393701,IF(Tool!$C$19="Scheduled",$B$4*Tool!$C$20,))) -> 13.25368432 | AI26: =((IF($B$12="Center Pivot",'System Cost'!B64,IF($B$12="Linear Move",'System Cost'!G64,IF($B$12="Drip",'System Cost'!L64,IF($B$12="Hose Pull",'System Cost'!Q64)))))*(SUM($B$5:$C$5)))-(Tool!$C$28) -> 67566.64276 | AJ26: 8330.355191 | AK26: =IF(AH26<0,0,IF($B$12="Center Pivot",'System Cost'!C64*Data!$B$13*Data!$B$5*Data!AH26,IF($B$12="Hose Pull",$B$5*$B$13*'System Cost'!R64*AH26,IF($B$12="Linear Move",AH26*$B$13*$B$5*'System Cost'!H64,IF($B$12="Drip",$B$5*$B$13*AH26*'System Cost'!M64))))) -> 456.5068999 | AL26: =IF(AH26<0,0,IF($B$12="Center Pivot",'System Cost'!E64*Data!$B$5*Data!AH26,IF($B$12="Drip",AH26*$B$5*'System Cost'!O64,IF($B$12="Linear Move",AH26*$B$5*'System Cost'!J64,IF($B$12="Hose Pull",AH26*$B$5*'System Cost'!T64))))) -> 602.0969847 | AM26: =IF(AH26<0,0,((IF($B$11="Electric",VLOOKUP((IF(I26<1995,1995,I26)),Electric!$A$3:$C$38,3,FALSE)*0.5,IF($B$11="Diesel",VLOOKUP((IF(I26<1995,1995,I26)),Diesel!$A$3:$C$24,3,FALSE),IF(Data!$B$11="Natural Gas",VLOOKUP((IF(I26<1995,1995,I26)),'Natural Gas'!$A$3:$C$38,3,FALSE))))))*(IF($B$12="Center Pivot",'System Cost'!D64,IF($B$12="Linear Move",'System Cost'!I64,IF($B$12="Drip",'System Cost'!N64,IF($B$12="Hose Pull",'System Cost'!S64)))))*AH26*$B$5) -> 19649.81551 | AO26: =IF($B$9="None",0,IF(Tool!$C$19="Rainfall Deficit",((VLOOKUP($B$9,'Regression Data'!$H$3:$K$6,3,FALSE))-M26)*0.0393701,IF(Tool!$C$19="Scheduled",$C$4*Tool!$C$20,))) -> 0 | AP26: =IF(AO26<0,0,IF($B$12="Center Pivot",'System Cost'!C64*Data!$B$13*Data!$C$5*Data!AO26,IF($B$12="Hose Pull",$C$5*$B$13*'System Cost'!R64*AO26,IF($B$12="Linear Move",AO26*$B$13*$C$5*'System Cost'!H64,IF($B$12="Drip",$C$5*$B$13*AO26*'System Cost'!M64))))) -> 0 | AQ26: =IF(AO26<0,0,IF($B$12="Center Pivot",'System Cost'!E64*Data!$C$5*Data!AO26,IF($B$12="Drip",AO26*$C$5*'System Cost'!O64,IF($B$12="Linear Move",AO26*$C$5*'System Cost'!J64,IF($B$12="Hose Pull",AO26*$C$5*'System Cost'!T64))))) -> 0 | AR26: =IF(AO26<0,0,((IF($B$11="Electric",VLOOKUP((IF(I26<1995,1995,I26)),Electric!$A$3:$C$38,3,FALSE),IF($B$11="Diesel",VLOOKUP((IF(I26<1995,1995,I26)),Diesel!$A$3:$C$24,3,FALSE),IF(Data!$B$11="Natural Gas",VLOOKUP((IF(I26<1995,1995,I26)),'Natural Gas'!$A$3:$C$38,3,FALSE))))))*(IF($B$12="Center Pivot",'System Cost'!D64,IF($B$12="Linear Move",'System Cost'!I64,IF($B$12="Drip",'System Cost'!N64,IF($B$12="Hose Pull",'System Cost'!S64)))))*AO26*$C$5) -> 0 | AT26: 456.5068999 | AU26: 602.0969847 | AV26: 19649.81551 | BA26: 18259.13951 | BB26: 0 | BC26: 38967.55891 | BD26: 18259.13951 | BE26: 9928.78432 | BH26: 1199.11923 | BI26: 1605.910338 | BJ26: 11798.50023 | BL26: 30269.27276 | BM26: 15665.74296 | BN26: 6025.858168 | BR26: 13.25368432 | BS26: 0.4908771971
H27: 2013 | I27: 1997 | J27: =VLOOKUP(I27,'Corn Rain'!B$3:C$38,2,FALSE) -> 19 | K27: =IF($B$8="None",0,IF($B$8="Corn",VLOOKUP(H27,'Corn Rain'!B$3:EE$38,$C$7,FALSE),IF($B$8="Cotton",VLOOKUP(H27,CottonRain!$B$3:$EE$38,Data!$C$7,FALSE),IF(Data!$B$8="Soybeans",VLOOKUP(Data!H27,'Soybeans Rain'!$B$3:$EE$38,Data!$C$7,FALSE),IF(Data!$B$8="Wheat",VLOOKUP(Data!H27,'Wheat Rain'!$B$3:$EE$38,Data!$C$7,FALSE)))))) -> 396.2035 | L27: =IF($B$8="None",0,IF($B$8="Corn",VLOOKUP(H27,'Corn Drought'!B$3:EE$38,Data!$C$7,FALSE),IF($B$8="Cotton",VLOOKUP(H27,'Cotton Drought'!$B$3:$EE$38,Data!$C$7,FALSE),IF($B$8="Soybeans",VLOOKUP(H27,'Soybeans Drought'!$B$3:$EE$38,Data!$C$7,FALSE),IF(Data!$B$8="Wheat",VLOOKUP(Data!H27,'Wheat Drought'!$B$3:$EE$38,Data!$C$7,FALSE)))))) -> 22 | M27: =IF($B$9="None",0,IF($B$9="Corn",VLOOKUP(H27,'Corn Rain'!B$3:EE$38,$C$7,FALSE),IF($B$9="Cotton",VLOOKUP(H27,CottonRain!$B$3:$EE$38,Data!$C$7,FALSE),IF(Data!$B$9="Soybeans",VLOOKUP(Data!H27,'Soybeans Rain'!$B$3:$EE$38,Data!$C$7,FALSE),IF(Data!$B$9="Wheat",VLOOKUP(Data!H27,'Wheat Rain'!$B$3:$EE$38,Data!$C$7,FALSE)))))) -> 0 | N27: =IF($B$9="None",0,IF($B$9="Corn",VLOOKUP(H27,'Corn Drought'!B$3:EE$38,Data!$C$7,FALSE),IF($B$9="Cotton",VLOOKUP(H27,'Cotton Drought'!$B$3:$EE$38,Data!$C$7,FALSE),IF($B$9="Soybeans",VLOOKUP(H27,'Soybeans Drought'!$B$3:$EE$38,Data!$C$7,FALSE),IF(Data!$B$9="Wheat",VLOOKUP(Data!H27,'Wheat Drought'!$B$3:$EE$38,Data!$C$7,FALSE)))))) -> 0 | O27: =IF($B$8="None",0,VLOOKUP(I27,'Historic Prices'!$A$3:$K$38,$C$8,FALSE)) -> 2.43 | P27: =IF($B$9="None",0,VLOOKUP(I27,'Historic Prices'!$A$3:$K$38,$C$9,FALSE)) -> 0 | Q27: =IF($B$8="None",0,IF(IF(Tool!$C$19="Ideal",$B$2,IF(Tool!$C$19="Scheduled",((VLOOKUP($B$8&$B$10,'Regression Data'!$A$3:$F$30,4,FALSE))+(VLOOKUP($B$8&$B$10,'Regression Data'!$A$3:$F$30,5,FALSE)*(K27+(Tool!$C$20*Data!$B$4/0.0393701)))+(VLOOKUP($B$8&$B$10,'Regression Data'!$A$3:$F$30,6,FALSE)*L27))/2.47105*$B$3))>$B$2,$B$2,(IF(Tool!$C$19="Ideal",$B$2,IF(Tool!$C$19="Scheduled",((VLOOKUP($B$8&$B$10,'Regression Data'!$A$3:$F$30,4,FALSE))+(VLOOKUP($B$8&$B$10,'Regression Data'!$A$3:$F$30,5,FALSE)*(K27+(Tool!$C$20*Data!$B$4/0.0393701)))+(VLOOKUP($B$8&$B$10,'Regression Data'!$A$3:$F$30,6,FALSE)*L27))/2.47105*$B$3))))) -> 184.7279335 | R27: =IF($B$8="None",0,IF(IF((((VLOOKUP($B$8&$B$10,'Regression Data'!$A$3:$F$30,4,FALSE))+(VLOOKUP($B$8&$B$10,'Regression Data'!$A$3:$F$30,5,FALSE)*K27)+(VLOOKUP($B$8&$B$10,'Regression Data'!$A$3:$F$30,6,FALSE)*L27))/2.47105*$B$3)>$B$2,$B$2,((VLOOKUP($B$8&$B$10,'Regression Data'!$A$3:$F$30,4,FALSE))+(VLOOKUP($B$8&$B$10,'Regression Data'!$A$3:$F$30,5,FALSE)*K27)+(VLOOKUP($B$8&$B$10,'Regression Data'!$A$3:$F$30,6,FALSE)*L27))/2.47105*$B$3)<0,0,IF((((VLOOKUP($B$8&$B$10,'Regression Data'!$A$3:$F$30,4,FALSE))+(VLOOKUP($B$8&$B$10,'Regression Data'!$A$3:$F$30,5,FALSE)*K27)+(VLOOKUP($B$8&$B$10,'Regression Data'!$A$3:$F$30,6,FALSE)*L27))/2.47105*$B$3)>$B$2,$B$2,((VLOOKUP($B$8&$B$10,'Regression Data'!$A$3:$F$30,4,FALSE))+(VLOOKUP($B$8&$B$10,'Regression Data'!$A$3:$F$30,5,FALSE)*K27)+(VLOOKUP($B$8&$B$10,'Regression Data'!$A$3:$F$30,6,FALSE)*L27))/2.47105*$B$3))) -> 119.0028659 | S27: =IF($B$9="None",0,IF(IF(Tool!$C$19="Ideal",$C$2,IF(Tool!$C$19="Scheduled",((VLOOKUP($B$9&$B$10,'Regression Data'!$A$3:$F$30,4,FALSE))+(VLOOKUP($B$9&$B$10,'Regression Data'!$A$3:$F$30,5,FALSE)*(N27+(Tool!$C$20*Data!$C$4/0.0393701)))+(VLOOKUP($B$9&$B$10,'Regression Data'!$A$3:$F$30,6,FALSE)*N27))/2.47105*$C$3))>$C$2,$C$2,(IF(Tool!$C$19="Ideal",$C$2,IF(Tool!$C$19="Scheduled",((VLOOKUP($B$9&$B$10,'Regression Data'!$A$3:$F$30,4,FALSE))+(VLOOKUP($B$9&$B$10,'Regression Data'!$A$3:$F$30,5,FALSE)*(M27+(Tool!$C$20*Data!$C$4/0.0393701)))+(VLOOKUP($B$9&$B$10,'Regression Data'!$A$3:$F$30,6,FALSE)*N27))/2.47105*$C$3))))) -> 0 | T27: =IF($B$9="None",0,IF(IF((((VLOOKUP($B$9&$B$10,'Regression Data'!$A$3:$F$30,4,FALSE))+(VLOOKUP($B$9&$B$10,'Regression Data'!$A$3:$F$30,5,FALSE)*M27)+(VLOOKUP($B$9&$B$10,'Regression Data'!$A$3:$F$30,6,FALSE)*N27))/2.47105*$C$3)>$C$2,$C$2,((VLOOKUP($B$9&$B$10,'Regression Data'!$A$3:$F$30,4,FALSE))+(VLOOKUP($B$9&$B$10,'Regression Data'!$A$3:$F$30,5,FALSE)*M27)+(VLOOKUP($B$9&$B$10,'Regression Data'!$A$3:$F$30,6,FALSE)*N27))/2.47105*$C$3)<0,0,(IF((((VLOOKUP($B$9&$B$10,'Regression Data'!$A$3:$F$30,4,FALSE))+(VLOOKUP($B$9&$B$10,'Regression Data'!$A$3:$F$30,5,FALSE)*M27)+(VLOOKUP($B$9&$B$10,'Regression Data'!$A$3:$F$30,6,FALSE)*N27))/2.47105*$C$3)>$C$2,$C$2,((VLOOKUP($B$9&$B$10,'Regression Data'!$A$3:$F$30,4,FALSE))+(VLOOKUP($B$9&$B$10,'Regression Data'!$A$3:$F$30,5,FALSE)*M27)+(VLOOKUP($B$9&$B$10,'Regression Data'!$A$3:$F$30,6,FALSE)*N27))/2.47105*$C$3)))) -> 0 | X27: 44888.88783 | Y27: 28917.69641 | Z27: 15971.19142 | AA27: 0 | AB27: 0 | AC27: 0 | AH27: =IF($B$8="None",0,IF(Tool!$C$19="Rainfall Deficit",((VLOOKUP($B$8,'Regression Data'!$H$3:$K$6,3,FALSE))-K27)*0.0393701,IF(Tool!$C$19="Scheduled",$B$4*Tool!$C$20,))) -> 9.991993585 | AI27: =((IF($B$12="Center Pivot",'System Cost'!B65,IF($B$12="Linear Move",'System Cost'!G65,IF($B$12="Drip",'System Cost'!L65,IF($B$12="Hose Pull",'System Cost'!Q65)))))*(SUM($B$5:$C$5)))-(Tool!$C$28) -> 75987.61961 | AJ27: 9368.58538 | AK27: =IF(AH27<0,0,IF($B$12="Center Pivot",'System Cost'!C65*Data!$B$13*Data!$B$5*Data!AH27,IF($B$12="Hose Pull",$B$5*$B$13*'System Cost'!R65*AH27,IF($B$12="Linear Move",AH27*$B$13*$B$5*'System Cost'!H65,IF($B$12="Drip",$B$5*$B$13*AH27*'System Cost'!M65))))) -> 1251.581426 | AL27: =IF(AH27<0,0,IF($B$12="Center Pivot",'System Cost'!E65*Data!$B$5*Data!AH27,IF($B$12="Drip",AH27*$B$5*'System Cost'!O65,IF($B$12="Linear Move",AH27*$B$5*'System Cost'!J65,IF($B$12="Hose Pull",AH27*$B$5*'System Cost'!T65))))) -> 1777.526129 | AM27: =IF(AH27<0,0,((IF($B$11="Electric",VLOOKUP((IF(I27<1995,1995,I27)),Electric!$A$3:$C$38,3,FALSE)*0.5,IF($B$11="Diesel",VLOOKUP((IF(I27<1995,1995,I27)),Diesel!$A$3:$C$24,3,FALSE),IF(Data!$B$11="Natural Gas",VLOOKUP((IF(I27<1995,1995,I27)),'Natural Gas'!$A$3:$C$38,3,FALSE))))))*(IF($B$12="Center Pivot",'System Cost'!D65,IF($B$12="Linear Move",'System Cost'!I65,IF($B$12="Drip",'System Cost'!N65,IF($B$12="Hose Pull",'System Cost'!S65)))))*AH27*$B$5) -> 672.919428 | AO27: =IF($B$9="None",0,IF(Tool!$C$19="Rainfall Deficit",((VLOOKUP($B$9,'Regression Data'!$H$3:$K$6,3,FALSE))-M27)*0.0393701,IF(Tool!$C$19="Scheduled",$C$4*Tool!$C$20,))) -> 0 | AP27: =IF(AO27<0,0,IF($B$12="Center Pivot",'System Cost'!C65*Data!$B$13*Data!$C$5*Data!AO27,IF($B$12="Hose Pull",$C$5*$B$13*'System Cost'!R65*AO27,IF($B$12="Linear Move",AO27*$B$13*$C$5*'System Cost'!H65,IF($B$12="Drip",$C$5*$B$13*AO27*'System Cost'!M65))))) -> 0 | AQ27: =IF(AO27<0,0,IF($B$12="Center Pivot",'System Cost'!E65*Data!$C$5*Data!AO27,IF($B$12="Drip",AO27*$C$5*'System Cost'!O65,IF($B$12="Linear Move",AO27*$C$5*'System Cost'!J65,IF($B$12="Hose Pull",AO27*$C$5*'System Cost'!T65))))) -> 0 | AR27: =IF(AO27<0,0,((IF($B$11="Electric",VLOOKUP((IF(I27<1995,1995,I27)),Electric!$A$3:$C$38,3,FALSE),IF($B$11="Diesel",VLOOKUP((IF(I27<1995,1995,I27)),Diesel!$A$3:$C$24,3,FALSE),IF(Data!$B$11="Natural Gas",VLOOKUP((IF(I27<1995,1995,I27)),'Natural Gas'!$A$3:$C$38,3,FALSE))))))*(IF($B$12="Center Pivot",'System Cost'!D65,IF($B$12="Linear Move",'System Cost'!I65,IF($B$12="Drip",'System Cost'!N65,IF($B$12="Hose Pull",'System Cost'!S65)))))*AO27*$C$5) -> 0 | AT27: 1251.581426 | AU27: 1777.526129 | AV27: 672.919428 | BA27: 12269.16444 | BB27: 0 | BC27: 15971.19142 | BD27: 12269.16444 | BE27: 2900.579059 | BH27: 880.317227 | BI27: 1476.942814 | BJ27: 10936.21764 | BL27: 25778.89577 | BM27: 12485.41808 | BN27: 3117.084083 | BR27: 9.991993585 | BS27: 0.3700738365
H28: 1992 | I28: 2010 | J28: =VLOOKUP(I28,'Corn Rain'!B$3:C$38,2,FALSE) -> 32 | K28: =IF($B$8="None",0,IF($B$8="Corn",VLOOKUP(H28,'Corn Rain'!B$3:EE$38,$C$7,FALSE),IF($B$8="Cotton",VLOOKUP(H28,CottonRain!$B$3:$EE$38,Data!$C$7,FALSE),IF(Data!$B$8="Soybeans",VLOOKUP(Data!H28,'Soybeans Rain'!$B$3:$EE$38,Data!$C$7,FALSE),IF(Data!$B$8="Wheat",VLOOKUP(Data!H28,'Wheat Rain'!$B$3:$EE$38,Data!$C$7,FALSE)))))) -> 503.8795 | L28: =IF($B$8="None",0,IF($B$8="Corn",VLOOKUP(H28,'Corn Drought'!B$3:EE$38,Data!$C$7,FALSE),IF($B$8="Cotton",VLOOKUP(H28,'Cotton Drought'!$B$3:$EE$38,Data!$C$7,FALSE),IF($B$8="Soybeans",VLOOKUP(H28,'Soybeans Drought'!$B$3:$EE$38,Data!$C$7,FALSE),IF(Data!$B$8="Wheat",VLOOKUP(Data!H28,'Wheat Drought'!$B$3:$EE$38,Data!$C$7,FALSE)))))) -> 16 | M28: =IF($B$9="None",0,IF($B$9="Corn",VLOOKUP(H28,'Corn Rain'!B$3:EE$38,$C$7,FALSE),IF($B$9="Cotton",VLOOKUP(H28,CottonRain!$B$3:$EE$38,Data!$C$7,FALSE),IF(Data!$B$9="Soybeans",VLOOKUP(Data!H28,'Soybeans Rain'!$B$3:$EE$38,Data!$C$7,FALSE),IF(Data!$B$9="Wheat",VLOOKUP(Data!H28,'Wheat Rain'!$B$3:$EE$38,Data!$C$7,FALSE)))))) -> 0 | N28: =IF($B$9="None",0,IF($B$9="Corn",VLOOKUP(H28,'Corn Drought'!B$3:EE$38,Data!$C$7,FALSE),IF($B$9="Cotton",VLOOKUP(H28,'Cotton Drought'!$B$3:$EE$38,Data!$C$7,FALSE),IF($B$9="Soybeans",VLOOKUP(H28,'Soybeans Drought'!$B$3:$EE$38,Data!$C$7,FALSE),IF(Data!$B$9="Wheat",VLOOKUP(Data!H28,'Wheat Drought'!$B$3:$EE$38,Data!$C$7,FALSE)))))) -> 0 | O28: =IF($B$8="None",0,VLOOKUP(I28,'Historic Prices'!$A$3:$K$38,$C$8,FALSE)) -> 5.18 | P28: =IF($B$9="None",0,VLOOKUP(I28,'Historic Prices'!$A$3:$K$38,$C$9,FALSE)) -> 0 | Q28: =IF($B$8="None",0,IF(IF(Tool!$C$19="Ideal",$B$2,IF(Tool!$C$19="Scheduled",((VLOOKUP($B$8&$B$10,'Regression Data'!$A$3:$F$30,4,FALSE))+(VLOOKUP($B$8&$B$10,'Regression Data'!$A$3:$F$30,5,FALSE)*(K28+(Tool!$C$20*Data!$B$4/0.0393701)))+(VLOOKUP($B$8&$B$10,'Regression Data'!$A$3:$F$30,6,FALSE)*L28))/2.47105*$B$3))>$B$2,$B$2,(IF(Tool!$C$19="Ideal",$B$2,IF(Tool!$C$19="Scheduled",((VLOOKUP($B$8&$B$10,'Regression Data'!$A$3:$F$30,4,FALSE))+(VLOOKUP($B$8&$B$10,'Regression Data'!$A$3:$F$30,5,FALSE)*(K28+(Tool!$C$20*Data!$B$4/0.0393701)))+(VLOOKUP($B$8&$B$10,'Regression Data'!$A$3:$F$30,6,FALSE)*L28))/2.47105*$B$3))))) -> 184.7279335 | R28: =IF($B$8="None",0,IF(IF((((VLOOKUP($B$8&$B$10,'Regression Data'!$A$3:$F$30,4,FALSE))+(VLOOKUP($B$8&$B$10,'Regression Data'!$A$3:$F$30,5,FALSE)*K28)+(VLOOKUP($B$8&$B$10,'Regression Data'!$A$3:$F$30,6,FALSE)*L28))/2.47105*$B$3)>$B$2,$B$2,((VLOOKUP($B$8&$B$10,'Regression Data'!$A$3:$F$30,4,FALSE))+(VLOOKUP($B$8&$B$10,'Regression Data'!$A$3:$F$30,5,FALSE)*K28)+(VLOOKUP($B$8&$B$10,'Regression Data'!$A$3:$F$30,6,FALSE)*L28))/2.47105*$B$3)<0,0,IF((((VLOOKUP($B$8&$B$10,'Regression Data'!$A$3:$F$30,4,FALSE))+(VLOOKUP($B$8&$B$10,'Regression Data'!$A$3:$F$30,5,FALSE)*K28)+(VLOOKUP($B$8&$B$10,'Regression Data'!$A$3:$F$30,6,FALSE)*L28))/2.47105*$B$3)>$B$2,$B$2,((VLOOKUP($B$8&$B$10,'Regression Data'!$A$3:$F$30,4,FALSE))+(VLOOKUP($B$8&$B$10,'Regression Data'!$A$3:$F$30,5,FALSE)*K28)+(VLOOKUP($B$8&$B$10,'Regression Data'!$A$3:$F$30,6,FALSE)*L28))/2.47105*$B$3))) -> 162.3071083 | S28: =IF($B$9="None",0,IF(IF(Tool!$C$19="Ideal",$C$2,IF(Tool!$C$19="Scheduled",((VLOOKUP($B$9&$B$10,'Regression Data'!$A$3:$F$30,4,FALSE))+(VLOOKUP($B$9&$B$10,'Regression Data'!$A$3:$F$30,5,FALSE)*(N28+(Tool!$C$20*Data!$C$4/0.0393701)))+(VLOOKUP($B$9&$B$10,'Regression Data'!$A$3:$F$30,6,FALSE)*N28))/2.47105*$C$3))>$C$2,$C$2,(IF(Tool!$C$19="Ideal",$C$2,IF(Tool!$C$19="Scheduled",((VLOOKUP($B$9&$B$10,'Regression Data'!$A$3:$F$30,4,FALSE))+(VLOOKUP($B$9&$B$10,'Regression Data'!$A$3:$F$30,5,FALSE)*(M28+(Tool!$C$20*Data!$C$4/0.0393701)))+(VLOOKUP($B$9&$B$10,'Regression Data'!$A$3:$F$30,6,FALSE)*N28))/2.47105*$C$3))))) -> 0 | T28: =IF($B$9="None",0,IF(IF((((VLOOKUP($B$9&$B$10,'Regression Data'!$A$3:$F$30,4,FALSE))+(VLOOKUP($B$9&$B$10,'Regression Data'!$A$3:$F$30,5,FALSE)*M28)+(VLOOKUP($B$9&$B$10,'Regression Data'!$A$3:$F$30,6,FALSE)*N28))/2.47105*$C$3)>$C$2,$C$2,((VLOOKUP($B$9&$B$10,'Regression Data'!$A$3:$F$30,4,FALSE))+(VLOOKUP($B$9&$B$10,'Regression Data'!$A$3:$F$30,5,FALSE)*M28)+(VLOOKUP($B$9&$B$10,'Regression Data'!$A$3:$F$30,6,FALSE)*N28))/2.47105*$C$3)<0,0,(IF((((VLOOKUP($B$9&$B$10,'Regression Data'!$A$3:$F$30,4,FALSE))+(VLOOKUP($B$9&$B$10,'Regression Data'!$A$3:$F$30,5,FALSE)*M28)+(VLOOKUP($B$9&$B$10,'Regression Data'!$A$3:$F$30,6,FALSE)*N28))/2.47105*$C$3)>$C$2,$C$2,((VLOOKUP($B$9&$B$10,'Regression Data'!$A$3:$F$30,4,FALSE))+(VLOOKUP($B$9&$B$10,'Regression Data'!$A$3:$F$30,5,FALSE)*M28)+(VLOOKUP($B$9&$B$10,'Regression Data'!$A$3:$F$30,6,FALSE)*N28))/2.47105*$C$3)))) -> 0 | X28: 95689.06954 | Y28: 84075.08209 | Z28: 11613.98745 | AA28: 0 | AB28: 0 | AC28: 0 | AH28: =IF($B$8="None",0,IF(Tool!$C$19="Rainfall Deficit",((VLOOKUP($B$8,'Regression Data'!$H$3:$K$6,3,FALSE))-K28)*0.0393701,IF(Tool!$C$19="Scheduled",$B$4*Tool!$C$20,))) -> 5.752778697 | AI28: =((IF($B$12="Center Pivot",'System Cost'!B66,IF($B$12="Linear Move",'System Cost'!G66,IF($B$12="Drip",'System Cost'!L66,IF($B$12="Hose Pull",'System Cost'!Q66)))))*(SUM($B$5:$C$5)))-(Tool!$C$28) -> 78009.54572 | AJ28: 9617.870559 | AK28: =IF(AH28<0,0,IF($B$12="Center Pivot",'System Cost'!C66*Data!$B$13*Data!$B$5*Data!AH28,IF($B$12="Hose Pull",$B$5*$B$13*'System Cost'!R66*AH28,IF($B$12="Linear Move",AH28*$B$13*$B$5*'System Cost'!H66,IF($B$12="Drip",$B$5*$B$13*AH28*'System Cost'!M66))))) -> 505.4674142 | AL28: =IF(AH28<0,0,IF($B$12="Center Pivot",'System Cost'!E66*Data!$B$5*Data!AH28,IF($B$12="Drip",AH28*$B$5*'System Cost'!O66,IF($B$12="Linear Move",AH28*$B$5*'System Cost'!J66,IF($B$12="Hose Pull",AH28*$B$5*'System Cost'!T66))))) -> 1192.08109 | AM28: =IF(AH28<0,0,((IF($B$11="Electric",VLOOKUP((IF(I28<1995,1995,I28)),Electric!$A$3:$C$38,3,FALSE)*0.5,IF($B$11="Diesel",VLOOKUP((IF(I28<1995,1995,I28)),Diesel!$A$3:$C$24,3,FALSE),IF(Data!$B$11="Natural Gas",VLOOKUP((IF(I28<1995,1995,I28)),'Natural Gas'!$A$3:$C$38,3,FALSE))))))*(IF($B$12="Center Pivot",'System Cost'!D66,IF($B$12="Linear Move",'System Cost'!I66,IF($B$12="Drip",'System Cost'!N66,IF($B$12="Hose Pull",'System Cost'!S66)))))*AH28*$B$5) -> 2799.818735 | AO28: =IF($B$9="None",0,IF(Tool!$C$19="Rainfall Deficit",((VLOOKUP($B$9,'Regression Data'!$H$3:$K$6,3,FALSE))-M28)*0.0393701,IF(Tool!$C$19="Scheduled",$C$4*Tool!$C$20,))) -> 0 | AP28: =IF(AO28<0,0,IF($B$12="Center Pivot",'System Cost'!C66*Data!$B$13*Data!$C$5*Data!AO28,IF($B$12="Hose Pull",$C$5*$B$13*'System Cost'!R66*AO28,IF($B$12="Linear Move",AO28*$B$13*$C$5*'System Cost'!H66,IF($B$12="Drip",$C$5*$B$13*AO28*'System Cost'!M66))))) -> 0 | AQ28: =IF(AO28<0,0,IF($B$12="Center Pivot",'System Cost'!E66*Data!$C$5*Data!AO28,IF($B$12="Drip",AO28*$C$5*'System Cost'!O66,IF($B$12="Linear Move",AO28*$C$5*'System Cost'!J66,IF($B$12="Hose Pull",AO28*$C$5*'System Cost'!T66))))) -> 0 | AR28: =IF(AO28<0,0,((IF($B$11="Electric",VLOOKUP((IF(I28<1995,1995,I28)),Electric!$A$3:$C$38,3,FALSE),IF($B$11="Diesel",VLOOKUP((IF(I28<1995,1995,I28)),Diesel!$A$3:$C$24,3,FALSE),IF(Data!$B$11="Natural Gas",VLOOKUP((IF(I28<1995,1995,I28)),'Natural Gas'!$A$3:$C$38,3,FALSE))))))*(IF($B$12="Center Pivot",'System Cost'!D66,IF($B$12="Linear Move",'System Cost'!I66,IF($B$12="Drip",'System Cost'!N66,IF($B$12="Hose Pull",'System Cost'!S66)))))*AO28*$C$5) -> 0 | AT28: 505.4674142 | AU28: 1192.08109 | AV28: 2799.818735 | BA28: 7116.620209 | BB28: 0 | BC28: 11613.98745 | BD28: 7116.620209 | BE28: -2501.25035 | BH28: 957.1615355 | BI28: 1792.472337 | BJ28: 10406.35402 | BL28: 31039.75826 | BM28: 17883.77036 | BN28: 8338.41714 | BR28: 5.752778697 | BS28: 0.2130658777
H29: 1983 | I29: 2001 | J29: =VLOOKUP(I29,'Corn Rain'!B$3:C$38,2,FALSE) -> 23 | K29: =IF($B$8="None",0,IF($B$8="Corn",VLOOKUP(H29,'Corn Rain'!B$3:EE$38,$C$7,FALSE),IF($B$8="Cotton",VLOOKUP(H29,CottonRain!$B$3:$EE$38,Data!$C$7,FALSE),IF(Data!$B$8="Soybeans",VLOOKUP(Data!H29,'Soybeans Rain'!$B$3:$EE$38,Data!$C$7,FALSE),IF(Data!$B$8="Wheat",VLOOKUP(Data!H29,'Wheat Rain'!$B$3:$EE$38,Data!$C$7,FALSE)))))) -> 241.5285 | L29: =IF($B$8="None",0,IF($B$8="Corn",VLOOKUP(H29,'Corn Drought'!B$3:EE$38,Data!$C$7,FALSE),IF($B$8="Cotton",VLOOKUP(H29,'Cotton Drought'!$B$3:$EE$38,Data!$C$7,FALSE),IF($B$8="Soybeans",VLOOKUP(H29,'Soybeans Drought'!$B$3:$EE$38,Data!$C$7,FALSE),IF(Data!$B$8="Wheat",VLOOKUP(Data!H29,'Wheat Drought'!$B$3:$EE$38,Data!$C$7,FALSE)))))) -> 50 | M29: =IF($B$9="None",0,IF($B$9="Corn",VLOOKUP(H29,'Corn Rain'!B$3:EE$38,$C$7,FALSE),IF($B$9="Cotton",VLOOKUP(H29,CottonRain!$B$3:$EE$38,Data!$C$7,FALSE),IF(Data!$B$9="Soybeans",VLOOKUP(Data!H29,'Soybeans Rain'!$B$3:$EE$38,Data!$C$7,FALSE),IF(Data!$B$9="Wheat",VLOOKUP(Data!H29,'Wheat Rain'!$B$3:$EE$38,Data!$C$7,FALSE)))))) -> 0 | N29: =IF($B$9="None",0,IF($B$9="Corn",VLOOKUP(H29,'Corn Drought'!B$3:EE$38,Data!$C$7,FALSE),IF($B$9="Cotton",VLOOKUP(H29,'Cotton Drought'!$B$3:$EE$38,Data!$C$7,FALSE),IF($B$9="Soybeans",VLOOKUP(H29,'Soybeans Drought'!$B$3:$EE$38,Data!$C$7,FALSE),IF(Data!$B$9="Wheat",VLOOKUP(Data!H29,'Wheat Drought'!$B$3:$EE$38,Data!$C$7,FALSE)))))) -> 0 | O29: =IF($B$8="None",0,VLOOKUP(I29,'Historic Prices'!$A$3:$K$38,$C$8,FALSE)) -> 1.97 | P29: =IF($B$9="None",0,VLOOKUP(I29,'Historic Prices'!$A$3:$K$38,$C$9,FALSE)) -> 0 | Q29: =IF($B$8="None",0,IF(IF(Tool!$C$19="Ideal",$B$2,IF(Tool!$C$19="Scheduled",((VLOOKUP($B$8&$B$10,'Regression Data'!$A$3:$F$30,4,FALSE))+(VLOOKUP($B$8&$B$10,'Regression Data'!$A$3:$F$30,5,FALSE)*(K29+(Tool!$C$20*Data!$B$4/0.0393701)))+(VLOOKUP($B$8&$B$10,'Regression Data'!$A$3:$F$30,6,FALSE)*L29))/2.47105*$B$3))>$B$2,$B$2,(IF(Tool!$C$19="Ideal",$B$2,IF(Tool!$C$19="Scheduled",((VLOOKUP($B$8&$B$10,'Regression Data'!$A$3:$F$30,4,FALSE))+(VLOOKUP($B$8&$B$10,'Regression Data'!$A$3:$F$30,5,FALSE)*(K29+(Tool!$C$20*Data!$B$4/0.0393701)))+(VLOOKUP($B$8&$B$10,'Regression Data'!$A$3:$F$30,6,FALSE)*L29))/2.47105*$B$3))))) -> 184.7279335 | R29: =IF($B$8="None",0,IF(IF((((VLOOKUP($B$8&$B$10,'Regression Data'!$A$3:$F$30,4,FALSE))+(VLOOKUP($B$8&$B$10,'Regression Data'!$A$3:$F$30,5,FALSE)*K29)+(VLOOKUP($B$8&$B$10,'Regression Data'!$A$3:$F$30,6,FALSE)*L29))/2.47105*$B$3)>$B$2,$B$2,((VLOOKUP($B$8&$B$10,'Regression Data'!$A$3:$F$30,4,FALSE))+(VLOOKUP($B$8&$B$10,'Regression Data'!$A$3:$F$30,5,FALSE)*K29)+(VLOOKUP($B$8&$B$10,'Regression Data'!$A$3:$F$30,6,FALSE)*L29))/2.47105*$B$3)<0,0,IF((((VLOOKUP($B$8&$B$10,'Regression Data'!$A$3:$F$30,4,FALSE))+(VLOOKUP($B$8&$B$10,'Regression Data'!$A$3:$F$30,5,FALSE)*K29)+(VLOOKUP($B$8&$B$10,'Regression Data'!$A$3:$F$30,6,FALSE)*L29))/2.47105*$B$3)>$B$2,$B$2,((VLOOKUP($B$8&$B$10,'Regression Data'!$A$3:$F$30,4,FALSE))+(VLOOKUP($B$8&$B$10,'Regression Data'!$A$3:$F$30,5,FALSE)*K29)+(VLOOKUP($B$8&$B$10,'Regression Data'!$A$3:$F$30,6,FALSE)*L29))/2.47105*$B$3))) -> 27.74137203 | S29: =IF($B$9="None",0,IF(IF(Tool!$C$19="Ideal",$C$2,IF(Tool!$C$19="Scheduled",((VLOOKUP($B$9&$B$10,'Regression Data'!$A$3:$F$30,4,FALSE))+(VLOOKUP($B$9&$B$10,'Regression Data'!$A$3:$F$30,5,FALSE)*(N29+(Tool!$C$20*Data!$C$4/0.0393701)))+(VLOOKUP($B$9&$B$10,'Regression Data'!$A$3:$F$30,6,FALSE)*N29))/2.47105*$C$3))>$C$2,$C$2,(IF(Tool!$C$19="Ideal",$C$2,IF(Tool!$C$19="Scheduled",((VLOOKUP($B$9&$B$10,'Regression Data'!$A$3:$F$30,4,FALSE))+(VLOOKUP($B$9&$B$10,'Regression Data'!$A$3:$F$30,5,FALSE)*(M29+(Tool!$C$20*Data!$C$4/0.0393701)))+(VLOOKUP($B$9&$B$10,'Regression Data'!$A$3:$F$30,6,FALSE)*N29))/2.47105*$C$3))))) -> 0 | T29: =IF($B$9="None",0,IF(IF((((VLOOKUP($B$9&$B$10,'Regression Data'!$A$3:$F$30,4,FALSE))+(VLOOKUP($B$9&$B$10,'Regression Data'!$A$3:$F$30,5,FALSE)*M29)+(VLOOKUP($B$9&$B$10,'Regression Data'!$A$3:$F$30,6,FALSE)*N29))/2.47105*$C$3)>$C$2,$C$2,((VLOOKUP($B$9&$B$10,'Regression Data'!$A$3:$F$30,4,FALSE))+(VLOOKUP($B$9&$B$10,'Regression Data'!$A$3:$F$30,5,FALSE)*M29)+(VLOOKUP($B$9&$B$10,'Regression Data'!$A$3:$F$30,6,FALSE)*N29))/2.47105*$C$3)<0,0,(IF((((VLOOKUP($B$9&$B$10,'Regression Data'!$A$3:$F$30,4,FALSE))+(VLOOKUP($B$9&$B$10,'Regression Data'!$A$3:$F$30,5,FALSE)*M29)+(VLOOKUP($B$9&$B$10,'Regression Data'!$A$3:$F$30,6,FALSE)*N29))/2.47105*$C$3)>$C$2,$C$2,((VLOOKUP($B$9&$B$10,'Regression Data'!$A$3:$F$30,4,FALSE))+(VLOOKUP($B$9&$B$10,'Regression Data'!$A$3:$F$30,5,FALSE)*M29)+(VLOOKUP($B$9&$B$10,'Regression Data'!$A$3:$F$30,6,FALSE)*N29))/2.47105*$C$3)))) -> 0 | X29: 36391.40289 | Y29: 5465.05029 | Z29: 30926.3526 | AA29: 0 | AB29: 0 | AC29: 0 | AH29: =IF($B$8="None",0,IF(Tool!$C$19="Rainfall Deficit",((VLOOKUP($B$8,'Regression Data'!$H$3:$K$6,3,FALSE))-K29)*0.0393701,IF(Tool!$C$19="Scheduled",$B$4*Tool!$C$20,))) -> 16.0815638 | AI29: =((IF($B$12="Center Pivot",'System Cost'!B67,IF($B$12="Linear Move",'System Cost'!G67,IF($B$12="Drip",'System Cost'!L67,IF($B$12="Hose Pull",'System Cost'!Q67)))))*(SUM($B$5:$C$5)))-(Tool!$C$28) -> 76021.61168 | AJ29: 9372.776294 | AK29: =IF(AH29<0,0,IF($B$12="Center Pivot",'System Cost'!C67*Data!$B$13*Data!$B$5*Data!AH29,IF($B$12="Hose Pull",$B$5*$B$13*'System Cost'!R67*AH29,IF($B$12="Linear Move",AH29*$B$13*$B$5*'System Cost'!H67,IF($B$12="Drip",$B$5*$B$13*AH29*'System Cost'!M67))))) -> 848.4199797 | AL29: =IF(AH29<0,0,IF($B$12="Center Pivot",'System Cost'!E67*Data!$B$5*Data!AH29,IF($B$12="Drip",AH29*$B$5*'System Cost'!O67,IF($B$12="Linear Move",AH29*$B$5*'System Cost'!J67,IF($B$12="Hose Pull",AH29*$B$5*'System Cost'!T67))))) -> 3725.572483 | AM29: =IF(AH29<0,0,((IF($B$11="Electric",VLOOKUP((IF(I29<1995,1995,I29)),Electric!$A$3:$C$38,3,FALSE)*0.5,IF($B$11="Diesel",VLOOKUP((IF(I29<1995,1995,I29)),Diesel!$A$3:$C$24,3,FALSE),IF(Data!$B$11="Natural Gas",VLOOKUP((IF(I29<1995,1995,I29)),'Natural Gas'!$A$3:$C$38,3,FALSE))))))*(IF($B$12="Center Pivot",'System Cost'!D67,IF($B$12="Linear Move",'System Cost'!I67,IF($B$12="Drip",'System Cost'!N67,IF($B$12="Hose Pull",'System Cost'!S67)))))*AH29*$B$5) -> 13222.49303 | AO29: =IF($B$9="None",0,IF(Tool!$C$19="Rainfall Deficit",((VLOOKUP($B$9,'Regression Data'!$H$3:$K$6,3,FALSE))-M29)*0.0393701,IF(Tool!$C$19="Scheduled",$C$4*Tool!$C$20,))) -> 0 | AP29: =IF(AO29<0,0,IF($B$12="Center Pivot",'System Cost'!C67*Data!$B$13*Data!$C$5*Data!AO29,IF($B$12="Hose Pull",$C$5*$B$13*'System Cost'!R67*AO29,IF($B$12="Linear Move",AO29*$B$13*$C$5*'System Cost'!H67,IF($B$12="Drip",$C$5*$B$13*AO29*'System Cost'!M67))))) -> 0 | AQ29: =IF(AO29<0,0,IF($B$12="Center Pivot",'System Cost'!E67*Data!$C$5*Data!AO29,IF($B$12="Drip",AO29*$C$5*'System Cost'!O67,IF($B$12="Linear Move",AO29*$C$5*'System Cost'!J67,IF($B$12="Hose Pull",AO29*$C$5*'System Cost'!T67))))) -> 0 | AR29: =IF(AO29<0,0,((IF($B$11="Electric",VLOOKUP((IF(I29<1995,1995,I29)),Electric!$A$3:$C$38,3,FALSE),IF($B$11="Diesel",VLOOKUP((IF(I29<1995,1995,I29)),Diesel!$A$3:$C$24,3,FALSE),IF(Data!$B$11="Natural Gas",VLOOKUP((IF(I29<1995,1995,I29)),'Natural Gas'!$A$3:$C$38,3,FALSE))))))*(IF($B$12="Center Pivot",'System Cost'!D67,IF($B$12="Linear Move",'System Cost'!I67,IF($B$12="Drip",'System Cost'!N67,IF($B$12="Hose Pull",'System Cost'!S67)))))*AO29*$C$5) -> 0 | AT29: 848.4199797 | AU29: 3725.572483 | AV29: 13222.49303 | BA29: 13129.86712 | BB29: 0 | BC29: 30926.3526 | BD29: 13129.86712 | BE29: 3757.090821 | BH29: 756.631916 | BI29: 1303.44052 | BJ29: 8669.270737 | BL29: 29326.61635 | BM29: 18597.27318 | BN29: 9144.755644 | BR29: 16.0815638 | BS29: 0.5956134742
H30: 2004 | I30: 2015 | J30: =VLOOKUP(I30,'Corn Rain'!B$3:C$38,2,FALSE) -> 37 | K30: =IF($B$8="None",0,IF($B$8="Corn",VLOOKUP(H30,'Corn Rain'!B$3:EE$38,$C$7,FALSE),IF($B$8="Cotton",VLOOKUP(H30,CottonRain!$B$3:$EE$38,Data!$C$7,FALSE),IF(Data!$B$8="Soybeans",VLOOKUP(Data!H30,'Soybeans Rain'!$B$3:$EE$38,Data!$C$7,FALSE),IF(Data!$B$8="Wheat",VLOOKUP(Data!H30,'Wheat Rain'!$B$3:$EE$38,Data!$C$7,FALSE)))))) -> 535.6883 | L30: =IF($B$8="None",0,IF($B$8="Corn",VLOOKUP(H30,'Corn Drought'!B$3:EE$38,Data!$C$7,FALSE),IF($B$8="Cotton",VLOOKUP(H30,'Cotton Drought'!$B$3:$EE$38,Data!$C$7,FALSE),IF($B$8="Soybeans",VLOOKUP(H30,'Soybeans Drought'!$B$3:$EE$38,Data!$C$7,FALSE),IF(Data!$B$8="Wheat",VLOOKUP(Data!H30,'Wheat Drought'!$B$3:$EE$38,Data!$C$7,FALSE)))))) -> 17 | M30: =IF($B$9="None",0,IF($B$9="Corn",VLOOKUP(H30,'Corn Rain'!B$3:EE$38,$C$7,FALSE),IF($B$9="Cotton",VLOOKUP(H30,CottonRain!$B$3:$EE$38,Data!$C$7,FALSE),IF(Data!$B$9="Soybeans",VLOOKUP(Data!H30,'Soybeans Rain'!$B$3:$EE$38,Data!$C$7,FALSE),IF(Data!$B$9="Wheat",VLOOKUP(Data!H30,'Wheat Rain'!$B$3:$EE$38,Data!$C$7,FALSE)))))) -> 0 | N30: =IF($B$9="None",0,IF($B$9="Corn",VLOOKUP(H30,'Corn Drought'!B$3:EE$38,Data!$C$7,FALSE),IF($B$9="Cotton",VLOOKUP(H30,'Cotton Drought'!$B$3:$EE$38,Data!$C$7,FALSE),IF($B$9="Soybeans",VLOOKUP(H30,'Soybeans Drought'!$B$3:$EE$38,Data!$C$7,FALSE),IF(Data!$B$9="Wheat",VLOOKUP(Data!H30,'Wheat Drought'!$B$3:$EE$38,Data!$C$7,FALSE)))))) -> 0 | O30: =IF($B$8="None",0,VLOOKUP(I30,'Historic Prices'!$A$3:$K$38,$C$8,FALSE)) -> 3.61 | P30: =IF($B$9="None",0,VLOOKUP(I30,'Historic Prices'!$A$3:$K$38,$C$9,FALSE)) -> 0 | Q30: =IF($B$8="None",0,IF(IF(Tool!$C$19="Ideal",$B$2,IF(Tool!$C$19="Scheduled",((VLOOKUP($B$8&$B$10,'Regression Data'!$A$3:$F$30,4,FALSE))+(VLOOKUP($B$8&$B$10,'Regression Data'!$A$3:$F$30,5,FALSE)*(K30+(Tool!$C$20*Data!$B$4/0.0393701)))+(VLOOKUP($B$8&$B$10,'Regression Data'!$A$3:$F$30,6,FALSE)*L30))/2.47105*$B$3))>$B$2,$B$2,(IF(Tool!$C$19="Ideal",$B$2,IF(Tool!$C$19="Scheduled",((VLOOKUP($B$8&$B$10,'Regression Data'!$A$3:$F$30,4,FALSE))+(VLOOKUP($B$8&$B$10,'Regression Data'!$A$3:$F$30,5,FALSE)*(K30+(Tool!$C$20*Data!$B$4/0.0393701)))+(VLOOKUP($B$8&$B$10,'Regression Data'!$A$3:$F$30,6,FALSE)*L30))/2.47105*$B$3))))) -> 184.7279335 | R30: =IF($B$8="None",0,IF(IF((((VLOOKUP($B$8&$B$10,'Regression Data'!$A$3:$F$30,4,FALSE))+(VLOOKUP($B$8&$B$10,'Regression Data'!$A$3:$F$30,5,FALSE)*K30)+(VLOOKUP($B$8&$B$10,'Regression Data'!$A$3:$F$30,6,FALSE)*L30))/2.47105*$B$3)>$B$2,$B$2,((VLOOKUP($B$8&$B$10,'Regression Data'!$A$3:$F$30,4,FALSE))+(VLOOKUP($B$8&$B$10,'Regression Data'!$A$3:$F$30,5,FALSE)*K30)+(VLOOKUP($B$8&$B$10,'Regression Data'!$A$3:$F$30,6,FALSE)*L30))/2.47105*$B$3)<0,0,IF((((VLOOKUP($B$8&$B$10,'Regression Data'!$A$3:$F$30,4,FALSE))+(VLOOKUP($B$8&$B$10,'Regression Data'!$A$3:$F$30,5,FALSE)*K30)+(VLOOKUP($B$8&$B$10,'Regression Data'!$A$3:$F$30,6,FALSE)*L30))/2.47105*$B$3)>$B$2,$B$2,((VLOOKUP($B$8&$B$10,'Regression Data'!$A$3:$F$30,4,FALSE))+(VLOOKUP($B$8&$B$10,'Regression Data'!$A$3:$F$30,5,FALSE)*K30)+(VLOOKUP($B$8&$B$10,'Regression Data'!$A$3:$F$30,6,FALSE)*L30))/2.47105*$B$3))) -> 170.9432945 | S30: =IF($B$9="None",0,IF(IF(Tool!$C$19="Ideal",$C$2,IF(Tool!$C$19="Scheduled",((VLOOKUP($B$9&$B$10,'Regression Data'!$A$3:$F$30,4,FALSE))+(VLOOKUP($B$9&$B$10,'Regression Data'!$A$3:$F$30,5,FALSE)*(N30+(Tool!$C$20*Data!$C$4/0.0393701)))+(VLOOKUP($B$9&$B$10,'Regression Data'!$A$3:$F$30,6,FALSE)*N30))/2.47105*$C$3))>$C$2,$C$2,(IF(Tool!$C$19="Ideal",$C$2,IF(Tool!$C$19="Scheduled",((VLOOKUP($B$9&$B$10,'Regression Data'!$A$3:$F$30,4,FALSE))+(VLOOKUP($B$9&$B$10,'Regression Data'!$A$3:$F$30,5,FALSE)*(M30+(Tool!$C$20*Data!$C$4/0.0393701)))+(VLOOKUP($B$9&$B$10,'Regression Data'!$A$3:$F$30,6,FALSE)*N30))/2.47105*$C$3))))) -> 0 | T30: =IF($B$9="None",0,IF(IF((((VLOOKUP($B$9&$B$10,'Regression Data'!$A$3:$F$30,4,FALSE))+(VLOOKUP($B$9&$B$10,'Regression Data'!$A$3:$F$30,5,FALSE)*M30)+(VLOOKUP($B$9&$B$10,'Regression Data'!$A$3:$F$30,6,FALSE)*N30))/2.47105*$C$3)>$C$2,$C$2,((VLOOKUP($B$9&$B$10,'Regression Data'!$A$3:$F$30,4,FALSE))+(VLOOKUP($B$9&$B$10,'Regression Data'!$A$3:$F$30,5,FALSE)*M30)+(VLOOKUP($B$9&$B$10,'Regression Data'!$A$3:$F$30,6,FALSE)*N30))/2.47105*$C$3)<0,0,(IF((((VLOOKUP($B$9&$B$10,'Regression Data'!$A$3:$F$30,4,FALSE))+(VLOOKUP($B$9&$B$10,'Regression Data'!$A$3:$F$30,5,FALSE)*M30)+(VLOOKUP($B$9&$B$10,'Regression Data'!$A$3:$F$30,6,FALSE)*N30))/2.47105*$C$3)>$C$2,$C$2,((VLOOKUP($B$9&$B$10,'Regression Data'!$A$3:$F$30,4,FALSE))+(VLOOKUP($B$9&$B$10,'Regression Data'!$A$3:$F$30,5,FALSE)*M30)+(VLOOKUP($B$9&$B$10,'Regression Data'!$A$3:$F$30,6,FALSE)*N30))/2.47105*$C$3)))) -> 0 | X30: 66686.78398 | Y30: 61710.52932 | Z30: 4976.254666 | AA30: 0 | AB30: 0 | AC30: 0 | AH30: =IF($B$8="None",0,IF(Tool!$C$19="Rainfall Deficit",((VLOOKUP($B$8,'Regression Data'!$H$3:$K$6,3,FALSE))-K30)*0.0393701,IF(Tool!$C$19="Scheduled",$B$4*Tool!$C$20,))) -> 4.50046306 | AI30: =((IF($B$12="Center Pivot",'System Cost'!B68,IF($B$12="Linear Move",'System Cost'!G68,IF($B$12="Drip",'System Cost'!L68,IF($B$12="Hose Pull",'System Cost'!Q68)))))*(SUM($B$5:$C$5)))-(Tool!$C$28) -> 67843.15748 | AJ30: 8364.446953 | AK30: =IF(AH30<0,0,IF($B$12="Center Pivot",'System Cost'!C68*Data!$B$13*Data!$B$5*Data!AH30,IF($B$12="Hose Pull",$B$5*$B$13*'System Cost'!R68*AH30,IF($B$12="Linear Move",AH30*$B$13*$B$5*'System Cost'!H68,IF($B$12="Drip",$B$5*$B$13*AH30*'System Cost'!M68))))) -> 70.06175722 | AL30: =IF(AH30<0,0,IF($B$12="Center Pivot",'System Cost'!E68*Data!$B$5*Data!AH30,IF($B$12="Drip",AH30*$B$5*'System Cost'!O68,IF($B$12="Linear Move",AH30*$B$5*'System Cost'!J68,IF($B$12="Hose Pull",AH30*$B$5*'System Cost'!T68))))) -> 1023.551122 | AM30: =IF(AH30<0,0,((IF($B$11="Electric",VLOOKUP((IF(I30<1995,1995,I30)),Electric!$A$3:$C$38,3,FALSE)*0.5,IF($B$11="Diesel",VLOOKUP((IF(I30<1995,1995,I30)),Diesel!$A$3:$C$24,3,FALSE),IF(Data!$B$11="Natural Gas",VLOOKUP((IF(I30<1995,1995,I30)),'Natural Gas'!$A$3:$C$38,3,FALSE))))))*(IF($B$12="Center Pivot",'System Cost'!D68,IF($B$12="Linear Move",'System Cost'!I68,IF($B$12="Drip",'System Cost'!N68,IF($B$12="Hose Pull",'System Cost'!S68)))))*AH30*$B$5) -> 3342.966066 | AO30: =IF($B$9="None",0,IF(Tool!$C$19="Rainfall Deficit",((VLOOKUP($B$9,'Regression Data'!$H$3:$K$6,3,FALSE))-M30)*0.0393701,IF(Tool!$C$19="Scheduled",$C$4*Tool!$C$20,))) -> 0 | AP30: =IF(AO30<0,0,IF($B$12="Center Pivot",'System Cost'!C68*Data!$B$13*Data!$C$5*Data!AO30,IF($B$12="Hose Pull",$C$5*$B$13*'System Cost'!R68*AO30,IF($B$12="Linear Move",AO30*$B$13*$C$5*'System Cost'!H68,IF($B$12="Drip",$C$5*$B$13*AO30*'System Cost'!M68))))) -> 0 | AQ30: =IF(AO30<0,0,IF($B$12="Center Pivot",'System Cost'!E68*Data!$C$5*Data!AO30,IF($B$12="Drip",AO30*$C$5*'System Cost'!O68,IF($B$12="Linear Move",AO30*$C$5*'System Cost'!J68,IF($B$12="Hose Pull",AO30*$C$5*'System Cost'!T68))))) -> 0 | AR30: =IF(AO30<0,0,((IF($B$11="Electric",VLOOKUP((IF(I30<1995,1995,I30)),Electric!$A$3:$C$38,3,FALSE),IF($B$11="Diesel",VLOOKUP((IF(I30<1995,1995,I30)),Diesel!$A$3:$C$24,3,FALSE),IF(Data!$B$11="Natural Gas",VLOOKUP((IF(I30<1995,1995,I30)),'Natural Gas'!$A$3:$C$38,3,FALSE))))))*(IF($B$12="Center Pivot",'System Cost'!D68,IF($B$12="Linear Move",'System Cost'!I68,IF($B$12="Drip",'System Cost'!N68,IF($B$12="Hose Pull",'System Cost'!S68)))))*AO30*$C$5) -> 0 | AT30: 70.06175722 | AU30: 1023.551122 | AV30: 3342.966066 | BA30: 539.6757207 | BB30: 0 | BC30: 4976.254666 | BD30: 539.6757207 | BE30: -7824.771232 | BH30: 760.4386995 | BI30: 1465.002068 | BJ30: 11675.06583 | BL30: 27712.343 | BM30: 13811.8364 | BN30: 4489.026122 | BR30: 4.50046306 | BS30: 0.166683817
H31: 1996 | I31: 2016 | J31: =VLOOKUP(I31,'Corn Rain'!B$3:C$38,2,FALSE) -> 38 | K31: =IF($B$8="None",0,IF($B$8="Corn",VLOOKUP(H31,'Corn Rain'!B$3:EE$38,$C$7,FALSE),IF($B$8="Cotton",VLOOKUP(H31,CottonRain!$B$3:$EE$38,Data!$C$7,FALSE),IF(Data!$B$8="Soybeans",VLOOKUP(Data!H31,'Soybeans Rain'!$B$3:$EE$38,Data!$C$7,FALSE),IF(Data!$B$8="Wheat",VLOOKUP(Data!H31,'Wheat Rain'!$B$3:$EE$38,Data!$C$7,FALSE)))))) -> 532.0301 | L31: =IF($B$8="None",0,IF($B$8="Corn",VLOOKUP(H31,'Corn Drought'!B$3:EE$38,Data!$C$7,FALSE),IF($B$8="Cotton",VLOOKUP(H31,'Cotton Drought'!$B$3:$EE$38,Data!$C$7,FALSE),IF($B$8="Soybeans",VLOOKUP(H31,'Soybeans Drought'!$B$3:$EE$38,Data!$C$7,FALSE),IF(Data!$B$8="Wheat",VLOOKUP(Data!H31,'Wheat Drought'!$B$3:$EE$38,Data!$C$7,FALSE)))))) -> 18 | M31: =IF($B$9="None",0,IF($B$9="Corn",VLOOKUP(H31,'Corn Rain'!B$3:EE$38,$C$7,FALSE),IF($B$9="Cotton",VLOOKUP(H31,CottonRain!$B$3:$EE$38,Data!$C$7,FALSE),IF(Data!$B$9="Soybeans",VLOOKUP(Data!H31,'Soybeans Rain'!$B$3:$EE$38,Data!$C$7,FALSE),IF(Data!$B$9="Wheat",VLOOKUP(Data!H31,'Wheat Rain'!$B$3:$EE$38,Data!$C$7,FALSE)))))) -> 0 | N31: =IF($B$9="None",0,IF($B$9="Corn",VLOOKUP(H31,'Corn Drought'!B$3:EE$38,Data!$C$7,FALSE),IF($B$9="Cotton",VLOOKUP(H31,'Cotton Drought'!$B$3:$EE$38,Data!$C$7,FALSE),IF($B$9="Soybeans",VLOOKUP(H31,'Soybeans Drought'!$B$3:$EE$38,Data!$C$7,FALSE),IF(Data!$B$9="Wheat",VLOOKUP(Data!H31,'Wheat Drought'!$B$3:$EE$38,Data!$C$7,FALSE)))))) -> 0 | O31: =IF($B$8="None",0,VLOOKUP(I31,'Historic Prices'!$A$3:$K$38,$C$8,FALSE)) -> 3.4 | P31: =IF($B$9="None",0,VLOOKUP(I31,'Historic Prices'!$A$3:$K$38,$C$9,FALSE)) -> 0 | Q31: =IF($B$8="None",0,IF(IF(Tool!$C$19="Ideal",$B$2,IF(Tool!$C$19="Scheduled",((VLOOKUP($B$8&$B$10,'Regression Data'!$A$3:$F$30,4,FALSE))+(VLOOKUP($B$8&$B$10,'Regression Data'!$A$3:$F$30,5,FALSE)*(K31+(Tool!$C$20*Data!$B$4/0.0393701)))+(VLOOKUP($B$8&$B$10,'Regression Data'!$A$3:$F$30,6,FALSE)*L31))/2.47105*$B$3))>$B$2,$B$2,(IF(Tool!$C$19="Ideal",$B$2,IF(Tool!$C$19="Scheduled",((VLOOKUP($B$8&$B$10,'Regression Data'!$A$3:$F$30,4,FALSE))+(VLOOKUP($B$8&$B$10,'Regression Data'!$A$3:$F$30,5,FALSE)*(K31+(Tool!$C$20*Data!$B$4/0.0393701)))+(VLOOKUP($B$8&$B$10,'Regression Data'!$A$3:$F$30,6,FALSE)*L31))/2.47105*$B$3))))) -> 184.7279335 | R31: =IF($B$8="None",0,IF(IF((((VLOOKUP($B$8&$B$10,'Regression Data'!$A$3:$F$30,4,FALSE))+(VLOOKUP($B$8&$B$10,'Regression Data'!$A$3:$F$30,5,FALSE)*K31)+(VLOOKUP($B$8&$B$10,'Regression Data'!$A$3:$F$30,6,FALSE)*L31))/2.47105*$B$3)>$B$2,$B$2,((VLOOKUP($B$8&$B$10,'Regression Data'!$A$3:$F$30,4,FALSE))+(VLOOKUP($B$8&$B$10,'Regression Data'!$A$3:$F$30,5,FALSE)*K31)+(VLOOKUP($B$8&$B$10,'Regression Data'!$A$3:$F$30,6,FALSE)*L31))/2.47105*$B$3)<0,0,IF((((VLOOKUP($B$8&$B$10,'Regression Data'!$A$3:$F$30,4,FALSE))+(VLOOKUP($B$8&$B$10,'Regression Data'!$A$3:$F$30,5,FALSE)*K31)+(VLOOKUP($B$8&$B$10,'Regression Data'!$A$3:$F$30,6,FALSE)*L31))/2.47105*$B$3)>$B$2,$B$2,((VLOOKUP($B$8&$B$10,'Regression Data'!$A$3:$F$30,4,FALSE))+(VLOOKUP($B$8&$B$10,'Regression Data'!$A$3:$F$30,5,FALSE)*K31)+(VLOOKUP($B$8&$B$10,'Regression Data'!$A$3:$F$30,6,FALSE)*L31))/2.47105*$B$3))) -> 168.2784965 | S31: =IF($B$9="None",0,IF(IF(Tool!$C$19="Ideal",$C$2,IF(Tool!$C$19="Scheduled",((VLOOKUP($B$9&$B$10,'Regression Data'!$A$3:$F$30,4,FALSE))+(VLOOKUP($B$9&$B$10,'Regression Data'!$A$3:$F$30,5,FALSE)*(N31+(Tool!$C$20*Data!$C$4/0.0393701)))+(VLOOKUP($B$9&$B$10,'Regression Data'!$A$3:$F$30,6,FALSE)*N31))/2.47105*$C$3))>$C$2,$C$2,(IF(Tool!$C$19="Ideal",$C$2,IF(Tool!$C$19="Scheduled",((VLOOKUP($B$9&$B$10,'Regression Data'!$A$3:$F$30,4,FALSE))+(VLOOKUP($B$9&$B$10,'Regression Data'!$A$3:$F$30,5,FALSE)*(M31+(Tool!$C$20*Data!$C$4/0.0393701)))+(VLOOKUP($B$9&$B$10,'Regression Data'!$A$3:$F$30,6,FALSE)*N31))/2.47105*$C$3))))) -> 0 | T31: =IF($B$9="None",0,IF(IF((((VLOOKUP($B$9&$B$10,'Regression Data'!$A$3:$F$30,4,FALSE))+(VLOOKUP($B$9&$B$10,'Regression Data'!$A$3:$F$30,5,FALSE)*M31)+(VLOOKUP($B$9&$B$10,'Regression Data'!$A$3:$F$30,6,FALSE)*N31))/2.47105*$C$3)>$C$2,$C$2,((VLOOKUP($B$9&$B$10,'Regression Data'!$A$3:$F$30,4,FALSE))+(VLOOKUP($B$9&$B$10,'Regression Data'!$A$3:$F$30,5,FALSE)*M31)+(VLOOKUP($B$9&$B$10,'Regression Data'!$A$3:$F$30,6,FALSE)*N31))/2.47105*$C$3)<0,0,(IF((((VLOOKUP($B$9&$B$10,'Regression Data'!$A$3:$F$30,4,FALSE))+(VLOOKUP($B$9&$B$10,'Regression Data'!$A$3:$F$30,5,FALSE)*M31)+(VLOOKUP($B$9&$B$10,'Regression Data'!$A$3:$F$30,6,FALSE)*N31))/2.47105*$C$3)>$C$2,$C$2,((VLOOKUP($B$9&$B$10,'Regression Data'!$A$3:$F$30,4,FALSE))+(VLOOKUP($B$9&$B$10,'Regression Data'!$A$3:$F$30,5,FALSE)*M31)+(VLOOKUP($B$9&$B$10,'Regression Data'!$A$3:$F$30,6,FALSE)*N31))/2.47105*$C$3)))) -> 0 | X31: 62807.49738 | Y31: 57214.6888 | Z31: 5592.808575 | AA31: 0 | AB31: 0 | AC31: 0 | AH31: =IF($B$8="None",0,IF(Tool!$C$19="Rainfall Deficit",((VLOOKUP($B$8,'Regression Data'!$H$3:$K$6,3,FALSE))-K31)*0.0393701,IF(Tool!$C$19="Scheduled",$B$4*Tool!$C$20,))) -> 4.64448676 | AI31: =((IF($B$12="Center Pivot",'System Cost'!B69,IF($B$12="Linear Move",'System Cost'!G69,IF($B$12="Drip",'System Cost'!L69,IF($B$12="Hose Pull",'System Cost'!Q69)))))*(SUM($B$5:$C$5)))-(Tool!$C$28) -> 80909.99188 | AJ31: 9975.469305 | AK31: =IF(AH31<0,0,IF($B$12="Center Pivot",'System Cost'!C69*Data!$B$13*Data!$B$5*Data!AH31,IF($B$12="Hose Pull",$B$5*$B$13*'System Cost'!R69*AH31,IF($B$12="Linear Move",AH31*$B$13*$B$5*'System Cost'!H69,IF($B$12="Drip",$B$5*$B$13*AH31*'System Cost'!M69))))) -> 480.1507728 | AL31: =IF(AH31<0,0,IF($B$12="Center Pivot",'System Cost'!E69*Data!$B$5*Data!AH31,IF($B$12="Drip",AH31*$B$5*'System Cost'!O69,IF($B$12="Linear Move",AH31*$B$5*'System Cost'!J69,IF($B$12="Hose Pull",AH31*$B$5*'System Cost'!T69))))) -> 380.0226651 | AM31: =IF(AH31<0,0,((IF($B$11="Electric",VLOOKUP((IF(I31<1995,1995,I31)),Electric!$A$3:$C$38,3,FALSE)*0.5,IF($B$11="Diesel",VLOOKUP((IF(I31<1995,1995,I31)),Diesel!$A$3:$C$24,3,FALSE),IF(Data!$B$11="Natural Gas",VLOOKUP((IF(I31<1995,1995,I31)),'Natural Gas'!$A$3:$C$38,3,FALSE))))))*(IF($B$12="Center Pivot",'System Cost'!D69,IF($B$12="Linear Move",'System Cost'!I69,IF($B$12="Drip",'System Cost'!N69,IF($B$12="Hose Pull",'System Cost'!S69)))))*AH31*$B$5) -> 3280.558451 | AO31: =IF($B$9="None",0,IF(Tool!$C$19="Rainfall Deficit",((VLOOKUP($B$9,'Regression Data'!$H$3:$K$6,3,FALSE))-M31)*0.0393701,IF(Tool!$C$19="Scheduled",$C$4*Tool!$C$20,))) -> 0 | AP31: =IF(AO31<0,0,IF($B$12="Center Pivot",'System Cost'!C69*Data!$B$13*Data!$C$5*Data!AO31,IF($B$12="Hose Pull",$C$5*$B$13*'System Cost'!R69*AO31,IF($B$12="Linear Move",AO31*$B$13*$C$5*'System Cost'!H69,IF($B$12="Drip",$C$5*$B$13*AO31*'System Cost'!M69))))) -> 0 | AQ31: =IF(AO31<0,0,IF($B$12="Center Pivot",'System Cost'!E69*Data!$C$5*Data!AO31,IF($B$12="Drip",AO31*$C$5*'System Cost'!O69,IF($B$12="Linear Move",AO31*$C$5*'System Cost'!J69,IF($B$12="Hose Pull",AO31*$C$5*'System Cost'!T69))))) -> 0 | AR31: =IF(AO31<0,0,((IF($B$11="Electric",VLOOKUP((IF(I31<1995,1995,I31)),Electric!$A$3:$C$38,3,FALSE),IF($B$11="Diesel",VLOOKUP((IF(I31<1995,1995,I31)),Diesel!$A$3:$C$24,3,FALSE),IF(Data!$B$11="Natural Gas",VLOOKUP((IF(I31<1995,1995,I31)),'Natural Gas'!$A$3:$C$38,3,FALSE))))))*(IF($B$12="Center Pivot",'System Cost'!D69,IF($B$12="Linear Move",'System Cost'!I69,IF($B$12="Drip",'System Cost'!N69,IF($B$12="Hose Pull",'System Cost'!S69)))))*AO31*$C$5) -> 0 | AT31: 480.1507728 | AU31: 380.0226651 | AV31: 3280.558451 | BA31: 1452.076687 | BB31: 0 | BC31: 5592.808575 | BD31: 1452.076687 | BE31: -8523.392618 | BH31: 871.4030527 | BI31: 1559.972467 | BJ31: 10237.21728 | BL31: 24359.89867 | BM31: 11691.30588 | BN31: 2551.717025 | BR31: 4.64448676 | BS31: 0.1720180281
H32: 1997 | I32: 1999 | J32: =VLOOKUP(I32,'Corn Rain'!B$3:C$38,2,FALSE) -> 21 | K32: =IF($B$8="None",0,IF($B$8="Corn",VLOOKUP(H32,'Corn Rain'!B$3:EE$38,$C$7,FALSE),IF($B$8="Cotton",VLOOKUP(H32,CottonRain!$B$3:$EE$38,Data!$C$7,FALSE),IF(Data!$B$8="Soybeans",VLOOKUP(Data!H32,'Soybeans Rain'!$B$3:$EE$38,Data!$C$7,FALSE),IF(Data!$B$8="Wheat",VLOOKUP(Data!H32,'Wheat Rain'!$B$3:$EE$38,Data!$C$7,FALSE)))))) -> 325.9993 | L32: =IF($B$8="None",0,IF($B$8="Corn",VLOOKUP(H32,'Corn Drought'!B$3:EE$38,Data!$C$7,FALSE),IF($B$8="Cotton",VLOOKUP(H32,'Cotton Drought'!$B$3:$EE$38,Data!$C$7,FALSE),IF($B$8="Soybeans",VLOOKUP(H32,'Soybeans Drought'!$B$3:$EE$38,Data!$C$7,FALSE),IF(Data!$B$8="Wheat",VLOOKUP(Data!H32,'Wheat Drought'!$B$3:$EE$38,Data!$C$7,FALSE)))))) -> 75 | M32: =IF($B$9="None",0,IF($B$9="Corn",VLOOKUP(H32,'Corn Rain'!B$3:EE$38,$C$7,FALSE),IF($B$9="Cotton",VLOOKUP(H32,CottonRain!$B$3:$EE$38,Data!$C$7,FALSE),IF(Data!$B$9="Soybeans",VLOOKUP(Data!H32,'Soybeans Rain'!$B$3:$EE$38,Data!$C$7,FALSE),IF(Data!$B$9="Wheat",VLOOKUP(Data!H32,'Wheat Rain'!$B$3:$EE$38,Data!$C$7,FALSE)))))) -> 0 | N32: =IF($B$9="None",0,IF($B$9="Corn",VLOOKUP(H32,'Corn Drought'!B$3:EE$38,Data!$C$7,FALSE),IF($B$9="Cotton",VLOOKUP(H32,'Cotton Drought'!$B$3:$EE$38,Data!$C$7,FALSE),IF($B$9="Soybeans",VLOOKUP(H32,'Soybeans Drought'!$B$3:$EE$38,Data!$C$7,FALSE),IF(Data!$B$9="Wheat",VLOOKUP(Data!H32,'Wheat Drought'!$B$3:$EE$38,Data!$C$7,FALSE)))))) -> 0 | O32: =IF($B$8="None",0,VLOOKUP(I32,'Historic Prices'!$A$3:$K$38,$C$8,FALSE)) -> 1.82 | P32: =IF($B$9="None",0,VLOOKUP(I32,'Historic Prices'!$A$3:$K$38,$C$9,FALSE)) -> 0 | Q32: =IF($B$8="None",0,IF(IF(Tool!$C$19="Ideal",$B$2,IF(Tool!$C$19="Scheduled",((VLOOKUP($B$8&$B$10,'Regression Data'!$A$3:$F$30,4,FALSE))+(VLOOKUP($B$8&$B$10,'Regression Data'!$A$3:$F$30,5,FALSE)*(K32+(Tool!$C$20*Data!$B$4/0.0393701)))+(VLOOKUP($B$8&$B$10,'Regression Data'!$A$3:$F$30,6,FALSE)*L32))/2.47105*$B$3))>$B$2,$B$2,(IF(Tool!$C$19="Ideal",$B$2,IF(Tool!$C$19="Scheduled",((VLOOKUP($B$8&$B$10,'Regression Data'!$A$3:$F$30,4,FALSE))+(VLOOKUP($B$8&$B$10,'Regression Data'!$A$3:$F$30,5,FALSE)*(K32+(Tool!$C$20*Data!$B$4/0.0393701)))+(VLOOKUP($B$8&$B$10,'Regression Data'!$A$3:$F$30,6,FALSE)*L32))/2.47105*$B$3))))) -> 184.7279335 | R32: =IF($B$8="None",0,IF(IF((((VLOOKUP($B$8&$B$10,'Regression Data'!$A$3:$F$30,4,FALSE))+(VLOOKUP($B$8&$B$10,'Regression Data'!$A$3:$F$30,5,FALSE)*K32)+(VLOOKUP($B$8&$B$10,'Regression Data'!$A$3:$F$30,6,FALSE)*L32))/2.47105*$B$3)>$B$2,$B$2,((VLOOKUP($B$8&$B$10,'Regression Data'!$A$3:$F$30,4,FALSE))+(VLOOKUP($B$8&$B$10,'Regression Data'!$A$3:$F$30,5,FALSE)*K32)+(VLOOKUP($B$8&$B$10,'Regression Data'!$A$3:$F$30,6,FALSE)*L32))/2.47105*$B$3)<0,0,IF((((VLOOKUP($B$8&$B$10,'Regression Data'!$A$3:$F$30,4,FALSE))+(VLOOKUP($B$8&$B$10,'Regression Data'!$A$3:$F$30,5,FALSE)*K32)+(VLOOKUP($B$8&$B$10,'Regression Data'!$A$3:$F$30,6,FALSE)*L32))/2.47105*$B$3)>$B$2,$B$2,((VLOOKUP($B$8&$B$10,'Regression Data'!$A$3:$F$30,4,FALSE))+(VLOOKUP($B$8&$B$10,'Regression Data'!$A$3:$F$30,5,FALSE)*K32)+(VLOOKUP($B$8&$B$10,'Regression Data'!$A$3:$F$30,6,FALSE)*L32))/2.47105*$B$3))) -> 17.17732399 | S32: =IF($B$9="None",0,IF(IF(Tool!$C$19="Ideal",$C$2,IF(Tool!$C$19="Scheduled",((VLOOKUP($B$9&$B$10,'Regression Data'!$A$3:$F$30,4,FALSE))+(VLOOKUP($B$9&$B$10,'Regression Data'!$A$3:$F$30,5,FALSE)*(N32+(Tool!$C$20*Data!$C$4/0.0393701)))+(VLOOKUP($B$9&$B$10,'Regression Data'!$A$3:$F$30,6,FALSE)*N32))/2.47105*$C$3))>$C$2,$C$2,(IF(Tool!$C$19="Ideal",$C$2,IF(Tool!$C$19="Scheduled",((VLOOKUP($B$9&$B$10,'Regression Data'!$A$3:$F$30,4,FALSE))+(VLOOKUP($B$9&$B$10,'Regression Data'!$A$3:$F$30,5,FALSE)*(M32+(Tool!$C$20*Data!$C$4/0.0393701)))+(VLOOKUP($B$9&$B$10,'Regression Data'!$A$3:$F$30,6,FALSE)*N32))/2.47105*$C$3))))) -> 0 | T32: =IF($B$9="None",0,IF(IF((((VLOOKUP($B$9&$B$10,'Regression Data'!$A$3:$F$30,4,FALSE))+(VLOOKUP($B$9&$B$10,'Regression Data'!$A$3:$F$30,5,FALSE)*M32)+(VLOOKUP($B$9&$B$10,'Regression Data'!$A$3:$F$30,6,FALSE)*N32))/2.47105*$C$3)>$C$2,$C$2,((VLOOKUP($B$9&$B$10,'Regression Data'!$A$3:$F$30,4,FALSE))+(VLOOKUP($B$9&$B$10,'Regression Data'!$A$3:$F$30,5,FALSE)*M32)+(VLOOKUP($B$9&$B$10,'Regression Data'!$A$3:$F$30,6,FALSE)*N32))/2.47105*$C$3)<0,0,(IF((((VLOOKUP($B$9&$B$10,'Regression Data'!$A$3:$F$30,4,FALSE))+(VLOOKUP($B$9&$B$10,'Regression Data'!$A$3:$F$30,5,FALSE)*M32)+(VLOOKUP($B$9&$B$10,'Regression Data'!$A$3:$F$30,6,FALSE)*N32))/2.47105*$C$3)>$C$2,$C$2,((VLOOKUP($B$9&$B$10,'Regression Data'!$A$3:$F$30,4,FALSE))+(VLOOKUP($B$9&$B$10,'Regression Data'!$A$3:$F$30,5,FALSE)*M32)+(VLOOKUP($B$9&$B$10,'Regression Data'!$A$3:$F$30,6,FALSE)*N32))/2.47105*$C$3)))) -> 0 | X32: 33620.48389 | Y32: 3126.272966 | Z32: 30494.21093 | AA32: 0 | AB32: 0 | AC32: 0 | AH32: =IF($B$8="None",0,IF(Tool!$C$19="Rainfall Deficit",((VLOOKUP($B$8,'Regression Data'!$H$3:$K$6,3,FALSE))-K32)*0.0393701,IF(Tool!$C$19="Scheduled",$B$4*Tool!$C$20,))) -> 12.75593996 | AI32: =((IF($B$12="Center Pivot",'System Cost'!B70,IF($B$12="Linear Move",'System Cost'!G70,IF($B$12="Drip",'System Cost'!L70,IF($B$12="Hose Pull",'System Cost'!Q70)))))*(SUM($B$5:$C$5)))-(Tool!$C$28) -> 69536.05186 | AJ32: 8573.165499 | AK32: =IF(AH32<0,0,IF($B$12="Center Pivot",'System Cost'!C70*Data!$B$13*Data!$B$5*Data!AH32,IF($B$12="Hose Pull",$B$5*$B$13*'System Cost'!R70*AH32,IF($B$12="Linear Move",AH32*$B$13*$B$5*'System Cost'!H70,IF($B$12="Drip",$B$5*$B$13*AH32*'System Cost'!M70))))) -> 588.0397233 | AL32: =IF(AH32<0,0,IF($B$12="Center Pivot",'System Cost'!E70*Data!$B$5*Data!AH32,IF($B$12="Drip",AH32*$B$5*'System Cost'!O70,IF($B$12="Linear Move",AH32*$B$5*'System Cost'!J70,IF($B$12="Hose Pull",AH32*$B$5*'System Cost'!T70))))) -> 1160.768409 | AM32: =IF(AH32<0,0,((IF($B$11="Electric",VLOOKUP((IF(I32<1995,1995,I32)),Electric!$A$3:$C$38,3,FALSE)*0.5,IF($B$11="Diesel",VLOOKUP((IF(I32<1995,1995,I32)),Diesel!$A$3:$C$24,3,FALSE),IF(Data!$B$11="Natural Gas",VLOOKUP((IF(I32<1995,1995,I32)),'Natural Gas'!$A$3:$C$38,3,FALSE))))))*(IF($B$12="Center Pivot",'System Cost'!D70,IF($B$12="Linear Move",'System Cost'!I70,IF($B$12="Drip",'System Cost'!N70,IF($B$12="Hose Pull",'System Cost'!S70)))))*AH32*$B$5) -> 6317.17376 | AO32: =IF($B$9="None",0,IF(Tool!$C$19="Rainfall Deficit",((VLOOKUP($B$9,'Regression Data'!$H$3:$K$6,3,FALSE))-M32)*0.0393701,IF(Tool!$C$19="Scheduled",$C$4*Tool!$C$20,))) -> 0 | AP32: =IF(AO32<0,0,IF($B$12="Center Pivot",'System Cost'!C70*Data!$B$13*Data!$C$5*Data!AO32,IF($B$12="Hose Pull",$C$5*$B$13*'System Cost'!R70*AO32,IF($B$12="Linear Move",AO32*$B$13*$C$5*'System Cost'!H70,IF($B$12="Drip",$C$5*$B$13*AO32*'System Cost'!M70))))) -> 0 | AQ32: =IF(AO32<0,0,IF($B$12="Center Pivot",'System Cost'!E70*Data!$C$5*Data!AO32,IF($B$12="Drip",AO32*$C$5*'System Cost'!O70,IF($B$12="Linear Move",AO32*$C$5*'System Cost'!J70,IF($B$12="Hose Pull",AO32*$C$5*'System Cost'!T70))))) -> 0 | AR32: =IF(AO32<0,0,((IF($B$11="Electric",VLOOKUP((IF(I32<1995,1995,I32)),Electric!$A$3:$C$38,3,FALSE),IF($B$11="Diesel",VLOOKUP((IF(I32<1995,1995,I32)),Diesel!$A$3:$C$24,3,FALSE),IF(Data!$B$11="Natural Gas",VLOOKUP((IF(I32<1995,1995,I32)),'Natural Gas'!$A$3:$C$38,3,FALSE))))))*(IF($B$12="Center Pivot",'System Cost'!D70,IF($B$12="Linear Move",'System Cost'!I70,IF($B$12="Drip",'System Cost'!N70,IF($B$12="Hose Pull",'System Cost'!S70)))))*AO32*$C$5) -> 0 | AT32: 588.0397233 | AU32: 1160.768409 | AV32: 6317.17376 | BA32: 22428.22903 | BB32: 0 | BC32: 30494.21093 | BD32: 22428.22903 | BE32: 13855.06353 | BH32: 847.9530055 | BI32: 1438.748911 | BJ32: 11599.37024 | BL32: 36232.56255 | BM32: 22346.4904 | BN32: 13147.77397 | BR32: 12.75593996 | BS32: 0.4724422207
H33: 1981 | I33: 2007 | J33: =VLOOKUP(I33,'Corn Rain'!B$3:C$38,2,FALSE) -> 29 | K33: =IF($B$8="None",0,IF($B$8="Corn",VLOOKUP(H33,'Corn Rain'!B$3:EE$38,$C$7,FALSE),IF($B$8="Cotton",VLOOKUP(H33,CottonRain!$B$3:$EE$38,Data!$C$7,FALSE),IF(Data!$B$8="Soybeans",VLOOKUP(Data!H33,'Soybeans Rain'!$B$3:$EE$38,Data!$C$7,FALSE),IF(Data!$B$8="Wheat",VLOOKUP(Data!H33,'Wheat Rain'!$B$3:$EE$38,Data!$C$7,FALSE)))))) -> 361.7786 | L33: =IF($B$8="None",0,IF($B$8="Corn",VLOOKUP(H33,'Corn Drought'!B$3:EE$38,Data!$C$7,FALSE),IF($B$8="Cotton",VLOOKUP(H33,'Cotton Drought'!$B$3:$EE$38,Data!$C$7,FALSE),IF($B$8="Soybeans",VLOOKUP(H33,'Soybeans Drought'!$B$3:$EE$38,Data!$C$7,FALSE),IF(Data!$B$8="Wheat",VLOOKUP(Data!H33,'Wheat Drought'!$B$3:$EE$38,Data!$C$7,FALSE)))))) -> 20 | M33: =IF($B$9="None",0,IF($B$9="Corn",VLOOKUP(H33,'Corn Rain'!B$3:EE$38,$C$7,FALSE),IF($B$9="Cotton",VLOOKUP(H33,CottonRain!$B$3:$EE$38,Data!$C$7,FALSE),IF(Data!$B$9="Soybeans",VLOOKUP(Data!H33,'Soybeans Rain'!$B$3:$EE$38,Data!$C$7,FALSE),IF(Data!$B$9="Wheat",VLOOKUP(Data!H33,'Wheat Rain'!$B$3:$EE$38,Data!$C$7,FALSE)))))) -> 0 | N33: =IF($B$9="None",0,IF($B$9="Corn",VLOOKUP(H33,'Corn Drought'!B$3:EE$38,Data!$C$7,FALSE),IF($B$9="Cotton",VLOOKUP(H33,'Cotton Drought'!$B$3:$EE$38,Data!$C$7,FALSE),IF($B$9="Soybeans",VLOOKUP(H33,'Soybeans Drought'!$B$3:$EE$38,Data!$C$7,FALSE),IF(Data!$B$9="Wheat",VLOOKUP(Data!H33,'Wheat Drought'!$B$3:$EE$38,Data!$C$7,FALSE)))))) -> 0 | O33: =IF($B$8="None",0,VLOOKUP(I33,'Historic Prices'!$A$3:$K$38,$C$8,FALSE)) -> 4.2 | P33: =IF($B$9="None",0,VLOOKUP(I33,'Historic Prices'!$A$3:$K$38,$C$9,FALSE)) -> 0 | Q33: =IF($B$8="None",0,IF(IF(Tool!$C$19="Ideal",$B$2,IF(Tool!$C$19="Scheduled",((VLOOKUP($B$8&$B$10,'Regression Data'!$A$3:$F$30,4,FALSE))+(VLOOKUP($B$8&$B$10,'Regression Data'!$A$3:$F$30,5,FALSE)*(K33+(Tool!$C$20*Data!$B$4/0.0393701)))+(VLOOKUP($B$8&$B$10,'Regression Data'!$A$3:$F$30,6,FALSE)*L33))/2.47105*$B$3))>$B$2,$B$2,(IF(Tool!$C$19="Ideal",$B$2,IF(Tool!$C$19="Scheduled",((VLOOKUP($B$8&$B$10,'Regression Data'!$A$3:$F$30,4,FALSE))+(VLOOKUP($B$8&$B$10,'Regression Data'!$A$3:$F$30,5,FALSE)*(K33+(Tool!$C$20*Data!$B$4/0.0393701)))+(VLOOKUP($B$8&$B$10,'Regression Data'!$A$3:$F$30,6,FALSE)*L33))/2.47105*$B$3))))) -> 184.7279335 | R33: =IF($B$8="None",0,IF(IF((((VLOOKUP($B$8&$B$10,'Regression Data'!$A$3:$F$30,4,FALSE))+(VLOOKUP($B$8&$B$10,'Regression Data'!$A$3:$F$30,5,FALSE)*K33)+(VLOOKUP($B$8&$B$10,'Regression Data'!$A$3:$F$30,6,FALSE)*L33))/2.47105*$B$3)>$B$2,$B$2,((VLOOKUP($B$8&$B$10,'Regression Data'!$A$3:$F$30,4,FALSE))+(VLOOKUP($B$8&$B$10,'Regression Data'!$A$3:$F$30,5,FALSE)*K33)+(VLOOKUP($B$8&$B$10,'Regression Data'!$A$3:$F$30,6,FALSE)*L33))/2.47105*$B$3)<0,0,IF((((VLOOKUP($B$8&$B$10,'Regression Data'!$A$3:$F$30,4,FALSE))+(VLOOKUP($B$8&$B$10,'Regression Data'!$A$3:$F$30,5,FALSE)*K33)+(VLOOKUP($B$8&$B$10,'Regression Data'!$A$3:$F$30,6,FALSE)*L33))/2.47105*$B$3)>$B$2,$B$2,((VLOOKUP($B$8&$B$10,'Regression Data'!$A$3:$F$30,4,FALSE))+(VLOOKUP($B$8&$B$10,'Regression Data'!$A$3:$F$30,5,FALSE)*K33)+(VLOOKUP($B$8&$B$10,'Regression Data'!$A$3:$F$30,6,FALSE)*L33))/2.47105*$B$3))) -> 111.0322738 | S33: =IF($B$9="None",0,IF(IF(Tool!$C$19="Ideal",$C$2,IF(Tool!$C$19="Scheduled",((VLOOKUP($B$9&$B$10,'Regression Data'!$A$3:$F$30,4,FALSE))+(VLOOKUP($B$9&$B$10,'Regression Data'!$A$3:$F$30,5,FALSE)*(N33+(Tool!$C$20*Data!$C$4/0.0393701)))+(VLOOKUP($B$9&$B$10,'Regression Data'!$A$3:$F$30,6,FALSE)*N33))/2.47105*$C$3))>$C$2,$C$2,(IF(Tool!$C$19="Ideal",$C$2,IF(Tool!$C$19="Scheduled",((VLOOKUP($B$9&$B$10,'Regression Data'!$A$3:$F$30,4,FALSE))+(VLOOKUP($B$9&$B$10,'Regression Data'!$A$3:$F$30,5,FALSE)*(M33+(Tool!$C$20*Data!$C$4/0.0393701)))+(VLOOKUP($B$9&$B$10,'Regression Data'!$A$3:$F$30,6,FALSE)*N33))/2.47105*$C$3))))) -> 0 | T33: =IF($B$9="None",0,IF(IF((((VLOOKUP($B$9&$B$10,'Regression Data'!$A$3:$F$30,4,FALSE))+(VLOOKUP($B$9&$B$10,'Regression Data'!$A$3:$F$30,5,FALSE)*M33)+(VLOOKUP($B$9&$B$10,'Regression Data'!$A$3:$F$30,6,FALSE)*N33))/2.47105*$C$3)>$C$2,$C$2,((VLOOKUP($B$9&$B$10,'Regression Data'!$A$3:$F$30,4,FALSE))+(VLOOKUP($B$9&$B$10,'Regression Data'!$A$3:$F$30,5,FALSE)*M33)+(VLOOKUP($B$9&$B$10,'Regression Data'!$A$3:$F$30,6,FALSE)*N33))/2.47105*$C$3)<0,0,(IF((((VLOOKUP($B$9&$B$10,'Regression Data'!$A$3:$F$30,4,FALSE))+(VLOOKUP($B$9&$B$10,'Regression Data'!$A$3:$F$30,5,FALSE)*M33)+(VLOOKUP($B$9&$B$10,'Regression Data'!$A$3:$F$30,6,FALSE)*N33))/2.47105*$C$3)>$C$2,$C$2,((VLOOKUP($B$9&$B$10,'Regression Data'!$A$3:$F$30,4,FALSE))+(VLOOKUP($B$9&$B$10,'Regression Data'!$A$3:$F$30,5,FALSE)*M33)+(VLOOKUP($B$9&$B$10,'Regression Data'!$A$3:$F$30,6,FALSE)*N33))/2.47105*$C$3)))) -> 0 | X33: 77585.73206 | Y33: 46633.55498 | Z33: 30952.17707 | AA33: 0 | AB33: 0 | AC33: 0 | AH33: =IF($B$8="None",0,IF(Tool!$C$19="Rainfall Deficit",((VLOOKUP($B$8,'Regression Data'!$H$3:$K$6,3,FALSE))-K33)*0.0393701,IF(Tool!$C$19="Scheduled",$B$4*Tool!$C$20,))) -> 11.34730534 | AI33: =((IF($B$12="Center Pivot",'System Cost'!B71,IF($B$12="Linear Move",'System Cost'!G71,IF($B$12="Drip",'System Cost'!L71,IF($B$12="Hose Pull",'System Cost'!Q71)))))*(SUM($B$5:$C$5)))-(Tool!$C$28) -> 76644.74425 | AJ33: 9449.602896 | AK33: =IF(AH33<0,0,IF($B$12="Center Pivot",'System Cost'!C71*Data!$B$13*Data!$B$5*Data!AH33,IF($B$12="Hose Pull",$B$5*$B$13*'System Cost'!R71*AH33,IF($B$12="Linear Move",AH33*$B$13*$B$5*'System Cost'!H71,IF($B$12="Drip",$B$5*$B$13*AH33*'System Cost'!M71))))) -> 459.8950996 | AL33: =IF(AH33<0,0,IF($B$12="Center Pivot",'System Cost'!E71*Data!$B$5*Data!AH33,IF($B$12="Drip",AH33*$B$5*'System Cost'!O71,IF($B$12="Linear Move",AH33*$B$5*'System Cost'!J71,IF($B$12="Hose Pull",AH33*$B$5*'System Cost'!T71))))) -> 529.3664609 | AM33: =IF(AH33<0,0,((IF($B$11="Electric",VLOOKUP((IF(I33<1995,1995,I33)),Electric!$A$3:$C$38,3,FALSE)*0.5,IF($B$11="Diesel",VLOOKUP((IF(I33<1995,1995,I33)),Diesel!$A$3:$C$24,3,FALSE),IF(Data!$B$11="Natural Gas",VLOOKUP((IF(I33<1995,1995,I33)),'Natural Gas'!$A$3:$C$38,3,FALSE))))))*(IF($B$12="Center Pivot",'System Cost'!D71,IF($B$12="Linear Move",'System Cost'!I71,IF($B$12="Drip",'System Cost'!N71,IF($B$12="Hose Pull",'System Cost'!S71)))))*AH33*$B$5) -> 3767.852435 | AO33: =IF($B$9="None",0,IF(Tool!$C$19="Rainfall Deficit",((VLOOKUP($B$9,'Regression Data'!$H$3:$K$6,3,FALSE))-M33)*0.0393701,IF(Tool!$C$19="Scheduled",$C$4*Tool!$C$20,))) -> 0 | AP33: =IF(AO33<0,0,IF($B$12="Center Pivot",'System Cost'!C71*Data!$B$13*Data!$C$5*Data!AO33,IF($B$12="Hose Pull",$C$5*$B$13*'System Cost'!R71*AO33,IF($B$12="Linear Move",AO33*$B$13*$C$5*'System Cost'!H71,IF($B$12="Drip",$C$5*$B$13*AO33*'System Cost'!M71))))) -> 0 | AQ33: =IF(AO33<0,0,IF($B$12="Center Pivot",'System Cost'!E71*Data!$C$5*Data!AO33,IF($B$12="Drip",AO33*$C$5*'System Cost'!O71,IF($B$12="Linear Move",AO33*$C$5*'System Cost'!J71,IF($B$12="Hose Pull",AO33*$C$5*'System Cost'!T71))))) -> 0 | AR33: =IF(AO33<0,0,((IF($B$11="Electric",VLOOKUP((IF(I33<1995,1995,I33)),Electric!$A$3:$C$38,3,FALSE),IF($B$11="Diesel",VLOOKUP((IF(I33<1995,1995,I33)),Diesel!$A$3:$C$24,3,FALSE),IF(Data!$B$11="Natural Gas",VLOOKUP((IF(I33<1995,1995,I33)),'Natural Gas'!$A$3:$C$38,3,FALSE))))))*(IF($B$12="Center Pivot",'System Cost'!D71,IF($B$12="Linear Move",'System Cost'!I71,IF($B$12="Drip",'System Cost'!N71,IF($B$12="Hose Pull",'System Cost'!S71)))))*AO33*$C$5) -> 0 | AT33: 459.8950996 | AU33: 529.3664609 | AV33: 3767.852435 | BA33: 26195.06308 | BB33: 0 | BC33: 30952.17707 | BD33: 26195.06308 | BE33: 16745.46018 | BH33: 925.0446001 | BI33: 1531.232625 | BJ33: 11899.30448 | BL33: 25978.19802 | BM33: 11622.61631 | BN33: 2201.101492 | BR33: 11.34730534 | BS33: 0.4202705682
H34: 1998 | I34: 2006 | J34: =VLOOKUP(I34,'Corn Rain'!B$3:C$38,2,FALSE) -> 28 | K34: =IF($B$8="None",0,IF($B$8="Corn",VLOOKUP(H34,'Corn Rain'!B$3:EE$38,$C$7,FALSE),IF($B$8="Cotton",VLOOKUP(H34,CottonRain!$B$3:$EE$38,Data!$C$7,FALSE),IF(Data!$B$8="Soybeans",VLOOKUP(Data!H34,'Soybeans Rain'!$B$3:$EE$38,Data!$C$7,FALSE),IF(Data!$B$8="Wheat",VLOOKUP(Data!H34,'Wheat Rain'!$B$3:$EE$38,Data!$C$7,FALSE)))))) -> 313.3566 | L34: =IF($B$8="None",0,IF($B$8="Corn",VLOOKUP(H34,'Corn Drought'!B$3:EE$38,Data!$C$7,FALSE),IF($B$8="Cotton",VLOOKUP(H34,'Cotton Drought'!$B$3:$EE$38,Data!$C$7,FALSE),IF($B$8="Soybeans",VLOOKUP(H34,'Soybeans Drought'!$B$3:$EE$38,Data!$C$7,FALSE),IF(Data!$B$8="Wheat",VLOOKUP(Data!H34,'Wheat Drought'!$B$3:$EE$38,Data!$C$7,FALSE)))))) -> 37 | M34: =IF($B$9="None",0,IF($B$9="Corn",VLOOKUP(H34,'Corn Rain'!B$3:EE$38,$C$7,FALSE),IF($B$9="Cotton",VLOOKUP(H34,CottonRain!$B$3:$EE$38,Data!$C$7,FALSE),IF(Data!$B$9="Soybeans",VLOOKUP(Data!H34,'Soybeans Rain'!$B$3:$EE$38,Data!$C$7,FALSE),IF(Data!$B$9="Wheat",VLOOKUP(Data!H34,'Wheat Rain'!$B$3:$EE$38,Data!$C$7,FALSE)))))) -> 0 | N34: =IF($B$9="None",0,IF($B$9="Corn",VLOOKUP(H34,'Corn Drought'!B$3:EE$38,Data!$C$7,FALSE),IF($B$9="Cotton",VLOOKUP(H34,'Cotton Drought'!$B$3:$EE$38,Data!$C$7,FALSE),IF($B$9="Soybeans",VLOOKUP(H34,'Soybeans Drought'!$B$3:$EE$38,Data!$C$7,FALSE),IF(Data!$B$9="Wheat",VLOOKUP(Data!H34,'Wheat Drought'!$B$3:$EE$38,Data!$C$7,FALSE)))))) -> 0 | O34: =IF($B$8="None",0,VLOOKUP(I34,'Historic Prices'!$A$3:$K$38,$C$8,FALSE)) -> 3.04 | P34: =IF($B$9="None",0,VLOOKUP(I34,'Historic Prices'!$A$3:$K$38,$C$9,FALSE)) -> 0 | Q34: =IF($B$8="None",0,IF(IF(Tool!$C$19="Ideal",$B$2,IF(Tool!$C$19="Scheduled",((VLOOKUP($B$8&$B$10,'Regression Data'!$A$3:$F$30,4,FALSE))+(VLOOKUP($B$8&$B$10,'Regression Data'!$A$3:$F$30,5,FALSE)*(K34+(Tool!$C$20*Data!$B$4/0.0393701)))+(VLOOKUP($B$8&$B$10,'Regression Data'!$A$3:$F$30,6,FALSE)*L34))/2.47105*$B$3))>$B$2,$B$2,(IF(Tool!$C$19="Ideal",$B$2,IF(Tool!$C$19="Scheduled",((VLOOKUP($B$8&$B$10,'Regression Data'!$A$3:$F$30,4,FALSE))+(VLOOKUP($B$8&$B$10,'Regression Data'!$A$3:$F$30,5,FALSE)*(K34+(Tool!$C$20*Data!$B$4/0.0393701)))+(VLOOKUP($B$8&$B$10,'Regression Data'!$A$3:$F$30,6,FALSE)*L34))/2.47105*$B$3))))) -> 184.7279335 | R34: =IF($B$8="None",0,IF(IF((((VLOOKUP($B$8&$B$10,'Regression Data'!$A$3:$F$30,4,FALSE))+(VLOOKUP($B$8&$B$10,'Regression Data'!$A$3:$F$30,5,FALSE)*K34)+(VLOOKUP($B$8&$B$10,'Regression Data'!$A$3:$F$30,6,FALSE)*L34))/2.47105*$B$3)>$B$2,$B$2,((VLOOKUP($B$8&$B$10,'Regression Data'!$A$3:$F$30,4,FALSE))+(VLOOKUP($B$8&$B$10,'Regression Data'!$A$3:$F$30,5,FALSE)*K34)+(VLOOKUP($B$8&$B$10,'Regression Data'!$A$3:$F$30,6,FALSE)*L34))/2.47105*$B$3)<0,0,IF((((VLOOKUP($B$8&$B$10,'Regression Data'!$A$3:$F$30,4,FALSE))+(VLOOKUP($B$8&$B$10,'Regression Data'!$A$3:$F$30,5,FALSE)*K34)+(VLOOKUP($B$8&$B$10,'Regression Data'!$A$3:$F$30,6,FALSE)*L34))/2.47105*$B$3)>$B$2,$B$2,((VLOOKUP($B$8&$B$10,'Regression Data'!$A$3:$F$30,4,FALSE))+(VLOOKUP($B$8&$B$10,'Regression Data'!$A$3:$F$30,5,FALSE)*K34)+(VLOOKUP($B$8&$B$10,'Regression Data'!$A$3:$F$30,6,FALSE)*L34))/2.47105*$B$3))) -> 70.11746609 | S34: =IF($B$9="None",0,IF(IF(Tool!$C$19="Ideal",$C$2,IF(Tool!$C$19="Scheduled",((VLOOKUP($B$9&$B$10,'Regression Data'!$A$3:$F$30,4,FALSE))+(VLOOKUP($B$9&$B$10,'Regression Data'!$A$3:$F$30,5,FALSE)*(N34+(Tool!$C$20*Data!$C$4/0.0393701)))+(VLOOKUP($B$9&$B$10,'Regression Data'!$A$3:$F$30,6,FALSE)*N34))/2.47105*$C$3))>$C$2,$C$2,(IF(Tool!$C$19="Ideal",$C$2,IF(Tool!$C$19="Scheduled",((VLOOKUP($B$9&$B$10,'Regression Data'!$A$3:$F$30,4,FALSE))+(VLOOKUP($B$9&$B$10,'Regression Data'!$A$3:$F$30,5,FALSE)*(M34+(Tool!$C$20*Data!$C$4/0.0393701)))+(VLOOKUP($B$9&$B$10,'Regression Data'!$A$3:$F$30,6,FALSE)*N34))/2.47105*$C$3))))) -> 0 | T34: =IF($B$9="None",0,IF(IF((((VLOOKUP($B$9&$B$10,'Regression Data'!$A$3:$F$30,4,FALSE))+(VLOOKUP($B$9&$B$10,'Regression Data'!$A$3:$F$30,5,FALSE)*M34)+(VLOOKUP($B$9&$B$10,'Regression Data'!$A$3:$F$30,6,FALSE)*N34))/2.47105*$C$3)>$C$2,$C$2,((VLOOKUP($B$9&$B$10,'Regression Data'!$A$3:$F$30,4,FALSE))+(VLOOKUP($B$9&$B$10,'Regression Data'!$A$3:$F$30,5,FALSE)*M34)+(VLOOKUP($B$9&$B$10,'Regression Data'!$A$3:$F$30,6,FALSE)*N34))/2.47105*$C$3)<0,0,(IF((((VLOOKUP($B$9&$B$10,'Regression Data'!$A$3:$F$30,4,FALSE))+(VLOOKUP($B$9&$B$10,'Regression Data'!$A$3:$F$30,5,FALSE)*M34)+(VLOOKUP($B$9&$B$10,'Regression Data'!$A$3:$F$30,6,FALSE)*N34))/2.47105*$C$3)>$C$2,$C$2,((VLOOKUP($B$9&$B$10,'Regression Data'!$A$3:$F$30,4,FALSE))+(VLOOKUP($B$9&$B$10,'Regression Data'!$A$3:$F$30,5,FALSE)*M34)+(VLOOKUP($B$9&$B$10,'Regression Data'!$A$3:$F$30,6,FALSE)*N34))/2.47105*$C$3)))) -> 0 | X34: 56157.29177 | Y34: 21315.70969 | Z34: 34841.58208 | AA34: 0 | AB34: 0 | AC34: 0 | AH34: =IF($B$8="None",0,IF(Tool!$C$19="Rainfall Deficit",((VLOOKUP($B$8,'Regression Data'!$H$3:$K$6,3,FALSE))-K34)*0.0393701,IF(Tool!$C$19="Scheduled",$B$4*Tool!$C$20,))) -> 13.25368432 | AI34: =((IF($B$12="Center Pivot",'System Cost'!B72,IF($B$12="Linear Move",'System Cost'!G72,IF($B$12="Drip",'System Cost'!L72,IF($B$12="Hose Pull",'System Cost'!Q72)))))*(SUM($B$5:$C$5)))-(Tool!$C$28) -> 68549.48827 | AJ34: 8451.531142 | AK34: =IF(AH34<0,0,IF($B$12="Center Pivot",'System Cost'!C72*Data!$B$13*Data!$B$5*Data!AH34,IF($B$12="Hose Pull",$B$5*$B$13*'System Cost'!R72*AH34,IF($B$12="Linear Move",AH34*$B$13*$B$5*'System Cost'!H72,IF($B$12="Drip",$B$5*$B$13*AH34*'System Cost'!M72))))) -> 663.5375172 | AL34: =IF(AH34<0,0,IF($B$12="Center Pivot",'System Cost'!E72*Data!$B$5*Data!AH34,IF($B$12="Drip",AH34*$B$5*'System Cost'!O72,IF($B$12="Linear Move",AH34*$B$5*'System Cost'!J72,IF($B$12="Hose Pull",AH34*$B$5*'System Cost'!T72))))) -> 3004.870279 | AM34: =IF(AH34<0,0,((IF($B$11="Electric",VLOOKUP((IF(I34<1995,1995,I34)),Electric!$A$3:$C$38,3,FALSE)*0.5,IF($B$11="Diesel",VLOOKUP((IF(I34<1995,1995,I34)),Diesel!$A$3:$C$24,3,FALSE),IF(Data!$B$11="Natural Gas",VLOOKUP((IF(I34<1995,1995,I34)),'Natural Gas'!$A$3:$C$38,3,FALSE))))))*(IF($B$12="Center Pivot",'System Cost'!D72,IF($B$12="Linear Move",'System Cost'!I72,IF($B$12="Drip",'System Cost'!N72,IF($B$12="Hose Pull",'System Cost'!S72)))))*AH34*$B$5) -> 19032.79727 | AO34: =IF($B$9="None",0,IF(Tool!$C$19="Rainfall Deficit",((VLOOKUP($B$9,'Regression Data'!$H$3:$K$6,3,FALSE))-M34)*0.0393701,IF(Tool!$C$19="Scheduled",$C$4*Tool!$C$20,))) -> 0 | AP34: =IF(AO34<0,0,IF($B$12="Center Pivot",'System Cost'!C72*Data!$B$13*Data!$C$5*Data!AO34,IF($B$12="Hose Pull",$C$5*$B$13*'System Cost'!R72*AO34,IF($B$12="Linear Move",AO34*$B$13*$C$5*'System Cost'!H72,IF($B$12="Drip",$C$5*$B$13*AO34*'System Cost'!M72))))) -> 0 | AQ34: =IF(AO34<0,0,IF($B$12="Center Pivot",'System Cost'!E72*Data!$C$5*Data!AO34,IF($B$12="Drip",AO34*$C$5*'System Cost'!O72,IF($B$12="Linear Move",AO34*$C$5*'System Cost'!J72,IF($B$12="Hose Pull",AO34*$C$5*'System Cost'!T72))))) -> 0 | AR34: =IF(AO34<0,0,((IF($B$11="Electric",VLOOKUP((IF(I34<1995,1995,I34)),Electric!$A$3:$C$38,3,FALSE),IF($B$11="Diesel",VLOOKUP((IF(I34<1995,1995,I34)),Diesel!$A$3:$C$24,3,FALSE),IF(Data!$B$11="Natural Gas",VLOOKUP((IF(I34<1995,1995,I34)),'Natural Gas'!$A$3:$C$38,3,FALSE))))))*(IF($B$12="Center Pivot",'System Cost'!D72,IF($B$12="Linear Move",'System Cost'!I72,IF($B$12="Drip",'System Cost'!N72,IF($B$12="Hose Pull",'System Cost'!S72)))))*AO34*$C$5) -> 0 | AT34: 663.5375172 | AU34: 3004.870279 | AV34: 19032.79727 | BA34: 12140.37702 | BB34: 0 | BC34: 34841.58208 | BD34: 12140.37702 | BE34: 3688.845873 | BH34: 1019.093054 | BI34: 1501.687083 | BJ34: 13283.92129 | BL34: 36360.3661 | BM34: 20555.66467 | BN34: 11097.40009 | BR34: 13.25368432 | BS34: 0.4908771971
H35: 2005 | I35: 2001 | J35: =VLOOKUP(I35,'Corn Rain'!B$3:C$38,2,FALSE) -> 23 | K35: =IF($B$8="None",0,IF($B$8="Corn",VLOOKUP(H35,'Corn Rain'!B$3:EE$38,$C$7,FALSE),IF($B$8="Cotton",VLOOKUP(H35,CottonRain!$B$3:$EE$38,Data!$C$7,FALSE),IF(Data!$B$8="Soybeans",VLOOKUP(Data!H35,'Soybeans Rain'!$B$3:$EE$38,Data!$C$7,FALSE),IF(Data!$B$8="Wheat",VLOOKUP(Data!H35,'Wheat Rain'!$B$3:$EE$38,Data!$C$7,FALSE)))))) -> 457.9323 | L35: =IF($B$8="None",0,IF($B$8="Corn",VLOOKUP(H35,'Corn Drought'!B$3:EE$38,Data!$C$7,FALSE),IF($B$8="Cotton",VLOOKUP(H35,'Cotton Drought'!$B$3:$EE$38,Data!$C$7,FALSE),IF($B$8="Soybeans",VLOOKUP(H35,'Soybeans Drought'!$B$3:$EE$38,Data!$C$7,FALSE),IF(Data!$B$8="Wheat",VLOOKUP(Data!H35,'Wheat Drought'!$B$3:$EE$38,Data!$C$7,FALSE)))))) -> 16 | M35: =IF($B$9="None",0,IF($B$9="Corn",VLOOKUP(H35,'Corn Rain'!B$3:EE$38,$C$7,FALSE),IF($B$9="Cotton",VLOOKUP(H35,CottonRain!$B$3:$EE$38,Data!$C$7,FALSE),IF(Data!$B$9="Soybeans",VLOOKUP(Data!H35,'Soybeans Rain'!$B$3:$EE$38,Data!$C$7,FALSE),IF(Data!$B$9="Wheat",VLOOKUP(Data!H35,'Wheat Rain'!$B$3:$EE$38,Data!$C$7,FALSE)))))) -> 0 | N35: =IF($B$9="None",0,IF($B$9="Corn",VLOOKUP(H35,'Corn Drought'!B$3:EE$38,Data!$C$7,FALSE),IF($B$9="Cotton",VLOOKUP(H35,'Cotton Drought'!$B$3:$EE$38,Data!$C$7,FALSE),IF($B$9="Soybeans",VLOOKUP(H35,'Soybeans Drought'!$B$3:$EE$38,Data!$C$7,FALSE),IF(Data!$B$9="Wheat",VLOOKUP(Data!H35,'Wheat Drought'!$B$3:$EE$38,Data!$C$7,FALSE)))))) -> 0 | O35: =IF($B$8="None",0,VLOOKUP(I35,'Historic Prices'!$A$3:$K$38,$C$8,FALSE)) -> 1.97 | P35: =IF($B$9="None",0,VLOOKUP(I35,'Historic Prices'!$A$3:$K$38,$C$9,FALSE)) -> 0 | Q35: =IF($B$8="None",0,IF(IF(Tool!$C$19="Ideal",$B$2,IF(Tool!$C$19="Scheduled",((VLOOKUP($B$8&$B$10,'Regression Data'!$A$3:$F$30,4,FALSE))+(VLOOKUP($B$8&$B$10,'Regression Data'!$A$3:$F$30,5,FALSE)*(K35+(Tool!$C$20*Data!$B$4/0.0393701)))+(VLOOKUP($B$8&$B$10,'Regression Data'!$A$3:$F$30,6,FALSE)*L35))/2.47105*$B$3))>$B$2,$B$2,(IF(Tool!$C$19="Ideal",$B$2,IF(Tool!$C$19="Scheduled",((VLOOKUP($B$8&$B$10,'Regression Data'!$A$3:$F$30,4,FALSE))+(VLOOKUP($B$8&$B$10,'Regression Data'!$A$3:$F$30,5,FALSE)*(K35+(Tool!$C$20*Data!$B$4/0.0393701)))+(VLOOKUP($B$8&$B$10,'Regression Data'!$A$3:$F$30,6,FALSE)*L35))/2.47105*$B$3))))) -> 184.7279335 | R35: =IF($B$8="None",0,IF(IF((((VLOOKUP($B$8&$B$10,'Regression Data'!$A$3:$F$30,4,FALSE))+(VLOOKUP($B$8&$B$10,'Regression Data'!$A$3:$F$30,5,FALSE)*K35)+(VLOOKUP($B$8&$B$10,'Regression Data'!$A$3:$F$30,6,FALSE)*L35))/2.47105*$B$3)>$B$2,$B$2,((VLOOKUP($B$8&$B$10,'Regression Data'!$A$3:$F$30,4,FALSE))+(VLOOKUP($B$8&$B$10,'Regression Data'!$A$3:$F$30,5,FALSE)*K35)+(VLOOKUP($B$8&$B$10,'Regression Data'!$A$3:$F$30,6,FALSE)*L35))/2.47105*$B$3)<0,0,IF((((VLOOKUP($B$8&$B$10,'Regression Data'!$A$3:$F$30,4,FALSE))+(VLOOKUP($B$8&$B$10,'Regression Data'!$A$3:$F$30,5,FALSE)*K35)+(VLOOKUP($B$8&$B$10,'Regression Data'!$A$3:$F$30,6,FALSE)*L35))/2.47105*$B$3)>$B$2,$B$2,((VLOOKUP($B$8&$B$10,'Regression Data'!$A$3:$F$30,4,FALSE))+(VLOOKUP($B$8&$B$10,'Regression Data'!$A$3:$F$30,5,FALSE)*K35)+(VLOOKUP($B$8&$B$10,'Regression Data'!$A$3:$F$30,6,FALSE)*L35))/2.47105*$B$3))) -> 147.6667783 | S35: =IF($B$9="None",0,IF(IF(Tool!$C$19="Ideal",$C$2,IF(Tool!$C$19="Scheduled",((VLOOKUP($B$9&$B$10,'Regression Data'!$A$3:$F$30,4,FALSE))+(VLOOKUP($B$9&$B$10,'Regression Data'!$A$3:$F$30,5,FALSE)*(N35+(Tool!$C$20*Data!$C$4/0.0393701)))+(VLOOKUP($B$9&$B$10,'Regression Data'!$A$3:$F$30,6,FALSE)*N35))/2.47105*$C$3))>$C$2,$C$2,(IF(Tool!$C$19="Ideal",$C$2,IF(Tool!$C$19="Scheduled",((VLOOKUP($B$9&$B$10,'Regression Data'!$A$3:$F$30,4,FALSE))+(VLOOKUP($B$9&$B$10,'Regression Data'!$A$3:$F$30,5,FALSE)*(M35+(Tool!$C$20*Data!$C$4/0.0393701)))+(VLOOKUP($B$9&$B$10,'Regression Data'!$A$3:$F$30,6,FALSE)*N35))/2.47105*$C$3))))) -> 0 | T35: =IF($B$9="None",0,IF(IF((((VLOOKUP($B$9&$B$10,'Regression Data'!$A$3:$F$30,4,FALSE))+(VLOOKUP($B$9&$B$10,'Regression Data'!$A$3:$F$30,5,FALSE)*M35)+(VLOOKUP($B$9&$B$10,'Regression Data'!$A$3:$F$30,6,FALSE)*N35))/2.47105*$C$3)>$C$2,$C$2,((VLOOKUP($B$9&$B$10,'Regression Data'!$A$3:$F$30,4,FALSE))+(VLOOKUP($B$9&$B$10,'Regression Data'!$A$3:$F$30,5,FALSE)*M35)+(VLOOKUP($B$9&$B$10,'Regression Data'!$A$3:$F$30,6,FALSE)*N35))/2.47105*$C$3)<0,0,(IF((((VLOOKUP($B$9&$B$10,'Regression Data'!$A$3:$F$30,4,FALSE))+(VLOOKUP($B$9&$B$10,'Regression Data'!$A$3:$F$30,5,FALSE)*M35)+(VLOOKUP($B$9&$B$10,'Regression Data'!$A$3:$F$30,6,FALSE)*N35))/2.47105*$C$3)>$C$2,$C$2,((VLOOKUP($B$9&$B$10,'Regression Data'!$A$3:$F$30,4,FALSE))+(VLOOKUP($B$9&$B$10,'Regression Data'!$A$3:$F$30,5,FALSE)*M35)+(VLOOKUP($B$9&$B$10,'Regression Data'!$A$3:$F$30,6,FALSE)*N35))/2.47105*$C$3)))) -> 0 | X35: 36391.40289 | Y35: 29090.35533 | Z35: 7301.047568 | AA35: 0 | AB35: 0 | AC35: 0 | AH35: =IF($B$8="None",0,IF(Tool!$C$19="Rainfall Deficit",((VLOOKUP($B$8,'Regression Data'!$H$3:$K$6,3,FALSE))-K35)*0.0393701,IF(Tool!$C$19="Scheduled",$B$4*Tool!$C$20,))) -> 7.561724556 | AI35: =((IF($B$12="Center Pivot",'System Cost'!B73,IF($B$12="Linear Move",'System Cost'!G73,IF($B$12="Drip",'System Cost'!L73,IF($B$12="Hose Pull",'System Cost'!Q73)))))*(SUM($B$5:$C$5)))-(Tool!$C$28) -> 84296.456 | AJ35: 10392.98966 | AK35: =IF(AH35<0,0,IF($B$12="Center Pivot",'System Cost'!C73*Data!$B$13*Data!$B$5*Data!AH35,IF($B$12="Hose Pull",$B$5*$B$13*'System Cost'!R73*AH35,IF($B$12="Linear Move",AH35*$B$13*$B$5*'System Cost'!H73,IF($B$12="Drip",$B$5*$B$13*AH35*'System Cost'!M73))))) -> 1082.827729 | AL35: =IF(AH35<0,0,IF($B$12="Center Pivot",'System Cost'!E73*Data!$B$5*Data!AH35,IF($B$12="Drip",AH35*$B$5*'System Cost'!O73,IF($B$12="Linear Move",AH35*$B$5*'System Cost'!J73,IF($B$12="Hose Pull",AH35*$B$5*'System Cost'!T73))))) -> 1776.041899 | AM35: =IF(AH35<0,0,((IF($B$11="Electric",VLOOKUP((IF(I35<1995,1995,I35)),Electric!$A$3:$C$38,3,FALSE)*0.5,IF($B$11="Diesel",VLOOKUP((IF(I35<1995,1995,I35)),Diesel!$A$3:$C$24,3,FALSE),IF(Data!$B$11="Natural Gas",VLOOKUP((IF(I35<1995,1995,I35)),'Natural Gas'!$A$3:$C$38,3,FALSE))))))*(IF($B$12="Center Pivot",'System Cost'!D73,IF($B$12="Linear Move",'System Cost'!I73,IF($B$12="Drip",'System Cost'!N73,IF($B$12="Hose Pull",'System Cost'!S73)))))*AH35*$B$5) -> 1486.349848 | AO35: =IF($B$9="None",0,IF(Tool!$C$19="Rainfall Deficit",((VLOOKUP($B$9,'Regression Data'!$H$3:$K$6,3,FALSE))-M35)*0.0393701,IF(Tool!$C$19="Scheduled",$C$4*Tool!$C$20,))) -> 0 | AP35: =IF(AO35<0,0,IF($B$12="Center Pivot",'System Cost'!C73*Data!$B$13*Data!$C$5*Data!AO35,IF($B$12="Hose Pull",$C$5*$B$13*'System Cost'!R73*AO35,IF($B$12="Linear Move",AO35*$B$13*$C$5*'System Cost'!H73,IF($B$12="Drip",$C$5*$B$13*AO35*'System Cost'!M73))))) -> 0 | AQ35: =IF(AO35<0,0,IF($B$12="Center Pivot",'System Cost'!E73*Data!$C$5*Data!AO35,IF($B$12="Drip",AO35*$C$5*'System Cost'!O73,IF($B$12="Linear Move",AO35*$C$5*'System Cost'!J73,IF($B$12="Hose Pull",AO35*$C$5*'System Cost'!T73))))) -> 0 | AR35: =IF(AO35<0,0,((IF($B$11="Electric",VLOOKUP((IF(I35<1995,1995,I35)),Electric!$A$3:$C$38,3,FALSE),IF($B$11="Diesel",VLOOKUP((IF(I35<1995,1995,I35)),Diesel!$A$3:$C$24,3,FALSE),IF(Data!$B$11="Natural Gas",VLOOKUP((IF(I35<1995,1995,I35)),'Natural Gas'!$A$3:$C$38,3,FALSE))))))*(IF($B$12="Center Pivot",'System Cost'!D73,IF($B$12="Linear Move",'System Cost'!I73,IF($B$12="Drip",'System Cost'!N73,IF($B$12="Hose Pull",'System Cost'!S73)))))*AO35*$C$5) -> 0 | AT35: 1082.827729 | AU35: 1776.041899 | AV35: 1486.349848 | BA35: 2955.828091 | BB35: 0 | BC35: 7301.047568 | BD35: 2955.828091 | BE35: -7437.161573 | BH35: 651.6181159 | BI35: 1010.87387 | BJ35: 10142.39928 | BL35: 25391.76681 | BM35: 13586.87555 | BN35: 4239.38799 | BR35: 7.561724556 | BS35: 0.2800638724
H36: 2004 | I36: 2016 | J36: =VLOOKUP(I36,'Corn Rain'!B$3:C$38,2,FALSE) -> 38 | K36: =IF($B$8="None",0,IF($B$8="Corn",VLOOKUP(H36,'Corn Rain'!B$3:EE$38,$C$7,FALSE),IF($B$8="Cotton",VLOOKUP(H36,CottonRain!$B$3:$EE$38,Data!$C$7,FALSE),IF(Data!$B$8="Soybeans",VLOOKUP(Data!H36,'Soybeans Rain'!$B$3:$EE$38,Data!$C$7,FALSE),IF(Data!$B$8="Wheat",VLOOKUP(Data!H36,'Wheat Rain'!$B$3:$EE$38,Data!$C$7,FALSE)))))) -> 535.6883 | L36: =IF($B$8="None",0,IF($B$8="Corn",VLOOKUP(H36,'Corn Drought'!B$3:EE$38,Data!$C$7,FALSE),IF($B$8="Cotton",VLOOKUP(H36,'Cotton Drought'!$B$3:$EE$38,Data!$C$7,FALSE),IF($B$8="Soybeans",VLOOKUP(H36,'Soybeans Drought'!$B$3:$EE$38,Data!$C$7,FALSE),IF(Data!$B$8="Wheat",VLOOKUP(Data!H36,'Wheat Drought'!$B$3:$EE$38,Data!$C$7,FALSE)))))) -> 17 | M36: =IF($B$9="None",0,IF($B$9="Corn",VLOOKUP(H36,'Corn Rain'!B$3:EE$38,$C$7,FALSE),IF($B$9="Cotton",VLOOKUP(H36,CottonRain!$B$3:$EE$38,Data!$C$7,FALSE),IF(Data!$B$9="Soybeans",VLOOKUP(Data!H36,'Soybeans Rain'!$B$3:$EE$38,Data!$C$7,FALSE),IF(Data!$B$9="Wheat",VLOOKUP(Data!H36,'Wheat Rain'!$B$3:$EE$38,Data!$C$7,FALSE)))))) -> 0 | N36: =IF($B$9="None",0,IF($B$9="Corn",VLOOKUP(H36,'Corn Drought'!B$3:EE$38,Data!$C$7,FALSE),IF($B$9="Cotton",VLOOKUP(H36,'Cotton Drought'!$B$3:$EE$38,Data!$C$7,FALSE),IF($B$9="Soybeans",VLOOKUP(H36,'Soybeans Drought'!$B$3:$EE$38,Data!$C$7,FALSE),IF(Data!$B$9="Wheat",VLOOKUP(Data!H36,'Wheat Drought'!$B$3:$EE$38,Data!$C$7,FALSE)))))) -> 0 | O36: =IF($B$8="None",0,VLOOKUP(I36,'Historic Prices'!$A$3:$K$38,$C$8,FALSE)) -> 3.4 | P36: =IF($B$9="None",0,VLOOKUP(I36,'Historic Prices'!$A$3:$K$38,$C$9,FALSE)) -> 0 | Q36: =IF($B$8="None",0,IF(IF(Tool!$C$19="Ideal",$B$2,IF(Tool!$C$19="Scheduled",((VLOOKUP($B$8&$B$10,'Regression Data'!$A$3:$F$30,4,FALSE))+(VLOOKUP($B$8&$B$10,'Regression Data'!$A$3:$F$30,5,FALSE)*(K36+(Tool!$C$20*Data!$B$4/0.0393701)))+(VLOOKUP($B$8&$B$10,'Regression Data'!$A$3:$F$30,6,FALSE)*L36))/2.47105*$B$3))>$B$2,$B$2,(IF(Tool!$C$19="Ideal",$B$2,IF(Tool!$C$19="Scheduled",((VLOOKUP($B$8&$B$10,'Regression Data'!$A$3:$F$30,4,FALSE))+(VLOOKUP($B$8&$B$10,'Regression Data'!$A$3:$F$30,5,FALSE)*(K36+(Tool!$C$20*Data!$B$4/0.0393701)))+(VLOOKUP($B$8&$B$10,'Regression Data'!$A$3:$F$30,6,FALSE)*L36))/2.47105*$B$3))))) -> 184.7279335 | R36: =IF($B$8="None",0,IF(IF((((VLOOKUP($B$8&$B$10,'Regression Data'!$A$3:$F$30,4,FALSE))+(VLOOKUP($B$8&$B$10,'Regression Data'!$A$3:$F$30,5,FALSE)*K36)+(VLOOKUP($B$8&$B$10,'Regression Data'!$A$3:$F$30,6,FALSE)*L36))/2.47105*$B$3)>$B$2,$B$2,((VLOOKUP($B$8&$B$10,'Regression Data'!$A$3:$F$30,4,FALSE))+(VLOOKUP($B$8&$B$10,'Regression Data'!$A$3:$F$30,5,FALSE)*K36)+(VLOOKUP($B$8&$B$10,'Regression Data'!$A$3:$F$30,6,FALSE)*L36))/2.47105*$B$3)<0,0,IF((((VLOOKUP($B$8&$B$10,'Regression Data'!$A$3:$F$30,4,FALSE))+(VLOOKUP($B$8&$B$10,'Regression Data'!$A$3:$F$30,5,FALSE)*K36)+(VLOOKUP($B$8&$B$10,'Regression Data'!$A$3:$F$30,6,FALSE)*L36))/2.47105*$B$3)>$B$2,$B$2,((VLOOKUP($B$8&$B$10,'Regression Data'!$A$3:$F$30,4,FALSE))+(VLOOKUP($B$8&$B$10,'Regression Data'!$A$3:$F$30,5,FALSE)*K36)+(VLOOKUP($B$8&$B$10,'Regression Data'!$A$3:$F$30,6,FALSE)*L36))/2.47105*$B$3))) -> 170.9432945 | S36: =IF($B$9="None",0,IF(IF(Tool!$C$19="Ideal",$C$2,IF(Tool!$C$19="Scheduled",((VLOOKUP($B$9&$B$10,'Regression Data'!$A$3:$F$30,4,FALSE))+(VLOOKUP($B$9&$B$10,'Regression Data'!$A$3:$F$30,5,FALSE)*(N36+(Tool!$C$20*Data!$C$4/0.0393701)))+(VLOOKUP($B$9&$B$10,'Regression Data'!$A$3:$F$30,6,FALSE)*N36))/2.47105*$C$3))>$C$2,$C$2,(IF(Tool!$C$19="Ideal",$C$2,IF(Tool!$C$19="Scheduled",((VLOOKUP($B$9&$B$10,'Regression Data'!$A$3:$F$30,4,FALSE))+(VLOOKUP($B$9&$B$10,'Regression Data'!$A$3:$F$30,5,FALSE)*(M36+(Tool!$C$20*Data!$C$4/0.0393701)))+(VLOOKUP($B$9&$B$10,'Regression Data'!$A$3:$F$30,6,FALSE)*N36))/2.47105*$C$3))))) -> 0 | T36: =IF($B$9="None",0,IF(IF((((VLOOKUP($B$9&$B$10,'Regression Data'!$A$3:$F$30,4,FALSE))+(VLOOKUP($B$9&$B$10,'Regression Data'!$A$3:$F$30,5,FALSE)*M36)+(VLOOKUP($B$9&$B$10,'Regression Data'!$A$3:$F$30,6,FALSE)*N36))/2.47105*$C$3)>$C$2,$C$2,((VLOOKUP($B$9&$B$10,'Regression Data'!$A$3:$F$30,4,FALSE))+(VLOOKUP($B$9&$B$10,'Regression Data'!$A$3:$F$30,5,FALSE)*M36)+(VLOOKUP($B$9&$B$10,'Regression Data'!$A$3:$F$30,6,FALSE)*N36))/2.47105*$C$3)<0,0,(IF((((VLOOKUP($B$9&$B$10,'Regression Data'!$A$3:$F$30,4,FALSE))+(VLOOKUP($B$9&$B$10,'Regression Data'!$A$3:$F$30,5,FALSE)*M36)+(VLOOKUP($B$9&$B$10,'Regression Data'!$A$3:$F$30,6,FALSE)*N36))/2.47105*$C$3)>$C$2,$C$2,((VLOOKUP($B$9&$B$10,'Regression Data'!$A$3:$F$30,4,FALSE))+(VLOOKUP($B$9&$B$10,'Regression Data'!$A$3:$F$30,5,FALSE)*M36)+(VLOOKUP($B$9&$B$10,'Regression Data'!$A$3:$F$30,6,FALSE)*N36))/2.47105*$C$3)))) -> 0 | X36: 62807.49738 | Y36: 58120.72013 | Z36: 4686.777248 | AA36: 0 | AB36: 0 | AC36: 0 | AH36: =IF($B$8="None",0,IF(Tool!$C$19="Rainfall Deficit",((VLOOKUP($B$8,'Regression Data'!$H$3:$K$6,3,FALSE))-K36)*0.0393701,IF(Tool!$C$19="Scheduled",$B$4*Tool!$C$20,))) -> 4.50046306 | AI36: =((IF($B$12="Center Pivot",'System Cost'!B74,IF($B$12="Linear Move",'System Cost'!G74,IF($B$12="Drip",'System Cost'!L74,IF($B$12="Hose Pull",'System Cost'!Q74)))))*(SUM($B$5:$C$5)))-(Tool!$C$28) -> 81756.0999 | AJ36: 10079.78676 | AK36: =IF(AH36<0,0,IF($B$12="Center Pivot",'System Cost'!C74*Data!$B$13*Data!$B$5*Data!AH36,IF($B$12="Hose Pull",$B$5*$B$13*'System Cost'!R74*AH36,IF($B$12="Linear Move",AH36*$B$13*$B$5*'System Cost'!H74,IF($B$12="Drip",$B$5*$B$13*AH36*'System Cost'!M74))))) -> 123.6692257 | AL36: =IF(AH36<0,0,IF($B$12="Center Pivot",'System Cost'!E74*Data!$B$5*Data!AH36,IF($B$12="Drip",AH36*$B$5*'System Cost'!O74,IF($B$12="Linear Move",AH36*$B$5*'System Cost'!J74,IF($B$12="Hose Pull",AH36*$B$5*'System Cost'!T74))))) -> 502.5144018 | AM36: =IF(AH36<0,0,((IF($B$11="Electric",VLOOKUP((IF(I36<1995,1995,I36)),Electric!$A$3:$C$38,3,FALSE)*0.5,IF($B$11="Diesel",VLOOKUP((IF(I36<1995,1995,I36)),Diesel!$A$3:$C$24,3,FALSE),IF(Data!$B$11="Natural Gas",VLOOKUP((IF(I36<1995,1995,I36)),'Natural Gas'!$A$3:$C$38,3,FALSE))))))*(IF($B$12="Center Pivot",'System Cost'!D74,IF($B$12="Linear Move",'System Cost'!I74,IF($B$12="Drip",'System Cost'!N74,IF($B$12="Hose Pull",'System Cost'!S74)))))*AH36*$B$5) -> 4102.676585 | AO36: =IF($B$9="None",0,IF(Tool!$C$19="Rainfall Deficit",((VLOOKUP($B$9,'Regression Data'!$H$3:$K$6,3,FALSE))-M36)*0.0393701,IF(Tool!$C$19="Scheduled",$C$4*Tool!$C$20,))) -> 0 | AP36: =IF(AO36<0,0,IF($B$12="Center Pivot",'System Cost'!C74*Data!$B$13*Data!$C$5*Data!AO36,IF($B$12="Hose Pull",$C$5*$B$13*'System Cost'!R74*AO36,IF($B$12="Linear Move",AO36*$B$13*$C$5*'System Cost'!H74,IF($B$12="Drip",$C$5*$B$13*AO36*'System Cost'!M74))))) -> 0 | AQ36: =IF(AO36<0,0,IF($B$12="Center Pivot",'System Cost'!E74*Data!$C$5*Data!AO36,IF($B$12="Drip",AO36*$C$5*'System Cost'!O74,IF($B$12="Linear Move",AO36*$C$5*'System Cost'!J74,IF($B$12="Hose Pull",AO36*$C$5*'System Cost'!T74))))) -> 0 | AR36: =IF(AO36<0,0,((IF($B$11="Electric",VLOOKUP((IF(I36<1995,1995,I36)),Electric!$A$3:$C$38,3,FALSE),IF($B$11="Diesel",VLOOKUP((IF(I36<1995,1995,I36)),Diesel!$A$3:$C$24,3,FALSE),IF(Data!$B$11="Natural Gas",VLOOKUP((IF(I36<1995,1995,I36)),'Natural Gas'!$A$3:$C$38,3,FALSE))))))*(IF($B$12="Center Pivot",'System Cost'!D74,IF($B$12="Linear Move",'System Cost'!I74,IF($B$12="Drip",'System Cost'!N74,IF($B$12="Hose Pull",'System Cost'!S74)))))*AO36*$C$5) -> 0 | AT36: 123.6692257 | AU36: 502.5144018 | AV36: 4102.676585 | BA36: -42.0829643 | BB36: 0 | BC36: 4686.777248 | BD36: -42.0829643 | BE36: -10121.86973 | BH36: 1039.556959 | BI36: 1622.33535 | BJ36: 9284.637931 | BL36: 31927.91628 | BM36: 19981.38604 | BN36: 10528.95882 | BR36: 4.50046306 | BS36: 0.166683817
H37: 1985 | I37: 1995 | J37: =VLOOKUP(I37,'Corn Rain'!B$3:C$38,2,FALSE) -> 17 | K37: =IF($B$8="None",0,IF($B$8="Corn",VLOOKUP(H37,'Corn Rain'!B$3:EE$38,$C$7,FALSE),IF($B$8="Cotton",VLOOKUP(H37,CottonRain!$B$3:$EE$38,Data!$C$7,FALSE),IF(Data!$B$8="Soybeans",VLOOKUP(Data!H37,'Soybeans Rain'!$B$3:$EE$38,Data!$C$7,FALSE),IF(Data!$B$8="Wheat",VLOOKUP(Data!H37,'Wheat Rain'!$B$3:$EE$38,Data!$C$7,FALSE)))))) -> 292.9053 | L37: =IF($B$8="None",0,IF($B$8="Corn",VLOOKUP(H37,'Corn Drought'!B$3:EE$38,Data!$C$7,FALSE),IF($B$8="Cotton",VLOOKUP(H37,'Cotton Drought'!$B$3:$EE$38,Data!$C$7,FALSE),IF($B$8="Soybeans",VLOOKUP(H37,'Soybeans Drought'!$B$3:$EE$38,Data!$C$7,FALSE),IF(Data!$B$8="Wheat",VLOOKUP(Data!H37,'Wheat Drought'!$B$3:$EE$38,Data!$C$7,FALSE)))))) -> 31 | M37: =IF($B$9="None",0,IF($B$9="Corn",VLOOKUP(H37,'Corn Rain'!B$3:EE$38,$C$7,FALSE),IF($B$9="Cotton",VLOOKUP(H37,CottonRain!$B$3:$EE$38,Data!$C$7,FALSE),IF(Data!$B$9="Soybeans",VLOOKUP(Data!H37,'Soybeans Rain'!$B$3:$EE$38,Data!$C$7,FALSE),IF(Data!$B$9="Wheat",VLOOKUP(Data!H37,'Wheat Rain'!$B$3:$EE$38,Data!$C$7,FALSE)))))) -> 0 | N37: =IF($B$9="None",0,IF($B$9="Corn",VLOOKUP(H37,'Corn Drought'!B$3:EE$38,Data!$C$7,FALSE),IF($B$9="Cotton",VLOOKUP(H37,'Cotton Drought'!$B$3:$EE$38,Data!$C$7,FALSE),IF($B$9="Soybeans",VLOOKUP(H37,'Soybeans Drought'!$B$3:$EE$38,Data!$C$7,FALSE),IF(Data!$B$9="Wheat",VLOOKUP(Data!H37,'Wheat Drought'!$B$3:$EE$38,Data!$C$7,FALSE)))))) -> 0 | O37: =IF($B$8="None",0,VLOOKUP(I37,'Historic Prices'!$A$3:$K$38,$C$8,FALSE)) -> 3.24 | P37: =IF($B$9="None",0,VLOOKUP(I37,'Historic Prices'!$A$3:$K$38,$C$9,FALSE)) -> 0 | Q37: =IF($B$8="None",0,IF(IF(Tool!$C$19="Ideal",$B$2,IF(Tool!$C$19="Scheduled",((VLOOKUP($B$8&$B$10,'Regression Data'!$A$3:$F$30,4,FALSE))+(VLOOKUP($B$8&$B$10,'Regression Data'!$A$3:$F$30,5,FALSE)*(K37+(Tool!$C$20*Data!$B$4/0.0393701)))+(VLOOKUP($B$8&$B$10,'Regression Data'!$A$3:$F$30,6,FALSE)*L37))/2.47105*$B$3))>$B$2,$B$2,(IF(Tool!$C$19="Ideal",$B$2,IF(Tool!$C$19="Scheduled",((VLOOKUP($B$8&$B$10,'Regression Data'!$A$3:$F$30,4,FALSE))+(VLOOKUP($B$8&$B$10,'Regression Data'!$A$3:$F$30,5,FALSE)*(K37+(Tool!$C$20*Data!$B$4/0.0393701)))+(VLOOKUP($B$8&$B$10,'Regression Data'!$A$3:$F$30,6,FALSE)*L37))/2.47105*$B$3))))) -> 184.7279335 | R37: =IF($B$8="None",0,IF(IF((((VLOOKUP($B$8&$B$10,'Regression Data'!$A$3:$F$30,4,FALSE))+(VLOOKUP($B$8&$B$10,'Regression Data'!$A$3:$F$30,5,FALSE)*K37)+(VLOOKUP($B$8&$B$10,'Regression Data'!$A$3:$F$30,6,FALSE)*L37))/2.47105*$B$3)>$B$2,$B$2,((VLOOKUP($B$8&$B$10,'Regression Data'!$A$3:$F$30,4,FALSE))+(VLOOKUP($B$8&$B$10,'Regression Data'!$A$3:$F$30,5,FALSE)*K37)+(VLOOKUP($B$8&$B$10,'Regression Data'!$A$3:$F$30,6,FALSE)*L37))/2.47105*$B$3)<0,0,IF((((VLOOKUP($B$8&$B$10,'Regression Data'!$A$3:$F$30,4,FALSE))+(VLOOKUP($B$8&$B$10,'Regression Data'!$A$3:$F$30,5,FALSE)*K37)+(VLOOKUP($B$8&$B$10,'Regression Data'!$A$3:$F$30,6,FALSE)*L37))/2.47105*$B$3)>$B$2,$B$2,((VLOOKUP($B$8&$B$10,'Regression Data'!$A$3:$F$30,4,FALSE))+(VLOOKUP($B$8&$B$10,'Regression Data'!$A$3:$F$30,5,FALSE)*K37)+(VLOOKUP($B$8&$B$10,'Regression Data'!$A$3:$F$30,6,FALSE)*L37))/2.47105*$B$3))) -> 72.59602267 | S37: =IF($B$9="None",0,IF(IF(Tool!$C$19="Ideal",$C$2,IF(Tool!$C$19="Scheduled",((VLOOKUP($B$9&$B$10,'Regression Data'!$A$3:$F$30,4,FALSE))+(VLOOKUP($B$9&$B$10,'Regression Data'!$A$3:$F$30,5,FALSE)*(N37+(Tool!$C$20*Data!$C$4/0.0393701)))+(VLOOKUP($B$9&$B$10,'Regression Data'!$A$3:$F$30,6,FALSE)*N37))/2.47105*$C$3))>$C$2,$C$2,(IF(Tool!$C$19="Ideal",$C$2,IF(Tool!$C$19="Scheduled",((VLOOKUP($B$9&$B$10,'Regression Data'!$A$3:$F$30,4,FALSE))+(VLOOKUP($B$9&$B$10,'Regression Data'!$A$3:$F$30,5,FALSE)*(M37+(Tool!$C$20*Data!$C$4/0.0393701)))+(VLOOKUP($B$9&$B$10,'Regression Data'!$A$3:$F$30,6,FALSE)*N37))/2.47105*$C$3))))) -> 0 | T37: =IF($B$9="None",0,IF(IF((((VLOOKUP($B$9&$B$10,'Regression Data'!$A$3:$F$30,4,FALSE))+(VLOOKUP($B$9&$B$10,'Regression Data'!$A$3:$F$30,5,FALSE)*M37)+(VLOOKUP($B$9&$B$10,'Regression Data'!$A$3:$F$30,6,FALSE)*N37))/2.47105*$C$3)>$C$2,$C$2,((VLOOKUP($B$9&$B$10,'Regression Data'!$A$3:$F$30,4,FALSE))+(VLOOKUP($B$9&$B$10,'Regression Data'!$A$3:$F$30,5,FALSE)*M37)+(VLOOKUP($B$9&$B$10,'Regression Data'!$A$3:$F$30,6,FALSE)*N37))/2.47105*$C$3)<0,0,(IF((((VLOOKUP($B$9&$B$10,'Regression Data'!$A$3:$F$30,4,FALSE))+(VLOOKUP($B$9&$B$10,'Regression Data'!$A$3:$F$30,5,FALSE)*M37)+(VLOOKUP($B$9&$B$10,'Regression Data'!$A$3:$F$30,6,FALSE)*N37))/2.47105*$C$3)>$C$2,$C$2,((VLOOKUP($B$9&$B$10,'Regression Data'!$A$3:$F$30,4,FALSE))+(VLOOKUP($B$9&$B$10,'Regression Data'!$A$3:$F$30,5,FALSE)*M37)+(VLOOKUP($B$9&$B$10,'Regression Data'!$A$3:$F$30,6,FALSE)*N37))/2.47105*$C$3)))) -> 0 | X37: 59851.85044 | Y37: 23521.11134 | Z37: 36330.7391 | AA37: 0 | AB37: 0 | AC37: 0 | AH37: =IF($B$8="None",0,IF(Tool!$C$19="Rainfall Deficit",((VLOOKUP($B$8,'Regression Data'!$H$3:$K$6,3,FALSE))-K37)*0.0393701,IF(Tool!$C$19="Scheduled",$B$4*Tool!$C$20,))) -> 14.05885405 | AI37: =((IF($B$12="Center Pivot",'System Cost'!B75,IF($B$12="Linear Move",'System Cost'!G75,IF($B$12="Drip",'System Cost'!L75,IF($B$12="Hose Pull",'System Cost'!Q75)))))*(SUM($B$5:$C$5)))-(Tool!$C$28) -> 78651.19842 | AJ37: 9696.980526 | AK37: =IF(AH37<0,0,IF($B$12="Center Pivot",'System Cost'!C75*Data!$B$13*Data!$B$5*Data!AH37,IF($B$12="Hose Pull",$B$5*$B$13*'System Cost'!R75*AH37,IF($B$12="Linear Move",AH37*$B$13*$B$5*'System Cost'!H75,IF($B$12="Drip",$B$5*$B$13*AH37*'System Cost'!M75))))) -> 2111.904914 | AL37: =IF(AH37<0,0,IF($B$12="Center Pivot",'System Cost'!E75*Data!$B$5*Data!AH37,IF($B$12="Drip",AH37*$B$5*'System Cost'!O75,IF($B$12="Linear Move",AH37*$B$5*'System Cost'!J75,IF($B$12="Hose Pull",AH37*$B$5*'System Cost'!T75))))) -> 2618.626305 | AM37: =IF(AH37<0,0,((IF($B$11="Electric",VLOOKUP((IF(I37<1995,1995,I37)),Electric!$A$3:$C$38,3,FALSE)*0.5,IF($B$11="Diesel",VLOOKUP((IF(I37<1995,1995,I37)),Diesel!$A$3:$C$24,3,FALSE),IF(Data!$B$11="Natural Gas",VLOOKUP((IF(I37<1995,1995,I37)),'Natural Gas'!$A$3:$C$38,3,FALSE))))))*(IF($B$12="Center Pivot",'System Cost'!D75,IF($B$12="Linear Move",'System Cost'!I75,IF($B$12="Drip",'System Cost'!N75,IF($B$12="Hose Pull",'System Cost'!S75)))))*AH37*$B$5) -> 4856.424564 | AO37: =IF($B$9="None",0,IF(Tool!$C$19="Rainfall Deficit",((VLOOKUP($B$9,'Regression Data'!$H$3:$K$6,3,FALSE))-M37)*0.0393701,IF(Tool!$C$19="Scheduled",$C$4*Tool!$C$20,))) -> 0 | AP37: =IF(AO37<0,0,IF($B$12="Center Pivot",'System Cost'!C75*Data!$B$13*Data!$C$5*Data!AO37,IF($B$12="Hose Pull",$C$5*$B$13*'System Cost'!R75*AO37,IF($B$12="Linear Move",AO37*$B$13*$C$5*'System Cost'!H75,IF($B$12="Drip",$C$5*$B$13*AO37*'System Cost'!M75))))) -> 0 | AQ37: =IF(AO37<0,0,IF($B$12="Center Pivot",'System Cost'!E75*Data!$C$5*Data!AO37,IF($B$12="Drip",AO37*$C$5*'System Cost'!O75,IF($B$12="Linear Move",AO37*$C$5*'System Cost'!J75,IF($B$12="Hose Pull",AO37*$C$5*'System Cost'!T75))))) -> 0 | AR37: =IF(AO37<0,0,((IF($B$11="Electric",VLOOKUP((IF(I37<1995,1995,I37)),Electric!$A$3:$C$38,3,FALSE),IF($B$11="Diesel",VLOOKUP((IF(I37<1995,1995,I37)),Diesel!$A$3:$C$24,3,FALSE),IF(Data!$B$11="Natural Gas",VLOOKUP((IF(I37<1995,1995,I37)),'Natural Gas'!$A$3:$C$38,3,FALSE))))))*(IF($B$12="Center Pivot",'System Cost'!D75,IF($B$12="Linear Move",'System Cost'!I75,IF($B$12="Drip",'System Cost'!N75,IF($B$12="Hose Pull",'System Cost'!S75)))))*AO37*$C$5) -> 0 | AT37: 2111.904914 | AU37: 2618.626305 | AV37: 4856.424564 | BA37: 26743.78332 | BB37: 0 | BC37: 36330.7391 | BD37: 26743.78332 | BE37: 17046.80279 | BH37: 834.4217486 | BI37: 1353.436293 | BJ37: 7624.82645 | BL37: 24361.57986 | BM37: 14548.89537 | BN37: 5016.999084 | BR37: 14.05885405 | BS37: 0.5206982981
H38: 1999 | I38: 2002 | J38: =VLOOKUP(I38,'Corn Rain'!B$3:C$38,2,FALSE) -> 24 | K38: =IF($B$8="None",0,IF($B$8="Corn",VLOOKUP(H38,'Corn Rain'!B$3:EE$38,$C$7,FALSE),IF($B$8="Cotton",VLOOKUP(H38,CottonRain!$B$3:$EE$38,Data!$C$7,FALSE),IF(Data!$B$8="Soybeans",VLOOKUP(Data!H38,'Soybeans Rain'!$B$3:$EE$38,Data!$C$7,FALSE),IF(Data!$B$8="Wheat",VLOOKUP(Data!H38,'Wheat Rain'!$B$3:$EE$38,Data!$C$7,FALSE)))))) -> 232.0035 | L38: =IF($B$8="None",0,IF($B$8="Corn",VLOOKUP(H38,'Corn Drought'!B$3:EE$38,Data!$C$7,FALSE),IF($B$8="Cotton",VLOOKUP(H38,'Cotton Drought'!$B$3:$EE$38,Data!$C$7,FALSE),IF($B$8="Soybeans",VLOOKUP(H38,'Soybeans Drought'!$B$3:$EE$38,Data!$C$7,FALSE),IF(Data!$B$8="Wheat",VLOOKUP(Data!H38,'Wheat Drought'!$B$3:$EE$38,Data!$C$7,FALSE)))))) -> 56 | M38: =IF($B$9="None",0,IF($B$9="Corn",VLOOKUP(H38,'Corn Rain'!B$3:EE$38,$C$7,FALSE),IF($B$9="Cotton",VLOOKUP(H38,CottonRain!$B$3:$EE$38,Data!$C$7,FALSE),IF(Data!$B$9="Soybeans",VLOOKUP(Data!H38,'Soybeans Rain'!$B$3:$EE$38,Data!$C$7,FALSE),IF(Data!$B$9="Wheat",VLOOKUP(Data!H38,'Wheat Rain'!$B$3:$EE$38,Data!$C$7,FALSE)))))) -> 0 | N38: =IF($B$9="None",0,IF($B$9="Corn",VLOOKUP(H38,'Corn Drought'!B$3:EE$38,Data!$C$7,FALSE),IF($B$9="Cotton",VLOOKUP(H38,'Cotton Drought'!$B$3:$EE$38,Data!$C$7,FALSE),IF($B$9="Soybeans",VLOOKUP(H38,'Soybeans Drought'!$B$3:$EE$38,Data!$C$7,FALSE),IF(Data!$B$9="Wheat",VLOOKUP(Data!H38,'Wheat Drought'!$B$3:$EE$38,Data!$C$7,FALSE)))))) -> 0 | O38: =IF($B$8="None",0,VLOOKUP(I38,'Historic Prices'!$A$3:$K$38,$C$8,FALSE)) -> 2.32 | P38: =IF($B$9="None",0,VLOOKUP(I38,'Historic Prices'!$A$3:$K$38,$C$9,FALSE)) -> 0 | Q38: =IF($B$8="None",0,IF(IF(Tool!$C$19="Ideal",$B$2,IF(Tool!$C$19="Scheduled",((VLOOKUP($B$8&$B$10,'Regression Data'!$A$3:$F$30,4,FALSE))+(VLOOKUP($B$8&$B$10,'Regression Data'!$A$3:$F$30,5,FALSE)*(K38+(Tool!$C$20*Data!$B$4/0.0393701)))+(VLOOKUP($B$8&$B$10,'Regression Data'!$A$3:$F$30,6,FALSE)*L38))/2.47105*$B$3))>$B$2,$B$2,(IF(Tool!$C$19="Ideal",$B$2,IF(Tool!$C$19="Scheduled",((VLOOKUP($B$8&$B$10,'Regression Data'!$A$3:$F$30,4,FALSE))+(VLOOKUP($B$8&$B$10,'Regression Data'!$A$3:$F$30,5,FALSE)*(K38+(Tool!$C$20*Data!$B$4/0.0393701)))+(VLOOKUP($B$8&$B$10,'Regression Data'!$A$3:$F$30,6,FALSE)*L38))/2.47105*$B$3))))) -> 184.7279335 | R38: =IF($B$8="None",0,IF(IF((((VLOOKUP($B$8&$B$10,'Regression Data'!$A$3:$F$30,4,FALSE))+(VLOOKUP($B$8&$B$10,'Regression Data'!$A$3:$F$30,5,FALSE)*K38)+(VLOOKUP($B$8&$B$10,'Regression Data'!$A$3:$F$30,6,FALSE)*L38))/2.47105*$B$3)>$B$2,$B$2,((VLOOKUP($B$8&$B$10,'Regression Data'!$A$3:$F$30,4,FALSE))+(VLOOKUP($B$8&$B$10,'Regression Data'!$A$3:$F$30,5,FALSE)*K38)+(VLOOKUP($B$8&$B$10,'Regression Data'!$A$3:$F$30,6,FALSE)*L38))/2.47105*$B$3)<0,0,IF((((VLOOKUP($B$8&$B$10,'Regression Data'!$A$3:$F$30,4,FALSE))+(VLOOKUP($B$8&$B$10,'Regression Data'!$A$3:$F$30,5,FALSE)*K38)+(VLOOKUP($B$8&$B$10,'Regression Data'!$A$3:$F$30,6,FALSE)*L38))/2.47105*$B$3)>$B$2,$B$2,((VLOOKUP($B$8&$B$10,'Regression Data'!$A$3:$F$30,4,FALSE))+(VLOOKUP($B$8&$B$10,'Regression Data'!$A$3:$F$30,5,FALSE)*K38)+(VLOOKUP($B$8&$B$10,'Regression Data'!$A$3:$F$30,6,FALSE)*L38))/2.47105*$B$3))) -> 15.7113537 | S38: =IF($B$9="None",0,IF(IF(Tool!$C$19="Ideal",$C$2,IF(Tool!$C$19="Scheduled",((VLOOKUP($B$9&$B$10,'Regression Data'!$A$3:$F$30,4,FALSE))+(VLOOKUP($B$9&$B$10,'Regression Data'!$A$3:$F$30,5,FALSE)*(N38+(Tool!$C$20*Data!$C$4/0.0393701)))+(VLOOKUP($B$9&$B$10,'Regression Data'!$A$3:$F$30,6,FALSE)*N38))/2.47105*$C$3))>$C$2,$C$2,(IF(Tool!$C$19="Ideal",$C$2,IF(Tool!$C$19="Scheduled",((VLOOKUP($B$9&$B$10,'Regression Data'!$A$3:$F$30,4,FALSE))+(VLOOKUP($B$9&$B$10,'Regression Data'!$A$3:$F$30,5,FALSE)*(M38+(Tool!$C$20*Data!$C$4/0.0393701)))+(VLOOKUP($B$9&$B$10,'Regression Data'!$A$3:$F$30,6,FALSE)*N38))/2.47105*$C$3))))) -> 0 | T38: =IF($B$9="None",0,IF(IF((((VLOOKUP($B$9&$B$10,'Regression Data'!$A$3:$F$30,4,FALSE))+(VLOOKUP($B$9&$B$10,'Regression Data'!$A$3:$F$30,5,FALSE)*M38)+(VLOOKUP($B$9&$B$10,'Regression Data'!$A$3:$F$30,6,FALSE)*N38))/2.47105*$C$3)>$C$2,$C$2,((VLOOKUP($B$9&$B$10,'Regression Data'!$A$3:$F$30,4,FALSE))+(VLOOKUP($B$9&$B$10,'Regression Data'!$A$3:$F$30,5,FALSE)*M38)+(VLOOKUP($B$9&$B$10,'Regression Data'!$A$3:$F$30,6,FALSE)*N38))/2.47105*$C$3)<0,0,(IF((((VLOOKUP($B$9&$B$10,'Regression Data'!$A$3:$F$30,4,FALSE))+(VLOOKUP($B$9&$B$10,'Regression Data'!$A$3:$F$30,5,FALSE)*M38)+(VLOOKUP($B$9&$B$10,'Regression Data'!$A$3:$F$30,6,FALSE)*N38))/2.47105*$C$3)>$C$2,$C$2,((VLOOKUP($B$9&$B$10,'Regression Data'!$A$3:$F$30,4,FALSE))+(VLOOKUP($B$9&$B$10,'Regression Data'!$A$3:$F$30,5,FALSE)*M38)+(VLOOKUP($B$9&$B$10,'Regression Data'!$A$3:$F$30,6,FALSE)*N38))/2.47105*$C$3)))) -> 0 | X38: 42856.88056 | Y38: 3645.034058 | Z38: 39211.84651 | AA38: 0 | AB38: 0 | AC38: 0 | AH38: =IF($B$8="None",0,IF(Tool!$C$19="Rainfall Deficit",((VLOOKUP($B$8,'Regression Data'!$H$3:$K$6,3,FALSE))-K38)*0.0393701,IF(Tool!$C$19="Scheduled",$B$4*Tool!$C$20,))) -> 16.456564 | AI38: =((IF($B$12="Center Pivot",'System Cost'!B76,IF($B$12="Linear Move",'System Cost'!G76,IF($B$12="Drip",'System Cost'!L76,IF($B$12="Hose Pull",'System Cost'!Q76)))))*(SUM($B$5:$C$5)))-(Tool!$C$28) -> 69424.38975 | AJ38: 8559.398572 | AK38: =IF(AH38<0,0,IF($B$12="Center Pivot",'System Cost'!C76*Data!$B$13*Data!$B$5*Data!AH38,IF($B$12="Hose Pull",$B$5*$B$13*'System Cost'!R76*AH38,IF($B$12="Linear Move",AH38*$B$13*$B$5*'System Cost'!H76,IF($B$12="Drip",$B$5*$B$13*AH38*'System Cost'!M76))))) -> 1870.475992 | AL38: =IF(AH38<0,0,IF($B$12="Center Pivot",'System Cost'!E76*Data!$B$5*Data!AH38,IF($B$12="Drip",AH38*$B$5*'System Cost'!O76,IF($B$12="Linear Move",AH38*$B$5*'System Cost'!J76,IF($B$12="Hose Pull",AH38*$B$5*'System Cost'!T76))))) -> 1716.339917 | AM38: =IF(AH38<0,0,((IF($B$11="Electric",VLOOKUP((IF(I38<1995,1995,I38)),Electric!$A$3:$C$38,3,FALSE)*0.5,IF($B$11="Diesel",VLOOKUP((IF(I38<1995,1995,I38)),Diesel!$A$3:$C$24,3,FALSE),IF(Data!$B$11="Natural Gas",VLOOKUP((IF(I38<1995,1995,I38)),'Natural Gas'!$A$3:$C$38,3,FALSE))))))*(IF($B$12="Center Pivot",'System Cost'!D76,IF($B$12="Linear Move",'System Cost'!I76,IF($B$12="Drip",'System Cost'!N76,IF($B$12="Hose Pull",'System Cost'!S76)))))*AH38*$B$5) -> 13811.71137 | AO38: =IF($B$9="None",0,IF(Tool!$C$19="Rainfall Deficit",((VLOOKUP($B$9,'Regression Data'!$H$3:$K$6,3,FALSE))-M38)*0.0393701,IF(Tool!$C$19="Scheduled",$C$4*Tool!$C$20,))) -> 0 | AP38: =IF(AO38<0,0,IF($B$12="Center Pivot",'System Cost'!C76*Data!$B$13*Data!$C$5*Data!AO38,IF($B$12="Hose Pull",$C$5*$B$13*'System Cost'!R76*AO38,IF($B$12="Linear Move",AO38*$B$13*$C$5*'System Cost'!H76,IF($B$12="Drip",$C$5*$B$13*AO38*'System Cost'!M76))))) -> 0 | AQ38: =IF(AO38<0,0,IF($B$12="Center Pivot",'System Cost'!E76*Data!$C$5*Data!AO38,IF($B$12="Drip",AO38*$C$5*'System Cost'!O76,IF($B$12="Linear Move",AO38*$C$5*'System Cost'!J76,IF($B$12="Hose Pull",AO38*$C$5*'System Cost'!T76))))) -> 0 | AR38: =IF(AO38<0,0,((IF($B$11="Electric",VLOOKUP((IF(I38<1995,1995,I38)),Electric!$A$3:$C$38,3,FALSE),IF($B$11="Diesel",VLOOKUP((IF(I38<1995,1995,I38)),Diesel!$A$3:$C$24,3,FALSE),IF(Data!$B$11="Natural Gas",VLOOKUP((IF(I38<1995,1995,I38)),'Natural Gas'!$A$3:$C$38,3,FALSE))))))*(IF($B$12="Center Pivot",'System Cost'!D76,IF($B$12="Linear Move",'System Cost'!I76,IF($B$12="Drip",'System Cost'!N76,IF($B$12="Hose Pull",'System Cost'!S76)))))*AO38*$C$5) -> 0 | AT38: 1870.475992 | AU38: 1716.339917 | AV38: 13811.71137 | BA38: 21813.31923 | BB38: 0 | BC38: 39211.84651 | BD38: 21813.31923 | BE38: 13253.92066 | BH38: 886.7591396 | BI38: 1637.677762 | BJ38: 10060.57889 | BL38: 31517.87005 | BM38: 18932.85426 | BN38: 9531.837762 | BR38: 16.456564 | BS38: 0.6095023705
H39: 2016 | I39: 1996 | J39: =VLOOKUP(I39,'Corn Rain'!B$3:C$38,2,FALSE) -> 18 | K39: =IF($B$8="None",0,IF($B$8="Corn",VLOOKUP(H39,'Corn Rain'!B$3:EE$38,$C$7,FALSE),IF($B$8="Cotton",VLOOKUP(H39,CottonRain!$B$3:$EE$38,Data!$C$7,FALSE),IF(Data!$B$8="Soybeans",VLOOKUP(Data!H39,'Soybeans Rain'!$B$3:$EE$38,Data!$C$7,FALSE),IF(Data!$B$8="Wheat",VLOOKUP(Data!H39,'Wheat Rain'!$B$3:$EE$38,Data!$C$7,FALSE)))))) -> 487.2446 | L39: =IF($B$8="None",0,IF($B$8="Corn",VLOOKUP(H39,'Corn Drought'!B$3:EE$38,Data!$C$7,FALSE),IF($B$8="Cotton",VLOOKUP(H39,'Cotton Drought'!$B$3:$EE$38,Data!$C$7,FALSE),IF($B$8="Soybeans",VLOOKUP(H39,'Soybeans Drought'!$B$3:$EE$38,Data!$C$7,FALSE),IF(Data!$B$8="Wheat",VLOOKUP(Data!H39,'Wheat Drought'!$B$3:$EE$38,Data!$C$7,FALSE)))))) -> 12 | M39: =IF($B$9="None",0,IF($B$9="Corn",VLOOKUP(H39,'Corn Rain'!B$3:EE$38,$C$7,FALSE),IF($B$9="Cotton",VLOOKUP(H39,CottonRain!$B$3:$EE$38,Data!$C$7,FALSE),IF(Data!$B$9="Soybeans",VLOOKUP(Data!H39,'Soybeans Rain'!$B$3:$EE$38,Data!$C$7,FALSE),IF(Data!$B$9="Wheat",VLOOKUP(Data!H39,'Wheat Rain'!$B$3:$EE$38,Data!$C$7,FALSE)))))) -> 0 | N39: =IF($B$9="None",0,IF($B$9="Corn",VLOOKUP(H39,'Corn Drought'!B$3:EE$38,Data!$C$7,FALSE),IF($B$9="Cotton",VLOOKUP(H39,'Cotton Drought'!$B$3:$EE$38,Data!$C$7,FALSE),IF($B$9="Soybeans",VLOOKUP(H39,'Soybeans Drought'!$B$3:$EE$38,Data!$C$7,FALSE),IF(Data!$B$9="Wheat",VLOOKUP(Data!H39,'Wheat Drought'!$B$3:$EE$38,Data!$C$7,FALSE)))))) -> 0 | O39: =IF($B$8="None",0,VLOOKUP(I39,'Historic Prices'!$A$3:$K$38,$C$8,FALSE)) -> 2.71 | P39: =IF($B$9="None",0,VLOOKUP(I39,'Historic Prices'!$A$3:$K$38,$C$9,FALSE)) -> 0 | Q39: =IF($B$8="None",0,IF(IF(Tool!$C$19="Ideal",$B$2,IF(Tool!$C$19="Scheduled",((VLOOKUP($B$8&$B$10,'Regression Data'!$A$3:$F$30,4,FALSE))+(VLOOKUP($B$8&$B$10,'Regression Data'!$A$3:$F$30,5,FALSE)*(K39+(Tool!$C$20*Data!$B$4/0.0393701)))+(VLOOKUP($B$8&$B$10,'Regression Data'!$A$3:$F$30,6,FALSE)*L39))/2.47105*$B$3))>$B$2,$B$2,(IF(Tool!$C$19="Ideal",$B$2,IF(Tool!$C$19="Scheduled",((VLOOKUP($B$8&$B$10,'Regression Data'!$A$3:$F$30,4,FALSE))+(VLOOKUP($B$8&$B$10,'Regression Data'!$A$3:$F$30,5,FALSE)*(K39+(Tool!$C$20*Data!$B$4/0.0393701)))+(VLOOKUP($B$8&$B$10,'Regression Data'!$A$3:$F$30,6,FALSE)*L39))/2.47105*$B$3))))) -> 184.7279335 | R39: =IF($B$8="None",0,IF(IF((((VLOOKUP($B$8&$B$10,'Regression Data'!$A$3:$F$30,4,FALSE))+(VLOOKUP($B$8&$B$10,'Regression Data'!$A$3:$F$30,5,FALSE)*K39)+(VLOOKUP($B$8&$B$10,'Regression Data'!$A$3:$F$30,6,FALSE)*L39))/2.47105*$B$3)>$B$2,$B$2,((VLOOKUP($B$8&$B$10,'Regression Data'!$A$3:$F$30,4,FALSE))+(VLOOKUP($B$8&$B$10,'Regression Data'!$A$3:$F$30,5,FALSE)*K39)+(VLOOKUP($B$8&$B$10,'Regression Data'!$A$3:$F$30,6,FALSE)*L39))/2.47105*$B$3)<0,0,IF((((VLOOKUP($B$8&$B$10,'Regression Data'!$A$3:$F$30,4,FALSE))+(VLOOKUP($B$8&$B$10,'Regression Data'!$A$3:$F$30,5,FALSE)*K39)+(VLOOKUP($B$8&$B$10,'Regression Data'!$A$3:$F$30,6,FALSE)*L39))/2.47105*$B$3)>$B$2,$B$2,((VLOOKUP($B$8&$B$10,'Regression Data'!$A$3:$F$30,4,FALSE))+(VLOOKUP($B$8&$B$10,'Regression Data'!$A$3:$F$30,5,FALSE)*K39)+(VLOOKUP($B$8&$B$10,'Regression Data'!$A$3:$F$30,6,FALSE)*L39))/2.47105*$B$3))) -> 163.003355 | S39: =IF($B$9="None",0,IF(IF(Tool!$C$19="Ideal",$C$2,IF(Tool!$C$19="Scheduled",((VLOOKUP($B$9&$B$10,'Regression Data'!$A$3:$F$30,4,FALSE))+(VLOOKUP($B$9&$B$10,'Regression Data'!$A$3:$F$30,5,FALSE)*(N39+(Tool!$C$20*Data!$C$4/0.0393701)))+(VLOOKUP($B$9&$B$10,'Regression Data'!$A$3:$F$30,6,FALSE)*N39))/2.47105*$C$3))>$C$2,$C$2,(IF(Tool!$C$19="Ideal",$C$2,IF(Tool!$C$19="Scheduled",((VLOOKUP($B$9&$B$10,'Regression Data'!$A$3:$F$30,4,FALSE))+(VLOOKUP($B$9&$B$10,'Regression Data'!$A$3:$F$30,5,FALSE)*(M39+(Tool!$C$20*Data!$C$4/0.0393701)))+(VLOOKUP($B$9&$B$10,'Regression Data'!$A$3:$F$30,6,FALSE)*N39))/2.47105*$C$3))))) -> 0 | T39: =IF($B$9="None",0,IF(IF((((VLOOKUP($B$9&$B$10,'Regression Data'!$A$3:$F$30,4,FALSE))+(VLOOKUP($B$9&$B$10,'Regression Data'!$A$3:$F$30,5,FALSE)*M39)+(VLOOKUP($B$9&$B$10,'Regression Data'!$A$3:$F$30,6,FALSE)*N39))/2.47105*$C$3)>$C$2,$C$2,((VLOOKUP($B$9&$B$10,'Regression Data'!$A$3:$F$30,4,FALSE))+(VLOOKUP($B$9&$B$10,'Regression Data'!$A$3:$F$30,5,FALSE)*M39)+(VLOOKUP($B$9&$B$10,'Regression Data'!$A$3:$F$30,6,FALSE)*N39))/2.47105*$C$3)<0,0,(IF((((VLOOKUP($B$9&$B$10,'Regression Data'!$A$3:$F$30,4,FALSE))+(VLOOKUP($B$9&$B$10,'Regression Data'!$A$3:$F$30,5,FALSE)*M39)+(VLOOKUP($B$9&$B$10,'Regression Data'!$A$3:$F$30,6,FALSE)*N39))/2.47105*$C$3)>$C$2,$C$2,((VLOOKUP($B$9&$B$10,'Regression Data'!$A$3:$F$30,4,FALSE))+(VLOOKUP($B$9&$B$10,'Regression Data'!$A$3:$F$30,5,FALSE)*M39)+(VLOOKUP($B$9&$B$10,'Regression Data'!$A$3:$F$30,6,FALSE)*N39))/2.47105*$C$3)))) -> 0 | X39: 50061.26997 | Y39: 44173.90919 | Z39: 5887.360778 | AA39: 0 | AB39: 0 | AC39: 0 | AH39: =IF($B$8="None",0,IF(Tool!$C$19="Rainfall Deficit",((VLOOKUP($B$8,'Regression Data'!$H$3:$K$6,3,FALSE))-K39)*0.0393701,IF(Tool!$C$19="Scheduled",$B$4*Tool!$C$20,))) -> 6.407696374 | AI39: =((IF($B$12="Center Pivot",'System Cost'!B77,IF($B$12="Linear Move",'System Cost'!G77,IF($B$12="Drip",'System Cost'!L77,IF($B$12="Hose Pull",'System Cost'!Q77)))))*(SUM($B$5:$C$5)))-(Tool!$C$28) -> 74341.25411 | AJ39: 9165.603422 | AK39: =IF(AH39<0,0,IF($B$12="Center Pivot",'System Cost'!C77*Data!$B$13*Data!$B$5*Data!AH39,IF($B$12="Hose Pull",$B$5*$B$13*'System Cost'!R77*AH39,IF($B$12="Linear Move",AH39*$B$13*$B$5*'System Cost'!H77,IF($B$12="Drip",$B$5*$B$13*AH39*'System Cost'!M77))))) -> 746.0698448 | AL39: =IF(AH39<0,0,IF($B$12="Center Pivot",'System Cost'!E77*Data!$B$5*Data!AH39,IF($B$12="Drip",AH39*$B$5*'System Cost'!O77,IF($B$12="Linear Move",AH39*$B$5*'System Cost'!J77,IF($B$12="Hose Pull",AH39*$B$5*'System Cost'!T77))))) -> 426.3570106 | AM39: =IF(AH39<0,0,((IF($B$11="Electric",VLOOKUP((IF(I39<1995,1995,I39)),Electric!$A$3:$C$38,3,FALSE)*0.5,IF($B$11="Diesel",VLOOKUP((IF(I39<1995,1995,I39)),Diesel!$A$3:$C$24,3,FALSE),IF(Data!$B$11="Natural Gas",VLOOKUP((IF(I39<1995,1995,I39)),'Natural Gas'!$A$3:$C$38,3,FALSE))))))*(IF($B$12="Center Pivot",'System Cost'!D77,IF($B$12="Linear Move",'System Cost'!I77,IF($B$12="Drip",'System Cost'!N77,IF($B$12="Hose Pull",'System Cost'!S77)))))*AH39*$B$5) -> 2849.736128 | AO39: =IF($B$9="None",0,IF(Tool!$C$19="Rainfall Deficit",((VLOOKUP($B$9,'Regression Data'!$H$3:$K$6,3,FALSE))-M39)*0.0393701,IF(Tool!$C$19="Scheduled",$C$4*Tool!$C$20,))) -> 0 | AP39: =IF(AO39<0,0,IF($B$12="Center Pivot",'System Cost'!C77*Data!$B$13*Data!$C$5*Data!AO39,IF($B$12="Hose Pull",$C$5*$B$13*'System Cost'!R77*AO39,IF($B$12="Linear Move",AO39*$B$13*$C$5*'System Cost'!H77,IF($B$12="Drip",$C$5*$B$13*AO39*'System Cost'!M77))))) -> 0 | AQ39: =IF(AO39<0,0,IF($B$12="Center Pivot",'System Cost'!E77*Data!$C$5*Data!AO39,IF($B$12="Drip",AO39*$C$5*'System Cost'!O77,IF($B$12="Linear Move",AO39*$C$5*'System Cost'!J77,IF($B$12="Hose Pull",AO39*$C$5*'System Cost'!T77))))) -> 0 | AR39: =IF(AO39<0,0,((IF($B$11="Electric",VLOOKUP((IF(I39<1995,1995,I39)),Electric!$A$3:$C$38,3,FALSE),IF($B$11="Diesel",VLOOKUP((IF(I39<1995,1995,I39)),Diesel!$A$3:$C$24,3,FALSE),IF(Data!$B$11="Natural Gas",VLOOKUP((IF(I39<1995,1995,I39)),'Natural Gas'!$A$3:$C$38,3,FALSE))))))*(IF($B$12="Center Pivot",'System Cost'!D77,IF($B$12="Linear Move",'System Cost'!I77,IF($B$12="Drip",'System Cost'!N77,IF($B$12="Hose Pull",'System Cost'!S77)))))*AO39*$C$5) -> 0 | AT39: 746.0698448 | AU39: 426.3570106 | AV39: 2849.736128 | BA39: 1865.197795 | BB39: 0 | BC39: 5887.360778 | BD39: 1865.197795 | BE39: -7300.405628 | BH39: 820.7491786 | BI39: 1873.594438 | BJ39: 11174.28835 | BL39: 35031.53303 | BM39: 21162.90107 | BN39: 11636.94312 | BR39: 6.407696374 | BS39: 0.2373220879
